Workbook

Sheet Figure 1
A1: Figure 1c | H1: Figure 1g | M1: Figure 1k
A2: Raw Data | D2: Graphing data | H2: Raw Data | J2: Fitting Data | M2: Energy (keV) | N2: Intensity (a.u.)
A3: Intensity (a.u.) | B3: MnBTC | C3: MnBTC-Ru | D3: Intensity (a.u.) | E3: MnBTC | F3: MnBTC-Ru | H3: Diameter of metal clusters (nm) | I3: Intensity (a.u.) | J3: Diameter of metal clusters (nm) | K3: Intensity (a.u.) | M3: 0 | N3: 0
A4: 399.1926 | B4: 0 | C4: 0 | D4: 399.1926 | E4: =B4*(-1) -> 0 | F4: =C4*(-1) -> 0 | H4: 0.7 | I4: 7 | J4: 0.7 | K4: 10.7635 | M4: 0.01 | N4: 0
A5: 400.1569 | B5: 91.3336 | C5: 90.82207 | D5: 400.1569 | E5: =B5*(-1) -> -91.3336 | F5: =C5*(-1) -> -90.82207 | H5: 0.9 | I5: 34 | J5: 0.7008 | K5: 10.824 | M5: 0.02 | N5: 0
A6: 401.1211 | B6: 91.52077 | C6: 91.10285 | D6: 401.1211 | E6: -91.52077 | F6: -91.10285 | H6: 1.1 | I6: 37 | J6: 0.7016 | K6: 10.88473 | M6: 0.03 | N6: 0
A7: 402.0853 | B7: 91.68258 | C7: 91.31379 | D7: 402.0853 | E7: -91.68258 | F7: -91.31379 | H7: 1.3 | I7: 22 | J7: 0.7024 | K7: 10.9457 | M7: 0.04 | N7: 0
A8: 403.0496 | B8: 91.72458 | C8: 91.2718 | D8: 403.0496 | E8: -91.72458 | F8: -91.2718 | H8: 1.5 | I8: 8 | J8: 0.7032 | K8: 11.0069 | M8: 0.05 | N8: 0
A9: 404.0138 | B9: 91.69616 | C9: 91.14271 | D9: 404.0138 | E9: -91.69616 | F9: -91.14271 | J9: 0.704 | K9: 11.06834 | M9: 0.06 | N9: 0
A10: 404.978 | B10: 91.65395 | C10: 91.05909 | D10: 404.978 | E10: -91.65395 | F10: -91.05909 | J10: 0.7048 | K10: 11.13001 | M10: 0.07 | N10: 0
A11: 405.9423 | B11: 91.63619 | C11: 91.08057 | D11: 405.9423 | E11: -91.63619 | F11: -91.08057 | J11: 0.70561 | K11: 11.19191 | M11: 0.08 | N11: 0
A12: 406.9065 | B12: 91.63748 | C12: 91.16629 | D12: 406.9065 | E12: -91.63748 | F12: -91.16629 | J12: 0.70641 | K12: 11.25405 | M12: 0.09 | N12: 0
A13: 407.8707 | B13: 91.61378 | C13: 91.18368 | D13: 407.8707 | E13: -91.61378 | F13: -91.18368 | J13: 0.70721 | K13: 11.31642 | M13: 0.1 | N13: 0
A14: 408.835 | B14: 91.59681 | C14: 91.21035 | D14: 408.835 | E14: -91.59681 | F14: -91.21035 | J14: 0.70801 | K14: 11.37902 | M14: 0.11 | N14: 0
A15: 409.7992 | B15: 91.59568 | C15: 91.23566 | D15: 409.7992 | E15: -91.59568 | F15: -91.23566 | J15: 0.70881 | K15: 11.44186 | M15: 0.12 | N15: 3920
A16: 410.7634 | B16: 91.61217 | C16: 91.24354 | D16: 410.7634 | E16: -91.61217 | F16: -91.24354 | J16: 0.70961 | K16: 11.50492 | M16: 0.13 | N16: 4388
A17: 411.7277 | B17: 91.64629 | C17: 91.22511 | D17: 411.7277 | E17: -91.64629 | F17: -91.22511 | J17: 0.71041 | K17: 11.56822 | M17: 0.14 | N17: 4951
A18: 412.6919 | B18: 91.69309 | C18: 91.17991 | D18: 412.6919 | E18: -91.69309 | F18: -91.17991 | J18: 0.71121 | K18: 11.63175 | M18: 0.15 | N18: 5999
A19: 413.6561 | B19: 91.74373 | C19: 91.11745 | D19: 413.6561 | E19: -91.74373 | F19: -91.11745 | J19: 0.71201 | K19: 11.69552 | M19: 0.16 | N19: 7459
A20: 414.6204 | B20: 91.7882 | C20: 91.05526 | D20: 414.6204 | E20: -91.7882 | F20: -91.05526 | J20: 0.71281 | K20: 11.75951 | M20: 0.17 | N20: 9595
A21: 415.5846 | B21: 91.81837 | C21: 91.01288 | D21: 415.5846 | E21: -91.81837 | F21: -91.01288 | J21: 0.71361 | K21: 11.82373 | M21: 0.18 | N21: 12572
A22: 416.5488 | B22: 91.83353 | C22: 91.00937 | D22: 416.5488 | E22: -91.83353 | F22: -91.00937 | J22: 0.71441 | K22: 11.88818 | M22: 0.19 | N22: 16709
A23: 417.5131 | B23: 91.83446 | C23: 91.05079 | D23: 417.5131 | E23: -91.83446 | F23: -91.05079 | J23: 0.71522 | K23: 11.95287 | M23: 0.2 | N23: 22357
A24: 418.4773 | B24: 91.82166 | C24: 91.1395 | D24: 418.4773 | E24: -91.82166 | F24: -91.1395 | J24: 0.71602 | K24: 12.01778 | M24: 0.21 | N24: 29724
A25: 419.4415 | B25: 91.79634 | C25: 91.26131 | D25: 419.4415 | E25: -91.79634 | F25: -91.26131 | J25: 0.71682 | K25: 12.08292 | M25: 0.22 | N25: 37736
A26: 420.4058 | B26: 91.76015 | C26: 91.39458 | D26: 420.4058 | E26: -91.76015 | F26: -91.39458 | J26: 0.71762 | K26: 12.14829 | M26: 0.23 | N26: 46462
A27: 421.37 | B27: 91.71331 | C27: 91.51092 | D27: 421.37 | E27: -91.71331 | F27: -91.51092 | J27: 0.71842 | K27: 12.21388 | M27: 0.24 | N27: 54913
A28: 422.3342 | B28: 91.66246 | C28: 91.59171 | D28: 422.3342 | E28: -91.66246 | F28: -91.59171 | J28: 0.71922 | K28: 12.27971 | M28: 0.25 | N28: 63065
A29: 423.2985 | B29: 91.61666 | C29: 91.63062 | D29: 423.2985 | E29: -91.61666 | F29: -91.63062 | J29: 0.72002 | K29: 12.34576 | M29: 0.26 | N29: 68101
A30: 424.2627 | B30: 91.58339 | C30: 91.63219 | D30: 424.2627 | E30: -91.58339 | F30: -91.63219 | J30: 0.72082 | K30: 12.41203 | M30: 0.27 | N30: 69440
A31: 425.2269 | B31: 91.57226 | C31: 91.60926 | D31: 425.2269 | E31: -91.57226 | F31: -91.60926 | J31: 0.72162 | K31: 12.47854 | M31: 0.28 | N31: 66822
A32: 426.1912 | B32: 91.58376 | C32: 91.58263 | D32: 426.1912 | E32: -91.58376 | F32: -91.58263 | J32: 0.72242 | K32: 12.54526 | M32: 0.29 | N32: 61234
A33: 427.1554 | B33: 91.6161 | C33: 91.56966 | D33: 427.1554 | E33: -91.6161 | F33: -91.56966 | J33: 0.72322 | K33: 12.61222 | M33: 0.3 | N33: 53932
A34: 428.1196 | B34: 91.66508 | C34: 91.58075 | D34: 428.1196 | E34: -91.66508 | F34: -91.58075 | J34: 0.72402 | K34: 12.67939 | M34: 0.31 | N34: 43736
A35: 429.0839 | B35: 91.72678 | C35: 91.61806 | D35: 429.0839 | E35: -91.72678 | F35: -91.61806 | J35: 0.72482 | K35: 12.74679 | M35: 0.32 | N35: 34223
A36: 430.0481 | B36: 91.79929 | C36: 91.67858 | D36: 430.0481 | E36: -91.79929 | F36: -91.67858 | J36: 0.72563 | K36: 12.81442 | M36: 0.33 | N36: 25143
A37: 431.0123 | B37: 91.8784 | C37: 91.75237 | D37: 431.0123 | E37: -91.8784 | F37: -91.75237 | J37: 0.72643 | K37: 12.88226 | M37: 0.34 | N37: 18734
A38: 431.9766 | B38: 91.96299 | C38: 91.83618 | D38: 431.9766 | E38: -91.96299 | F38: -91.83618 | J38: 0.72723 | K38: 12.95033 | M38: 0.35 | N38: 13956
A39: 432.9408 | B39: 92.04877 | C39: 91.92049 | D39: 432.9408 | E39: -92.04877 | F39: -91.92049 | J39: 0.72803 | K39: 13.01862 | M39: 0.36 | N39: 10948
A40: 433.905 | B40: 92.13062 | C40: 91.99293 | D40: 433.905 | E40: -92.13062 | F40: -91.99293 | J40: 0.72883 | K40: 13.08713 | M40: 0.37 | N40: 9340
A41: 434.8693 | B41: 92.19888 | C41: 92.0293 | D41: 434.8693 | E41: -92.19888 | F41: -92.0293 | J41: 0.72963 | K41: 13.15586 | M41: 0.38 | N41: 8434
A42: 435.8335 | B42: 92.24489 | C42: 92.02263 | D42: 435.8335 | E42: -92.24489 | F42: -92.02263 | J42: 0.73043 | K42: 13.22481 | M42: 0.39 | N42: 8362
A43: 436.7977 | B43: 92.26463 | C43: 91.97282 | D43: 436.7977 | E43: -92.26463 | F43: -91.97282 | J43: 0.73123 | K43: 13.29397 | M43: 0.4 | N43: 8363
A44: 437.762 | B44: 92.25404 | C44: 91.87749 | D44: 437.762 | E44: -92.25404 | F44: -91.87749 | J44: 0.73203 | K44: 13.36336 | M44: 0.41 | N44: 8737
A45: 438.7262 | B45: 92.21985 | C45: 91.76696 | D45: 438.7262 | E45: -92.21985 | F45: -91.76696 | J45: 0.73283 | K45: 13.43296 | M45: 0.42 | N45: 9943
A46: 439.6904 | B46: 92.1617 | C46: 91.64004 | D46: 439.6904 | E46: -92.1617 | F46: -91.64004 | J46: 0.73363 | K46: 13.50278 | M46: 0.43 | N46: 12199
A47: 440.6547 | B47: 92.08659 | C47: 91.49757 | D47: 440.6547 | E47: -92.08659 | F47: -91.49757 | J47: 0.73443 | K47: 13.57282 | M47: 0.44 | N47: 16225
A48: 441.6189 | B48: 92.00365 | C48: 91.36469 | D48: 441.6189 | E48: -92.00365 | F48: -91.36469 | J48: 0.73524 | K48: 13.64307 | M48: 0.45 | N48: 22372
A49: 442.5831 | B49: 91.922 | C49: 91.26782 | D49: 442.5831 | E49: -91.922 | F49: -91.26782 | J49: 0.73604 | K49: 13.71354 | M49: 0.46 | N49: 31584
A50: 443.5474 | B50: 91.84163 | C50: 91.20452 | D50: 443.5474 | E50: -91.84163 | F50: -91.20452 | J50: 0.73684 | K50: 13.78422 | M50: 0.47 | N50: 44080
A51: 444.5116 | B51: 91.77222 | C51: 91.1853 | D51: 444.5116 | E51: -91.77222 | F51: -91.1853 | J51: 0.73764 | K51: 13.85511 | M51: 0.48 | N51: 59380
A52: 445.4758 | B52: 91.71508 | C52: 91.20986 | D52: 445.4758 | E52: -91.71508 | F52: -91.20986 | J52: 0.73844 | K52: 13.92621 | M52: 0.49 | N52: 75780
A53: 446.4401 | B53: 91.67058 | C53: 91.26921 | D53: 446.4401 | E53: -91.67058 | F53: -91.26921 | J53: 0.73924 | K53: 13.99753 | M53: 0.5 | N53: 90291
A54: 447.4043 | B54: 91.64174 | C54: 91.34638 | D54: 447.4043 | E54: -91.64174 | F54: -91.34638 | J54: 0.74004 | K54: 14.06906 | M54: 0.51 | N54: 101952
A55: 448.3685 | B55: 91.62772 | C55: 91.41915 | D55: 448.3685 | E55: -91.62772 | F55: -91.41915 | J55: 0.74084 | K55: 14.14079 | M55: 0.52 | N55: 109239
A56: 449.3328 | B56: 91.62802 | C56: 91.48137 | D56: 449.3328 | E56: -91.62802 | F56: -91.48137 | J56: 0.74164 | K56: 14.21274 | M56: 0.53 | N56: 110328
A57: 450.297 | B57: 91.64107 | C57: 91.52129 | D57: 450.297 | E57: -91.64107 | F57: -91.52129 | J57: 0.74244 | K57: 14.28489 | M57: 0.54 | N57: 104245
A58: 451.2612 | B58: 91.66008 | C58: 91.53239 | D58: 451.2612 | E58: -91.66008 | F58: -91.53239 | J58: 0.74324 | K58: 14.35726 | M58: 0.55 | N58: 91660
A59: 452.2255 | B59: 91.68024 | C59: 91.52345 | D59: 452.2255 | E59: -91.68024 | F59: -91.52345 | J59: 0.74404 | K59: 14.42982 | M59: 0.56 | N59: 78363
A60: 453.1897 | B60: 91.68813 | C60: 91.46924 | D60: 453.1897 | E60: -91.68813 | F60: -91.46924 | J60: 0.74484 | K60: 14.5026 | M60: 0.57 | N60: 64711
A61: 454.1539 | B61: 91.68035 | C61: 91.38338 | D61: 454.1539 | E61: -91.68035 | F61: -91.38338 | J61: 0.74565 | K61: 14.57558 | M61: 0.58 | N61: 52223
A62: 455.1182 | B62: 91.65882 | C62: 91.2999 | D62: 455.1182 | E62: -91.65882 | F62: -91.2999 | J62: 0.74645 | K62: 14.64876 | M62: 0.59 | N62: 42379
A63: 456.0824 | B63: 91.62708 | C63: 91.23901 | D63: 456.0824 | E63: -91.62708 | F63: -91.23901 | J63: 0.74725 | K63: 14.72214 | M63: 0.6 | N63: 36355
A64: 457.0466 | B64: 91.58728 | C64: 91.20199 | D64: 457.0466 | E64: -91.58728 | F64: -91.20199 | J64: 0.74805 | K64: 14.79573 | M64: 0.61 | N64: 34143
A65: 458.0109 | B65: 91.55174 | C65: 91.2057 | D65: 458.0109 | E65: -91.55174 | F65: -91.2057 | J65: 0.74885 | K65: 14.86952 | M65: 0.62 | N65: 33105
A66: 458.9751 | B66: 91.52341 | C66: 91.24686 | D66: 458.9751 | E66: -91.52341 | F66: -91.24686 | J66: 0.74965 | K66: 14.94351 | M66: 0.63 | N66: 32297
A67: 459.9393 | B67: 91.51016 | C67: 91.31647 | D67: 459.9393 | E67: -91.51016 | F67: -91.31647 | J67: 0.75045 | K67: 15.01769 | M67: 0.64 | N67: 31734
A68: 460.9036 | B68: 91.5143 | C68: 91.40569 | D68: 460.9036 | E68: -91.5143 | F68: -91.40569 | J68: 0.75125 | K68: 15.09208 | M68: 0.65 | N68: 30363
A69: 461.8678 | B69: 91.53798 | C69: 91.50381 | D69: 461.8678 | E69: =B69*(-1) -> -91.53798 | F69: -91.50381 | J69: 0.75205 | K69: 15.16666 | M69: 0.66 | N69: 28277
A70: 462.832 | B70: 91.58158 | C70: 91.60388 | D70: 462.832 | E70: -91.58158 | F70: -91.60388 | J70: 0.75285 | K70: 15.24144 | M70: 0.67 | N70: 24549
A71: 463.7963 | B71: 91.64505 | C71: 91.70535 | D71: 463.7963 | E71: -91.64505 | F71: -91.70535 | J71: 0.75365 | K71: 15.31641 | M71: 0.68 | N71: 20333
A72: 464.7605 | B72: 91.72304 | C72: 91.81084 | D72: 464.7605 | E72: -91.72304 | F72: -91.81084 | J72: 0.75445 | K72: 15.39158 | M72: 0.69 | N72: 16464
A73: 465.7247 | B73: 91.80852 | C73: 91.92142 | D73: 465.7247 | E73: -91.80852 | F73: -91.92142 | J73: 0.75526 | K73: 15.46694 | M73: 0.7 | N73: 12867
A74: 466.689 | B74: 91.895 | C74: 92.04153 | D74: 466.689 | E74: -91.895 | F74: -92.04153 | J74: 0.75606 | K74: 15.5425 | M74: 0.71 | N74: 9824
A75: 467.6532 | B75: 91.97419 | C75: 92.17195 | D75: 467.6532 | E75: -91.97419 | F75: -92.17195 | J75: 0.75686 | K75: 15.61824 | M75: 0.72 | N75: 7380
A76: 468.6174 | B76: 92.03574 | C76: 92.3171 | D76: 468.6174 | E76: -92.03574 | F76: -92.3171 | J76: 0.75766 | K76: 15.69417 | M76: 0.73 | N76: 5405
A77: 469.5817 | B77: 92.08393 | C77: 92.46857 | D77: 469.5817 | E77: -92.08393 | F77: -92.46857 | J77: 0.75846 | K77: 15.7703 | M77: 0.74 | N77: 4284
A78: 470.5459 | B78: 92.12 | C78: 92.62132 | D78: 470.5459 | E78: -92.12 | F78: -92.62132 | J78: 0.75926 | K78: 15.8466 | M78: 0.75 | N78: 3565
A79: 471.5101 | B79: 92.14606 | C79: 92.77456 | D79: 471.5101 | E79: -92.14606 | F79: -92.77456 | J79: 0.76006 | K79: 15.9231 | M79: 0.76 | N79: 3097
A80: 472.4744 | B80: 92.16334 | C80: 92.92454 | D80: 472.4744 | E80: -92.16334 | F80: -92.92454 | J80: 0.76086 | K80: 15.99978 | M80: 0.77 | N80: 2745
A81: 473.4386 | B81: 92.17137 | C81: 93.06527 | D81: 473.4386 | E81: -92.17137 | F81: -93.06527 | J81: 0.76166 | K81: 16.07665 | M81: 0.78 | N81: 2574
A82: 474.4028 | B82: 92.16705 | C82: 93.19043 | D82: 474.4028 | E82: -92.16705 | F82: -93.19043 | J82: 0.76246 | K82: 16.1537 | M82: 0.79 | N82: 2446
A83: 475.3671 | B83: 92.1507 | C83: 93.29269 | D83: 475.3671 | E83: -92.1507 | F83: -93.29269 | J83: 0.76326 | K83: 16.23093 | M83: 0.8 | N83: 2437
A84: 476.3313 | B84: 92.12414 | C84: 93.37123 | D84: 476.3313 | E84: -92.12414 | F84: -93.37123 | J84: 0.76406 | K84: 16.30834 | M84: 0.81 | N84: 2222
A85: 477.2955 | B85: 92.09164 | C85: 93.43108 | D85: 477.2955 | E85: -92.09164 | F85: -93.43108 | J85: 0.76486 | K85: 16.38593 | M85: 0.82 | N85: 2208
A86: 478.2598 | B86: 92.05822 | C86: 93.48074 | D86: 478.2598 | E86: -92.05822 | F86: -93.48074 | J86: 0.76567 | K86: 16.4637 | M86: 0.83 | N86: 2136
A87: 479.224 | B87: 92.02607 | C87: 93.52759 | D87: 479.224 | E87: -92.02607 | F87: -93.52759 | J87: 0.76647 | K87: 16.54164 | M87: 0.84 | N87: 2160
A88: 480.1882 | B88: 91.99999 | C88: 93.58153 | D88: 480.1882 | E88: -91.99999 | F88: -93.58153 | J88: 0.76727 | K88: 16.61976 | M88: 0.85 | N88: 2071
A89: 481.1525 | B89: 91.97991 | C89: 93.64507 | D89: 481.1525 | E89: -91.97991 | F89: -93.64507 | J89: 0.76807 | K89: 16.69806 | M89: 0.86 | N89: 2047
A90: 482.1167 | B90: 91.96588 | C90: 93.71749 | D90: 482.1167 | E90: -91.96588 | F90: -93.71749 | J90: 0.76887 | K90: 16.77652 | M90: 0.87 | N90: 2149
A91: 483.0809 | B91: 91.9656 | C91: 93.78535 | D91: 483.0809 | E91: -91.9656 | F91: -93.78535 | J91: 0.76967 | K91: 16.85516 | M91: 0.88 | N91: 2169
A92: 484.0452 | B92: 91.97539 | C92: 93.84434 | D92: 484.0452 | E92: -91.97539 | F92: -93.84434 | J92: 0.77047 | K92: 16.93397 | M92: 0.89 | N92: 2330
A93: 485.0094 | B93: 91.99276 | C93: 93.89182 | D93: 485.0094 | E93: -91.99276 | F93: -93.89182 | J93: 0.77127 | K93: 17.01295 | M93: 0.9 | N93: 2446
A94: 485.9736 | B94: 92.01463 | C94: 93.92275 | D94: 485.9736 | E94: -92.01463 | F94: -93.92275 | J94: 0.77207 | K94: 17.0921 | M94: 0.91 | N94: 2520
A95: 486.9379 | B95: 92.03694 | C95: 93.93448 | D95: 486.9379 | E95: -92.03694 | F95: -93.93448 | J95: 0.77287 | K95: 17.17142 | M95: 0.92 | N95: 2616
A96: 487.9021 | B96: 92.05466 | C96: 93.92673 | D96: 487.9021 | E96: -92.05466 | F96: -93.92673 | J96: 0.77367 | K96: 17.2509 | M96: 0.93 | N96: 2648
A97: 488.8663 | B97: 92.06232 | C97: 93.90148 | D97: 488.8663 | E97: -92.06232 | F97: -93.90148 | J97: 0.77447 | K97: 17.33054 | M97: 0.94 | N97: 2625
A98: 489.8306 | B98: 92.05144 | C98: 93.85833 | D98: 489.8306 | E98: -92.05144 | F98: -93.85833 | J98: 0.77528 | K98: 17.41034 | M98: 0.95 | N98: 2584
A99: 490.7948 | B99: 92.02405 | C99: 93.80922 | D99: 490.7948 | E99: -92.02405 | F99: -93.80922 | J99: 0.77608 | K99: 17.49031 | M99: 0.96 | N99: 2524
A100: 491.759 | B100: 91.98106 | C100: 93.76064 | D100: 491.759 | E100: -91.98106 | F100: -93.76064 | J100: 0.77688 | K100: 17.57044 | M100: 0.97 | N100: 2372
A101: 492.7233 | B101: 91.92185 | C101: 93.71857 | D101: 492.7233 | E101: -91.92185 | F101: -93.71857 | J101: 0.77768 | K101: 17.65072 | M101: 0.98 | N101: 2137
A102: 493.6875 | B102: 91.85324 | C102: 93.68921 | D102: 493.6875 | E102: -91.85324 | F102: -93.68921 | J102: 0.77848 | K102: 17.73116 | M102: 0.99 | N102: 2021
A103: 494.6517 | B103: 91.78168 | C103: 93.66507 | D103: 494.6517 | E103: -91.78168 | F103: -93.66507 | J103: 0.77928 | K103: 17.81176 | M103: 1 | N103: 1902
A104: 495.616 | B104: 91.71202 | C104: 93.65222 | D104: 495.616 | E104: -91.71202 | F104: -93.65222 | J104: 0.78008 | K104: 17.89251 | M104: 1.01 | N104: 1855
A105: 496.5802 | B105: 91.64451 | C105: 93.64587 | D105: 496.5802 | E105: -91.64451 | F105: -93.64587 | J105: 0.78088 | K105: 17.97341 | M105: 1.02 | N105: 1833
A106: 497.5444 | B106: 91.5828 | C106: 93.63418 | D106: 497.5444 | E106: -91.5828 | F106: -93.63418 | J106: 0.78168 | K106: 18.05446 | M106: 1.03 | N106: 1746
A107: 498.5087 | B107: 91.53115 | C107: 93.60847 | D107: 498.5087 | E107: -91.53115 | F107: -93.60847 | J107: 0.78248 | K107: 18.13566 | M107: 1.04 | N107: 1746
A108: 499.4729 | B108: 91.48936 | C108: 93.56151 | D108: 499.4729 | E108: -91.48936 | F108: -93.56151 | J108: 0.78328 | K108: 18.21701 | M108: 1.05 | N108: 1657
A109: 500.4371 | B109: 91.45316 | C109: 93.4884 | D109: 500.4371 | E109: -91.45316 | F109: -93.4884 | J109: 0.78408 | K109: 18.29851 | M109: 1.06 | N109: 1643
A110: 501.4014 | B110: 91.42108 | C110: 93.3937 | D110: 501.4014 | E110: -91.42108 | F110: -93.3937 | J110: 0.78488 | K110: 18.38015 | M110: 1.07 | N110: 1589
A111: 502.3656 | B111: 91.389 | C111: 93.28763 | D111: 502.3656 | E111: -91.389 | F111: -93.28763 | J111: 0.78569 | K111: 18.46193 | M111: 1.08 | N111: 1582
A112: 503.3299 | B112: 91.35606 | C112: 93.17129 | D112: 503.3299 | E112: -91.35606 | F112: -93.17129 | J112: 0.78649 | K112: 18.54386 | M112: 1.09 | N112: 1523
A113: 504.2941 | B113: 91.31963 | C113: 93.05737 | D113: 504.2941 | E113: -91.31963 | F113: -93.05737 | J113: 0.78729 | K113: 18.62593 | M113: 1.1 | N113: 1493
A114: 505.2583 | B114: 91.28274 | C114: 92.95393 | D114: 505.2583 | E114: -91.28274 | F114: -92.95393 | J114: 0.78809 | K114: 18.70813 | M114: 1.11 | N114: 1484
A115: 506.2226 | B115: 91.24 | C115: 92.85745 | D115: 506.2226 | E115: -91.24 | F115: -92.85745 | J115: 0.78889 | K115: 18.79047 | M115: 1.12 | N115: 1456
A116: 507.1868 | B116: 91.18974 | C116: 92.76339 | D116: 507.1868 | E116: -91.18974 | F116: -92.76339 | J116: 0.78969 | K116: 18.87295 | M116: 1.13 | N116: 1494
A117: 508.151 | B117: 91.1333 | C117: 92.67343 | D117: 508.151 | E117: -91.1333 | F117: -92.67343 | J117: 0.79049 | K117: 18.95556 | M117: 1.14 | N117: 1482
A118: 509.1153 | B118: 91.06921 | C118: 92.59085 | D118: 509.1153 | E118: -91.06921 | F118: -92.59085 | J118: 0.79129 | K118: 19.0383 | M118: 1.15 | N118: 1446
A119: 510.0795 | B119: 90.99688 | C119: 92.49825 | D119: 510.0795 | E119: -90.99688 | F119: -92.49825 | J119: 0.79209 | K119: 19.12117 | M119: 1.16 | N119: 1417
A120: 511.0437 | B120: 90.92173 | C120: 92.40013 | D120: 511.0437 | E120: -90.92173 | F120: -92.40013 | J120: 0.79289 | K120: 19.20417 | M120: 1.17 | N120: 1394
A121: 512.0079 | B121: 90.84702 | C121: 92.29015 | D121: 512.0079 | E121: -90.84702 | F121: -92.29015 | J121: 0.79369 | K121: 19.28729 | M121: 1.18 | N121: 1347
A122: 512.9722 | B122: 90.77167 | C122: 92.16255 | D122: 512.9722 | E122: -90.77167 | F122: -92.16255 | J122: 0.79449 | K122: 19.37055 | M122: 1.19 | N122: 1344
A123: 513.9364 | B123: 90.69469 | C123: 92.01553 | D123: 513.9364 | E123: -90.69469 | F123: -92.01553 | J123: 0.7953 | K123: 19.45392 | M123: 1.2 | N123: 1300
A124: 514.9006 | B124: 90.62103 | C124: 91.85419 | D124: 514.9006 | E124: -90.62103 | F124: -91.85419 | J124: 0.7961 | K124: 19.53742 | M124: 1.21 | N124: 1377
A125: 515.8649 | B125: 90.54814 | C125: 91.68136 | D125: 515.8649 | E125: -90.54814 | F125: -91.68136 | J125: 0.7969 | K125: 19.62104 | M125: 1.22 | N125: 1336
A126: 516.8291 | B126: 90.4781 | C126: 91.5002 | D126: 516.8291 | E126: -90.4781 | F126: -91.5002 | J126: 0.7977 | K126: 19.70477 | M126: 1.23 | N126: 1280
A127: 517.7933 | B127: 90.40855 | C127: 91.31803 | D127: 517.7933 | E127: -90.40855 | F127: -91.31803 | J127: 0.7985 | K127: 19.78862 | M127: 1.24 | N127: 1358
A128: 518.7576 | B128: 90.34676 | C128: 91.13961 | D128: 518.7576 | E128: -90.34676 | F128: -91.13961 | J128: 0.7993 | K128: 19.87259 | M128: 1.25 | N128: 1234
A129: 519.7218 | B129: 90.28338 | C129: 90.95827 | D129: 519.7218 | E129: -90.28338 | F129: -90.95827 | J129: 0.8001 | K129: 19.95667 | M129: 1.26 | N129: 1223
A130: 520.686 | B130: 90.2179 | C130: 90.76888 | D130: 520.686 | E130: -90.2179 | F130: -90.76888 | J130: 0.8009 | K130: 20.04086 | M130: 1.27 | N130: 1235
A131: 521.6503 | B131: 90.15089 | C131: 90.57239 | D131: 521.6503 | E131: -90.15089 | F131: -90.57239 | J131: 0.8017 | K131: 20.12516 | M131: 1.28 | N131: 1266
A132: 522.6145 | B132: 90.07791 | C132: 90.35806 | D132: 522.6145 | E132: -90.07791 | F132: -90.35806 | J132: 0.8025 | K132: 20.20956 | M132: 1.29 | N132: 1245
A133: 523.5787 | B133: 89.99709 | C133: 90.12548 | D133: 523.5787 | E133: =B133*(-1) -> -89.99709 | F133: -90.12548 | J133: 0.8033 | K133: 20.29407 | M133: 1.3 | N133: 1140
A134: 524.543 | B134: 89.9081 | C134: 89.89072 | D134: 524.543 | E134: -89.9081 | F134: -89.89072 | J134: 0.8041 | K134: 20.37869 | M134: 1.31 | N134: 1209
A135: 525.5072 | B135: 89.81198 | C135: 89.65173 | D135: 525.5072 | E135: -89.81198 | F135: -89.65173 | J135: 0.8049 | K135: 20.46341 | M135: 1.32 | N135: 1220
A136: 526.4714 | B136: 89.71035 | C136: 89.41615 | D136: 526.4714 | E136: -89.71035 | F136: -89.41615 | J136: 0.80571 | K136: 20.54822 | M136: 1.33 | N136: 1164
A137: 527.4357 | B137: 89.60526 | C137: 89.19054 | D137: 527.4357 | E137: -89.60526 | F137: -89.19054 | J137: 0.80651 | K137: 20.63314 | M137: 1.34 | N137: 1141
A138: 528.3999 | B138: 89.49921 | C138: 88.97922 | D138: 528.3999 | E138: -89.49921 | F138: -88.97922 | J138: 0.80731 | K138: 20.71815 | M138: 1.35 | N138: 1108
A139: 529.3641 | B139: 89.39142 | C139: 88.78491 | D139: 529.3641 | E139: -89.39142 | F139: -88.78491 | J139: 0.80811 | K139: 20.80326 | M139: 1.36 | N139: 1097
A140: 530.3284 | B140: 89.28595 | C140: 88.61223 | D140: 530.3284 | E140: -89.28595 | F140: -88.61223 | J140: 0.80891 | K140: 20.88846 | M140: 1.37 | N140: 1099
A141: 531.2926 | B141: 89.18908 | C141: 88.45773 | D141: 531.2926 | E141: -89.18908 | F141: -88.45773 | J141: 0.80971 | K141: 20.97374 | M141: 1.38 | N141: 1089
A142: 532.2568 | B142: 89.0996 | C142: 88.3207 | D142: 532.2568 | E142: -89.0996 | F142: -88.3207 | J142: 0.81051 | K142: 21.05912 | M142: 1.39 | N142: 1061
A143: 533.2211 | B143: 89.01998 | C143: 88.19656 | D143: 533.2211 | E143: -89.01998 | F143: -88.19656 | J143: 0.81131 | K143: 21.14458 | M143: 1.4 | N143: 1073
A144: 534.1853 | B144: 88.95657 | C144: 88.08034 | D144: 534.1853 | E144: -88.95657 | F144: -88.08034 | J144: 0.81211 | K144: 21.23013 | M144: 1.41 | N144: 1102
A145: 535.1495 | B145: 88.91038 | C145: 87.97415 | D145: 535.1495 | E145: -88.91038 | F145: -87.97415 | J145: 0.81291 | K145: 21.31576 | M145: 1.42 | N145: 1032
A146: 536.1138 | B146: 88.87818 | C146: 87.87555 | D146: 536.1138 | E146: -88.87818 | F146: -87.87555 | J146: 0.81371 | K146: 21.40147 | M146: 1.43 | N146: 1179
A147: 537.078 | B147: 88.85703 | C147: 87.78363 | D147: 537.078 | E147: -88.85703 | F147: -87.78363 | J147: 0.81451 | K147: 21.48726 | M147: 1.44 | N147: 1048
A148: 538.0422 | B148: 88.84328 | C148: 87.69821 | D148: 538.0422 | E148: -88.84328 | F148: -87.69821 | J148: 0.81532 | K148: 21.57313 | M148: 1.45 | N148: 1115
A149: 539.0065 | B149: 88.83322 | C149: 87.61964 | D149: 539.0065 | E149: -88.83322 | F149: -87.61964 | J149: 0.81612 | K149: 21.65907 | M149: 1.46 | N149: 1082
A150: 539.9707 | B150: 88.82478 | C150: 87.55016 | D150: 539.9707 | E150: -88.82478 | F150: -87.55016 | J150: 0.81692 | K150: 21.74508 | M150: 1.47 | N150: 1089
A151: 540.9349 | B151: 88.81191 | C151: 87.48758 | D151: 540.9349 | E151: -88.81191 | F151: -87.48758 | J151: 0.81772 | K151: 21.83116 | M151: 1.48 | N151: 1095
A152: 541.8992 | B152: 88.79219 | C152: 87.43246 | D152: 541.8992 | E152: -88.79219 | F152: -87.43246 | J152: 0.81852 | K152: 21.91731 | M152: 1.49 | N152: 1153
A153: 542.8634 | B153: 88.76388 | C153: 87.3848 | D153: 542.8634 | E153: -88.76388 | F153: -87.3848 | J153: 0.81932 | K153: 22.00353 | M153: 1.5 | N153: 1136
A154: 543.8276 | B154: 88.72639 | C154: 87.34416 | D154: 543.8276 | E154: -88.72639 | F154: -87.34416 | J154: 0.82012 | K154: 22.08981 | M154: 1.51 | N154: 1144
A155: 544.7919 | B155: 88.68018 | C155: 87.3092 | D155: 544.7919 | E155: -88.68018 | F155: -87.3092 | J155: 0.82092 | K155: 22.17615 | M155: 1.52 | N155: 1022
A156: 545.7561 | B156: 88.6236 | C156: 87.28048 | D156: 545.7561 | E156: -88.6236 | F156: -87.28048 | J156: 0.82172 | K156: 22.26255 | M156: 1.53 | N156: 975
A157: 546.7203 | B157: 88.56612 | C157: 87.25922 | D157: 546.7203 | E157: -88.56612 | F157: -87.25922 | J157: 0.82252 | K157: 22.34901 | M157: 1.54 | N157: 1024
A158: 547.6846 | B158: 88.51414 | C158: 87.24841 | D158: 547.6846 | E158: -88.51414 | F158: -87.24841 | J158: 0.82332 | K158: 22.43553 | M158: 1.55 | N158: 1053
A159: 548.6488 | B159: 88.47177 | C159: 87.24718 | D159: 548.6488 | E159: -88.47177 | F159: -87.24718 | J159: 0.82412 | K159: 22.5221 | M159: 1.56 | N159: 1019
A160: 549.613 | B160: 88.44358 | C160: 87.25436 | D160: 549.613 | E160: -88.44358 | F160: -87.25436 | J160: 0.82492 | K160: 22.60872 | M160: 1.57 | N160: 967
A161: 550.5773 | B161: 88.43272 | C161: 87.26749 | D161: 550.5773 | E161: -88.43272 | F161: -87.26749 | J161: 0.82573 | K161: 22.69539 | M161: 1.58 | N161: 938
A162: 551.5415 | B162: 88.44051 | C162: 87.28355 | D162: 551.5415 | E162: -88.44051 | F162: -87.28355 | J162: 0.82653 | K162: 22.78211 | M162: 1.59 | N162: 987
A163: 552.5057 | B163: 88.46655 | C163: 87.29995 | D163: 552.5057 | E163: -88.46655 | F163: -87.29995 | J163: 0.82733 | K163: 22.86887 | M163: 1.6 | N163: 946
A164: 553.47 | B164: 88.51012 | C164: 87.31693 | D164: 553.47 | E164: -88.51012 | F164: -87.31693 | J164: 0.82813 | K164: 22.95567 | M164: 1.61 | N164: 918
A165: 554.4342 | B165: 88.56317 | C165: 87.33039 | D165: 554.4342 | E165: -88.56317 | F165: -87.33039 | J165: 0.82893 | K165: 23.04251 | M165: 1.62 | N165: 869
A166: 555.3984 | B166: 88.62301 | C166: 87.34438 | D166: 555.3984 | E166: -88.62301 | F166: -87.34438 | J166: 0.82973 | K166: 23.1294 | M166: 1.63 | N166: 949
A167: 556.3627 | B167: 88.68565 | C167: 87.36304 | D167: 556.3627 | E167: -88.68565 | F167: -87.36304 | J167: 0.83053 | K167: 23.21631 | M167: 1.64 | N167: 893
A168: 557.3269 | B168: 88.74797 | C168: 87.39083 | D168: 557.3269 | E168: -88.74797 | F168: -87.39083 | J168: 0.83133 | K168: 23.30326 | M168: 1.65 | N168: 916
A169: 558.2911 | B169: 88.8057 | C169: 87.42904 | D169: 558.2911 | E169: -88.8057 | F169: -87.42904 | J169: 0.83213 | K169: 23.39025 | M169: 1.66 | N169: 889
A170: 559.2554 | B170: 88.85644 | C170: 87.47783 | D170: 559.2554 | E170: -88.85644 | F170: -87.47783 | J170: 0.83293 | K170: 23.47726 | M170: 1.67 | N170: 942
A171: 560.2196 | B171: 88.89942 | C171: 87.53596 | D171: 560.2196 | E171: -88.89942 | F171: -87.53596 | J171: 0.83373 | K171: 23.5643 | M171: 1.68 | N171: 889
A172: 561.1838 | B172: 88.93454 | C172: 87.60034 | D172: 561.1838 | E172: -88.93454 | F172: -87.60034 | J172: 0.83453 | K172: 23.65136 | M172: 1.69 | N172: 904
A173: 562.1481 | B173: 88.95955 | C173: 87.66448 | D173: 562.1481 | E173: -88.95955 | F173: -87.66448 | J173: 0.83534 | K173: 23.73845 | M173: 1.7 | N173: 829
A174: 563.1123 | B174: 88.97687 | C174: 87.72661 | D174: 563.1123 | E174: -88.97687 | F174: -87.72661 | J174: 0.83614 | K174: 23.82555 | M174: 1.71 | N174: 885
A175: 564.0765 | B175: 88.99067 | C175: 87.78712 | D175: 564.0765 | E175: -88.99067 | F175: -87.78712 | J175: 0.83694 | K175: 23.91267 | M175: 1.72 | N175: 867
A176: 565.0408 | B176: 89.00214 | C176: 87.84603 | D176: 565.0408 | E176: -89.00214 | F176: -87.84603 | J176: 0.83774 | K176: 23.99981 | M176: 1.73 | N176: 875
A177: 566.005 | B177: 89.01427 | C177: 87.90551 | D177: 566.005 | E177: -89.01427 | F177: -87.90551 | J177: 0.83854 | K177: 24.08696 | M177: 1.74 | N177: 905
A178: 566.9692 | B178: 89.02992 | C178: 87.96806 | D178: 566.9692 | E178: -89.02992 | F178: -87.96806 | J178: 0.83934 | K178: 24.17412 | M178: 1.75 | N178: 878
A179: 567.9335 | B179: 89.04941 | C179: 88.03355 | D179: 567.9335 | E179: -89.04941 | F179: -88.03355 | J179: 0.84014 | K179: 24.26129 | M179: 1.76 | N179: 927
A180: 568.8977 | B180: 89.07614 | C180: 88.10458 | D180: 568.8977 | E180: -89.07614 | F180: -88.10458 | J180: 0.84094 | K180: 24.34847 | M180: 1.77 | N180: 908
A181: 569.8619 | B181: 89.11301 | C181: 88.18246 | D181: 569.8619 | E181: -89.11301 | F181: -88.18246 | J181: 0.84334 | K181: 24.61001 | M181: 1.78 | N181: 838
A182: 570.8262 | B182: 89.16205 | C182: 88.26683 | D182: 570.8262 | E182: -89.16205 | F182: -88.26683 | J182: 0.84414 | K182: 24.69719 | M182: 1.79 | N182: 873
A183: 571.7904 | B183: 89.22249 | C183: 88.35435 | D183: 571.7904 | E183: -89.22249 | F183: -88.35435 | J183: 0.84494 | K183: 24.78436 | M183: 1.8 | N183: 807
A184: 572.7546 | B184: 89.29249 | C184: 88.4411 | D184: 572.7546 | E184: -89.29249 | F184: -88.4411 | J184: 0.84575 | K184: 24.87152 | M184: 1.81 | N184: 842
A185: 573.7189 | B185: 89.36839 | C185: 88.52274 | D185: 573.7189 | E185: -89.36839 | F185: -88.52274 | J185: 0.84655 | K185: 24.95867 | M185: 1.82 | N185: 794
A186: 574.6831 | B186: 89.44514 | C186: 88.59554 | D186: 574.6831 | E186: -89.44514 | F186: -88.59554 | J186: 0.84735 | K186: 25.0458 | M186: 1.83 | N186: 820
A187: 575.6473 | B187: 89.51407 | C187: 88.65457 | D187: 575.6473 | E187: -89.51407 | F187: -88.65457 | J187: 0.84815 | K187: 25.13293 | M187: 1.84 | N187: 823
A188: 576.6116 | B188: 89.57188 | C188: 88.70253 | D188: 576.6116 | E188: -89.57188 | F188: -88.70253 | J188: 0.84895 | K188: 25.22003 | M188: 1.85 | N188: 830
A189: 577.5758 | B189: 89.61489 | C189: 88.74306 | D189: 577.5758 | E189: -89.61489 | F189: -88.74306 | J189: 0.84975 | K189: 25.30711 | M189: 1.86 | N189: 810
A190: 578.54 | B190: 89.63918 | C190: 88.78048 | D190: 578.54 | E190: -89.63918 | F190: -88.78048 | J190: 0.85055 | K190: 25.39417 | M190: 1.87 | N190: 766
A191: 579.5043 | B191: 89.64603 | C191: 88.82124 | D191: 579.5043 | E191: -89.64603 | F191: -88.82124 | J191: 0.85135 | K191: 25.4812 | M191: 1.88 | N191: 792
A192: 580.4685 | B192: 89.63766 | C192: 88.86987 | D192: 580.4685 | E192: -89.63766 | F192: -88.86987 | J192: 0.85215 | K192: 25.56821 | M192: 1.89 | N192: 739
A193: 581.4327 | B193: 89.61777 | C193: 88.92815 | D193: 581.4327 | E193: -89.61777 | F193: -88.92815 | J193: 0.85295 | K193: 25.65519 | M193: 1.9 | N193: 766
A194: 582.397 | B194: 89.59062 | C194: 88.99474 | D194: 582.397 | E194: -89.59062 | F194: -88.99474 | J194: 0.85375 | K194: 25.74213 | M194: 1.91 | N194: 791
A195: 583.3612 | B195: 89.5611 | C195: 89.06559 | D195: 583.3612 | E195: -89.5611 | F195: -89.06559 | J195: 0.85455 | K195: 25.82904 | M195: 1.92 | N195: 787
A196: 584.3254 | B196: 89.53421 | C196: 89.13534 | D196: 584.3254 | E196: -89.53421 | F196: -89.13534 | J196: 0.85536 | K196: 25.9159 | M196: 1.93 | N196: 726
A197: 585.2897 | B197: 89.51453 | C197: 89.19878 | D197: 585.2897 | E197: =B197*(-1) -> -89.51453 | F197: -89.19878 | J197: 0.85616 | K197: 26.00273 | M197: 1.94 | N197: 716
A198: 586.2539 | B198: 89.50565 | C198: 89.25224 | D198: 586.2539 | E198: -89.50565 | F198: -89.25224 | J198: 0.85696 | K198: 26.08952 | M198: 1.95 | N198: 787
A199: 587.2181 | B199: 89.50964 | C199: 89.29412 | D199: 587.2181 | E199: -89.50964 | F199: -89.29412 | J199: 0.85776 | K199: 26.17626 | M199: 1.96 | N199: 717
A200: 588.1824 | B200: 89.52666 | C200: 89.32493 | D200: 588.1824 | E200: -89.52666 | F200: -89.32493 | J200: 0.85856 | K200: 26.26295 | M200: 1.97 | N200: 693
... 3898 more rows

Sheet Figure 2
A1: Figure 2a | P1: Figure 2b | AK1: Figure 2c | BB1: Figure 2d | BH1: Figure 2e | BK1: Figure 2f | BX1: Figure 2g | CD1: Figure 2h
A2: O 1s of MnBTC | H2: O 1s of MnBTC-Ru | P2: Mn 2p of MnBTC | Z2: Mn 2p of MnBTC-Ru | AK2: Ru 3p of C-Ru | AS2: Ru 3p of MnBTC-Ru | BB2: Energy (eV) | BC2: MnBTC-Ru | BD2: Ru foil | BE2: RuCl3 | BF2: RuO2 | BH2: Valence | BI2: K edge energy (eV) | BK2: Ru foil | BN2: MnBTC-Ru | BQ2: RuCl3 | BT2: RuO2 | BX2: Radial distance (Å) | BY2: MnBTC-Ru | BZ2: Ru foil | CA2: RuCl3 | CB2: RuO2 | CD2: Ru | CG2: C-Ru | CJ2: MnBTC-Ru
A3: Binding energy (eV) | B3: Raw data | C3: Peak | D3: Peak | E3: Peak | F3: Background | G3: Envelope | H3: Binding energy (eV) | I3: Raw data | J3: Peak | K3: Peak | L3: Peak | M3: Background | N3: Envelope | P3: Binding energy (eV) | Q3: Raw data | R3: Peak | S3: Peak | T3: Peak | U3: Peak | V3: Peak | W3: Peak | X3: Background | Y3: Envelope | Z3: Binding energy (eV) | AA3: Raw data | AB3: Peak | AC3: Peak | AD3: Peak | AE3: Peak | AF3: Peak | AG3: Peak | AH3: Background | AI3: Envelope | AK3: Binding energy (eV) | AL3: Raw data | AM3: Peak | AN3: Peak | AO3: Peak | AP3: Peak | AQ3: Background | AR3: Envelope | AS3: Binding energy (eV) | AT3: Raw data | AU3: Peak | AV3: Peak | AW3: Peak | AX3: Peak | AY3: Background | AZ3: Envelope | BB3: 21914.906 | BC3: 0.0081 | BD3: 0.00399 | BE3: -0.00459 | BF3: -0.00184 | BH3: 0 | BI3: 22115 | BK3: k (Å-1) | BL3: R+α (Å) | BN3: k (Å-1) | BO3: R+α (Å) | BQ3: k (Å-1) | BR3: R+α (Å) | BT3: k (Å-1) | BU3: R+α (Å) | BX3: 0 | BY3: 0.35916 | BZ3: 0.02117 | CA3: 0.11902 | CB3: 0.28 | CD3: -53.70315 | CE3: 0 | CF3: 0 | CG3: -46.44358 | CH3: 0 | CI3: 0 | CJ3: -46.21323 | CK3: 0 | CL3: 0
A4: 535.58 | B4: 19630.8 | C4: 19234.8 | D4: 19232.8 | E4: 19710.8 | F4: 19232.8 | G4: 19712.7 | H4: 535.58 | I4: 21967.5 | J4: 21462.8 | K4: 21917.9 | L4: 21462.2 | M4: 21462.2 | N4: 21918.5 | P4: 660.08 | Q4: 42251.5 | R4: 42444.8 | S4: 42444.8 | T4: 42445.2 | U4: 42920 | V4: 42445.6 | W4: 42445.5 | X4: 42444.8 | Y4: 42921.7 | Z4: 660.08 | AA4: 43376.6 | AB4: 42694.3 | AC4: 42694.3 | AD4: 42694.3 | AE4: 43663.4 | AF4: 42694.3 | AG4: 42695.4 | AH4: 42694.3 | AI4: 43664.5 | AK4: 495.08 | AL4: 20939.1 | AM4: 20890 | AN4: 20890 | AO4: 20890 | AP4: 20894.7 | AQ4: 20890 | AR4: 20894.7 | AS4: 495.08 | AT4: 16092.8 | AU4: 15832.2 | AV4: 15832.2 | AW4: 15832.2 | AX4: 15832.4 | AY4: 15832.2 | AZ4: 15832.4 | BB4: 21919.903 | BC4: 0.00759 | BD4: 0.00381 | BE4: -0.00191 | BF4: -3.05E-04 | BH4: 1.84 | BI4: 22119 | BK4: -5 | BL4: 0 | BM4: 0.00156 | BN4: -5 | BO4: 0 | BP4: 0.00219 | BQ4: -5 | BR4: 0 | BS4: 7.52E-04 | BT4: -5 | BU4: 0 | BV4: 0.00369 | BX4: 0.03068 | BY4: 0.34564 | BZ4: 0.02921 | CA4: 0.11869 | CB4: 0.27261 | CD4: -53.64215 | CE4: 0 | CF4: 0 | CG4: -46.38658 | CH4: 0 | CI4: 0 | CJ4: -46.15923 | CK4: 0 | CL4: 0
A5: 535.48 | B5: 19679.9 | C5: 19234.3 | D5: 19231.1 | E5: 19845.4 | F5: 19231.1 | G5: 19848.6 | H5: 535.48 | I5: 21732 | J5: 21461.3 | K5: 22052.7 | L5: 21460.3 | M5: 21460.3 | N5: 22053.8 | P5: 659.98 | Q5: 42593.6 | R5: 42439.3 | S5: 42439.3 | T5: 42439.6 | U5: 42992.9 | V5: 42440 | W5: 42440 | X5: 42439.3 | Y5: 42994.8 | Z5: 659.98 | AA5: 43385.7 | AB5: 42686.8 | AC5: 42686.8 | AD5: 42686.8 | AE5: 43792.4 | AF5: 42686.8 | AG5: 42688.3 | AH5: 42686.8 | AI5: 43793.9 | AK5: 494.98 | AL5: 20697.8 | AM5: 20889.2 | AN5: 20889.2 | AO5: 20889.2 | AP5: 20894.6 | AQ5: 20889.2 | AR5: 20894.6 | AS5: 494.98 | AT5: 15938 | AU5: 15823.2 | AV5: 15823.2 | AW5: 15823.2 | AX5: 15823.3 | AY5: 15823.2 | AZ5: 15823.3 | BB5: 21924.901 | BC5: 0.00644 | BD5: 0.00362 | BE5: 7.73E-04 | BF5: 0.00123 | BH5: 3 | BI5: 22121.5 | BK5: -5 | BL5: 0.02069 | BM5: 0.00321 | BN5: -5 | BO5: 0.02239 | BP5: 0.00446 | BQ5: -5 | BR5: 0.02076 | BS5: 0.00164 | BT5: -5 | BU5: 0.02076 | BV5: 0.00721 | BX5: 0.06136 | BY5: 0.30795 | BZ5: 0.04418 | CA5: 0.11756 | CB5: 0.25184 | CD5: -53.58015 | CE5: 0 | CF5: 0 | CG5: -46.32958 | CH5: 0 | CI5: 0 | CJ5: -46.10623 | CK5: 0 | CL5: 0
A6: 535.38 | B6: 20041.1 | C6: 19234.2 | D6: 19229.1 | E6: 20012.1 | F6: 19229.1 | G6: 20017.3 | H6: 535.38 | I6: 22025.3 | J6: 21459.8 | K6: 22221.9 | L6: 21458.1 | M6: 21458.1 | N6: 22223.7 | P6: 659.88 | Q6: 43375 | R6: 42432.3 | S6: 42432.3 | T6: 42432.7 | U6: 43074.1 | V6: 42433.1 | W6: 42433.2 | X6: 42432.3 | Y6: 43076.1 | Z6: 659.88 | AA6: 43589.5 | AB6: 42678.9 | AC6: 42678.9 | AD6: 42678.9 | AE6: 43933.3 | AF6: 42678.9 | AG6: 42680.8 | AH6: 42678.9 | AI6: 43935.2 | AK6: 494.88 | AL6: 21005.1 | AM6: 20887.7 | AN6: 20887.7 | AO6: 20887.7 | AP6: 20893.8 | AQ6: 20887.7 | AR6: 20893.8 | AS6: 494.88 | AT6: 15571 | AU6: 15820 | AV6: 15820 | AW6: 15820 | AX6: 15820.2 | AY6: 15820 | AZ6: 15820.2 | BB6: 21929.902 | BC6: 0.00563 | BD6: 0.00344 | BE6: 0.00346 | BF6: 0.00277 | BH6: 4 | BI6: 22124 | BK6: -5 | BL6: 0.04138 | BM6: 0.00463 | BN6: -5 | BO6: 0.04478 | BP6: 0.00559 | BQ6: -5 | BR6: 0.04152 | BS6: 0.00269 | BT6: -5 | BU6: 0.04152 | BV6: 0.00882 | BX6: 0.09204 | BY6: 0.2557 | BZ6: 0.05858 | CA6: 0.11543 | CB6: 0.22223 | CD6: -53.51815 | CE6: 0 | CF6: 0 | CG6: -46.27258 | CH6: 0 | CI6: 0 | CJ6: -46.05323 | CK6: 0 | CL6: 0
A7: 535.28 | B7: 20324.8 | C7: 19234.8 | D7: 19226.6 | E7: 20216.6 | F7: 19226.6 | G7: 20224.8 | H7: 535.28 | I7: 22629.9 | J7: 21458.5 | K7: 22432.3 | L7: 21455.5 | M7: 21455.5 | N7: 22435.3 | P7: 659.78 | Q7: 43295.4 | R7: 42424.4 | S7: 42424.4 | T7: 42424.8 | U7: 43164.4 | V7: 42425.1 | W7: 42425.5 | X7: 42424.4 | Y7: 43166.6 | Z7: 659.78 | AA7: 43498.1 | AB7: 42669.3 | AC7: 42669.3 | AD7: 42669.4 | AE7: 44084.5 | AF7: 42669.3 | AG7: 42671.9 | AH7: 42669.3 | AI7: 44087.1 | AK7: 494.78 | AL7: 21326.9 | AM7: 20882.7 | AN7: 20882.7 | AO7: 20882.7 | AP7: 20889.7 | AQ7: 20882.7 | AR7: 20889.7 | AS7: 494.78 | AT7: 15815.2 | AU7: 15758.3 | AV7: 15758.3 | AW7: 15758.3 | AX7: 15758.6 | AY7: 15758.3 | AZ7: 15758.6 | BB7: 21934.905 | BC7: 0.0074 | BD7: 0.00325 | BE7: 0.00614 | BF7: 0.0043 | BK7: -5 | BL7: 0.06207 | BM7: 0.00578 | BN7: -5 | BO7: 0.06716 | BP7: 0.00553 | BQ7: -5 | BR7: 0.06228 | BS7: 0.00379 | BT7: -5 | BU7: 0.06228 | BV7: 0.00828 | BX7: 0.12272 | BY7: 0.2091 | BZ7: 0.06973 | CA7: 0.11227 | CB7: 0.19246 | CD7: -53.45715 | CE7: 0 | CF7: 0 | CG7: -46.21458 | CH7: 0 | CI7: 0 | CJ7: -45.99923 | CK7: 0 | CL7: 0
A8: 535.18 | B8: 20210.7 | C8: 19236.5 | D8: 19223.7 | E8: 20465 | F8: 19223.7 | G8: 20477.8 | H8: 535.18 | I8: 22475.7 | J8: 21457.7 | K8: 22691.3 | L8: 21452.7 | M8: 21452.7 | N8: 22696.3 | P8: 659.68 | Q8: 43295 | R8: 42415.6 | S8: 42415.6 | T8: 42415.9 | U8: 43264.3 | V8: 42416.3 | W8: 42417 | X8: 42415.6 | Y8: 43266.9 | Z8: 659.68 | AA8: 44041.8 | AB8: 42659.2 | AC8: 42659.2 | AD8: 42659.2 | AE8: 44246.3 | AF8: 42659.2 | AG8: 42662.6 | AH8: 42659.2 | AI8: 44249.8 | AK8: 494.68 | AL8: 20693 | AM8: 20878.1 | AN8: 20878.1 | AO8: 20878.1 | AP8: 20886.1 | AQ8: 20878.1 | AR8: 20886.1 | AS8: 494.68 | AT8: 15782.5 | AU8: 15698.8 | AV8: 15698.8 | AW8: 15698.8 | AX8: 15699.1 | AY8: 15698.8 | AZ8: 15699.1 | BB8: 21939.91 | BC8: 0.00489 | BD8: 0.00265 | BE8: 0.00159 | BF8: 0.00199 | BK8: -5 | BL8: 0.08276 | BM8: 0.00673 | BN8: -5 | BO8: 0.08955 | BP8: 0.00475 | BQ8: -5 | BR8: 0.08304 | BS8: 0.0048 | BT8: -5 | BU8: 0.08304 | BV8: 0.00628 | BX8: 0.1534 | BY8: 0.1995 | BZ8: 0.07632 | CA8: 0.10858 | CB8: 0.17574 | CD8: -53.39515 | CE8: 0 | CF8: 0 | CG8: -46.15758 | CH8: 0 | CI8: 0 | CJ8: -45.94623 | CK8: 0 | CL8: 0
A9: 535.08 | B9: 20523.4 | C9: 19240.2 | D9: 19220.4 | E9: 20763.6 | F9: 19220.4 | G9: 20783.5 | H9: 535.08 | I9: 22767 | J9: 21457.3 | K9: 23006.2 | L9: 21448.9 | M9: 21448.9 | N9: 23014.6 | P9: 659.58 | Q9: 42837.2 | R9: 42405.7 | S9: 42405.7 | T9: 42406.1 | U9: 43374 | V9: 42406.5 | W9: 42407.5 | X9: 42405.7 | Y9: 43376.9 | Z9: 659.58 | AA9: 43819.9 | AB9: 42647.9 | AC9: 42647.9 | AD9: 42647.9 | AE9: 44417.3 | AF9: 42647.9 | AG9: 42652.4 | AH9: 42647.9 | AI9: 44421.9 | AK9: 494.58 | AL9: 20887.1 | AM9: 20867.7 | AN9: 20867.7 | AO9: 20867.8 | AP9: 20876.8 | AQ9: 20867.7 | AR9: 20876.8 | AS9: 494.58 | AT9: 15786.1 | AU9: 15695.2 | AV9: 15695.2 | AW9: 15695.2 | AX9: 15695.6 | AY9: 15695.2 | AZ9: 15695.6 | BB9: 21944.918 | BC9: 0.00491 | BD9: 0.00225 | BE9: -0.00174 | BF9: 3.43E-04 | BK9: -5 | BL9: 0.10345 | BM9: 0.00743 | BN9: -5 | BO9: 0.11194 | BP9: 0.00419 | BQ9: -5 | BR9: 0.10381 | BS9: 0.00558 | BT9: -5 | BU9: 0.10381 | BV9: 0.00487 | BX9: 0.18408 | BY9: 0.23844 | BZ9: 0.07761 | CA9: 0.10558 | CB9: 0.18335 | CD9: -53.33315 | CE9: 0 | CF9: 0 | CG9: -46.10058 | CH9: 0 | CI9: 0 | CJ9: -45.89323 | CK9: 0 | CL9: 0
A10: 534.98 | B10: 20840.9 | C10: 19246.8 | D10: 19216.3 | E10: 21118.6 | F10: 19216.3 | G10: 21149.2 | H10: 534.98 | I10: 23616.8 | J10: 21458 | K10: 23385.6 | L10: 21444.3 | M10: 21444.3 | N10: 23399.3 | P10: 659.48 | Q10: 43237.3 | R10: 42396.3 | S10: 42396.3 | T10: 42396.6 | U10: 43494.6 | V10: 42397 | W10: 42398.5 | X10: 42396.3 | Y10: 43498 | Z10: 659.48 | AA10: 44235.4 | AB10: 42635.7 | AC10: 42635.7 | AD10: 42635.7 | AE10: 44596.3 | AF10: 42635.7 | AG10: 42641.7 | AH10: 42635.7 | AI10: 44602.3 | AK10: 494.48 | AL10: 21005.9 | AM10: 20853.9 | AN10: 20853.9 | AO10: 20853.9 | AP10: 20864.2 | AQ10: 20853.9 | AR10: 20864.2 | AS10: 494.48 | AT10: 15539.2 | AU10: 15670.2 | AV10: 15670.2 | AW10: 15670.2 | AX10: 15670.6 | AY10: 15670.2 | AZ10: 15670.6 | BB10: 21949.808 | BC10: 0.00553 | BD10: 0.00209 | BE10: 0.00207 | BF10: 0.00195 | BK10: -5 | BL10: 0.12414 | BM10: 0.00782 | BN10: -5 | BO10: 0.13433 | BP10: 0.00515 | BQ10: -5 | BR10: 0.12457 | BS10: 0.00603 | BT10: -5 | BU10: 0.12457 | BV10: 0.00739 | BX10: 0.21476 | BY10: 0.29986 | BZ10: 0.07337 | CA10: 0.10505 | CB10: 0.21261 | CD10: -53.27215 | CE10: 0 | CF10: 0 | CG10: -46.04358 | CH10: 0 | CI10: 0 | CJ10: -45.83923 | CK10: 0 | CL10: 0
A11: 534.88 | B11: 21623.6 | C11: 19257.8 | D11: 19211.3 | E11: 21536 | F11: 19211.3 | G11: 21582.4 | H11: 534.88 | I11: 23967.7 | J11: 21461.4 | K11: 23837.9 | L11: 21439.2 | M11: 21439.2 | N11: 23860.2 | P11: 659.38 | Q11: 43029.3 | R11: 42386.9 | S11: 42386.9 | T11: 42387.3 | U11: 43625.8 | V11: 42387.7 | W11: 42389.8 | X11: 42386.9 | Y11: 43629.9 | Z11: 659.38 | AA11: 44202.3 | AB11: 42622.4 | AC11: 42622.4 | AD11: 42622.4 | AE11: 44781.2 | AF11: 42622.4 | AG11: 42630.3 | AH11: 42622.4 | AI11: 44789.1 | AK11: 494.38 | AL11: 21157.4 | AM11: 20841.9 | AN11: 20841.9 | AO11: 20841.9 | AP11: 20853.6 | AQ11: 20841.9 | AR11: 20853.6 | AS11: 494.38 | AT11: 15554.2 | AU11: 15597.1 | AV11: 15597.1 | AW11: 15597.1 | AX11: 15597.6 | AY11: 15597.1 | AZ11: 15597.6 | BB11: 21954.821 | BC11: 0.00381 | BD11: 0.00172 | BE11: 0.0021 | BF11: 0.00202 | BK11: -5 | BL11: 0.14483 | BM11: 0.0079 | BN11: -5 | BO11: 0.15672 | BP11: 0.00746 | BQ11: -5 | BR11: 0.14533 | BS11: 0.00615 | BT11: -5 | BU11: 0.14533 | BV11: 0.0121 | BX11: 0.24544 | BY11: 0.35705 | BZ11: 0.06384 | CA11: 0.10845 | CB11: 0.25047 | CD11: -53.21015 | CE11: 0 | CF11: 0 | CG11: -45.98558 | CH11: 0 | CI11: 0 | CJ11: -45.78623 | CK11: 0 | CL11: 0
A12: 534.78 | B12: 22267.1 | C12: 19275.2 | D12: 19205.3 | E12: 22020.7 | F12: 19205.3 | G12: 22090.7 | H12: 534.78 | I12: 23849.5 | J12: 21468.2 | K12: 24370.6 | L12: 21432.7 | M12: 21432.7 | N12: 24406.1 | P12: 659.28 | Q12: 43101.9 | R12: 42377.3 | S12: 42377.3 | T12: 42377.7 | U12: 43766.6 | V12: 42378.1 | W12: 42381.2 | X12: 42377.3 | Y12: 43771.6 | Z12: 659.28 | AA12: 44312.8 | AB12: 42608.4 | AC12: 42608.4 | AD12: 42608.4 | AE12: 44970.1 | AF12: 42608.4 | AG12: 42618.7 | AH12: 42608.4 | AI12: 44980.5 | AK12: 494.28 | AL12: 21146.5 | AM12: 20827 | AN12: 20827 | AO12: 20827 | AP12: 20840.2 | AQ12: 20827 | AR12: 20840.3 | AS12: 494.28 | AT12: 15698.8 | AU12: 15561.9 | AV12: 15561.9 | AW12: 15561.9 | AX12: 15562.6 | AY12: 15561.9 | AZ12: 15562.6 | BB12: 21959.835 | BC12: 0.00225 | BD12: 0.00139 | BE12: 0.00126 | BF12: 0.00148 | BK12: -5 | BL12: 0.16552 | BM12: 0.00771 | BN12: -5 | BO12: 0.1791 | BP12: 0.01007 | BQ12: -5 | BR12: 0.16609 | BS12: 0.00601 | BT12: -5 | BU12: 0.16609 | BV12: 0.01684 | BX12: 0.27612 | BY12: 0.39475 | BZ12: 0.04987 | CA12: 0.11586 | CB12: 0.28496 | CD12: -53.14815 | CE12: 0 | CF12: 0 | CG12: -45.92858 | CH12: 0 | CI12: 0 | CJ12: -45.73223 | CK12: 0 | CL12: 0
A13: 534.68 | B13: 22833.9 | C13: 19302.2 | D13: 19197.9 | E13: 22576.8 | F13: 19197.9 | G13: 22681.1 | H13: 534.68 | I13: 25468.5 | J13: 21481.1 | K13: 24990.5 | L13: 21424.8 | M13: 21424.8 | N13: 25046.8 | P13: 659.18 | Q13: 43339.2 | R13: 42366.3 | S13: 42366.3 | T13: 42366.7 | U13: 43914.9 | V13: 42367 | W13: 42371.2 | X13: 42366.3 | Y13: 43921 | Z13: 659.18 | AA13: 44539.7 | AB13: 42593.4 | AC13: 42593.4 | AD13: 42593.4 | AE13: 45160.1 | AF13: 42593.4 | AG13: 42606.8 | AH13: 42593.4 | AI13: 45173.5 | AK13: 494.18 | AL13: 20802 | AM13: 20807.7 | AN13: 20807.7 | AO13: 20807.7 | AP13: 20822.6 | AQ13: 20807.7 | AR13: 20822.6 | AS13: 494.18 | AT13: 15412 | AU13: 15535.8 | AV13: 15535.8 | AW13: 15535.8 | AX13: 15536.6 | AY13: 15535.8 | AZ13: 15536.6 | BB13: 21964.852 | BC13: 2.34E-04 | BD13: 0.0011 | BE13: 8.01E-04 | BF13: 0.00117 | BK13: -5 | BL13: 0.18621 | BM13: 0.00738 | BN13: -5 | BO13: 0.20149 | BP13: 0.01234 | BQ13: -5 | BR13: 0.18685 | BS13: 0.00583 | BT13: -5 | BU13: 0.18685 | BV13: 0.02065 | BX13: 0.3068 | BY13: 0.40538 | BZ13: 0.03338 | CA13: 0.12567 | CB13: 0.30816 | CD13: -53.08715 | CE13: 0 | CF13: 0 | CG13: -45.87158 | CH13: 0 | CI13: 0 | CJ13: -45.67923 | CK13: 0 | CL13: 0
A14: 534.58 | B14: 23455.1 | C14: 19342.9 | D14: 19188.9 | E14: 23206.5 | F14: 19188.9 | G14: 23360.4 | H14: 534.58 | I14: 25672 | J14: 21503.7 | K14: 25703.3 | L14: 21415.7 | M14: 21415.7 | N14: 25791.2 | P14: 659.08 | Q14: 43873.9 | R14: 42354 | S14: 42354 | T14: 42354.3 | U14: 44069.6 | V14: 42354.7 | W14: 42360.4 | X14: 42354 | Y14: 44077.2 | Z14: 659.08 | AA14: 44517.4 | AB14: 42577.2 | AC14: 42577.2 | AD14: 42577.3 | AE14: 45347.7 | AF14: 42577.2 | AG14: 42594.6 | AH14: 42577.2 | AI14: 45365.1 | AK14: 494.08 | AL14: 21077.9 | AM14: 20790.3 | AN14: 20790.3 | AO14: 20790.3 | AP14: 20807.1 | AQ14: 20790.3 | AR14: 20807.2 | AS14: 494.08 | AT14: 15611.1 | AU14: 15519.9 | AV14: 15519.9 | AW14: 15519.9 | AX14: 15520.8 | AY14: 15519.9 | AZ14: 15520.8 | BB14: 21969.871 | BC14: 0.00102 | BD14: 8.36E-04 | BE14: 5.64E-04 | BF14: 7.65E-04 | BK14: -5 | BL14: 0.2069 | BM14: 0.00704 | BN14: -5 | BO14: 0.22388 | BP14: 0.01388 | BQ14: -5 | BR14: 0.20761 | BS14: 0.00585 | BT14: -5 | BU14: 0.20761 | BV14: 0.02293 | BX14: 0.33748 | BY14: 0.38717 | BZ14: 0.02059 | CA14: 0.13525 | CB14: 0.31547 | CD14: -53.02515 | CE14: 0 | CF14: 0 | CG14: -45.81458 | CH14: 0 | CI14: 0 | CJ14: -45.62623 | CK14: 0 | CL14: 0
A15: 534.48 | B15: 24338.7 | C15: 19403.5 | D15: 19178.6 | E15: 23909.9 | F15: 19178.6 | G15: 24134.7 | H15: 534.48 | I15: 26444.3 | J15: 21540.9 | K15: 26511.7 | L15: 21405.1 | M15: 21405.1 | N15: 26647.6 | P15: 658.98 | Q15: 44072.9 | R15: 42339.7 | S15: 42339.7 | T15: 42340.1 | U15: 44228.6 | V15: 42340.5 | W15: 42348.1 | X15: 42339.7 | Y15: 44238 | Z15: 658.98 | AA15: 45099.5 | AB15: 42560 | AC15: 42560 | AD15: 42560 | AE15: 45529.7 | AF15: 42560 | AG15: 42582.3 | AH15: 42560 | AI15: 45552 | AK15: 493.98 | AL15: 20797.9 | AM15: 20770.8 | AN15: 20770.8 | AO15: 20770.8 | AP15: 20789.8 | AQ15: 20770.8 | AR15: 20789.8 | AS15: 493.98 | AT15: 15405.5 | AU15: 15492.4 | AV15: 15492.4 | AW15: 15492.4 | AX15: 15493.5 | AY15: 15492.4 | AZ15: 15493.5 | BB15: 21974.892 | BC15: -4.65E-04 | BD15: 5.47E-04 | BE15: 7.04E-04 | BF15: 5.16E-04 | BK15: -5 | BL15: 0.22759 | BM15: 0.00684 | BN15: -5 | BO15: 0.24627 | BP15: 0.01449 | BQ15: -5 | BR15: 0.22837 | BS15: 0.00623 | BT15: -5 | BU15: 0.22837 | BV15: 0.02341 | BX15: 0.36816 | BY15: 0.34439 | BZ15: 0.02657 | CA15: 0.14188 | CB15: 0.30518 | CD15: -52.96315 | CE15: 0 | CF15: 0 | CG15: -45.75658 | CH15: 0 | CI15: 0 | CJ15: -45.57223 | CK15: 0 | CL15: 0
A16: 534.38 | B16: 24742.3 | C16: 19491.7 | D16: 19166.6 | E16: 24683.4 | F16: 19166.6 | G16: 25008.5 | H16: 534.38 | I16: 27357.7 | J16: 21599.5 | K16: 27415.2 | L16: 21392.3 | M16: 21392.3 | N16: 27622.3 | P16: 658.88 | Q16: 44357.8 | R16: 42324 | S16: 42324 | T16: 42324.4 | U16: 44390 | V16: 42324.7 | W16: 42334.8 | X16: 42324 | Y16: 44402 | Z16: 658.88 | AA16: 44979.3 | AB16: 42542.3 | AC16: 42542.3 | AD16: 42542.3 | AE16: 45702.8 | AF16: 42542.3 | AG16: 42571 | AH16: 42542.3 | AI16: 45731.5 | AK16: 493.88 | AL16: 21197.9 | AM16: 20753.7 | AN16: 20753.7 | AO16: 20753.7 | AP16: 20775 | AQ16: 20753.7 | AR16: 20775 | AS16: 493.88 | AT16: 15477.7 | AU16: 15491.5 | AV16: 15491.5 | AW16: 15491.5 | AX16: 15492.9 | AY16: 15491.5 | AZ16: 15492.9 | BB16: 21979.915 | BC16: 0.00159 | BD16: 2.88E-04 | BE16: 4.02E-04 | BF16: 4.40E-04 | BK16: -5 | BL16: 0.24828 | BM16: 0.00685 | BN16: -5 | BO16: 0.26866 | BP16: 0.01416 | BQ16: -5 | BR16: 0.24914 | BS16: 0.00693 | BT16: -5 | BU16: 0.24914 | BV16: 0.02212 | BX16: 0.39884 | BY16: 0.28972 | BZ16: 0.04443 | CA16: 0.14344 | CB16: 0.27878 | CD16: -52.90115 | CE16: 0 | CF16: 0 | CG16: -45.69958 | CH16: 0 | CI16: 0 | CJ16: -45.51923 | CK16: 0 | CL16: 0
A17: 534.28 | B17: 26209.9 | C17: 19617.9 | D17: 19152.6 | E17: 25520.2 | F17: 19152.6 | G17: 25985.5 | H17: 534.28 | I17: 28762.3 | J17: 21689.5 | K17: 28409.5 | L17: 21377.3 | M17: 21377.3 | N17: 28721.7 | P17: 658.78 | Q17: 44144 | R17: 42306.8 | S17: 42306.8 | T17: 42307.2 | U17: 44551.8 | V17: 42307.5 | W17: 42320.7 | X17: 42306.8 | Y17: 44566.8 | Z17: 658.78 | AA17: 44533.4 | AB17: 42523.7 | AC17: 42523.7 | AD17: 42523.8 | AE17: 45862.9 | AF17: 42523.7 | AG17: 42560.4 | AH17: 42523.7 | AI17: 45899.5 | AK17: 493.78 | AL17: 20916.8 | AM17: 20737.2 | AN17: 20737.2 | AO17: 20737.2 | AP17: 20761.1 | AQ17: 20737.2 | AR17: 20761.1 | AS17: 493.78 | AT17: 15555.6 | AU17: 15487.3 | AV17: 15487.3 | AW17: 15487.3 | AX17: 15489 | AY17: 15487.3 | AZ17: 15489 | BB17: 21984.822 | BC17: 3.18E-04 | BD17: 6.05E-05 | BE17: -2.88E-04 | BF17: 5.61E-05 | BK17: -5 | BL17: 0.26897 | BM17: 0.00698 | BN17: -5 | BO17: 0.29105 | BP17: 0.01306 | BQ17: -5 | BR17: 0.2699 | BS17: 0.00774 | BT17: -5 | BU17: 0.2699 | BV17: 0.01947 | BX17: 0.42951 | BY17: 0.24904 | BZ17: 0.06273 | CA17: 0.13886 | CB17: 0.24232 | CD17: -52.84015 | CE17: 0 | CF17: 0 | CG17: -45.64258 | CH17: 0 | CI17: 0 | CJ17: -45.46623 | CK17: 0 | CL17: 0
A18: 534.18 | B18: 27239.7 | C18: 19795.8 | D18: 19136.6 | E18: 26409 | F18: 19136.6 | G18: 27068.2 | H18: 534.18 | I18: 30246.7 | J18: 21824.4 | K18: 29485.1 | L18: 21359.7 | M18: 21359.7 | N18: 29949.9 | P18: 658.68 | Q18: 44289.4 | R18: 42288.4 | S18: 42288.4 | T18: 42288.8 | U18: 44711.3 | V18: 42289.2 | W18: 42306.4 | X18: 42288.4 | Y18: 44730.3 | Z18: 658.68 | AA18: 45130.9 | AB18: 42504.2 | AC18: 42504.2 | AD18: 42504.2 | AE18: 46005.8 | AF18: 42504.2 | AG18: 42550.7 | AH18: 42504.2 | AI18: 46052.3 | AK18: 493.68 | AL18: 20683.1 | AM18: 20724.4 | AN18: 20724.4 | AO18: 20724.5 | AP18: 20751.1 | AQ18: 20724.4 | AR18: 20751.2 | AS18: 493.68 | AT18: 15486.2 | AU18: 15467.7 | AV18: 15467.7 | AW18: 15467.7 | AX18: 15469.7 | AY18: 15467.7 | AZ18: 15469.7 | BB18: 21989.85 | BC18: 5.15E-04 | BD18: -1.64E-04 | BE18: -5.08E-04 | BF18: -6.96E-05 | BK18: -5 | BL18: 0.28966 | BM18: 0.0071 | BN18: -5 | BO18: 0.31343 | BP18: 0.01161 | BQ18: -5 | BR18: 0.29066 | BS18: 0.00846 | BT18: -5 | BU18: 0.29066 | BV18: 0.01636 | BX18: 0.46019 | BY18: 0.25599 | BZ18: 0.07782 | CA18: 0.12869 | CB18: 0.20966 | CD18: -52.77815 | CE18: 0 | CF18: 0 | CG18: -45.58558 | CH18: 0 | CI18: 0 | CJ18: -45.41223 | CK18: 0 | CL18: 0
A19: 534.08 | B19: 28129.8 | C19: 20042.7 | D19: 19118.1 | E19: 27333.7 | F19: 19118 | G19: 28258.4 | H19: 534.08 | I19: 31517.8 | J19: 22022.5 | K19: 30627 | L19: 21339 | M19: 21339 | N19: 31310.5 | P19: 658.58 | Q19: 44614.1 | R19: 42269.3 | S19: 42269.3 | T19: 42269.6 | U19: 44865.9 | V19: 42270 | W19: 42292.3 | X19: 42269.3 | Y19: 44890 | Z19: 658.58 | AA19: 45207 | AB19: 42484 | AC19: 42484 | AD19: 42484 | AE19: 46128.1 | AF19: 42484 | AG19: 42542.8 | AH19: 42484 | AI19: 46186.9 | AK19: 493.58 | AL19: 20782.7 | AM19: 20706.5 | AN19: 20706.5 | AO19: 20706.6 | AP19: 20736.4 | AQ19: 20706.5 | AR19: 20736.5 | AS19: 493.58 | AT19: 15993 | AU19: 15441.9 | AV19: 15441.9 | AW19: 15441.9 | AX19: 15444.3 | AY19: 15441.9 | AZ19: 15444.3 | BB19: 21994.88 | BC19: -3.80E-04 | BD19: -3.75E-04 | BE19: 3.43E-04 | BF19: 1.17E-04 | BK19: -5 | BL19: 0.31034 | BM19: 0.00705 | BN19: -5 | BO19: 0.33582 | BP19: 0.01048 | BQ19: -5 | BR19: 0.31142 | BS19: 0.00896 | BT19: -5 | BU19: 0.31142 | BV19: 0.01432 | BX19: 0.49087 | BY19: 0.31412 | BZ19: 0.08779 | CA19: 0.11615 | CB19: 0.20406 | CD19: -52.71615 | CE19: 0 | CF19: 0 | CG19: -45.52858 | CH19: 0 | CI19: 0 | CJ19: -45.35923 | CK19: 0 | CL19: 0
A20: 533.98 | B20: 29942.5 | C20: 20380.6 | D20: 19096.8 | E20: 28273.9 | F20: 19096.8 | G20: 29557.7 | H20: 533.98 | I20: 33202 | J20: 22308.2 | K20: 31814.1 | L20: 21315.1 | M20: 21315 | N20: 32807.3 | P20: 658.48 | Q20: 44555 | R20: 42249.6 | S20: 42249.6 | T20: 42249.9 | U20: 45012.6 | V20: 42250.3 | W20: 42279 | X20: 42249.6 | Y20: 45043.1 | Z20: 658.48 | AA20: 45511.1 | AB20: 42462.9 | AC20: 42462.9 | AD20: 42462.9 | AE20: 46226.1 | AF20: 42462.9 | AG20: 42537 | AH20: 42462.9 | AI20: 46300.2 | AK20: 493.48 | AL20: 21040.7 | AM20: 20692.1 | AN20: 20692.1 | AO20: 20692.2 | AP20: 20725.4 | AQ20: 20692.1 | AR20: 20725.5 | AS20: 493.48 | AT20: 15475.6 | AU20: 15416.2 | AV20: 15416.2 | AW20: 15416.2 | AX20: 15419 | AY20: 15416.2 | AZ20: 15419 | BB20: 21999.913 | BC20: -0.00196 | BD20: -5.27E-04 | BE20: 1.10E-04 | BF20: -4.02E-04 | BK20: -5 | BL20: 0.33103 | BM20: 0.00674 | BN20: -5 | BO20: 0.35821 | BP20: 0.01041 | BQ20: -5 | BR20: 0.33218 | BS20: 0.0092 | BT20: -5 | BU20: 0.33218 | BV20: 0.01484 | BX20: 0.52155 | BY20: 0.39377 | BZ20: 0.09143 | CA20: 0.10844 | CB20: 0.24098 | CD20: -52.65515 | CE20: 0 | CF20: 0 | CG20: -45.47058 | CH20: 0 | CI20: 0 | CJ20: -45.30523 | CK20: 0 | CL20: 0
A21: 533.88 | B21: 30833.3 | C21: 20837 | D21: 19072.8 | E21: 29204.6 | F21: 19072.7 | G21: 30968.9 | H21: 533.88 | I21: 34720.9 | J21: 22713.2 | K21: 33019.5 | L21: 21287.8 | M21: 21287.7 | N21: 34445.1 | P21: 658.38 | Q21: 44602.8 | R21: 42229.1 | S21: 42229.1 | T21: 42229.4 | U21: 45147.7 | V21: 42229.8 | W21: 42266.5 | X21: 42229.1 | Y21: 45186.3 | Z21: 658.38 | AA21: 45557.6 | AB21: 42440.7 | AC21: 42440.7 | AD21: 42440.7 | AE21: 46296.6 | AF21: 42440.7 | AG21: 42533.5 | AH21: 42440.7 | AI21: 46389.4 | AK21: 493.38 | AL21: 20909.8 | AM21: 20676.5 | AN21: 20676.5 | AO21: 20676.7 | AP21: 20713.6 | AQ21: 20676.5 | AR21: 20713.8 | AS21: 493.38 | AT21: 15354.4 | AU21: 15397.5 | AV21: 15397.5 | AW21: 15397.5 | AX21: 15400.8 | AY21: 15397.5 | AZ21: 15400.8 | BB21: 22004.828 | BC21: 3.63E-04 | BD21: -6.63E-04 | BE21: -7.28E-04 | BF21: -6.03E-04 | BK21: -5 | BL21: 0.35172 | BM21: 0.00614 | BN21: -5 | BO21: 0.3806 | BP21: 0.01155 | BQ21: -5 | BR21: 0.35294 | BS21: 0.00925 | BT21: -5 | BU21: 0.35294 | BV21: 0.01765 | BX21: 0.55223 | BY21: 0.46875 | BZ21: 0.08805 | CA21: 0.11517 | CB21: 0.30927 | CD21: -52.59315 | CE21: 0 | CF21: 0 | CG21: -45.41358 | CH21: 0 | CI21: 0 | CJ21: -45.25223 | CK21: 0 | CL21: 0
A22: 533.78 | B22: 32738.5 | C22: 21445.4 | D22: 19045.7 | E22: 30097.4 | F22: 19045.6 | G22: 32497.2 | H22: 533.78 | I22: 36084.3 | J22: 23278.1 | K22: 34210.4 | L22: 21257.1 | M22: 21256.9 | N22: 36231.7 | P22: 658.28 | Q22: 44613.5 | R22: 42208 | S22: 42208 | T22: 42208.4 | U22: 45268.1 | V22: 42208.8 | W22: 42255.5 | X22: 42208 | Y22: 45316.7 | Z22: 658.28 | AA22: 45309.1 | AB22: 42418 | AC22: 42418.1 | AD22: 42418.1 | AE22: 46337.6 | AF22: 42418 | AG22: 42533.8 | AH22: 42418 | AI22: 46453.4 | AK22: 493.28 | AL22: 20919.9 | AM22: 20656.7 | AN22: 20656.7 | AO22: 20656.8 | AP22: 20697.9 | AQ22: 20656.7 | AR22: 20698 | AS22: 493.28 | AT22: 15251.9 | AU22: 15376.1 | AV22: 15376.1 | AW22: 15376.1 | AX22: 15380 | AY22: 15376.1 | AZ22: 15380 | BB22: 22009.865 | BC22: -0.00202 | BD22: -7.19E-04 | BE22: -6.48E-04 | BF22: -6.61E-04 | BK22: -5 | BL22: 0.37241 | BM22: 0.00529 | BN22: -5 | BO22: 0.40298 | BP22: 0.01339 | BQ22: -5 | BR22: 0.3737 | BS22: 0.00923 | BT22: -5 | BU22: 0.3737 | BV22: 0.0212 | BX22: 0.58291 | BY22: 0.52412 | BZ22: 0.0776 | CA22: 0.13977 | CB22: 0.38966 | CD22: -52.53115 | CE22: 0 | CF22: 0 | CG22: -45.35658 | CH22: 0 | CI22: 0 | CJ22: -45.19923 | CK22: 0 | CL22: 0
A23: 533.68 | B23: 34043.3 | C23: 22245.9 | D23: 19015.2 | E23: 30921.2 | F23: 19015.1 | G23: 34152 | H23: 533.68 | I23: 38046.5 | J23: 24053 | K23: 35348.9 | L23: 21222.4 | M23: 21222.1 | N23: 38180 | P23: 658.18 | Q23: 44541.5 | R23: 42187 | S23: 42187.1 | T23: 42187.4 | U23: 45371.1 | V23: 42187.8 | W23: 42246.9 | X23: 42187 | Y23: 45432.1 | Z23: 658.18 | AA23: 45405.6 | AB23: 42395 | AC23: 42395 | AD23: 42395 | AE23: 46347.7 | AF23: 42395 | AG23: 42538.7 | AH23: 42395 | AI23: 46491.5 | AK23: 493.18 | AL23: 20872.3 | AM23: 20637 | AN23: 20637 | AO23: 20637.2 | AP23: 20682.7 | AQ23: 20637 | AR23: 20682.9 | AS23: 493.18 | AT23: 15470.3 | AU23: 15373.5 | AV23: 15373.5 | AW23: 15373.5 | AX23: 15378.2 | AY23: 15373.5 | AZ23: 15378.2 | BB23: 22014.905 | BC23: 2.75E-04 | BD23: -7.98E-04 | BE23: 1.09E-04 | BF23: -8.31E-04 | BK23: -5 | BL23: 0.3931 | BM23: 0.00429 | BN23: -5 | BO23: 0.42537 | BP23: 0.01526 | BQ23: -5 | BR23: 0.39446 | BS23: 0.00929 | BT23: -5 | BU23: 0.39446 | BV23: 0.02429 | BX23: 0.61359 | BY23: 0.55356 | BZ23: 0.06069 | CA23: 0.17651 | CB23: 0.46835 | CD23: -52.47015 | CE23: 0 | CF23: 0 | CG23: -45.29958 | CH23: 0 | CI23: 0 | CJ23: -45.14523 | CK23: 0 | CL23: 0
A24: 533.58 | B24: 35796.4 | C24: 23285.7 | D24: 18981.2 | E24: 31644.2 | F24: 18981.1 | G24: 35948.9 | H24: 533.58 | I24: 40247.2 | J24: 25099.1 | K24: 36394.3 | L24: 21183.6 | M24: 21183.2 | N24: 40310.8 | P24: 658.08 | Q24: 44425.6 | R24: 42165.5 | S24: 42165.6 | T24: 42165.9 | U24: 45453.1 | V24: 42166.3 | W24: 42240.9 | X24: 42165.5 | Y24: 45529.5 | Z24: 658.08 | AA24: 45354.7 | AB24: 42371.9 | AC24: 42371.9 | AD24: 42371.9 | AE24: 46326.2 | AF24: 42371.9 | AG24: 42549.5 | AH24: 42371.9 | AI24: 46504 | AK24: 493.08 | AL24: 20683.1 | AM24: 20627.2 | AN24: 20627.2 | AO24: 20627.4 | AP24: 20677.8 | AQ24: 20627.2 | AR24: 20678 | AS24: 493.08 | AT24: 15396 | AU24: 15373.4 | AV24: 15373.4 | AW24: 15373.4 | AX24: 15378.8 | AY24: 15373.4 | AZ24: 15378.8 | BB24: 22019.826 | BC24: -9.07E-04 | BD24: -7.69E-04 | BE24: -1.91E-04 | BF24: -7.46E-04 | BK24: -5 | BL24: 0.41379 | BM24: 0.00332 | BN24: -5 | BO24: 0.44776 | BP24: 0.01674 | BQ24: -5 | BR24: 0.41523 | BS24: 0.00952 | BT24: -5 | BU24: 0.41523 | BV24: 0.02634 | BX24: 0.64427 | BY24: 0.55889 | BZ24: 0.03889 | CA24: 0.21761 | CB24: 0.53645 | CD24: -52.40815 | CE24: 0 | CF24: 0 | CG24: -45.24158 | CH24: 0 | CI24: 0 | CJ24: -45.09223 | CK24: 0 | CL24: 0
A25: 533.48 | B25: 37884.1 | C25: 24618.5 | D25: 18943.2 | E25: 32235.7 | F25: 18943 | G25: 37911.3 | H25: 533.48 | I25: 42482.5 | J25: 26489.3 | K25: 37305 | L25: 21140.1 | M25: 21139.4 | N25: 42655.7 | P25: 657.98 | Q25: 44773.6 | R25: 42144 | S25: 42144.1 | T25: 42144.4 | U25: 45511.9 | V25: 42144.8 | W25: 42238.3 | X25: 42144 | Y25: 45607.3 | Z25: 657.98 | AA25: 45422.7 | AB25: 42348.5 | AC25: 42348.5 | AD25: 42348.5 | AE25: 46273 | AF25: 42348.5 | AG25: 42567.1 | AH25: 42348.5 | AI25: 46491.6 | AK25: 492.98 | AL25: 20367 | AM25: 20622.7 | AN25: 20622.7 | AO25: 20622.9 | AP25: 20678.6 | AQ25: 20622.7 | AR25: 20678.8 | AS25: 492.98 | AT25: 15395.2 | AU25: 15373.1 | AV25: 15373.1 | AW25: 15373.1 | AX25: 15379.5 | AY25: 15373.1 | AZ25: 15379.5 | BB25: 22024.87 | BC25: -3.21E-04 | BD25: -7.24E-04 | BE25: -8.66E-04 | BF25: -6.69E-04 | BK25: -5 | BL25: 0.43448 | BM25: 0.0026 | BN25: -5 | BO25: 0.47015 | BP25: 0.01763 | BQ25: -5 | BR25: 0.43599 | BS25: 0.00993 | BT25: -5 | BU25: 0.43599 | BV25: 0.02717 | BX25: 0.67495 | BY25: 0.55154 | BZ25: 0.01771 | CA25: 0.25684 | CB25: 0.58832 | CD25: -52.34615 | CE25: 0 | CF25: 0 | CG25: -45.18458 | CH25: 0 | CI25: 0 | CJ25: -45.03923 | CK25: 0 | CL25: 0
A26: 533.38 | B26: 40001.7 | C26: 26304.6 | D26: 18901 | E26: 32668.8 | F26: 18900.7 | G26: 40072.9 | H26: 533.38 | I26: 45406.3 | J26: 28307.5 | K26: 38040.9 | L26: 21091.3 | M26: 21090.1 | N26: 45259.5 | P26: 657.88 | Q26: 44468.4 | R26: 42122.8 | S26: 42122.9 | T26: 42123.2 | U26: 45545.7 | V26: 42123.6 | W26: 42240.3 | X26: 42122.8 | Y26: 45664.4 | Z26: 657.88 | AA26: 45587.7 | AB26: 42325.1 | AC26: 42325.2 | AD26: 42325.1 | AE26: 46188.9 | AF26: 42325.1 | AG26: 42592.8 | AH26: 42325.1 | AI26: 46456.7 | AK26: 492.88 | AL26: 20560.3 | AM26: 20619.7 | AN26: 20619.7 | AO26: 20619.9 | AP26: 20681.3 | AQ26: 20619.7 | AR26: 20681.6 | AS26: 492.88 | AT26: 15456.5 | AU26: 15372.9 | AV26: 15372.9 | AW26: 15372.9 | AX26: 15380.4 | AY26: 15372.9 | AZ26: 15380.4 | BB26: 22029.917 | BC26: 7.11E-05 | BD26: -5.47E-04 | BE26: -7.86E-04 | BF26: -5.49E-04 | BK26: -5 | BL26: 0.45517 | BM26: 0.00237 | BN26: -5 | BO26: 0.49254 | BP26: 0.01791 | BQ26: -5 | BR26: 0.45675 | BS26: 0.01043 | BT26: -5 | BU26: 0.45675 | BV26: 0.02695 | BX26: 0.70563 | BY26: 0.55341 | BZ26: 0.02567 | CA26: 0.28954 | CB26: 0.62112 | CD26: -52.28515 | CE26: 0 | CF26: 0 | CG26: -45.12758 | CH26: 0 | CI26: 0 | CJ26: -44.98523 | CK26: 0 | CL26: 0
A27: 533.28 | B27: 42280.9 | C27: 28409.1 | D27: 18854 | E27: 32921.6 | F27: 18853.6 | G27: 42477.5 | H27: 533.28 | I27: 48206.8 | J27: 30648 | K27: 38567.3 | L27: 21036.7 | M27: 21034.8 | N27: 48182.4 | P27: 657.78 | Q27: 44240.8 | R27: 42101.7 | S27: 42101.9 | T27: 42102.1 | U27: 45552.9 | V27: 42102.5 | W27: 42247.5 | X27: 42101.7 | Y27: 45699.9 | Z27: 657.78 | AA27: 45208.1 | AB27: 42301.2 | AC27: 42301.3 | AD27: 42301.2 | AE27: 46075.3 | AF27: 42301.2 | AG27: 42627.4 | AH27: 42301.2 | AI27: 46401.7 | AK27: 492.78 | AL27: 20807.1 | AM27: 20621.4 | AN27: 20621.4 | AO27: 20621.8 | AP27: 20689.3 | AQ27: 20621.4 | AR27: 20689.6 | AS27: 492.78 | AT27: 15208.7 | AU27: 15372.6 | AV27: 15372.6 | AW27: 15372.6 | AX27: 15381.3 | AY27: 15372.6 | AZ27: 15381.3 | BB27: 22034.845 | BC27: -3.90E-04 | BD27: -4.44E-04 | BE27: -8.82E-04 | BF27: -2.97E-04 | BK27: -5 | BL27: 0.47586 | BM27: 0.00255 | BN27: -5 | BO27: 0.51492 | BP27: 0.01771 | BQ27: -5 | BR27: 0.47751 | BS27: 0.01086 | BT27: -5 | BU27: 0.47751 | BV27: 0.02602 | BX27: 0.73631 | BY27: 0.59099 | BZ27: 0.05163 | CA27: 0.31232 | CB27: 0.63494 | CD27: -52.22315 | CE27: 0 | CF27: 0 | CG27: -45.07058 | CH27: 0 | CI27: 0 | CJ27: -44.93223 | CK27: 0 | CL27: 0
A28: 533.18 | B28: 44892.8 | C28: 30999.4 | D28: 18801.8 | E28: 32979.8 | F28: 18801.1 | G28: 45178.9 | H28: 533.18 | I28: 51344.6 | J28: 33612 | K28: 38856.9 | L28: 20975.9 | M28: 20972.8 | N28: 51499.2 | P28: 657.68 | Q28: 44300.4 | R28: 42079.9 | S28: 42080.1 | T28: 42080.3 | U28: 45531.9 | V28: 42080.7 | W28: 42259.9 | X28: 42079.9 | Y28: 45713.2 | Z28: 657.68 | AA28: 45676 | AB28: 42277.1 | AC28: 42277.3 | AD28: 42277.1 | AE28: 45934.7 | AF28: 42277.1 | AG28: 42672.9 | AH28: 42277.1 | AI28: 46330.8 | AK28: 492.68 | AL28: 20680.8 | AM28: 20623.2 | AN28: 20623.2 | AO28: 20623.6 | AP28: 20697.7 | AQ28: 20623.2 | AR28: 20698.1 | AS28: 492.68 | AT28: 15568 | AU28: 15372.3 | AV28: 15372.3 | AW28: 15372.3 | AX28: 15382.5 | AY28: 15372.3 | AZ28: 15382.5 | BB28: 22039.896 | BC28: -5.37E-04 | BD28: -1.48E-04 | BE28: -2.39E-04 | BF28: -1.31E-04 | BK28: -5 | BL28: 0.49655 | BM28: 0.00284 | BN28: -5 | BO28: 0.53731 | BP28: 0.01721 | BQ28: -5 | BR28: 0.49827 | BS28: 0.0111 | BT28: -5 | BU28: 0.49827 | BV28: 0.02483 | BX28: 0.76699 | BY28: 0.67902 | BZ28: 0.07682 | CA28: 0.32316 | CB28: 0.63313 | CD28: -52.16115 | CE28: 0 | CF28: 0 | CG28: -45.01258 | CH28: 0 | CI28: 0 | CJ28: -44.87823 | CK28: 0 | CL28: 0
A29: 533.08 | B29: 48007.1 | C29: 34142.3 | D29: 18743.8 | E29: 32837.6 | F29: 18742.6 | G29: 48238.6 | H29: 533.08 | I29: 55033.4 | J29: 37302.8 | K29: 38892.2 | L29: 20908.1 | M29: 20903.2 | N29: 55296.6 | P29: 657.58 | Q29: 44790.1 | R29: 42057.7 | S29: 42057.9 | T29: 42058 | U29: 45482.9 | V29: 42058.4 | W29: 42278.9 | X29: 42057.7 | Y29: 45705.6 | Z29: 657.58 | AA29: 45322.5 | AB29: 42252.7 | AC29: 42253 | AD29: 42252.8 | AE29: 45770.2 | AF29: 42252.7 | AG29: 42730.7 | AH29: 42252.7 | AI29: 46248.4 | AK29: 492.58 | AL29: 20963 | AM29: 20625 | AN29: 20625 | AO29: 20625.5 | AP29: 20706.6 | AQ29: 20625 | AR29: 20707.1 | AS29: 492.58 | AT29: 15426.5 | AU29: 15371.8 | AV29: 15371.8 | AW29: 15371.8 | AX29: 15383.6 | AY29: 15371.8 | AZ29: 15383.6 | BB29: 22044.829 | BC29: -2.81E-04 | BD29: 3.14E-04 | BE29: -4.03E-04 | BF29: 1.48E-04 | BK29: -5 | BL29: 0.51724 | BM29: 0.00299 | BN29: -5 | BO29: 0.5597 | BP29: 0.01665 | BQ29: -5 | BR29: 0.51903 | BS29: 0.01105 | BT29: -5 | BU29: 0.51903 | BV29: 0.02382 | BX29: 0.79767 | BY29: 0.81101 | BZ29: 0.09729 | CA29: 0.3216 | CB29: 0.62266 | CD29: -52.10015 | CE29: 0 | CF29: 0 | CG29: -44.95558 | CH29: 0 | CI29: 0 | CJ29: -44.82523 | CK29: 0 | CL29: 0
A30: 532.98 | B30: 51467 | C30: 37898.7 | D30: 18679 | E30: 32497.9 | F30: 18677 | G30: 51721.5 | H30: 532.98 | I30: 59246.7 | J30: 41818.1 | K30: 38667.2 | L30: 20832.6 | M30: 20825.1 | N30: 59667.7 | P30: 657.48 | Q30: 45001.5 | R30: 42034.4 | S30: 42034.8 | T30: 42034.7 | U30: 45406.1 | V30: 42035.1 | W30: 42305.2 | X30: 42034.4 | Y30: 45678.4 | Z30: 657.48 | AA30: 45493 | AB30: 42228.6 | AC30: 42228.9 | AD30: 42228.6 | AE30: 45585.4 | AF30: 42228.6 | AG30: 42802.9 | AH30: 42228.6 | AI30: 46160.2 | AK30: 492.48 | AL30: 20806.2 | AM30: 20626.8 | AN30: 20626.8 | AO30: 20627.4 | AP30: 20716.1 | AQ30: 20626.8 | AR30: 20716.7 | AS30: 492.48 | AT30: 15601.9 | AU30: 15371.3 | AV30: 15371.3 | AW30: 15371.3 | AX30: 15384.9 | AY30: 15371.3 | AZ30: 15384.9 | BB30: 22049.884 | BC30: 0.00103 | BD30: 0.00105 | BE30: 3.91E-04 | BF30: 5.42E-04 | BK30: -5 | BL30: 0.53793 | BM30: 0.00291 | BN30: -5 | BO30: 0.58209 | BP30: 0.01625 | BQ30: -5 | BR30: 0.53979 | BS30: 0.01068 | BT30: -5 | BU30: 0.53979 | BV30: 0.02322 | BX30: 0.82835 | BY30: 0.96851 | BZ30: 0.11058 | CA30: 0.30917 | CB30: 0.61371 | CD30: -52.03815 | CE30: 0 | CF30: 0 | CG30: -44.89858 | CH30: 0 | CI30: 0 | CJ30: -44.77223 | CK30: 0 | CL30: 0
A31: 532.88 | B31: 55941.5 | C31: 42317.2 | D31: 18606.5 | E31: 31972.1 | F31: 18603.2 | G31: 55689.4 | H31: 532.88 | I31: 64358.2 | J31: 47239.7 | K31: 38187.5 | L31: 20748.5 | M31: 20736.9 | N31: 64701.7 | P31: 657.38 | Q31: 45057.7 | R31: 42010 | S31: 42010.6 | T31: 42010.4 | U31: 45302.8 | V31: 42010.8 | W31: 42339.9 | X31: 42010 | Y31: 45634.4 | Z31: 657.38 | AA31: 45298 | AB31: 42204 | AC31: 42204.6 | AD31: 42204 | AE31: 45383.8 | AF31: 42204 | AG31: 42891 | AH31: 42204 | AI31: 46071.4 | AK31: 492.38 | AL31: 20751.2 | AM31: 20628.6 | AN31: 20628.6 | AO31: 20629.2 | AP31: 20726.1 | AQ31: 20628.6 | AR31: 20726.7 | AS31: 492.38 | AT31: 15546.6 | AU31: 15370.4 | AV31: 15370.4 | AW31: 15370.4 | AX31: 15386.3 | AY31: 15370.4 | AZ31: 15386.3 | BB31: 22054.822 | BC31: 0.00184 | BD31: 0.00172 | BE31: 0.00137 | BF31: 0.00106 | BK31: -5 | BL31: 0.55862 | BM31: 0.00259 | BN31: -5 | BO31: 0.60448 | BP31: 0.0161 | BQ31: -5 | BR31: 0.56055 | BS31: 0.01001 | BT31: -5 | BU31: 0.56055 | BV31: 0.02304 | BX31: 0.85903 | BY31: 1.1328 | BZ31: 0.11493 | CA31: 0.28994 | CB31: 0.61774 | CD31: -51.97615 | CE31: 0 | CF31: 0 | CG31: -44.84158 | CH31: 0 | CI31: 0 | CJ31: -44.71823 | CK31: 0 | CL31: 0
A32: 532.78 | B32: 60845.6 | C32: 47428.2 | D32: 18525.7 | E32: 31279.6 | F32: 18520.4 | G32: 60192.7 | H32: 532.78 | I32: 70437.3 | J32: 53620.7 | K32: 37469.4 | L32: 20654.3 | M32: 20636.8 | N32: 70470.8 | P32: 657.28 | Q32: 44897.2 | R32: 41985 | S32: 41985.8 | T32: 41985.3 | U32: 45175.6 | V32: 41985.7 | W32: 42384.9 | X32: 41985 | Y32: 45577.5 | Z32: 657.28 | AA32: 45325.8 | AB32: 42180 | AC32: 42180.9 | AD32: 42180 | AE32: 45170.1 | AF32: 42180 | AG32: 42997.6 | AH32: 42180 | AI32: 45988.6 | AK32: 492.28 | AL32: 20462.7 | AM32: 20630.3 | AN32: 20630.3 | AO32: 20631.1 | AP32: 20736.6 | AQ32: 20630.3 | AR32: 20737.4 | AS32: 492.28 | AT32: 15519.1 | AU32: 15369.4 | AV32: 15369.4 | AW32: 15369.4 | AX32: 15387.7 | AY32: 15369.4 | AZ32: 15387.7 | BB32: 22059.882 | BC32: 0.00191 | BD32: 0.00264 | BE32: 0.00218 | BF32: 0.00183 | BK32: -5 | BL32: 0.57931 | BM32: 0.00208 | BN32: -5 | BO32: 0.62687 | BP32: 0.01625 | BQ32: -5 | BR32: 0.58132 | BS32: 0.00913 | BT32: -5 | BU32: 0.58132 | BV32: 0.02312 | BX32: 0.88971 | BY32: 1.28968 | BZ32: 0.10919 | CA32: 0.27093 | CB32: 0.64329 | CD32: -51.91515 | CE32: 0 | CF32: 0 | CG32: -44.78358 | CH32: 0 | CI32: 0 | CJ32: -44.66523 | CK32: 0 | CL32: 0
A33: 532.68 | B33: 65338.4 | C33: 53233.6 | D33: 18435.9 | E33: 30445.7 | F33: 18427.4 | G33: 65260.3 | H33: 532.68 | I33: 77893.6 | J33: 60971.3 | K33: 36539.9 | L33: 20549.7 | M33: 20523.4 | N33: 77014.2 | P33: 657.18 | Q33: 44652.4 | R33: 41960.2 | S33: 41961.5 | T33: 41960.6 | U33: 45027.9 | V33: 41960.9 | W33: 42442.8 | X33: 41960.2 | Y33: 45513 | Z33: 657.18 | AA33: 45085.5 | AB33: 42155.5 | AC33: 42156.8 | AD33: 42155.5 | AE33: 44947 | AF33: 42155.5 | AG33: 43123.8 | AH33: 42155.5 | AI33: 45916.7 | AK33: 492.18 | AL33: 20836.2 | AM33: 20632.1 | AN33: 20632.1 | AO33: 20633.1 | AP33: 20747.6 | AQ33: 20632.1 | AR33: 20748.6 | AS33: 492.18 | AT33: 15872.1 | AU33: 15368.2 | AV33: 15368.2 | AW33: 15368.2 | AX33: 15389.3 | AY33: 15368.2 | AZ33: 15389.3 | BB33: 22064.824 | BC33: 0.00245 | BD33: 0.00431 | BE33: 0.00317 | BF33: 0.00279 | BK33: -5 | BL33: 0.6 | BM33: 0.00143 | BN33: -5 | BO33: 0.64925 | BP33: 0.01664 | BQ33: -5 | BR33: 0.60208 | BS33: 0.00824 | BT33: -5 | BU33: 0.60208 | BV33: 0.02332 | BX33: 0.92039 | BY33: 1.43065 | BZ33: 0.09302 | CA33: 0.2614 | CB33: 0.69193 | CD33: -51.85315 | CE33: 0 | CF33: 0 | CG33: -44.72658 | CH33: 0 | CI33: 0 | CJ33: -44.61223 | CK33: 0 | CL33: 0
A34: 532.58 | B34: 70878.7 | C34: 59699 | D34: 18336.5 | E34: 29498.9 | F34: 18323.2 | G34: 70887.9 | H34: 532.58 | I34: 84433.8 | J34: 69241.6 | K34: 35432.2 | L34: 20433.8 | M34: 20394.7 | N34: 84318.1 | P34: 657.08 | Q34: 44405.9 | R34: 41935.5 | S34: 41937.4 | T34: 41935.9 | U34: 44862.8 | V34: 41936.3 | W34: 42515.2 | X34: 41935.5 | Y34: 45445.4 | Z34: 657.08 | AA34: 45636.2 | AB34: 42130.9 | AC34: 42132.9 | AD34: 42130.9 | AE34: 44719 | AF34: 42130.9 | AG34: 43272.2 | AH34: 42130.9 | AI34: 45862.2 | AK34: 492.08 | AL34: 20748.8 | AM34: 20633.9 | AN34: 20633.9 | AO34: 20635 | AP34: 20759.2 | AQ34: 20633.9 | AR34: 20760.3 | AS34: 492.08 | AT34: 15545.3 | AU34: 15367.2 | AV34: 15367.2 | AW34: 15367.2 | AX34: 15391.5 | AY34: 15367.2 | AZ34: 15391.5 | BB34: 22069.888 | BC34: 0.00416 | BD34: 0.00624 | BE34: 0.00442 | BF34: 0.00421 | BK34: -5 | BL34: 0.62069 | BM34: 7.12E-04 | BN34: -5 | BO34: 0.67164 | BP34: 0.01726 | BQ34: -5 | BR34: 0.62284 | BS34: 0.00764 | BT34: -5 | BU34: 0.62284 | BV34: 0.02365 | BX34: 0.95107 | BY34: 1.55304 | BZ34: 0.06687 | CA34: 0.26896 | CB34: 0.75787 | CD34: -51.79115 | CE34: 0 | CF34: 0 | CG34: -44.66958 | CH34: 0 | CI34: 0 | CJ34: -44.55823 | CK34: 0 | CL34: 0
A35: 532.48 | B35: 77021.1 | C35: 66744.3 | D35: 18227.1 | E35: 28469.6 | F35: 18206.5 | G35: 77028 | H35: 532.48 | I35: 92893.9 | J35: 78306.4 | K35: 34185.1 | L35: 20307 | M35: 20249.8 | N35: 92298.9 | P35: 656.98 | Q35: 44744.3 | R35: 41911.2 | S35: 41913.8 | T35: 41911.5 | U35: 44683.5 | V35: 41911.9 | W35: 42604.1 | X35: 41911.2 | Y35: 45380.2 | Z35: 656.98 | AA35: 45309.1 | AB35: 42105.6 | AC35: 42108.4 | AD35: 42105.6 | AE35: 44488.6 | AF35: 42105.6 | AG35: 43444 | AH35: 42105.6 | AI35: 45829.9 | AK35: 491.98 | AL35: 20815 | AM35: 20635.7 | AN35: 20635.7 | AO35: 20637 | AP35: 20771.4 | AQ35: 20635.7 | AR35: 20772.7 | AS35: 491.98 | AT35: 15350.1 | AU35: 15366.2 | AV35: 15366.2 | AW35: 15366.2 | AX35: 15394.1 | AY35: 15366.2 | AZ35: 15394.1 | BB35: 22074.835 | BC35: 0.00634 | BD35: 0.00915 | BE35: 0.00614 | BF35: 0.00595 | BK35: -5 | BL35: 0.64138 | BM35: 1.02E-05 | BN35: -5 | BO35: 0.69403 | BP35: 0.01816 | BQ35: -5 | BR35: 0.6436 | BS35: 0.0077 | BT35: -5 | BU35: 0.6436 | BV35: 0.02431 | BX35: 0.98175 | BY35: 1.65968 | BZ35: 0.0321 | CA35: 0.29404 | CB35: 0.83152 | CD35: -51.73015 | CE35: 0 | CF35: 0 | CG35: -44.61258 | CH35: 0 | CI35: 0 | CJ35: -44.50523 | CK35: 0 | CL35: 0
A36: 532.38 | B36: 84137 | C36: 74237.8 | D36: 18108.3 | E36: 27388 | F36: 18076.6 | G36: 83580.8 | H36: 532.38 | I36: 100488 | J36: 87952.2 | K36: 32838 | L36: 20169.7 | M36: 20086.9 | N36: 100786 | P36: 656.88 | Q36: 44685.2 | R36: 41886.8 | S36: 41890.6 | T36: 41887.2 | U36: 44493.3 | V36: 41887.6 | W36: 42711.1 | X36: 41886.8 | Y36: 45322.4 | Z36: 656.88 | AA36: 45827.6 | AB36: 42079.7 | AC36: 42083.9 | AD36: 42079.7 | AE36: 44259.4 | AF36: 42079.7 | AG36: 43641.3 | AH36: 42079.7 | AI36: 45825.3 | AK36: 491.88 | AL36: 20802.6 | AM36: 20637.5 | AN36: 20637.5 | AO36: 20639 | AP36: 20784.1 | AQ36: 20637.5 | AR36: 20785.6 | AS36: 491.88 | AT36: 15560.6 | AU36: 15365.1 | AV36: 15365.1 | AW36: 15365.1 | AX36: 15397.1 | AY36: 15365.1 | AZ36: 15397.1 | BB36: 22079.904 | BC36: 0.00951 | BD36: 0.01222 | BE36: 0.00863 | BF36: 0.00809 | BK36: -5 | BL36: 0.66207 | BM36: 6.56E-04 | BN36: -5 | BO36: 0.71642 | BP36: 0.0194 | BQ36: -5 | BR36: 0.66436 | BS36: 0.0086 | BT36: -5 | BU36: 0.66436 | BV36: 0.02559 | BX36: 1.01243 | BY36: 1.75762 | BZ36: 0.00966 | CA36: 0.32955 | CB36: 0.90337 | CD36: -51.66815 | CE36: 0 | CF36: 0 | CG36: -44.55458 | CH36: 0 | CI36: 0 | CJ36: -44.45123 | CK36: 0 | CL36: 0
A37: 532.28 | B37: 90582.5 | C37: 81991.6 | D37: 17980.8 | E37: 26282.1 | F37: 17932.8 | G37: 90388.8 | H37: 532.28 | I37: 110303 | J37: 97872.7 | K37: 31430.6 | L37: 20024.2 | M37: 19905.5 | N37: 109516 | P37: 656.78 | Q37: 44703.3 | R37: 41862 | S37: 41867.3 | T37: 41862.4 | U37: 44295 | V37: 41862.7 | W37: 42837.8 | X37: 41862 | Y37: 45277.2 | Z37: 656.78 | AA37: 45606.3 | AB37: 42052.8 | AC37: 42058.9 | AD37: 42052.8 | AE37: 44033.8 | AF37: 42052.8 | AG37: 43865.5 | AH37: 42052.8 | AI37: 45852.6 | AK37: 491.78 | AL37: 20996.5 | AM37: 20639.2 | AN37: 20639.2 | AO37: 20641 | AP37: 20797.3 | AQ37: 20639.2 | AR37: 20799.1 | AS37: 491.78 | AT37: 15618.1 | AU37: 15364.2 | AV37: 15364.2 | AW37: 15364.2 | AX37: 15400.8 | AY37: 15364.2 | AZ37: 15400.8 | BB37: 22084.855 | BC37: 0.01545 | BD37: 0.01817 | BE37: 0.01151 | BF37: 0.01118 | BK37: -5 | BL37: 0.68276 | BM37: 0.00121 | BN37: -5 | BO37: 0.73881 | BP37: 0.02111 | BQ37: -5 | BR37: 0.68512 | BS37: 0.01025 | BT37: -5 | BU37: 0.68512 | BV37: 0.02772 | BX37: 1.04311 | BY37: 1.85563 | BZ37: 0.05455 | CA37: 0.36572 | CB37: 0.96637 | CD37: -51.60615 | CE37: 0 | CF37: 0 | CG37: -44.49758 | CH37: 0 | CI37: 0 | CJ37: -44.39823 | CK37: 0 | CL37: 0
A38: 532.18 | B38: 96806.6 | C38: 89762.4 | D38: 17846.1 | E38: 25176.6 | F38: 17774.4 | G38: 97236.2 | H38: 532.18 | I38: 118652 | J38: 107672 | K38: 29999.4 | L38: 19873.4 | M38: 19705.5 | N38: 118134 | P38: 656.68 | Q38: 44843.1 | R38: 41836.2 | S38: 41843.6 | T38: 41836.6 | U38: 44091.5 | V38: 41837 | W38: 42985.7 | X38: 41836.2 | Y38: 45249.6 | Z38: 656.68 | AA38: 45686 | AB38: 42025.7 | AC38: 42034.5 | AD38: 42025.7 | AE38: 43814.7 | AF38: 42025.7 | AG38: 44118.9 | AH38: 42025.7 | AI38: 45916.6 | AK38: 491.68 | AL38: 20734.7 | AM38: 20641 | AN38: 20641 | AO38: 20643.1 | AP38: 20811.1 | AQ38: 20641 | AR38: 20813.1 | AS38: 491.68 | AT38: 15583.1 | AU38: 15363.4 | AV38: 15363.5 | AW38: 15363.4 | AX38: 15405.2 | AY38: 15363.4 | AZ38: 15405.2 | BB38: 22089.808 | BC38: 0.02592 | BD38: 0.02685 | BE38: 0.01631 | BF38: 0.01613 | BK38: -5 | BL38: 0.70345 | BM38: 0.00164 | BN38: -5 | BO38: 0.76119 | BP38: 0.02333 | BQ38: -5 | BR38: 0.70588 | BS38: 0.0124 | BT38: -5 | BU38: 0.70588 | BV38: 0.03075 | BX38: 1.07379 | BY38: 1.9608 | BZ38: 0.10015 | CA38: 0.39377 | CB38: 1.01706 | CD38: -51.54515 | CE38: 0 | CF38: 0 | CG38: -44.44058 | CH38: 0 | CI38: 0 | CJ38: -44.34523 | CK38: 0 | CL38: 0
A39: 532.08 | B39: 103848 | C39: 97259.8 | D39: 17707.1 | E39: 24092.2 | F39: 17601.2 | G39: 103857 | H39: 532.08 | I39: 125575 | J39: 116883 | K39: 28576.5 | L39: 19722.1 | M39: 19487.3 | N39: 126207 | P39: 656.58 | Q39: 44953.2 | R39: 41809.5 | S39: 41819.8 | T39: 41809.9 | U39: 43885.9 | V39: 41810.3 | W39: 43156.9 | X39: 41809.5 | Y39: 45244.7 | Z39: 656.58 | AA39: 45695.7 | AB39: 41998 | AC39: 42010.5 | AD39: 41998 | AE39: 43603.7 | AF39: 41998 | AG39: 44402.2 | AH39: 41998 | AI39: 46020.4 | AK39: 491.58 | AL39: 20761.3 | AM39: 20642.8 | AN39: 20642.8 | AO39: 20645.2 | AP39: 20825.3 | AQ39: 20642.8 | AR39: 20827.7 | AS39: 491.58 | AT39: 15467.5 | AU39: 15362.7 | AV39: 15362.7 | AW39: 15362.7 | AX39: 15410.2 | AY39: 15362.7 | AZ39: 15410.2 | BB39: 22090.412 | BC39: 0.02768 | BD39: 0.02894 | BE39: 0.01711 | BF39: 0.01677 | BK39: -5 | BL39: 0.72414 | BM39: 0.00195 | BN39: -5 | BO39: 0.78358 | BP39: 0.02606 | BQ39: -5 | BR39: 0.72664 | BS39: 0.01481 | BT39: -5 | BU39: 0.72664 | BV39: 0.03452 | BX39: 1.10447 | BY39: 2.07525 | BZ39: 0.14268 | CA39: 0.40693 | CB39: 1.05616 | CD39: -51.48315 | CE39: 0 | CF39: 0 | CG39: -44.38358 | CH39: 0 | CI39: 0 | CJ39: -44.29123 | CK39: 0 | CL39: 0
A40: 531.98 | B40: 110206 | C40: 104161 | D40: 17568.7 | E40: 23046.2 | F40: 17414.3 | G40: 109947 | H40: 531.98 | I40: 132809 | J40: 125000 | K40: 27188.8 | L40: 19576.4 | M40: 19251.8 | N40: 133262 | P40: 656.48 | Q40: 45255.6 | R40: 41782.2 | S40: 41796.3 | T40: 41782.5 | U40: 43681.1 | V40: 41782.9 | W40: 43353.5 | X40: 41782.2 | Y40: 45267.7 | Z40: 656.48 | AA40: 45652.9 | AB40: 41970.2 | AC40: 41987.9 | AD40: 41970.2 | AE40: 43402.7 | AF40: 41970.2 | AG40: 44716.7 | AH40: 41970.2 | AI40: 46166.9 | AK40: 491.48 | AL40: 21339.8 | AM40: 20644.6 | AN40: 20644.6 | AO40: 20647.4 | AP40: 20840 | AQ40: 20644.6 | AR40: 20842.8 | AS40: 491.48 | AT40: 15262.7 | AU40: 15362.2 | AV40: 15362.2 | AW40: 15362.2 | AX40: 15416.2 | AY40: 15362.2 | AZ40: 15416.2 | BB40: 22090.895 | BC40: 0.02944 | BD40: 0.03108 | BE40: 0.01775 | BF40: 0.01729 | BK40: -5 | BL40: 0.74483 | BM40: 0.00216 | BN40: -5 | BO40: 0.80597 | BP40: 0.02922 | BQ40: -5 | BR40: 0.7474 | BS40: 0.01733 | BT40: -5 | BU40: 0.7474 | BV40: 0.0388 | BX40: 1.13515 | BY40: 2.19446 | BZ40: 0.17856 | CA40: 0.4005 | CB40: 1.08861 | CD40: -51.42115 | CE40: 0 | CF40: 0 | CG40: -44.32558 | CH40: 0 | CI40: 0 | CJ40: -44.23823 | CK40: 0 | CL40: 0
A41: 531.88 | B41: 115037 | C41: 110132 | D41: 17437 | E41: 22051.3 | F41: 17214.7 | G41: 115191 | H41: 531.88 | I41: 138441 | J41: 131525 | K41: 25858.9 | L41: 19445.2 | M41: 19002 | N41: 138825 | P41: 656.38 | Q41: 45051.6 | R41: 41753.7 | S41: 41773.1 | T41: 41754.1 | U41: 43479.2 | V41: 41754.5 | W41: 43576.8 | X41: 41753.7 | Y41: 45322.8 | Z41: 656.38 | AA41: 45710.7 | AB41: 41941.8 | AC41: 41966.7 | AD41: 41941.8 | AE41: 43212.4 | AF41: 41941.8 | AG41: 45061.9 | AH41: 41941.8 | AI41: 46357.4 | AK41: 491.38 | AL41: 20693.9 | AM41: 20646.4 | AN41: 20646.4 | AO41: 20649.6 | AP41: 20855.1 | AQ41: 20646.4 | AR41: 20858.4 | AS41: 491.38 | AT41: 15307.4 | AU41: 15361.6 | AV41: 15361.6 | AW41: 15361.6 | AX41: 15422.8 | AY41: 15361.6 | AZ41: 15422.8 | BB41: 22091.378 | BC41: 0.03153 | BD41: 0.03322 | BE41: 0.01838 | BF41: 0.0178 | BK41: -5 | BL41: 0.76552 | BM41: 0.0023 | BN41: -5 | BO41: 0.82836 | BP41: 0.03269 | BQ41: -5 | BR41: 0.76817 | BS41: 0.01984 | BT41: -5 | BU41: 0.76817 | BV41: 0.04334 | BX41: 1.16583 | BY41: 2.30782 | BZ41: 0.20449 | CA41: 0.37184 | CB41: 1.12296 | CD41: -51.36015 | CE41: 0 | CF41: 0 | CG41: -44.26858 | CH41: 0 | CI41: 0 | CJ41: -44.18523 | CK41: 0 | CL41: 0
A42: 531.78 | B42: 118855 | C42: 114854 | D42: 17319.9 | E42: 21116.4 | F42: 17003.7 | G42: 119283 | H42: 531.78 | I42: 141435 | J42: 136018 | K42: 24603.2 | L42: 19338.6 | M42: 18740.5 | N42: 142479 | P42: 656.28 | Q42: 45306.6 | R42: 41724.6 | S42: 41751 | T42: 41724.9 | U42: 43282.6 | V42: 41725.3 | W42: 43828.7 | X42: 41724.6 | Y42: 45414.2 | Z42: 656.28 | AA42: 45913.8 | AB42: 41913 | AC42: 41947.6 | AD42: 41913 | AE42: 43033.6 | AF42: 41913 | AG42: 45437.6 | AH42: 41913 | AI42: 46592.7 | AK42: 491.28 | AL42: 20860.9 | AM42: 20648.1 | AN42: 20648.1 | AO42: 20651.9 | AP42: 20870.7 | AQ42: 20648.1 | AR42: 20874.4 | AS42: 491.28 | AT42: 15677.1 | AU42: 15361 | AV42: 15361 | AW42: 15361 | AX42: 15430.2 | AY42: 15361 | AZ42: 15430.2 | BB42: 22091.862 | BC42: 0.03194 | BD42: 0.03537 | BE42: 0.01902 | BF42: 0.01831 | BK42: -5 | BL42: 0.78621 | BM42: 0.0024 | BN42: -5 | BO42: 0.85075 | BP42: 0.03632 | BQ42: -5 | BR42: 0.78893 | BS42: 0.02226 | BT42: -5 | BU42: 0.78893 | BV42: 0.04796 | BX42: 1.1965 | BY42: 2.40098 | BZ42: 0.21772 | CA42: 0.32039 | CB42: 1.16953 | CD42: -51.29815 | CE42: 0 | CF42: 0 | CG42: -44.21158 | CH42: 0 | CI42: 0 | CJ42: -44.13123 | CK42: 0 | CL42: 0
A43: 531.68 | B43: 121924 | C43: 118058 | D43: 17228.3 | E43: 20248 | F43: 16784.5 | G43: 121965 | H43: 531.68 | I43: 143790 | J43: 138157 | K43: 23433.6 | L43: 19268.2 | M43: 18471 | N43: 143916 | P43: 656.18 | Q43: 45203.8 | R43: 41694.1 | S43: 41729.8 | T43: 41694.4 | U43: 43092.3 | V43: 41694.8 | W43: 44109.6 | X43: 41694.1 | Y43: 45544.6 | Z43: 656.18 | AA43: 45895.3 | AB43: 41883.1 | AC43: 41930.8 | AD43: 41883.1 | AE43: 42865.8 | AF43: 41883.1 | AG43: 45841.5 | AH43: 41883.1 | AI43: 46871.9 | AK43: 491.18 | AL43: 20806.3 | AM43: 20649.9 | AN43: 20649.9 | AO43: 20654.3 | AP43: 20886.5 | AQ43: 20649.9 | AR43: 20890.9 | AS43: 491.18 | AT43: 15557.4 | AU43: 15360.4 | AV43: 15360.4 | AW43: 15360.4 | AX43: 15438.4 | AY43: 15360.4 | AZ43: 15438.4 | BB43: 22092.345 | BC43: 0.03465 | BD43: 0.03751 | BE43: 0.01966 | BF43: 0.01883 | BK43: -5 | BL43: 0.8069 | BM43: 0.0025 | BN43: -5 | BO43: 0.87313 | BP43: 0.03997 | BQ43: -5 | BR43: 0.80969 | BS43: 0.02454 | BT43: -5 | BU43: 0.80969 | BV43: 0.05253 | BX43: 1.22718 | BY43: 2.45876 | BZ43: 0.21629 | CA43: 0.24809 | CB43: 1.23718 | CD43: -51.23615 | CE43: 0 | CF43: 0 | CG43: -44.15458 | CH43: 0 | CI43: 0 | CJ43: -44.07823 | CK43: 0 | CL43: 0
A44: 531.58 | B44: 122028 | C44: 119547 | D44: 17174.6 | E44: 19449.2 | F44: 16559.6 | G44: 123051 | H44: 531.58 | I44: 142489 | J44: 137772 | K44: 22357.5 | L44: 19247.2 | M44: 18197.7 | N44: 142982 | P44: 656.08 | Q44: 45774.2 | R44: 41662.9 | S44: 41710.9 | T44: 41663.3 | U44: 42910.1 | V44: 41663.6 | W44: 44420.9 | X44: 41662.9 | Y44: 45717.2 | Z44: 656.08 | AA44: 46429.6 | AB44: 41851.4 | AC44: 41916.7 | AD44: 41851.4 | AE44: 42708.6 | AF44: 41851.4 | AG44: 46270.7 | AH44: 41851.4 | AI44: 47193.2 | AK44: 491.08 | AL44: 21097.7 | AM44: 20651.7 | AN44: 20651.7 | AO44: 20656.8 | AP44: 20902.7 | AQ44: 20651.7 | AR44: 20907.7 | AS44: 491.08 | AT44: 15541.4 | AU44: 15359.6 | AV44: 15359.6 | AW44: 15359.6 | AX44: 15447.4 | AY44: 15359.6 | AZ44: 15447.4 | BB44: 22092.829 | BC44: 0.03686 | BD44: 0.03965 | BE44: 0.02045 | BF44: 0.01981 | BK44: -5 | BL44: 0.82759 | BM44: 0.00259 | BN44: -5 | BO44: 0.89552 | BP44: 0.04351 | BQ44: -5 | BR44: 0.83045 | BS44: 0.02665 | BT44: -5 | BU44: 0.83045 | BV44: 0.05699 | BX44: 1.25786 | BY44: 2.46783 | BZ44: 0.19931 | CA44: 0.16185 | CB44: 1.33007 | CD44: -51.17515 | CE44: 0 | CF44: 0 | CG44: -44.09658 | CH44: 0 | CI44: 0 | CJ44: -44.02423 | CK44: 0 | CL44: 0
A45: 531.48 | B45: 122187 | C45: 119221 | D45: 17173.2 | E45: 18720.9 | F45: 16332 | G45: 122451 | H45: 531.48 | I45: 140070 | J45: 134878 | K45: 21379.5 | L45: 19290.1 | M45: 17925.5 | N45: 139697 | P45: 655.98 | Q45: 45593.6 | R45: 41629.9 | S45: 41693.9 | T45: 41630.3 | U45: 42736 | V45: 41630.6 | W45: 44761.5 | X45: 41629.9 | Y45: 45932.7 | Z45: 655.98 | AA45: 46895.6 | AB45: 41817.6 | AC45: 41906.3 | AD45: 41817.6 | AE45: 42561.2 | AF45: 41817.6 | AG45: 46721.5 | AH45: 41817.6 | AI45: 47553.9 | AK45: 490.98 | AL45: 20957.7 | AM45: 20653.5 | AN45: 20653.5 | AO45: 20659.3 | AP45: 20919.1 | AQ45: 20653.5 | AR45: 20924.9 | AS45: 490.98 | AT45: 15487.3 | AU45: 15359 | AV45: 15359 | AW45: 15359 | AX45: 15457.6 | AY45: 15359 | AZ45: 15457.7 | BB45: 22093.312 | BC45: 0.03924 | BD45: 0.04179 | BE45: 0.0217 | BF45: 0.02098 | BK45: -5 | BL45: 0.84828 | BM45: 0.0027 | BN45: -5 | BO45: 0.91791 | BP45: 0.04683 | BQ45: -5 | BR45: 0.85121 | BS45: 0.02855 | BT45: -5 | BU45: 0.85121 | BV45: 0.06132 | BX45: 1.28854 | BY45: 2.41869 | BZ45: 0.16719 | CA45: 0.09406 | CB45: 1.44595 | CD45: -51.11315 | CE45: 0 | CF45: 0 | CG45: -44.03958 | CH45: 0 | CI45: 0 | CJ45: -43.97123 | CK45: 0 | CL45: 0
A46: 531.38 | B46: 120151 | C46: 117090 | D46: 17240.6 | E46: 18062.3 | F46: 16104.9 | G46: 120183 | H46: 531.38 | I46: 134674 | J46: 129665 | K46: 20500.6 | L46: 19410.6 | M46: 17659 | N46: 134258 | P46: 655.88 | Q46: 46221.5 | R46: 41594.9 | S46: 41679.6 | T46: 41595.3 | U46: 42570.3 | V46: 41595.6 | W46: 45130.6 | X46: 41594.9 | Y46: 46191.8 | Z46: 655.88 | AA46: 47316.1 | AB46: 41781.6 | AC46: 41901 | AD46: 41781.6 | AE46: 42423.4 | AF46: 41781.6 | AG46: 47189.3 | AH46: 41781.6 | AI46: 47950.5 | AK46: 490.88 | AL46: 21091.5 | AM46: 20655.3 | AN46: 20655.3 | AO46: 20662 | AP46: 20935.6 | AQ46: 20655.3 | AR46: 20942.3 | AS46: 490.88 | AT46: 15051.9 | AU46: 15358.4 | AV46: 15358.4 | AW46: 15358.4 | AX46: 15469 | AY46: 15358.4 | AZ46: 15469 | BB46: 22093.917 | BC46: 0.0407 | BD46: 0.04447 | BE46: 0.02326 | BF46: 0.02245 | BK46: -5 | BL46: 0.86897 | BM46: 0.00282 | BN46: -5 | BO46: 0.9403 | BP46: 0.04983 | BQ46: -5 | BR46: 0.87197 | BS46: 0.03025 | BT46: -5 | BU46: 0.87197 | BV46: 0.0655 | BX46: 1.31922 | BY46: 2.30704 | BZ46: 0.12206 | CA46: 0.14226 | CB46: 1.577 | CD46: -51.05115 | CE46: 0 | CF46: 0 | CG46: -43.98258 | CH46: 0 | CI46: 0 | CJ46: -43.91823 | CK46: 0 | CL46: 0
A47: 531.28 | B47: 116610 | C47: 113271 | D47: 17394.8 | E47: 17471.9 | F47: 15882.1 | G47: 116374 | H47: 531.28 | I47: 127296 | J47: 122478 | K47: 19719.8 | L47: 19622.1 | M47: 17403.2 | N47: 127014 | P47: 655.78 | Q47: 46603.2 | R47: 41558 | S47: 41669.5 | T47: 41558.4 | U47: 42413.3 | V47: 41558.7 | W47: 45526.8 | X47: 41558 | Y47: 46494.7 | Z47: 655.78 | AA47: 47520 | AB47: 41742.8 | AC47: 41902.3 | AD47: 41742.8 | AE47: 42293.8 | AF47: 41742.8 | AG47: 47667.9 | AH47: 41742.8 | AI47: 48378.5 | AK47: 490.78 | AL47: 20958.5 | AM47: 20657.1 | AN47: 20657.1 | AO47: 20664.8 | AP47: 20952.2 | AQ47: 20657.1 | AR47: 20959.9 | AS47: 490.78 | AT47: 15623.1 | AU47: 15357.9 | AV47: 15357.9 | AW47: 15357.9 | AX47: 15481.5 | AY47: 15357.9 | AZ47: 15481.5 | BB47: 22094.4 | BC47: 0.04409 | BD47: 0.04661 | BE47: 0.02451 | BF47: 0.02362 | BK47: -5 | BL47: 0.88965 | BM47: 0.00295 | BN47: -5 | BO47: 0.96269 | BP47: 0.05243 | BQ47: -5 | BR47: 0.89273 | BS47: 0.03173 | BT47: -5 | BU47: 0.89273 | BV47: 0.06953 | BX47: 1.3499 | BY47: 2.13461 | BZ47: 0.07028 | CA47: 0.25952 | CB47: 1.71216 | CD47: -50.99015 | CE47: 0 | CF47: 0 | CG47: -43.92558 | CH47: 1.00E-05 | CI47: -1.00E-05 | CJ47: -43.86423 | CK47: 1.50E-04 | CL47: 0
A48: 531.18 | B48: 111240 | C48: 107974 | D48: 17653.9 | E48: 16946.2 | F48: 15665.9 | G48: 111243 | H48: 531.18 | I48: 118635 | J48: 113770 | K48: 19033.3 | L48: 19934.7 | M48: 17161.3 | N48: 118415 | P48: 655.68 | Q48: 46424.3 | R48: 41519.8 | S48: 41665.4 | T48: 41520.1 | U48: 42265.7 | V48: 41520.5 | W48: 45948.2 | X48: 41519.8 | Y48: 46840.9 | Z48: 655.68 | AA48: 48015 | AB48: 41701.1 | AC48: 41912.5 | AD48: 41701.1 | AE48: 42171.7 | AF48: 41701.1 | AG48: 48150.4 | AH48: 41701.1 | AI48: 48832.5 | AK48: 490.68 | AL48: 21059.8 | AM48: 20658.8 | AN48: 20658.8 | AO48: 20667.7 | AP48: 20968.7 | AQ48: 20658.8 | AR48: 20977.6 | AS48: 490.68 | AT48: 15472.6 | AU48: 15357.4 | AV48: 15357.4 | AW48: 15357.4 | AX48: 15495.2 | AY48: 15357.4 | AZ48: 15495.3 | BB48: 22094.884 | BC48: 0.04576 | BD48: 0.04888 | BE48: 0.02576 | BF48: 0.02479 | BK48: -5 | BL48: 0.91034 | BM48: 0.00309 | BN48: -5 | BO48: 0.98508 | BP48: 0.05457 | BQ48: -5 | BR48: 0.91349 | BS48: 0.033 | BT48: -5 | BU48: 0.91349 | BV48: 0.07337 | BX48: 1.38058 | BY48: 1.90955 | BZ48: 0.04723 | CA48: 0.39003 | CB48: 1.83944 | CD48: -50.92815 | CE48: 0 | CF48: 0 | CG48: -43.86758 | CH48: 1.80E-04 | CI48: -1.90E-04 | CJ48: -43.81123 | CK48: 0.00254 | CL48: 0
A49: 531.08 | B49: 105528 | C49: 101483 | D49: 18035.8 | E49: 16481.6 | F49: 15459.3 | G49: 105082 | H49: 531.08 | I49: 109759 | J49: 104046 | K49: 18436.6 | L49: 20355.5 | M49: 16937 | N49: 108965 | P49: 655.58 | Q49: 46566.1 | R49: 41479 | S49: 41667.9 | T49: 41479.4 | U49: 42126.1 | V49: 41479.7 | W49: 46390.3 | X49: 41479 | Y49: 47227.4 | Z49: 655.58 | AA49: 48608.8 | AB49: 41656.4 | AC49: 41934.2 | AD49: 41656.4 | AE49: 42056.4 | AF49: 41656.4 | AG49: 48629.1 | AH49: 41656.4 | AI49: 49306.9 | AK49: 490.58 | AL49: 21089.7 | AM49: 20660.6 | AN49: 20660.6 | AO49: 20670.8 | AP49: 20985.2 | AQ49: 20660.6 | AR49: 20995.3 | AS49: 490.58 | AT49: 15541.1 | AU49: 15356.8 | AV49: 15356.9 | AW49: 15356.8 | AX49: 15510.2 | AY49: 15356.8 | AZ49: 15510.3 | BB49: 22095.367 | BC49: 0.04942 | BD49: 0.05252 | BE49: 0.02701 | BF49: 0.02596 | BK49: -5 | BL49: 0.93103 | BM49: 0.00327 | BN49: -5 | BO49: 1.00746 | BP49: 0.05621 | BQ49: -5 | BR49: 0.93426 | BS49: 0.03406 | BT49: -5 | BU49: 0.93426 | BV49: 0.07699 | BX49: 1.41126 | BY49: 1.6469 | BZ49: 0.09719 | CA49: 0.52099 | CB49: 1.94757 | CD49: -50.86615 | CE49: 0 | CF49: 0 | CG49: -43.81058 | CH49: 5.60E-04 | CI49: -5.70E-04 | CJ49: -43.75823 | CK49: 0.00627 | CL49: 0
A50: 530.98 | B50: 99228.7 | C50: 94121.8 | D50: 18556.9 | E50: 16074.2 | F50: 15264.7 | G50: 98223.5 | H50: 530.98 | I50: 99659.7 | J50: 93815.7 | K50: 17923.2 | L50: 20885.8 | M50: 16732.3 | N50: 99160.2 | P50: 655.48 | Q50: 47290.5 | R50: 41436.4 | S50: 41679.7 | T50: 41436.8 | U50: 41994.8 | V50: 41437.2 | W50: 46849.2 | X50: 41436.4 | Y50: 47652 | Z50: 655.48 | AA50: 49089.7 | AB50: 41609 | AC50: 41970.9 | AD50: 41609 | AE50: 41947.3 | AF50: 41609 | AG50: 49095.4 | AH50: 41609 | AI50: 49795.6 | AK50: 490.48 | AL50: 21117.4 | AM50: 20662.4 | AN50: 20662.4 | AO50: 20674 | AP50: 21001.4 | AQ50: 20662.4 | AR50: 21013 | AS50: 490.48 | AT50: 15514.5 | AU50: 15355.9 | AV50: 15356 | AW50: 15355.9 | AX50: 15526.2 | AY50: 15355.9 | AZ50: 15526.3 | BB50: 22095.851 | BC50: 0.05364 | BD50: 0.05617 | BE50: 0.02827 | BF50: 0.02713 | BK50: -5 | BL50: 0.95172 | BM50: 0.0035 | BN50: -5 | BO50: 1.02985 | BP50: 0.05732 | BQ50: -5 | BR50: 0.95502 | BS50: 0.03493 | BT50: -5 | BU50: 0.95502 | BV50: 0.08033 | BX50: 1.44194 | BY50: 1.36956 | BZ50: 0.16368 | CA50: 0.64687 | CB50: 2.0271 | CD50: -50.80515 | CE50: 0 | CF50: 0 | CG50: -43.75358 | CH50: 3.70E-04 | CI50: -3.60E-04 | CJ50: -43.70423 | CK50: 0.00236 | CL50: -1.20E-04
A51: 530.88 | B51: 91587.8 | C51: 86227.7 | D51: 19229.6 | E51: 15719.8 | F51: 15084 | G51: 91009.1 | H51: 530.88 | I51: 89438.3 | J51: 83540.7 | K51: 17486 | L51: 21519.8 | M51: 16548 | N51: 89450.4 | P51: 655.38 | Q51: 47329.2 | R51: 41391.7 | S51: 41703 | T51: 41392.1 | U51: 41871 | V51: 41392.5 | W51: 47318.9 | X51: 41391.7 | Y51: 48110.6 | Z51: 655.38 | AA51: 49348.5 | AB51: 41558.5 | AC51: 42026.1 | AD51: 41558.5 | AE51: 41843.2 | AF51: 41558.5 | AG51: 49539.4 | AH51: 41558.5 | AI51: 50291.7 | AK51: 490.38 | AL51: 21243.7 | AM51: 20664.2 | AN51: 20664.2 | AO51: 20677.4 | AP51: 21017.3 | AQ51: 20664.2 | AR51: 21030.6 | AS51: 490.38 | AT51: 15539.9 | AU51: 15354.9 | AV51: 15355 | AW51: 15354.9 | AX51: 15543.5 | AY51: 15354.9 | AZ51: 15543.6 | BB51: 22096.334 | BC51: 0.05622 | BD51: 0.05981 | BE51: 0.02952 | BF51: 0.0283 | BK51: -5 | BL51: 0.97241 | BM51: 0.00379 | BN51: -5 | BO51: 1.05224 | BP51: 0.0579 | BQ51: -5 | BR51: 0.97578 | BS51: 0.03559 | BT51: -5 | BU51: 0.97578 | BV51: 0.08333 | BX51: 1.47262 | BY51: 1.1107 | BZ51: 0.22722 | CA51: 0.76477 | CB51: 2.07088 | CD51: -50.74315 | CE51: 0 | CF51: 0 | CG51: -43.69658 | CH51: 5.00E-05 | CI51: -5.00E-05 | CJ51: -43.65123 | CK51: 1.30E-04 | CL51: -0.00194
A52: 530.78 | B52: 83768.9 | C52: 78122.5 | D52: 20059.8 | E52: 15413 | F52: 14917.8 | G52: 83759.8 | H52: 530.78 | I52: 80214.6 | J52: 73609.6 | K52: 17116.8 | L52: 22243.9 | M52: 16384.3 | N52: 80201.7 | P52: 655.28 | Q52: 47987.1 | R52: 41343.9 | S52: 41739.3 | T52: 41344.3 | U52: 41753.3 | V52: 41344.7 | W52: 47791.6 | X52: 41343.9 | Y52: 48597.5 | Z52: 655.28 | AA52: 49887.3 | AB52: 41504.3 | AC52: 42103.3 | AD52: 41504.3 | AE52: 41742.7 | AF52: 41504.3 | AG52: 49950.7 | AH52: 41504.3 | AI52: 50788.2 | AK52: 490.28 | AL52: 21621.3 | AM52: 20666 | AN52: 20666 | AO52: 20681 | AP52: 21032.8 | AQ52: 20666 | AR52: 21047.9 | AS52: 490.28 | AT52: 15684.7 | AU52: 15354 | AV52: 15354.2 | AW52: 15354 | AX52: 15562.3 | AY52: 15354 | AZ52: 15562.5 | BB52: 22096.818 | BC52: 0.06108 | BD52: 0.06346 | BE52: 0.03077 | BF52: 0.02947 | BK52: -5 | BL52: 0.9931 | BM52: 0.00414 | BN52: -5 | BO52: 1.07463 | BP52: 0.05796 | BQ52: -5 | BR52: 0.99654 | BS52: 0.03607 | BT52: -5 | BU52: 0.99654 | BV52: 0.08592 | BX52: 1.5033 | BY52: 0.91626 | BZ52: 0.28088 | CA52: 0.87389 | CB52: 2.07443 | CD52: -50.68115 | CE52: 0 | CF52: 0 | CG52: -43.63858 | CH52: 0 | CI52: 0 | CJ52: -43.59723 | CK52: 0 | CL52: -0.00445
A53: 530.68 | B53: 77100.2 | C53: 70092.8 | D53: 21046 | E53: 15149.5 | F53: 14766.8 | G53: 76754.6 | H53: 530.68 | I53: 71719.6 | J53: 64320 | K53: 16808.1 | L53: 23036 | M53: 16240.8 | N53: 71682.5 | P53: 655.18 | Q53: 48502.5 | R53: 41292.4 | S53: 41791.1 | T53: 41292.8 | U53: 41640.3 | V53: 41293.1 | W53: 48258.9 | X53: 41292.4 | Y53: 49106.7 | Z53: 655.18 | AA53: 50768.7 | AB53: 41446.2 | AC53: 42207 | AD53: 41446.2 | AE53: 41644.9 | AF53: 41446.2 | AG53: 50319.1 | AH53: 41446.2 | AI53: 51278.7 | AK53: 490.18 | AL53: 20932.2 | AM53: 20667.7 | AN53: 20667.7 | AO53: 20684.9 | AP53: 21047.8 | AQ53: 20667.7 | AR53: 21064.9 | AS53: 490.18 | AT53: 15375.6 | AU53: 15352.9 | AV53: 15353.1 | AW53: 15352.9 | AX53: 15582.5 | AY53: 15352.9 | AZ53: 15582.7 | BB53: 22097.423 | BC53: 0.06528 | BD53: 0.06802 | BE53: 0.03245 | BF53: 0.03111 | BK53: -5 | BL53: 1.01379 | BM53: 0.00456 | BN53: -5 | BO53: 1.09702 | BP53: 0.05753 | BQ53: -5 | BR53: 1.0173 | BS53: 0.03638 | BT53: -5 | BU53: 1.0173 | BV53: 0.08803 | BX53: 1.53398 | BY53: 0.83377 | BZ53: 0.31979 | CA53: 0.9753 | CB53: 2.03597 | CD53: -50.62015 | CE53: 0 | CF53: 0 | CG53: -43.58158 | CH53: 1.30E-04 | CI53: -1.20E-04 | CJ53: -43.54423 | CK53: 0 | CL53: -0.0016
A54: 530.58 | B54: 69537.8 | C54: 62374.8 | D54: 22174.7 | E54: 14924.1 | F54: 14630.8 | G54: 70212.2 | H54: 530.58 | I54: 63377.9 | J54: 55874.2 | K54: 16551.8 | L54: 23864.3 | M54: 16116 | N54: 64058.3 | P54: 655.08 | Q54: 49115.7 | R54: 41237.4 | S54: 41861.9 | T54: 41237.7 | U54: 41531.5 | V54: 41238.1 | W54: 48712.4 | X54: 41237.4 | Y54: 49632.2 | Z54: 655.08 | AA54: 51576.7 | AB54: 41383.7 | AC54: 42341.8 | AD54: 41383.7 | AE54: 41548.6 | AF54: 41383.7 | AG54: 50634.4 | AH54: 41383.7 | AI54: 51757.3 | AK54: 490.08 | AL54: 20785.4 | AM54: 20669.5 | AN54: 20669.5 | AO54: 20689 | AP54: 21062.1 | AQ54: 20669.5 | AR54: 21081.6 | AS54: 490.08 | AT54: 15750.4 | AU54: 15351.5 | AV54: 15351.8 | AW54: 15351.5 | AX54: 15603.9 | AY54: 15351.5 | AZ54: 15604.2 | BB54: 22097.906 | BC54: 0.06993 | BD54: 0.07166 | BE54: 0.03417 | BF54: 0.03264 | BK54: -5 | BL54: 1.03448 | BM54: 0.00503 | BN54: -5 | BO54: 1.1194 | BP54: 0.05664 | BQ54: -5 | BR54: 1.03806 | BS54: 0.03651 | BT54: -5 | BU54: 1.03806 | BV54: 0.08963 | BX54: 1.56466 | BY54: 0.86933 | BZ54: 0.34038 | CA54: 1.07156 | CB54: 1.95637 | CD54: -50.55815 | CE54: 0 | CF54: 0 | CG54: -43.52458 | CH54: 0.00172 | CI54: -0.00168 | CJ54: -43.49123 | CK54: 0 | CL54: -9.00E-05
A55: 530.48 | B55: 64364 | C55: 55149.1 | D55: 23420 | E55: 14731.9 | F55: 14508.8 | G55: 64283.5 | H55: 530.48 | I55: 56928.5 | J55: 48386.9 | K55: 16340 | L55: 24689 | M55: 16008 | N55: 57400 | P55: 654.98 | Q55: 49662.4 | R55: 41177.5 | S55: 41954 | T55: 41177.9 | U55: 41425 | V55: 41178.2 | W55: 49141.1 | X55: 41177.5 | Y55: 50166.3 | Z55: 654.98 | AA55: 52355.5 | AB55: 41316.9 | AC55: 42512.8 | AD55: 41316.9 | AE55: 41453 | AF55: 41316.9 | AG55: 50887.3 | AH55: 41316.9 | AI55: 52219.3 | AK55: 489.98 | AL55: 20974.9 | AM55: 20671.3 | AN55: 20671.3 | AO55: 20693.4 | AP55: 21075.7 | AQ55: 20671.3 | AR55: 21097.8 | AS55: 489.98 | AT55: 15876.1 | AU55: 15349.7 | AV55: 15350.1 | AW55: 15349.7 | AX55: 15626.5 | AY55: 15349.7 | AZ55: 15626.8 | BB55: 22098.39 | BC55: 0.07522 | BD55: 0.0753 | BE55: 0.03589 | BF55: 0.03417 | BK55: -5 | BL55: 1.05517 | BM55: 0.00553 | BN55: -5 | BO55: 1.14179 | BP55: 0.05535 | BQ55: -5 | BR55: 1.05882 | BS55: 0.0365 | BT55: -5 | BU55: 1.05882 | BV55: 0.09068 | BX55: 1.59534 | BY55: 0.97215 | BZ55: 0.34053 | CA55: 1.16593 | CB55: 1.83892 | CD55: -50.49615 | CE55: 0 | CF55: 0 | CG55: -43.46758 | CH55: 0.0033 | CI55: -0.00331 | CJ55: -43.43723 | CK55: 2.50E-04 | CL55: -2.70E-04
A56: 530.38 | B56: 58600.1 | C56: 48539.4 | D56: 24741.3 | E56: 14567.8 | F56: 14399.5 | G56: 59049.5 | H56: 530.38 | I56: 51145.9 | J56: 41898.5 | K56: 16165.6 | L56: 25464.7 | M56: 15914.7 | N56: 51699.4 | P56: 654.88 | Q56: 50683 | R56: 41113.7 | S56: 42072.2 | T56: 41114.1 | U56: 41321 | V56: 41114.4 | W56: 49536.3 | X56: 41113.7 | Y56: 50703.2 | Z56: 654.88 | AA56: 52660.9 | AB56: 41245.9 | AC56: 42725.4 | AD56: 41245.9 | AE56: 41357.7 | AF56: 41245.9 | AG56: 51069.9 | AH56: 41245.9 | AI56: 52661.2 | AK56: 489.88 | AL56: 20872.9 | AM56: 20673.1 | AN56: 20673.1 | AO56: 20698.1 | AP56: 21088.4 | AQ56: 20673.1 | AR56: 21113.4 | AS56: 489.88 | AT56: 16028.6 | AU56: 15348 | AV56: 15348.5 | AW56: 15348 | AX56: 15650.7 | AY56: 15348 | AZ56: 15651.2 | BB56: 22098.874 | BC56: 0.08123 | BD56: 0.07895 | BE56: 0.03761 | BF56: 0.0357 | BK56: -5 | BL56: 1.07586 | BM56: 0.00605 | BN56: -5 | BO56: 1.16418 | BP56: 0.05371 | BQ56: -5 | BR56: 1.07959 | BS56: 0.03635 | BT56: -5 | BU56: 1.07959 | BV56: 0.09115 | BX56: 1.62602 | BY56: 1.08489 | BZ56: 0.31997 | CA56: 1.2614 | CB56: 1.68896 | CD56: -50.43515 | CE56: 0 | CF56: 0 | CG56: -43.40958 | CH56: 0.00119 | CI56: -0.00122 | CJ56: -43.38423 | CK56: 0.00299 | CL56: -0.00124
A57: 530.28 | B57: 53869.4 | C57: 42617.9 | D57: 26083.8 | E57: 14427.6 | F57: 14301.6 | G57: 54526 | H57: 530.28 | I57: 46522.1 | J57: 36390.6 | K57: 16022.1 | L57: 26142.8 | M57: 15834 | N57: 46887.6 | P57: 654.78 | Q57: 50625.8 | R57: 41045.5 | S57: 42219.8 | T57: 41045.8 | U57: 41218.2 | V57: 41046.2 | W57: 49887.4 | X57: 41045.5 | Y57: 51235.6 | Z57: 654.78 | AA57: 53029 | AB57: 41171.1 | AC57: 42984.8 | AD57: 41171.1 | AE57: 41262.5 | AF57: 41171.1 | AG57: 51176.1 | AH57: 41171.1 | AI57: 53081.3 | AK57: 489.78 | AL57: 21111.2 | AM57: 20674.9 | AN57: 20674.9 | AO57: 20703.1 | AP57: 21100.2 | AQ57: 20674.9 | AR57: 21128.4 | AS57: 489.78 | AT57: 15539.6 | AU57: 15346 | AV57: 15346.7 | AW57: 15346 | AX57: 15676.2 | AY57: 15346 | AZ57: 15676.9 | BB57: 22099.357 | BC57: 0.08655 | BD57: 0.08259 | BE57: 0.03932 | BF57: 0.03723 | BK57: -5 | BL57: 1.09655 | BM57: 0.00658 | BN57: -5 | BO57: 1.18657 | BP57: 0.05178 | BQ57: -5 | BR57: 1.10035 | BS57: 0.03609 | BT57: -5 | BU57: 1.10035 | BV57: 0.09103 | BX57: 1.6567 | BY57: 1.173 | BZ57: 0.28091 | CA57: 1.35962 | CB57: 1.51346 | CD57: -50.37315 | CE57: 0 | CF57: 0 | CG57: -43.35258 | CH57: 4.40E-04 | CI57: -4.40E-04 | CJ57: -43.33123 | CK57: 0.00542 | CL57: -8.50E-04
A58: 530.18 | B58: 50459.6 | C58: 37411.8 | D58: 27380.1 | E58: 14306.8 | F58: 14213.3 | G58: 50672.2 | H58: 530.18 | I58: 43044.7 | J58: 31803.3 | K58: 15903.6 | L58: 26676.8 | M58: 15763.7 | N58: 42856.3 | P58: 654.68 | Q58: 51530.4 | R58: 40973 | S58: 42401.1 | T58: 40973.4 | U58: 41116.3 | V58: 40973.8 | W58: 50184.9 | X58: 40973 | Y58: 51757.4 | Z58: 654.68 | AA58: 53565.8 | AB58: 41092.4 | AC58: 43295.2 | AD58: 41092.4 | AE58: 41166.9 | AF58: 41092.4 | AG58: 51201 | AH58: 41092.4 | AI58: 53478.3 | AK58: 489.68 | AL58: 21414.6 | AM58: 20676.6 | AN58: 20676.6 | AO58: 20708.4 | AP58: 21111 | AQ58: 20676.6 | AR58: 21142.8 | AS58: 489.68 | AT58: 15737.2 | AU58: 15344 | AV58: 15344.9 | AW58: 15344 | AX58: 15703.3 | AY58: 15344 | AZ58: 15704.2 | BB58: 22099.841 | BC58: 0.09021 | BD58: 0.08624 | BE58: 0.04105 | BF58: 0.03876 | BK58: -5 | BL58: 1.11724 | BM58: 0.0071 | BN58: -5 | BO58: 1.20896 | BP58: 0.04961 | BQ58: -5 | BR58: 1.12111 | BS58: 0.03573 | BT58: -5 | BU58: 1.12111 | BV58: 0.09034 | BX58: 1.68738 | BY58: 1.22145 | BZ58: 0.22972 | CA58: 1.46014 | CB58: 1.32048 | CD58: -50.31115 | CE58: 0 | CF58: 0 | CG58: -43.29558 | CH58: 8.00E-04 | CI58: -8.10E-04 | CJ58: -43.27723 | CK58: 0.0018 | CL58: -8.00E-05
A59: 530.08 | B59: 47148.6 | C59: 32913.5 | D59: 28555.8 | E59: 14202.4 | F59: 14133.5 | G59: 47404.7 | H59: 530.08 | I59: 39399.8 | J59: 28049.6 | K59: 15805.4 | L59: 27026.4 | M59: 15702.2 | N59: 39477 | P59: 654.58 | Q59: 51939.3 | R59: 40895.9 | S59: 42619.3 | T59: 40896.3 | U59: 41014.2 | V59: 40896.6 | W59: 50419.5 | X59: 40895.9 | Y59: 52262.3 | Z59: 654.58 | AA59: 54412.3 | AB59: 41009.7 | AC59: 43659.9 | AD59: 41009.7 | AE59: 41070 | AF59: 41009.7 | AG59: 51141.4 | AH59: 41009.7 | AI59: 53852 | AK59: 489.58 | AL59: 21019 | AM59: 20678.4 | AN59: 20678.4 | AO59: 20714.2 | AP59: 21120.6 | AQ59: 20678.4 | AR59: 21156.3 | AS59: 489.58 | AT59: 15716.2 | AU59: 15342.1 | AV59: 15343.3 | AW59: 15342.1 | AX59: 15732 | AY59: 15342.1 | AZ59: 15733.1 | BB59: 22100.325 | BC59: 0.09725 | BD59: 0.08989 | BE59: 0.04277 | BF59: 0.04029 | BK59: -5 | BL59: 1.13793 | BM59: 0.00759 | BN59: -5 | BO59: 1.23134 | BP59: 0.04727 | BQ59: -5 | BR59: 1.14187 | BS59: 0.03528 | BT59: -5 | BU59: 1.14187 | BV59: 0.08909 | BX59: 1.71806 | BY59: 1.22729 | BZ59: 0.18176 | CA59: 1.5602 | CB59: 1.11862 | CD59: -50.25015 | CE59: 0 | CF59: 0 | CG59: -43.23858 | CH59: 7.70E-04 | CI59: -7.60E-04 | CJ59: -43.22423 | CK59: 0.00188 | CL59: 0
A60: 529.98 | B60: 44284 | C60: 29087.9 | D60: 29533.5 | E60: 14110.9 | F60: 14060.5 | G60: 44611.3 | H60: 529.98 | I60: 37064.6 | J60: 25028.3 | K60: 15723.2 | L60: 27162.6 | M60: 15647.7 | N60: 36618.6 | P60: 654.48 | Q60: 52847.1 | R60: 40814.7 | S60: 42878.5 | T60: 40815.1 | U60: 40911.9 | V60: 40815.5 | W60: 50583.9 | X60: 40814.7 | Y60: 52746 | Z60: 654.48 | AA60: 55299.8 | AB60: 40923.6 | AC60: 44081 | AD60: 40923.7 | AE60: 40972.3 | AF60: 40923.6 | AG60: 50997.6 | AH60: 40923.6 | AI60: 54203.7 | AK60: 489.48 | AL60: 21745.1 | AM60: 20680.2 | AN60: 20680.2 | AO60: 20720.4 | AP60: 21129 | AQ60: 20680.2 | AR60: 21169.1 | AS60: 489.48 | AT60: 15752.2 | AU60: 15340.3 | AV60: 15341.8 | AW60: 15340.3 | AX60: 15762.2 | AY60: 15340.3 | AZ60: 15763.7 | BB60: 22100.809 | BC60: 0.10406 | BD60: 0.09353 | BE60: 0.04449 | BF60: 0.04183 | BK60: -5 | BL60: 1.15862 | BM60: 0.00807 | BN60: -5 | BO60: 1.25373 | BP60: 0.0448 | BQ60: -5 | BR60: 1.16263 | BS60: 0.03475 | BT60: -5 | BU60: 1.16263 | BV60: 0.08731 | BX60: 1.74874 | BY60: 1.19488 | BZ60: 0.16875 | CA60: 1.65504 | CB60: 0.91654 | CD60: -50.18815 | CE60: 0 | CF60: 0 | CG60: -43.18058 | CH60: 9.70E-04 | CI60: -9.70E-04 | CJ60: -43.17023 | CK60: 0.00239 | CL60: -3.00E-05
A61: 529.88 | B61: 42481.1 | C61: 25882.3 | D61: 30242.9 | E61: 14029.8 | F61: 13993.3 | G61: 42168.5 | H61: 529.88 | I61: 34877.6 | J61: 22634.4 | K61: 15654.3 | L61: 27071.4 | M61: 15599.5 | N61: 34161.1 | P61: 654.38 | Q61: 53326.1 | R61: 40728.2 | S61: 43180 | T61: 40728.6 | U61: 40807.7 | V61: 40729 | W61: 50670.3 | X61: 40728.2 | Y61: 53202.7 | Z61: 654.38 | AA61: 55021.5 | AB61: 40834.6 | AC61: 44558.7 | AD61: 40834.6 | AE61: 40873.7 | AF61: 40834.6 | AG61: 50771.4 | AH61: 40834.6 | AI61: 54534.6 | AK61: 489.38 | AL61: 21202.2 | AM61: 20682 | AN61: 20682 | AO61: 20727 | AP61: 21136.1 | AQ61: 20682 | AR61: 21181.1 | AS61: 489.38 | AT61: 15942.2 | AU61: 15338.3 | AV61: 15340.2 | AW61: 15338.3 | AX61: 15793.6 | AY61: 15338.3 | AZ61: 15795.5 | BB61: 22101.413 | BC61: 0.1137 | BD61: 0.09946 | BE61: 0.04663 | BF61: 0.04374 | BK61: -5 | BL61: 1.17931 | BM61: 0.0085 | BN61: -5 | BO61: 1.27612 | BP61: 0.04226 | BQ61: -5 | BR61: 1.18339 | BS61: 0.03416 | BT61: -5 | BU61: 1.18339 | BV61: 0.08504 | BX61: 1.77942 | BY61: 1.13255 | BZ61: 0.21311 | CA61: 1.73863 | CB61: 0.72246 | CD61: -50.12615 | CE61: 0 | CF61: 0 | CG61: -43.12358 | CH61: 8.30E-04 | CI61: -8.30E-04 | CJ61: -43.11723 | CK61: 5.00E-04 | CL61: -5.70E-04
A62: 529.78 | B62: 40303.2 | C62: 23233.4 | D62: 30628.7 | E62: 13957.5 | F62: 13931.2 | G62: 39957.1 | H62: 529.78 | I62: 32170.6 | J62: 20765.7 | K62: 15596.4 | L62: 26755.2 | M62: 15556.9 | N62: 32003.5 | P62: 654.28 | Q62: 54251.1 | R62: 40637.3 | S62: 43526.5 | T62: 40637.7 | U62: 40702 | V62: 40638 | W62: 50675 | X62: 40637.3 | Y62: 53630 | Z62: 654.28 | AA62: 55118.3 | AB62: 40743.1 | AC62: 45090.3 | AD62: 40743.1 | AE62: 40774.4 | AF62: 40743.1 | AG62: 50467.2 | AH62: 40743.1 | AI62: 54845.6 | AK62: 489.28 | AL62: 21148.4 | AM62: 20683.8 | AN62: 20683.8 | AO62: 20734.1 | AP62: 21141.9 | AQ62: 20683.8 | AR62: 21192.3 | AS62: 489.28 | AT62: 15729.7 | AU62: 15336.1 | AV62: 15338.5 | AW62: 15336.1 | AX62: 15826.1 | AY62: 15336.1 | AZ62: 15828.5 | BB62: 22101.897 | BC62: 0.12215 | BD62: 0.1142 | BE62: 0.04835 | BF62: 0.04527 | BK62: -5 | BL62: 1.2 | BM62: 0.0089 | BN62: -5 | BO62: 1.29851 | BP62: 0.03969 | BQ62: -5 | BR62: 1.20415 | BS62: 0.0335 | BT62: -5 | BU62: 1.20415 | BV62: 0.08234 | BX62: 1.8101 | BY62: 1.04975 | BZ62: 0.29363 | CA62: 1.8045 | CB62: 0.54399 | CD62: -50.06515 | CE62: 0 | CF62: 0 | CG62: -43.06658 | CH62: 7.20E-04 | CI62: -7.10E-04 | CJ62: -43.06423 | CK62: 1.00E-05 | CL62: -0.00404
A63: 529.68 | B63: 38418.8 | C63: 21072.9 | D63: 30657.3 | E63: 13892.4 | F63: 13873.7 | G63: 37875.3 | H63: 529.68 | I63: 30323.1 | J63: 19327.6 | K63: 15547.3 | L63: 26231.8 | M63: 15519.1 | N63: 30068.5 | P63: 654.18 | Q63: 54469.9 | R63: 40541.5 | S63: 43917.8 | T63: 40541.9 | U63: 40593.9 | V63: 40542.2 | W63: 50595 | X63: 40541.5 | Y63: 54024.9 | Z63: 654.18 | AA63: 55118.2 | AB63: 40650.1 | AC63: 45670.7 | AD63: 40650.1 | AE63: 40675 | AF63: 40650.1 | AG63: 50091.3 | AH63: 40650.1 | AI63: 55136.8 | AK63: 489.18 | AL63: 20972.3 | AM63: 20685.5 | AN63: 20685.5 | AO63: 20741.8 | AP63: 21146.3 | AQ63: 20685.5 | AR63: 21202.6 | AS63: 489.18 | AT63: 15994 | AU63: 15333.8 | AV63: 15336.9 | AW63: 15333.8 | AX63: 15859.6 | AY63: 15333.8 | AZ63: 15862.7 | BB63: 22102.381 | BC63: 0.1303 | BD63: 0.12894 | BE63: 0.05007 | BF63: 0.0468 | BK63: -5 | BL63: 1.22069 | BM63: 0.00925 | BN63: -5 | BO63: 1.3209 | BP63: 0.03712 | BQ63: -5 | BR63: 1.22491 | BS63: 0.03277 | BT63: -5 | BU63: 1.22491 | BV63: 0.07925 | BX63: 1.84078 | BY63: 0.95454 | BZ63: 0.38595 | CA63: 1.84657 | CB63: 0.38832 | CD63: -50.00315 | CE63: 0 | CF63: 0 | CG63: -43.00958 | CH63: 0.00166 | CI63: -0.00163 | CJ63: -43.01023 | CK63: 0 | CL63: -0.00705
A64: 529.58 | B64: 36324.7 | C64: 19332.7 | D64: 30322.1 | E64: 13833.8 | F64: 13820.5 | G64: 35847.6 | H64: 529.58 | I64: 28400.5 | J64: 18236 | K64: 15505.8 | L64: 25532.9 | M64: 15485.8 | N64: 28303.1 | P64: 654.08 | Q64: 55153.2 | R64: 40442.4 | S64: 44354.4 | T64: 40442.8 | U64: 40484.7 | V64: 40443.2 | W64: 50431.4 | X64: 40442.4 | Y64: 54386.8 | Z64: 654.08 | AA64: 55262.4 | AB64: 40556.4 | AC64: 46290.9 | AD64: 40556.4 | AE64: 40576.1 | AF64: 40556.4 | AG64: 49652 | AH64: 40556.4 | AI64: 55406.2 | AK64: 489.08 | AL64: 21560.4 | AM64: 20687.3 | AN64: 20687.3 | AO64: 20750 | AP64: 21149.4 | AQ64: 20687.3 | AR64: 21212.1 | AS64: 489.08 | AT64: 15814 | AU64: 15331.4 | AV64: 15335.3 | AW64: 15331.4 | AX64: 15894 | AY64: 15331.4 | AZ64: 15897.9 | BB64: 22102.865 | BC64: 0.13907 | BD64: 0.14367 | BE64: 0.05179 | BF64: 0.04834 | BK64: -5 | BL64: 1.24138 | BM64: 0.00956 | BN64: -5 | BO64: 1.34328 | BP64: 0.03458 | BQ64: -5 | BR64: 1.24568 | BS64: 0.03198 | BT64: -5 | BU64: 1.24568 | BV64: 0.07584 | BX64: 1.87146 | BY64: 0.85152 | BZ64: 0.47803 | CA64: 1.85983 | CB64: 0.26346 | CD64: -49.94115 | CE64: 0 | CF64: 0 | CG64: -42.95158 | CH64: 0.00156 | CI64: -0.00158 | CJ64: -42.95723 | CK64: 0 | CL64: -0.0024
A65: 529.48 | B65: 34035.6 | C65: 17947.9 | D65: 29644.1 | E65: 13781.1 | F65: 13771.8 | G65: 33829.6 | H65: 529.48 | I65: 26498.6 | J65: 17418.5 | K65: 15471 | L65: 24699.6 | M65: 15457 | N65: 26675.1 | P65: 653.98 | Q65: 54881.4 | R65: 40339.8 | S65: 44832.8 | T65: 40340.2 | U65: 40373.7 | V65: 40340.5 | W65: 50185.7 | X65: 40339.8 | Y65: 54713.8 | Z65: 653.98 | AA65: 55457.5 | AB65: 40461.3 | AC65: 46936.6 | AD65: 40461.3 | AE65: 40476.8 | AF65: 40461.3 | AG65: 49157.1 | AH65: 40461.3 | AI65: 55648 | AK65: 488.98 | AL65: 20962.1 | AM65: 20689.1 | AN65: 20689.1 | AO65: 20758.9 | AP65: 21151 | AQ65: 20689.1 | AR65: 21220.8 | AS65: 488.98 | AT65: 15873.4 | AU65: 15329.1 | AV65: 15334.1 | AW65: 15329.1 | AX65: 15929.3 | AY65: 15329.1 | AZ65: 15934.2 | BB65: 22103.349 | BC65: 0.14731 | BD65: 0.15841 | BE65: 0.05351 | BF65: 0.04987 | BK65: -5 | BL65: 1.26207 | BM65: 0.00981 | BN65: -5 | BO65: 1.36567 | BP65: 0.03211 | BQ65: -5 | BR65: 1.26644 | BS65: 0.03111 | BT65: -5 | BU65: 1.26644 | BV65: 0.07217 | BX65: 1.90214 | BY65: 0.74105 | BZ65: 0.56469 | CA65: 1.84081 | CB65: 0.18112 | CD65: -49.87915 | CE65: 0 | CF65: 0 | CG65: -42.89458 | CH65: 2.60E-04 | CI65: -2.70E-04 | CJ65: -42.90423 | CK65: 1.00E-05 | CL65: -1.40E-04
A66: 529.38 | B66: 31880.7 | C66: 16858.3 | D66: 28668.8 | E66: 13734 | F66: 13727.5 | G66: 31806.1 | H66: 529.38 | I66: 24908.7 | J66: 16813.8 | K66: 15441.7 | L66: 23776.9 | M66: 15431.9 | N66: 25168.6 | P66: 653.88 | Q66: 55515.1 | R66: 40234.5 | S66: 45348 | T66: 40234.9 | U66: 40261.6 | V66: 40235.2 | W66: 49862.7 | X66: 40234.5 | Y66: 55004.5 | Z66: 653.88 | AA66: 55716.2 | AB66: 40364.8 | AC66: 47590.4 | AD66: 40364.8 | AE66: 40377 | AF66: 40364.8 | AG66: 48616.2 | AH66: 40364.8 | AI66: 55854 | AK66: 488.88 | AL66: 21214.9 | AM66: 20690.9 | AN66: 20690.9 | AO66: 20768.4 | AP66: 21151.2 | AQ66: 20690.9 | AR66: 21228.7 | AS66: 488.88 | AT66: 15787.6 | AU66: 15326.8 | AV66: 15333.1 | AW66: 15326.8 | AX66: 15965 | AY66: 15326.8 | AZ66: 15971.3 | BB66: 22103.833 | BC66: 0.15765 | BD66: 0.17315 | BE66: 0.05523 | BF66: 0.05241 | BK66: -5 | BL66: 1.28276 | BM66: 0.01002 | BN66: -5 | BO66: 1.38806 | BP66: 0.02972 | BQ66: -5 | BR66: 1.2872 | BS66: 0.03016 | BT66: -5 | BU66: 1.2872 | BV66: 0.06831 | BX66: 1.93282 | BY66: 0.62024 | BZ66: 0.6451 | CA66: 1.7879 | CB66: 0.15328 | CD66: -49.81815 | CE66: 0 | CF66: 0 | CG66: -42.83758 | CH66: 2.60E-04 | CI66: -2.70E-04 | CJ66: -42.85023 | CK66: 3.60E-04 | CL66: 0
A67: 529.28 | B67: 29988.3 | C67: 16010.8 | D67: 27459.8 | E67: 13692.4 | F67: 13687.8 | G67: 29787.3 | H67: 529.28 | I67: 23599.1 | J67: 16371.9 | K67: 15416.9 | L67: 22810.1 | M67: 15410.1 | N67: 23778.6 | P67: 653.78 | Q67: 55773.3 | R67: 40127 | S67: 45892.6 | T67: 40127.4 | U67: 40148.6 | V67: 40127.8 | W67: 49468.6 | X67: 40127 | Y67: 55256.9 | Z67: 653.78 | AA67: 55798.6 | AB67: 40267 | AC67: 48231.3 | AD67: 40267 | AE67: 40276.5 | AF67: 40267 | AG67: 48039.3 | AH67: 40267 | AI67: 56013.1 | AK67: 488.78 | AL67: 21303.9 | AM67: 20692.7 | AN67: 20692.7 | AO67: 20778.5 | AP67: 21150 | AQ67: 20692.7 | AR67: 21235.9 | AS67: 488.78 | AT67: 15792.3 | AU67: 15324.3 | AV67: 15332.3 | AW67: 15324.3 | AX67: 16001.1 | AY67: 15324.3 | AZ67: 16009 | BB67: 22104.317 | BC67: 0.16661 | BD67: 0.18789 | BE67: 0.06087 | BF67: 0.05759 | BK67: -5 | BL67: 1.30345 | BM67: 0.01017 | BN67: -5 | BO67: 1.41045 | BP67: 0.02742 | BQ67: -5 | BR67: 1.30796 | BS67: 0.02914 | BT67: -5 | BU67: 1.30796 | BV67: 0.06433 | BX67: 1.9635 | BY67: 0.48528 | BZ67: 0.72207 | CA67: 1.70149 | CB67: 0.16604 | CD67: -49.75615 | CE67: 0 | CF67: 0 | CG67: -42.78058 | CH67: 7.10E-04 | CI67: -7.10E-04 | CJ67: -42.79723 | CK67: 0.00266 | CL67: 0
A68: 529.18 | B68: 27510.9 | C68: 15358.7 | D68: 26090.8 | E68: 13655.9 | F68: 13652.9 | G68: 27799.8 | H68: 529.18 | I68: 22676.7 | J68: 16052.8 | K68: 15396.3 | L68: 21840.9 | M68: 15391.6 | N68: 22506.8 | P68: 653.68 | Q68: 55611.6 | R68: 40018.5 | S68: 46456.6 | T68: 40018.8 | U68: 40035.6 | V68: 40019.2 | W68: 49011.9 | X68: 40018.5 | Y68: 55468.2 | Z68: 653.68 | AA68: 55730.3 | AB68: 40168.8 | AC68: 48836.6 | AD68: 40168.8 | AE68: 40176.2 | AF68: 40168.8 | AG68: 47437.1 | AH68: 40168.8 | AI68: 56112.3 | AK68: 488.68 | AL68: 21117 | AM68: 20694.4 | AN68: 20694.4 | AO68: 20789.4 | AP68: 21147.5 | AQ68: 20694.4 | AR68: 21242.4 | AS68: 488.68 | AT68: 16105.3 | AU68: 15321.6 | AV68: 15331.6 | AW68: 15321.6 | AX68: 16036.9 | AY68: 15321.6 | AZ68: 16046.8 | BB68: 22104.922 | BC68: 0.18038 | BD68: 0.21093 | BE68: 0.0683 | BF68: 0.06407 | BK68: -5 | BL68: 1.32414 | BM68: 0.01028 | BN68: -5 | BO68: 1.43284 | BP68: 0.02523 | BQ68: -5 | BR68: 1.32872 | BS68: 0.02805 | BT68: -5 | BU68: 1.32872 | BV68: 0.06028 | BX68: 1.99418 | BY68: 0.33473 | BZ68: 0.80144 | CA68: 1.5839 | CB68: 0.18821 | CD68: -49.69415 | CE68: 0 | CF68: 0 | CG68: -42.72258 | CH68: 9.20E-04 | CI68: -9.10E-04 | CJ68: -42.74323 | CK68: 0.00371 | CL68: 0
A69: 529.08 | B69: 25447.9 | C69: 14862.1 | D69: 24636.9 | E69: 13624.2 | F69: 13622.1 | G69: 25878.9 | H69: 529.08 | I69: 20932 | J69: 15825 | K69: 15379.1 | L69: 20904.1 | M69: 15375.9 | N69: 21356.4 | P69: 653.58 | Q69: 55457.6 | R69: 39908.1 | S69: 47025.7 | T69: 39908.5 | U69: 39921.6 | V69: 39908.9 | W69: 48500.5 | X69: 39908.1 | Y69: 55632.7 | Z69: 653.58 | AA69: 55191.2 | AB69: 40070.2 | AC69: 49380.9 | AD69: 40070.2 | AE69: 40075.9 | AF69: 40070.2 | AG69: 46819.6 | AH69: 40070.2 | AI69: 56136.1 | AK69: 488.58 | AL69: 21210.4 | AM69: 20696.2 | AN69: 20696.2 | AO69: 20801.1 | AP69: 21143.6 | AQ69: 20696.2 | AR69: 21248.5 | AS69: 488.58 | AT69: 16146.3 | AU69: 15318.7 | AV69: 15331.2 | AW69: 15318.7 | AX69: 16072.3 | AY69: 15318.7 | AZ69: 16084.8 | BB69: 22105.406 | BC69: 0.19269 | BD69: 0.23487 | BE69: 0.07425 | BF69: 0.06926 | BK69: -5 | BL69: 1.34483 | BM69: 0.01033 | BN69: -5 | BO69: 1.45522 | BP69: 0.02316 | BQ69: -5 | BR69: 1.34948 | BS69: 0.02688 | BT69: -5 | BU69: 1.34948 | BV69: 0.05623 | BX69: 2.02485 | BY69: 0.17685 | BZ69: 0.89064 | CA69: 1.43923 | CB69: 0.20368 | CD69: -49.63315 | CE69: 0 | CF69: 0 | CG69: -42.66558 | CH69: 6.00E-04 | CI69: -6.10E-04 | CJ69: -42.69023 | CK69: 0.00317 | CL69: 0
A70: 528.98 | B70: 24029.8 | C70: 14487.7 | D70: 23167.8 | E70: 13597 | F70: 13595.6 | G70: 24061.3 | H70: 528.98 | I70: 20089.3 | J70: 15664.1 | K70: 15364.9 | L70: 20026.4 | M70: 15362.7 | N70: 20329.9 | P70: 653.48 | Q70: 55728.6 | R70: 39797.4 | S70: 47585.5 | T70: 39797.7 | U70: 39807.9 | V70: 39798.1 | W70: 47945.1 | X70: 39797.4 | Y70: 55744.9 | Z70: 653.48 | AA70: 55302.8 | AB70: 39972.3 | AC70: 49840.1 | AD70: 39972.3 | AE70: 39976.7 | AF70: 39972.3 | AG70: 46197 | AH70: 39972.3 | AI70: 56069.2 | AK70: 488.48 | AL70: 21370.9 | AM70: 20698 | AN70: 20698 | AO70: 20813.6 | AP70: 21138.5 | AQ70: 20698 | AR70: 21254 | AS70: 488.48 | AT70: 16073.1 | AU70: 15315.5 | AV70: 15331 | AW70: 15315.5 | AX70: 16106.9 | AY70: 15315.5 | AZ70: 16122.4 | BB70: 22105.89 | BC70: 0.20701 | BD70: 0.25958 | BE70: 0.0802 | BF70: 0.07444 | BK70: -5 | BL70: 1.36552 | BM70: 0.01033 | BN70: -5 | BO70: 1.47761 | BP70: 0.02121 | BQ70: -5 | BR70: 1.37024 | BS70: 0.02564 | BT70: -5 | BU70: 1.37024 | BV70: 0.05222 | BX70: 2.05553 | BY70: 0.1064 | BZ70: 0.99649 | CA70: 1.27309 | CB70: 0.20809 | CD70: -49.57115 | CE70: 0 | CF70: 0 | CG70: -42.60858 | CH70: 0.00108 | CI70: -0.00108 | CJ70: -42.63723 | CK70: 0.00257 | CL70: 0
A71: 528.88 | B71: 22074.5 | C71: 14208.4 | D71: 21742.8 | E71: 13574.1 | F71: 13573.1 | G71: 22379.1 | H71: 528.88 | I71: 19276.6 | J71: 15551.5 | K71: 15353.2 | L71: 19226.4 | M71: 15351.7 | N71: 19427.6 | P71: 653.38 | Q71: 55305.8 | R71: 39686.4 | S71: 48118.1 | T71: 39686.8 | U71: 39694.7 | V71: 39687.2 | W71: 47356 | X71: 39686.4 | Y71: 55797.1 | Z71: 653.38 | AA71: 54627.1 | AB71: 39876.3 | AC71: 50191.3 | AD71: 39876.3 | AE71: 39879.7 | AF71: 39876.3 | AG71: 45578.7 | AH71: 39876.3 | AI71: 55897.2 | AK71: 488.38 | AL71: 21244.2 | AM71: 20699.8 | AN71: 20699.8 | AO71: 20826.9 | AP71: 21132.1 | AQ71: 20699.8 | AR71: 21259.2 | AS71: 488.38 | AT71: 16198.6 | AU71: 15311.9 | AV71: 15331.2 | AW71: 15311.9 | AX71: 16140.4 | AY71: 15311.9 | AZ71: 16159.6 | BB71: 22106.374 | BC71: 0.22045 | BD71: 0.28919 | BE71: 0.08615 | BF71: 0.07962 | BK71: -5 | BL71: 1.38621 | BM71: 0.01029 | BN71: -5 | BO71: 1.5 | BP71: 0.01938 | BQ71: -5 | BR71: 1.391 | BS71: 0.02434 | BT71: -5 | BU71: 1.391 | BV71: 0.04831 | BX71: 2.08621 | BY71: 0.25195 | BZ71: 1.12277 | CA71: 1.09212 | CB71: 0.20118 | CD71: -49.50915 | CE71: 0 | CF71: 0 | CG71: -42.55158 | CH71: 0.00204 | CI71: -0.00204 | CJ71: -42.58323 | CK71: 5.00E-04 | CL71: -2.00E-05
A72: 528.78 | B72: 20678.1 | C72: 14002 | D72: 20407.3 | E72: 13554.7 | F72: 13554.1 | G72: 20855.8 | H72: 528.78 | I72: 18554 | J72: 15473.7 | K72: 15343.9 | L72: 18515 | M72: 15342.9 | N72: 18646.7 | P72: 653.28 | Q72: 55388 | R72: 39575.2 | S72: 48604.4 | T72: 39575.6 | U72: 39581.6 | V72: 39576 | W72: 46742.9 | X72: 39575.2 | Y72: 55779.6 | Z72: 653.28 | AA72: 53820.8 | AB72: 39782.4 | AC72: 50414.8 | AD72: 39782.4 | AE72: 39785 | AF72: 39782.4 | AG72: 44972.5 | AH72: 39782.4 | AI72: 55607.5 | AK72: 488.28 | AL72: 21065.1 | AM72: 20701.6 | AN72: 20701.6 | AO72: 20841 | AP72: 21124.7 | AQ72: 20701.6 | AR72: 21264.2 | AS72: 488.28 | AT72: 16115 | AU72: 15308.5 | AV72: 15332.2 | AW72: 15308.5 | AX72: 16172.7 | AY72: 15308.5 | AZ72: 16196.5 | BB72: 22106.858 | BC72: 0.23554 | BD72: 0.31856 | BE72: 0.09209 | BF72: 0.0848 | BK72: -5 | BL72: 1.4069 | BM72: 0.01019 | BN72: -5 | BO72: 1.52239 | BP72: 0.01768 | BQ72: -5 | BR72: 1.41176 | BS72: 0.023 | BT72: -5 | BU72: 1.41176 | BV72: 0.04453 | BX72: 2.11689 | BY72: 0.42963 | BZ72: 1.26892 | CA72: 0.90364 | CB72: 0.18379 | CD72: -49.44815 | CE72: 0 | CF72: 0 | CG72: -42.49358 | CH72: 0.00117 | CI72: -0.00116 | CJ72: -42.53023 | CK72: 2.00E-05 | CL72: -5.40E-04
A73: 528.68 | B73: 19354.2 | C73: 13850.9 | D73: 19192.6 | E73: 13538.7 | F73: 13538.3 | G73: 19505.6 | H73: 528.68 | I73: 17766.8 | J73: 15420.3 | K73: 15336.3 | L73: 17895.9 | M73: 15335.6 | N73: 17981.2 | P73: 653.18 | Q73: 55291.7 | R73: 39464.3 | S73: 49025.4 | T73: 39464.7 | U73: 39469.3 | V73: 39465.1 | W73: 46116.2 | X73: 39464.3 | Y73: 55683.3 | Z73: 653.18 | AA73: 53518 | AB73: 39690.4 | AC73: 50495.3 | AD73: 39690.4 | AE73: 39692.4 | AF73: 39690.4 | AG73: 44384.3 | AH73: 39690.4 | AI73: 55191.2 | AK73: 488.18 | AL73: 21615.7 | AM73: 20703.3 | AN73: 20703.3 | AO73: 20856.1 | AP73: 21116.2 | AQ73: 20703.3 | AR73: 21269 | AS73: 488.18 | AT73: 16011.2 | AU73: 15305.1 | AV73: 15334.3 | AW73: 15305.1 | AX73: 16203.7 | AY73: 15305.1 | AZ73: 16232.9 | BB73: 22107.342 | BC73: 0.24768 | BD73: 0.34587 | BE73: 0.09882 | BF73: 0.09207 | BK73: -5 | BL73: 1.42759 | BM73: 0.01006 | BN73: -5 | BO73: 1.54478 | BP73: 0.0161 | BQ73: -5 | BR73: 1.43253 | BS73: 0.02162 | BT73: -5 | BU73: 1.43253 | BV73: 0.04091 | BX73: 2.14757 | BY73: 0.59439 | BZ73: 1.43017 | CA73: 0.71511 | CB73: 0.1569 | CD73: -49.38615 | CE73: 0 | CF73: 0 | CG73: -42.43658 | CH73: 6.20E-04 | CI73: -6.10E-04 | CJ73: -42.47723 | CK73: 0 | CL73: -0.00249
A74: 528.58 | B74: 17924.9 | C74: 13741.4 | D74: 18117 | E74: 13525.7 | F74: 13525.4 | G74: 18333.2 | H74: 528.58 | I74: 17388.2 | J74: 15383.9 | K74: 15330.2 | L74: 17368 | M74: 15329.7 | N74: 17422.5 | P74: 653.08 | Q74: 54673.1 | R74: 39354.3 | S74: 49363 | T74: 39354.7 | U74: 39358.1 | V74: 39355 | W74: 45485.2 | X74: 39354.3 | Y74: 55498.9 | Z74: 653.08 | AA74: 53173.3 | AB74: 39601.1 | AC74: 50425.3 | AD74: 39601.2 | AE74: 39602.6 | AF74: 39601.1 | AG74: 43820.1 | AH74: 39601.1 | AI74: 54645.8 | AK74: 488.08 | AL74: 21413.7 | AM74: 20705.1 | AN74: 20705.1 | AO74: 20872.1 | AP74: 21106.9 | AQ74: 20705.1 | AR74: 21273.8 | AS74: 488.08 | AT74: 16019.7 | AU74: 15301.6 | AV74: 15337.5 | AW74: 15301.6 | AX74: 16232.7 | AY74: 15301.6 | AZ74: 16268.5 | BB74: 22107.826 | BC74: 0.26475 | BD74: 0.37166 | BE74: 0.10676 | BF74: 0.10084 | BK74: -5 | BL74: 1.44828 | BM74: 0.00988 | BN74: -5 | BO74: 1.56716 | BP74: 0.01464 | BQ74: -5 | BR74: 1.45329 | BS74: 0.02021 | BT74: -5 | BU74: 1.45329 | BV74: 0.03748 | BX74: 2.17825 | BY74: 0.7298 | BZ74: 1.59865 | CA74: 0.53369 | CB74: 0.12158 | CD74: -49.32415 | CE74: 0 | CF74: 0 | CG74: -42.37958 | CH74: 3.70E-04 | CI74: -3.60E-04 | CJ74: -42.42323 | CK74: 0 | CL74: -0.00273
A75: 528.48 | B75: 17204 | C75: 13662.6 | D75: 17186.7 | E75: 13515.1 | F75: 13514.9 | G75: 17334.6 | H75: 528.48 | I75: 16894.2 | J75: 15359.2 | K75: 15325.3 | L75: 16926.2 | M75: 15325 | N75: 16960.6 | P75: 652.98 | Q75: 54607 | R75: 39245.4 | S75: 49600.8 | T75: 39245.8 | U75: 39248.3 | V75: 39246.1 | W75: 44858.6 | X75: 39245.4 | Y75: 55218.2 | Z75: 652.98 | AA75: 52629.5 | AB75: 39514.5 | AC75: 50203.9 | AD75: 39514.5 | AE75: 39515.6 | AF75: 39514.5 | AG75: 43283.7 | AH75: 39514.5 | AI75: 53974.3 | AK75: 487.98 | AL75: 21112.5 | AM75: 20706.9 | AN75: 20706.9 | AO75: 20889.1 | AP75: 21096.7 | AQ75: 20706.9 | AR75: 21278.8 | AS75: 487.98 | AT75: 16187.4 | AU75: 15298.2 | AV75: 15342 | AW75: 15298.2 | AX75: 16259.5 | AY75: 15298.2 | AZ75: 16303.3 | BB75: 22108.31 | BC75: 0.28046 | BD75: 0.3982 | BE75: 0.11753 | BF75: 0.11022 | BK75: -5 | BL75: 1.46897 | BM75: 0.00966 | BN75: -5 | BO75: 1.58955 | BP75: 0.0133 | BQ75: -5 | BR75: 1.47405 | BS75: 0.01881 | BT75: -5 | BU75: 1.47405 | BV75: 0.03424 | BX75: 2.20893 | BY75: 0.82364 | BZ75: 1.76478 | CA75: 0.3658 | CB75: 0.07964 | CD75: -49.26315 | CE75: 0 | CF75: 0 | CG75: -42.32258 | CH75: 2.00E-04 | CI75: -2.00E-04 | CJ75: -42.37023 | CK75: 0 | CL75: -0.00255
A76: 528.38 | B76: 16595 | C76: 13606.5 | D76: 16399.6 | E76: 13506.6 | F76: 13506.5 | G76: 16499.7 | H76: 528.38 | I76: 16685.7 | J76: 15342.3 | K76: 15321.2 | L76: 16562.6 | M76: 15321 | N76: 16584.1 | P76: 652.88 | Q76: 53893 | R76: 39138 | S76: 49725.8 | T76: 39138.4 | U76: 39140.3 | V76: 39138.8 | W76: 44244 | X76: 39138 | Y76: 54835.2 | Z76: 652.88 | AA76: 52011 | AB76: 39431.3 | AC76: 49838.3 | AD76: 39431.4 | AE76: 39432.1 | AF76: 39431.3 | AG76: 42779.1 | AH76: 39431.3 | AI76: 53187 | AK76: 487.88 | AL76: 21079.4 | AM76: 20708.7 | AN76: 20708.7 | AO76: 20907 | AP76: 21085.7 | AQ76: 20708.7 | AR76: 21284 | AS76: 487.88 | AT76: 16053.4 | AU76: 15294.9 | AV76: 15348.2 | AW76: 15294.9 | AX76: 16283.9 | AY76: 15294.9 | AZ76: 16337.2 | BB76: 22108.915 | BC76: 0.30094 | BD76: 0.42555 | BE76: 0.13097 | BF76: 0.12241 | BK76: -5 | BL76: 1.48966 | BM76: 0.00941 | BN76: -5 | BO76: 1.61194 | BP76: 0.01206 | BQ76: -5 | BR76: 1.49481 | BS76: 0.0174 | BT76: -5 | BU76: 1.49481 | BV76: 0.03122 | BX76: 2.23961 | BY76: 0.86719 | BZ76: 1.91845 | CA76: 0.21674 | CB76: 0.03961 | CD76: -49.20115 | CE76: 0 | CF76: 0 | CG76: -42.26458 | CH76: 4.30E-04 | CI76: -3.70E-04 | CJ76: -42.31623 | CK76: 1.00E-05 | CL76: -0.00366
A77: 528.28 | B77: 15838.3 | C77: 13566.7 | D77: 15746.6 | E77: 13499.8 | F77: 13499.7 | G77: 15813.7 | H77: 528.28 | I77: 16851.2 | J77: 15330.8 | K77: 15317.8 | L77: 16268.2 | M77: 15317.7 | N77: 16281.5 | P77: 652.78 | Q77: 53737.2 | R77: 39033.1 | S77: 49729.6 | T77: 39033.5 | U77: 39034.8 | V77: 39033.9 | W77: 43648.3 | X77: 39033.1 | Y77: 54347.7 | Z77: 652.78 | AA77: 50541.5 | AB77: 39351.4 | AC77: 49341.8 | AD77: 39351.5 | AE77: 39352 | AF77: 39351.4 | AG77: 42307.8 | AH77: 39351.4 | AI77: 52298.9 | AK77: 487.78 | AL77: 21279.1 | AM77: 20710.5 | AN77: 20710.5 | AO77: 20925.9 | AP77: 21074.2 | AQ77: 20710.5 | AR77: 21289.6 | AS77: 487.78 | AT77: 16035.3 | AU77: 15291.5 | AV77: 15356 | AW77: 15291.5 | AX77: 16305.4 | AY77: 15291.5 | AZ77: 16370 | BB77: 22109.4 | BC77: 0.31694 | BD77: 0.44901 | BE77: 0.14158 | BF77: 0.1326 | BK77: -5 | BL77: 1.51035 | BM77: 0.00913 | BN77: -5 | BO77: 1.63433 | BP77: 0.01094 | BQ77: -5 | BR77: 1.51557 | BS77: 0.01602 | BT77: -5 | BU77: 1.51557 | BV77: 0.02841 | BX77: 2.27029 | BY77: 0.85605 | BZ77: 2.05002 | CA77: 0.09048 | CB77: 0.05177 | CD77: -49.13915 | CE77: 0 | CF77: 0 | CG77: -42.20758 | CH77: 0.00286 | CI77: -0.0026 | CJ77: -42.26323 | CK77: 4.40E-04 | CL77: -0.0048
A78: 528.18 | B78: 15633 | C78: 13538.6 | D78: 15215 | E78: 13494.2 | F78: 13494.1 | G78: 15259.5 | H78: 528.18 | I78: 16317.4 | J78: 15322.7 | K78: 15314.8 | L78: 16033.5 | M78: 15314.7 | N78: 16041.5 | P78: 652.68 | Q78: 52923.4 | R78: 38931.3 | S78: 49608.3 | T78: 38931.7 | U78: 38932.6 | V78: 38932.1 | W78: 43077.3 | X78: 38931.3 | Y78: 53756.7 | Z78: 652.68 | AA78: 50376.5 | AB78: 39276.1 | AC78: 48734.8 | AD78: 39276.3 | AE78: 39276.6 | AF78: 39276.1 | AG78: 41872.3 | AH78: 39276.1 | AI78: 51331.5 | AK78: 487.68 | AL78: 21755.4 | AM78: 20712.2 | AN78: 20712.2 | AO78: 20945.7 | AP78: 21062.1 | AQ78: 20712.2 | AR78: 21295.6 | AS78: 487.68 | AT78: 16080.1 | AU78: 15288 | AV78: 15365.9 | AW78: 15288 | AX78: 16323.7 | AY78: 15288 | AZ78: 16401.6 | BB78: 22109.884 | BC78: 0.33601 | BD78: 0.4675 | BE78: 0.15395 | BF78: 0.14213 | BK78: -5 | BL78: 1.53103 | BM78: 0.00883 | BN78: -5 | BO78: 1.65672 | BP78: 0.00991 | BQ78: -5 | BR78: 1.53633 | BS78: 0.01467 | BT78: -5 | BU78: 1.53633 | BV78: 0.02581 | BX78: 2.30097 | BY78: 0.79136 | BZ78: 2.15099 | CA78: 0.01077 | CB78: 0.10711 | CD78: -49.07815 | CE78: 0 | CF78: 0 | CG78: -42.15058 | CH78: 0.0035 | CI78: -0.00362 | CJ78: -42.21023 | CK78: 0.00303 | CL78: -0.00336
A79: 528.08 | B79: 15040.1 | C79: 13518.7 | D79: 14789.5 | E79: 13489.6 | F79: 13489.5 | G79: 14818.7 | H79: 528.08 | I79: 16411 | J79: 15316.9 | K79: 15312.2 | L79: 15848.9 | M79: 15312.1 | N79: 15853.8 | P79: 652.58 | Q79: 51815.1 | R79: 38833.6 | S79: 49363.7 | T79: 38834 | U79: 38834.6 | V79: 38834.3 | W79: 42535.7 | X79: 38833.6 | Y79: 53068 | Z79: 652.58 | AA79: 48973.1 | AB79: 39206 | AC79: 48040.7 | AD79: 39206.2 | AE79: 39206.4 | AF79: 39206 | AG79: 41473.3 | AH79: 39206 | AI79: 50308.6 | AK79: 487.58 | AL79: 21483.8 | AM79: 20714 | AN79: 20714 | AO79: 20966.5 | AP79: 21049.7 | AQ79: 20714 | AR79: 21302.2 | AS79: 487.58 | AT79: 16125.1 | AU79: 15284.3 | AV79: 15378 | AW79: 15284.3 | AX79: 16338.3 | AY79: 15284.3 | AZ79: 16432 | BB79: 22110.368 | BC79: 0.35581 | BD79: 0.48523 | BE79: 0.16555 | BF79: 0.15148 | BK79: -5 | BL79: 1.55172 | BM79: 0.00851 | BN79: -5 | BO79: 1.6791 | BP79: 0.00897 | BQ79: -5 | BR79: 1.55709 | BS79: 0.01337 | BT79: -5 | BU79: 1.55709 | BV79: 0.02343 | BX79: 2.33165 | BY79: 0.68157 | BZ79: 2.21456 | CA79: 0.08565 | CB79: 0.16996 | CD79: -49.01615 | CE79: 0 | CF79: 0 | CG79: -42.09358 | CH79: 0.00136 | CI79: -0.00144 | CJ79: -42.15623 | CK79: 0.00315 | CL79: -7.00E-04
A80: 527.98 | B80: 14885.1 | C80: 13504.8 | D80: 14454.7 | E80: 13485.8 | F80: 13485.8 | G80: 14473.7 | H80: 527.98 | I80: 16179.3 | J80: 15312.6 | K80: 15309.8 | L80: 15705.8 | M80: 15309.8 | N80: 15708.7 | P80: 652.48 | Q80: 51073.2 | R80: 38739.7 | S80: 49001.6 | T80: 38740.1 | U80: 38740.4 | V80: 38740.4 | W80: 42026.1 | X80: 38739.7 | Y80: 52289.9 | Z80: 652.48 | AA80: 48020.8 | AB80: 39140.8 | AC80: 47284.8 | AD80: 39141.1 | AE80: 39141.1 | AF80: 39140.9 | AG80: 41110.3 | AH80: 39140.8 | AI80: 49254.8 | AK80: 487.48 | AL80: 21182.1 | AM80: 20715.8 | AN80: 20715.8 | AO80: 20988.3 | AP80: 21037 | AQ80: 20715.8 | AR80: 21309.5 | AS80: 487.48 | AT80: 16384.4 | AU80: 15280.1 | AV80: 15392.3 | AW80: 15280.1 | AX80: 16348.9 | AY80: 15280.1 | AZ80: 16461 | BB80: 22110.852 | BC80: 0.37448 | BD80: 0.50338 | BE80: 0.17791 | BF80: 0.16156 | BK80: -5 | BL80: 1.57241 | BM80: 0.00817 | BN80: -5 | BO80: 1.70149 | BP80: 0.00812 | BQ80: -5 | BR80: 1.57786 | BS80: 0.01212 | BT80: -5 | BU80: 1.57786 | BV80: 0.02125 | BX80: 2.36233 | BY80: 0.54711 | BZ80: 2.23598 | CA80: 0.1353 | CB80: 0.2338 | CD80: -48.95415 | CE80: 0 | CF80: 0 | CG80: -42.03558 | CH80: 0.00151 | CI80: -0.00148 | CJ80: -42.10323 | CK80: 0.00177 | CL80: -2.90E-04
A81: 527.88 | B81: 14638.3 | C81: 13494.9 | D81: 14195.4 | E81: 13482.7 | F81: 13482.7 | G81: 14207.6 | H81: 527.88 | I81: 16145.1 | J81: 15309.6 | K81: 15307.9 | L81: 15596.7 | M81: 15307.9 | N81: 15598.3 | P81: 652.38 | Q81: 50543.7 | R81: 38651.1 | S81: 48534.1 | T81: 38651.5 | U81: 38651.6 | V81: 38651.8 | W81: 41551.8 | X81: 38651.1 | Y81: 51436.5 | Z81: 652.38 | AA81: 47546.3 | AB81: 39080.4 | AC81: 46492.1 | AD81: 39080.8 | AE81: 39080.6 | AF81: 39080.4 | AG81: 40782.1 | AH81: 39080.4 | AI81: 48194.4 | AK81: 487.38 | AL81: 21245.7 | AM81: 20717.6 | AN81: 20717.6 | AO81: 21011.1 | AP81: 21024.1 | AQ81: 20717.6 | AR81: 21317.5 | AS81: 487.38 | AT81: 16664.4 | AU81: 15275.6 | AV81: 15409.3 | AW81: 15275.6 | AX81: 16355.3 | AY81: 15275.6 | AZ81: 16489 | BB81: 22111.336 | BC81: 0.39481 | BD81: 0.52057 | BE81: 0.19226 | BF81: 0.17071 | BK81: -5 | BL81: 1.5931 | BM81: 0.00781 | BN81: -5 | BO81: 1.72388 | BP81: 0.00734 | BQ81: -5 | BR81: 1.59862 | BS81: 0.01093 | BT81: -5 | BU81: 1.59862 | BV81: 0.01926 | BX81: 2.39301 | BY81: 0.43349 | BZ81: 2.21279 | CA81: 0.16164 | CB81: 0.29538 | CD81: -48.89315 | CE81: 0 | CF81: 0 | CG81: -41.97858 | CH81: 8.60E-04 | CI81: -0.00102 | CJ81: -42.05023 | CK81: 0.00384 | CL81: -0.00186
A82: 527.78 | B82: 14420.7 | C82: 13487.9 | D82: 13997.5 | E82: 13480.1 | F82: 13480.1 | G82: 14005.3 | H82: 527.78 | I82: 15636.1 | J82: 15307.2 | K82: 15306.2 | L82: 15514.3 | M82: 15306.2 | N82: 15515.2 | P82: 652.28 | Q82: 49276.5 | R82: 38567.7 | S82: 47975.7 | T82: 38568.2 | U82: 38568.1 | V82: 38568.5 | W82: 41113.7 | X82: 38567.7 | Y82: 50523.3 | Z82: 652.28 | AA82: 46313.6 | AB82: 39025.6 | AC82: 45687.8 | AD82: 39026.1 | AE82: 39025.7 | AF82: 39025.6 | AG82: 40488.4 | AH82: 39025.6 | AI82: 47151.3 | AK82: 487.28 | AL82: 21436.7 | AM82: 20719.4 | AN82: 20719.4 | AO82: 21034.7 | AP82: 21011.1 | AQ82: 20719.4 | AR82: 21326.3 | AS82: 487.28 | AT82: 16454 | AU82: 15270.6 | AV82: 15429.4 | AW82: 15270.6 | AX82: 16357.3 | AY82: 15270.6 | AZ82: 16516.1 | BB82: 22111.821 | BC82: 0.41743 | BD82: 0.53819 | BE82: 0.20487 | BF82: 0.17997 | BK82: -5 | BL82: 1.61379 | BM82: 0.00745 | BN82: -5 | BO82: 1.74627 | BP82: 0.00664 | BQ82: -5 | BR82: 1.61938 | BS82: 0.0098 | BT82: -5 | BU82: 1.61938 | BV82: 0.01745 | BX82: 2.42369 | BY82: 0.42103 | BZ82: 2.14492 | CA82: 0.16777 | CB82: 0.35211 | CD82: -48.83115 | CE82: 0 | CF82: 0 | CG82: -41.92158 | CH82: 4.60E-04 | CI82: -5.00E-04 | CJ82: -41.99623 | CK82: 0.00217 | CL82: -0.00252
A83: 527.68 | B83: 14272.5 | C83: 13482.8 | D83: 13848.7 | E83: 13477.9 | F83: 13477.9 | G83: 13853.6 | H83: 527.68 | I83: 15924.9 | J83: 15305.4 | K83: 15304.8 | L83: 15452.9 | M83: 15304.8 | N83: 15453.5 | P83: 652.18 | Q83: 48528 | R83: 38489 | S83: 47343.1 | T83: 38489.5 | U83: 38489.3 | V83: 38489.7 | W83: 40711.3 | X83: 38489 | Y83: 49567.1 | Z83: 652.18 | AA83: 45411 | AB83: 38975.6 | AC83: 44892.9 | AD83: 38976.3 | AE83: 38975.7 | AF83: 38975.6 | AG83: 40226.6 | AH83: 38975.6 | AI83: 46144.7 | AK83: 487.18 | AL83: 21442.1 | AM83: 20721.1 | AN83: 20721.1 | AO83: 21059.1 | AP83: 20998 | AQ83: 20721.1 | AR83: 21336 | AS83: 487.18 | AT83: 16551.7 | AU83: 15265.5 | AV83: 15453.3 | AW83: 15265.5 | AX83: 16355.2 | AY83: 15265.5 | AZ83: 16543 | BB83: 22112.305 | BC83: 0.43753 | BD83: 0.55517 | BE83: 0.22135 | BF83: 0.19081 | BK83: -5 | BL83: 1.63448 | BM83: 0.00709 | BN83: -5 | BO83: 1.76866 | BP83: 0.00601 | BQ83: -5 | BR83: 1.64014 | BS83: 0.00875 | BT83: -5 | BU83: 1.64014 | BV83: 0.01581 | BX83: 2.45437 | BY83: 0.53927 | BZ83: 2.03462 | CA83: 0.1576 | CB83: 0.40197 | CD83: -48.76915 | CE83: 0 | CF83: 0 | CG83: -41.86458 | CH83: 2.70E-04 | CI83: -2.60E-04 | CJ83: -41.94323 | CK83: 2.50E-04 | CL83: -5.80E-04
A84: 527.58 | B84: 14257.5 | C84: 13479.1 | D84: 13738.4 | E84: 13476 | F84: 13476 | G84: 13741.4 | H84: 527.58 | I84: 15827.7 | J84: 15304 | K84: 15303.7 | L84: 15407.9 | M84: 15303.7 | N84: 15408.2 | P84: 652.08 | Q84: 47948.9 | R84: 38415.5 | S84: 46656.2 | T84: 38416.1 | U84: 38415.7 | V84: 38416.2 | W84: 40345 | X84: 38415.5 | Y84: 48587.3 | Z84: 652.08 | AA84: 44709.6 | AB84: 38929.8 | AC84: 44125.1 | AD84: 38930.8 | AE84: 38929.9 | AF84: 38929.8 | AG84: 39994.3 | AH84: 38929.8 | AI84: 45190.6 | AK84: 487.08 | AL84: 21149.3 | AM84: 20722.9 | AN84: 20722.9 | AO84: 21084.4 | AP84: 20985.1 | AQ84: 20722.9 | AR84: 21346.5 | AS84: 487.08 | AT84: 16283.9 | AU84: 15260.2 | AV84: 15481.4 | AW84: 15260.2 | AX84: 16348.8 | AY84: 15260.2 | AZ84: 16570 | BB84: 22112.91 | BC84: 0.4676 | BD84: 0.58077 | BE84: 0.24088 | BF84: 0.20288 | BK84: -5 | BL84: 1.65517 | BM84: 0.00672 | BN84: -5 | BO84: 1.79105 | BP84: 0.00543 | BQ84: -5 | BR84: 1.6609 | BS84: 0.00778 | BT84: -5 | BU84: 1.6609 | BV84: 0.01432 | BX84: 2.48505 | BY84: 0.72252 | BZ84: 1.88627 | CA84: 0.13543 | CB84: 0.44358 | CD84: -48.70815 | CE84: 0 | CF84: 0 | CG84: -41.80658 | CH84: 3.00E-05 | CI84: -3.00E-05 | CJ84: -41.88923 | CK84: 3.00E-05 | CL84: -2.00E-05
P85: 651.98 | Q85: 46700.8 | R85: 38347 | S85: 45934 | T85: 38347.7 | U85: 38347.2 | V85: 38347.8 | W85: 40013.5 | X85: 38347 | Y85: 47602 | Z85: 651.98 | AA85: 44288.8 | AB85: 38888.7 | AC85: 43399.4 | AD85: 38890 | AE85: 38888.8 | AF85: 38888.7 | AG85: 39790 | AH85: 38888.7 | AI85: 44302 | AK85: 486.98 | AL85: 21172.9 | AM85: 20724.7 | AN85: 20724.7 | AO85: 21110.3 | AP85: 20972.4 | AQ85: 20724.7 | AR85: 21358 | AS85: 486.98 | AT85: 16626.9 | AU85: 15255 | AV85: 15514.4 | AW85: 15255 | AX85: 16338.4 | AY85: 15255 | AZ85: 16597.9 | BB85: 22113.395 | BC85: 0.49048 | BD85: 0.60187 | BE85: 0.26171 | BF85: 0.21552 | BK85: -5 | BL85: 1.67586 | BM85: 0.00636 | BN85: -5 | BO85: 1.81343 | BP85: 0.00491 | BQ85: -5 | BR85: 1.68166 | BS85: 0.00687 | BT85: -5 | BU85: 1.68166 | BV85: 0.01298 | BX85: 2.51573 | BY85: 0.9149 | BZ85: 1.70605 | CA85: 0.10563 | CB85: 0.47629 | CD85: -48.64615 | CE85: 0 | CF85: 0 | CG85: -41.74958 | CH85: 0 | CI85: 0 | CJ85: -41.83623 | CK85: 3.90E-04 | CL85: -2.00E-05
P86: 651.88 | Q86: 46375.8 | R86: 38282.9 | S86: 45194.7 | T86: 38283.6 | U86: 38283 | V86: 38283.6 | W86: 39714.6 | X86: 38282.9 | Y86: 46628.2 | Z86: 651.88 | AA86: 43407.6 | AB86: 38851.5 | AC86: 42725.8 | AD86: 38853.3 | AE86: 38851.5 | AF86: 38851.5 | AG86: 39610.8 | AH86: 38851.5 | AI86: 43486.9 | AK86: 486.88 | AL86: 21832.8 | AM86: 20726.5 | AN86: 20726.5 | AO86: 21136.9 | AP86: 20959.8 | AQ86: 20726.5 | AR86: 21370.2 | AS86: 486.88 | AT86: 16557.6 | AU86: 15249.5 | AV86: 15552.6 | AW86: 15249.5 | AX86: 16323.8 | AY86: 15249.5 | AZ86: 16626.9 | BB86: 22113.879 | BC86: 0.5165 | BD86: 0.62877 | BE86: 0.28064 | BF86: 0.22762 | BK86: -5 | BL86: 1.69655 | BM86: 0.006 | BN86: -5 | BO86: 1.83582 | BP86: 0.00444 | BQ86: -5 | BR86: 1.70242 | BS86: 0.00605 | BT86: -5 | BU86: 1.70242 | BV86: 0.01176 | BX86: 2.54641 | BY86: 1.08863 | BZ86: 1.5016 | CA86: 0.0724 | CB86: 0.50028 | CD86: -48.58415 | CE86: 0 | CF86: 0 | CG86: -41.69258 | CH86: 0 | CI86: 0 | CJ86: -41.78323 | CK86: 0.0014 | CL86: -7.40E-04
P87: 651.78 | Q87: 45724 | R87: 38223.8 | S87: 44456.7 | T87: 38224.7 | U87: 38223.9 | V87: 38224.5 | W87: 39447.7 | X87: 38223.8 | Y87: 45682.4 | Z87: 651.78 | AA87: 42902.8 | AB87: 38816.9 | AC87: 42110.1 | AD87: 38819.3 | AE87: 38816.9 | AF87: 38816.9 | AG87: 39453.6 | AH87: 38816.9 | AI87: 42749.1 | AK87: 486.78 | AL87: 21336.7 | AM87: 20728.3 | AN87: 20728.3 | AO87: 21164 | AP87: 20947.6 | AQ87: 20728.3 | AR87: 21383.3 | AS87: 486.78 | AT87: 16718.9 | AU87: 15243.9 | AV87: 15596.4 | AW87: 15243.9 | AX87: 16305.2 | AY87: 15243.9 | AZ87: 16657.7 | BB87: 22114.364 | BC87: 0.54233 | BD87: 0.65703 | BE87: 0.30335 | BF87: 0.2413 | BK87: -5 | BL87: 1.71724 | BM87: 0.00565 | BN87: -5 | BO87: 1.85821 | BP87: 0.00401 | BQ87: -5 | BR87: 1.72318 | BS87: 0.0053 | BT87: -5 | BU87: 1.72318 | BV87: 0.01066 | BX87: 2.57709 | BY87: 1.2305 | BZ87: 1.28146 | CA87: 0.04012 | CB87: 0.51644 | CD87: -48.52315 | CE87: 0 | CF87: 0 | CG87: -41.63558 | CH87: 0 | CI87: 0 | CJ87: -41.72923 | CK87: 0.0014 | CL87: -0.00374
P88: 651.68 | Q88: 44330.1 | R88: 38169.6 | S88: 43734.9 | T88: 38170.8 | U88: 38169.7 | V88: 38170.4 | W88: 39210.6 | X88: 38169.6 | Y88: 44777.8 | Z88: 651.68 | AA88: 42990 | AB88: 38785.1 | AC88: 41556.1 | AD88: 38788.3 | AE88: 38785.2 | AF88: 38785.1 | AG88: 39316.4 | AH88: 38785.1 | AI88: 42090.6 | AK88: 486.68 | AL88: 21091 | AM88: 20730 | AN88: 20730 | AO88: 21191.5 | AP88: 20935.7 | AQ88: 20730 | AR88: 21397.2 | AS88: 486.68 | AT88: 16656.8 | AU88: 15237.5 | AV88: 15645.8 | AW88: 15237.5 | AX88: 16282.1 | AY88: 15237.5 | AZ88: 16690.4 | BB88: 22114.848 | BC88: 0.57156 | BD88: 0.68673 | BE88: 0.33357 | BF88: 0.25907 | BK88: -5 | BL88: 1.73793 | BM88: 0.0053 | BN88: -5 | BO88: 1.8806 | BP88: 0.00363 | BQ88: -5 | BR88: 1.74395 | BS88: 0.00462 | BT88: -5 | BU88: 1.74395 | BV88: 0.00967 | BX88: 2.60777 | BY88: 1.33629 | BZ88: 1.05468 | CA88: 0.02069 | CB88: 0.52635 | CD88: -48.46115 | CE88: 0 | CF88: 0 | CG88: -41.57758 | CH88: 0 | CI88: 0 | CJ88: -41.67623 | CK88: 7.20E-04 | CL88: -0.00327
P89: 651.58 | Q89: 43961.6 | R89: 38119.5 | S89: 43041.3 | T89: 38120.9 | U89: 38119.5 | V89: 38120.2 | W89: 39000.5 | X89: 38119.5 | Y89: 43924.5 | Z89: 651.58 | AA89: 42212.5 | AB89: 38755.6 | AC89: 41064.4 | AD89: 38759.7 | AE89: 38755.6 | AF89: 38755.6 | AG89: 39196.7 | AH89: 38755.6 | AI89: 41509.7 | AK89: 486.58 | AL89: 21625.2 | AM89: 20731.8 | AN89: 20731.8 | AO89: 21219.3 | AP89: 20924.2 | AQ89: 20731.8 | AR89: 21411.7 | AS89: 486.58 | AT89: 17201.6 | AU89: 15230.9 | AV89: 15701.7 | AW89: 15230.9 | AX89: 16255.3 | AY89: 15230.9 | AZ89: 16726.1 | BB89: 22115.332 | BC89: 0.60222 | BD89: 0.72116 | BE89: 0.36166 | BF89: 0.27748 | BK89: -5 | BL89: 1.75862 | BM89: 0.00497 | BN89: -5 | BO89: 1.90298 | BP89: 0.00328 | BQ89: -5 | BR89: 1.76471 | BS89: 0.00401 | BT89: -5 | BU89: 1.76471 | BV89: 0.00877 | BX89: 2.63845 | BY89: 1.40906 | BZ89: 0.83032 | CA89: 0.03675 | CB89: 0.53211 | CD89: -48.39915 | CE89: 0 | CF89: 0 | CG89: -41.52058 | CH89: 0 | CI89: 0 | CJ89: -41.62323 | CK89: 1.40E-04 | CL89: -6.40E-04
P90: 651.48 | Q90: 43369.9 | R90: 38073.9 | S90: 42386.4 | T90: 38075.7 | U90: 38073.9 | V90: 38074.7 | W90: 38815.8 | X90: 38073.9 | Y90: 43130.9 | Z90: 651.48 | AA90: 42303.7 | AB90: 38727.7 | AC90: 40633.2 | AD90: 38733.3 | AE90: 38727.8 | AF90: 38727.7 | AG90: 39092.4 | AH90: 38727.7 | AI90: 41003.3 | AK90: 486.48 | AL90: 21890.7 | AM90: 20733.6 | AN90: 20733.6 | AO90: 21247.3 | AP90: 20913.2 | AQ90: 20733.6 | AR90: 21426.9 | AS90: 486.48 | AT90: 16960.9 | AU90: 15223.9 | AV90: 15764.4 | AW90: 15223.9 | AX90: 16224.8 | AY90: 15223.9 | AZ90: 16765.3 | BB90: 22115.817 | BC90: 0.63157 | BD90: 0.7571 | BE90: 0.40306 | BF90: 0.30335 | BK90: -5 | BL90: 1.77931 | BM90: 0.00464 | BN90: -5 | BO90: 1.92537 | BP90: 0.00297 | BQ90: -5 | BR90: 1.78547 | BS90: 0.00346 | BT90: -5 | BU90: 1.78547 | BV90: 0.00795 | BX90: 2.66913 | BY90: 1.45784 | BZ90: 0.61719 | CA90: 0.06267 | CB90: 0.53624 | CD90: -48.33815 | CE90: 0 | CF90: 0 | CG90: -41.46358 | CH90: 0 | CI90: 0 | CJ90: -41.56923 | CK90: 0 | CL90: -5.00E-05
P91: 651.38 | Q91: 42676.3 | R91: 38032.4 | S91: 41777.2 | T91: 38034.6 | U91: 38032.4 | V91: 38033.1 | W91: 38654.2 | X91: 38032.4 | Y91: 42402 | Z91: 651.38 | AA91: 41749.9 | AB91: 38701.5 | AC91: 40259.4 | AD91: 38708.8 | AE91: 38701.5 | AF91: 38701.5 | AG91: 39001.5 | AH91: 38701.5 | AI91: 40566.6 | AK91: 486.38 | AL91: 21691.2 | AM91: 20735.4 | AN91: 20735.4 | AO91: 21275.2 | AP91: 20902.6 | AQ91: 20735.4 | AR91: 21442.5 | AS91: 486.38 | AT91: 16944.5 | AU91: 15216.6 | AV91: 15834.4 | AW91: 15216.6 | AX91: 16191.1 | AY91: 15216.6 | AZ91: 16808.9 | BB91: 22116.422 | BC91: 0.66993 | BD91: 0.79938 | BE91: 0.4555 | BF91: 0.33896 | BK91: -5 | BL91: 1.8 | BM91: 0.00433 | BN91: -5 | BO91: 1.94776 | BP91: 0.00269 | BQ91: -5 | BR91: 1.80623 | BS91: 0.00298 | BT91: -5 | BU91: 1.80623 | BV91: 0.00721 | BX91: 2.69981 | BY91: 1.4956 | BZ91: 0.42405 | CA91: 0.08884 | CB91: 0.54159 | CD91: -48.27615 | CE91: 0 | CF91: 0 | CG91: -41.40658 | CH91: 0 | CI91: 0 | CJ91: -41.51623 | CK91: 0 | CL91: 0
P92: 651.28 | Q92: 42407.6 | R92: 37993.6 | S92: 41217.1 | T92: 37996.5 | U92: 37993.6 | V92: 37994.3 | W92: 38512.2 | X92: 37993.6 | Y92: 41739.4 | Z92: 651.28 | AA92: 41441.7 | AB92: 38677.3 | AC92: 39939.4 | AD92: 38686.7 | AE92: 38677.3 | AF92: 38677.3 | AG92: 38922.9 | AH92: 38677.3 | AI92: 40194.4 | AK92: 486.28 | AL92: 21024.4 | AM92: 20737.2 | AN92: 20737.2 | AO92: 21303 | AP92: 20892.6 | AQ92: 20737.2 | AR92: 21458.4 | AS92: 486.28 | AT92: 17014.1 | AU92: 15208.9 | AV92: 15911.7 | AW92: 15208.9 | AX92: 16154.2 | AY92: 15208.9 | AZ92: 16857.1 | BB92: 22116.907 | BC92: 0.69917 | BD92: 0.83232 | BE92: 0.50833 | BF92: 0.37495 | BK92: -5 | BL92: 1.82069 | BM92: 0.00403 | BN92: -5 | BO92: 1.97015 | BP92: 0.00243 | BQ92: -5 | BR92: 1.82699 | BS92: 0.00255 | BT92: -5 | BU92: 1.82699 | BV92: 0.00654 | BX92: 2.73049 | BY92: 1.53574 | BZ92: 0.26169 | CA92: 0.11503 | CB92: 0.55121 | CD92: -48.21415 | CE92: 0 | CF92: 0 | CG92: -41.34858 | CH92: 0 | CI92: 0 | CJ92: -41.46223 | CK92: 0 | CL92: 0
P93: 651.18 | Q93: 42042.6 | R93: 37958.4 | S93: 40709.7 | T93: 37962.1 | U93: 37958.4 | V93: 37959.1 | W93: 38388.9 | X93: 37958.4 | Y93: 41144.7 | Z93: 651.18 | AA93: 41178.4 | AB93: 38654.3 | AC93: 39667.7 | AD93: 38666.6 | AE93: 38654.3 | AF93: 38654.3 | AG93: 38854.5 | AH93: 38654.3 | AI93: 39880.1 | AK93: 486.18 | AL93: 21560.3 | AM93: 20739 | AN93: 20739 | AO93: 21330.5 | AP93: 20883 | AQ93: 20739 | AR93: 21474.5 | AS93: 486.18 | AT93: 17241.5 | AU93: 15201 | AV93: 15997 | AW93: 15201 | AX93: 16114.8 | AY93: 15201 | AZ93: 16910.8 | BB93: 22117.391 | BC93: 0.73294 | BD93: 0.86217 | BE93: 0.56492 | BF93: 0.41527 | BK93: -5 | BL93: 1.84138 | BM93: 0.00374 | BN93: -5 | BO93: 1.99254 | BP93: 0.0022 | BQ93: -5 | BR93: 1.84775 | BS93: 0.00218 | BT93: -5 | BU93: 1.84775 | BV93: 0.00593 | BX93: 2.76117 | BY93: 1.58765 | BZ93: 0.15338 | CA93: 0.1417 | CB93: 0.56818 | CD93: -48.15315 | CE93: 0 | CF93: 0 | CG93: -41.29158 | CH93: 0 | CI93: 0 | CJ93: -41.40923 | CK93: 0 | CL93: 0
P94: 651.08 | Q94: 41053.5 | R94: 37926.8 | S94: 40255.9 | T94: 37931.6 | U94: 37926.8 | V94: 37927.6 | W94: 38282.5 | X94: 37926.8 | Y94: 40617.1 | Z94: 651.08 | AA94: 41016.9 | AB94: 38633.4 | AC94: 39439.9 | AD94: 38649.4 | AE94: 38633.4 | AF94: 38633.4 | AG94: 38795.8 | AH94: 38633.4 | AI94: 39618.3 | AK94: 486.08 | AL94: 21280.7 | AM94: 20740.7 | AN94: 20740.7 | AO94: 21357.4 | AP94: 20874 | AQ94: 20740.7 | AR94: 21490.6 | AS94: 486.08 | AT94: 17311.2 | AU94: 15192.9 | AV94: 16090.1 | AW94: 15192.9 | AX94: 16073.2 | AY94: 15192.9 | AZ94: 16970.5 | BB94: 22117.876 | BC94: 0.76409 | BD94: 0.88322 | BE94: 0.6219 | BF94: 0.45832 | BK94: -5 | BL94: 1.86207 | BM94: 0.00347 | BN94: -5 | BO94: 2.01492 | BP94: 0.00199 | BQ94: -5 | BR94: 1.86851 | BS94: 0.00185 | BT94: -5 | BU94: 1.86851 | BV94: 0.00538 | BX94: 2.79184 | BY94: 1.6532 | BZ94: 0.14354 | CA94: 0.16874 | CB94: 0.59521 | CD94: -48.09115 | CE94: 0 | CF94: 0 | CG94: -41.23458 | CH94: 0 | CI94: 0 | CJ94: -41.35623 | CK94: 0 | CL94: 0
P95: 650.98 | Q95: 40374.9 | R95: 37897.3 | S95: 39853.1 | T95: 37903.5 | U95: 37897.3 | V95: 37898.1 | W95: 38189.8 | X95: 37897.3 | Y95: 40152.4 | Z95: 650.98 | AA95: 40413.7 | AB95: 38614.1 | AC95: 39250.4 | AD95: 38634.6 | AE95: 38614.1 | AF95: 38614.1 | AG95: 38745.2 | AH95: 38614.1 | AI95: 39402.1 | AK95: 485.98 | AL95: 21727.4 | AM95: 20742.5 | AN95: 20742.5 | AO95: 21383.5 | AP95: 20865.5 | AQ95: 20742.5 | AR95: 21506.6 | AS95: 485.98 | AT95: 17171.8 | AU95: 15184.4 | AV95: 16190.9 | AW95: 15184.4 | AX95: 16029.6 | AY95: 15184.4 | AZ95: 17036.1 | BB95: 22118.361 | BC95: 0.79515 | BD95: 0.90269 | BE95: 0.67873 | BF95: 0.50299 | BK95: -5 | BL95: 1.88276 | BM95: 0.0032 | BN95: -5 | BO95: 2.03731 | BP95: 0.0018 | BQ95: -5 | BR95: 1.88927 | BS95: 0.00156 | BT95: -5 | BU95: 1.88927 | BV95: 0.00488 | BX95: 2.82252 | BY95: 1.72614 | BZ95: 0.19568 | CA95: 0.19535 | CB95: 0.63413 | CD95: -48.02915 | CE95: 0 | CF95: 0 | CG95: -41.17758 | CH95: 0 | CI95: 0 | CJ95: -41.30223 | CK95: 0 | CL95: 0
P96: 650.88 | Q96: 40964.7 | R96: 37870.9 | S96: 39500.2 | T96: 37878.8 | U96: 37870.9 | V96: 37871.6 | W96: 38110.2 | X96: 37870.9 | Y96: 39748.2 | Z96: 650.88 | AA96: 40367.4 | AB96: 38595.9 | AC96: 39093.7 | AD96: 38622.3 | AE96: 38595.9 | AF96: 38595.9 | AG96: 38701.3 | AH96: 38595.9 | AI96: 39225.4 | AK96: 485.88 | AL96: 21256.1 | AM96: 20744.3 | AN96: 20744.3 | AO96: 21408.8 | AP96: 20857.6 | AQ96: 20744.3 | AR96: 21522.1 | AS96: 485.88 | AT96: 17369.2 | AU96: 15175.6 | AV96: 16299.1 | AW96: 15175.6 | AX96: 15984.3 | AY96: 15175.6 | AZ96: 17107.8 | BB96: 22118.845 | BC96: 0.8254 | BD96: 0.9208 | BE96: 0.72965 | BF96: 0.54879 | BK96: -5 | BL96: 1.90345 | BM96: 0.00295 | BN96: -5 | BO96: 2.0597 | BP96: 0.00163 | BQ96: -5 | BR96: 1.91003 | BS96: 0.00132 | BT96: -5 | BU96: 1.91003 | BV96: 0.00442 | BX96: 2.8532 | BY96: 1.79453 | BZ96: 0.24598 | CA96: 0.22024 | CB96: 0.68539 | CD96: -47.96815 | CE96: 0 | CF96: 0 | CG96: -41.11958 | CH96: 0 | CI96: 0 | CJ96: -41.24923 | CK96: 0 | CL96: 0
P97: 650.78 | Q97: 39923.5 | R97: 37847 | S97: 39194 | T97: 37857.2 | U97: 37847 | V97: 37847.8 | W97: 38042 | X97: 37847 | Y97: 39399.9 | Z97: 650.78 | AA97: 40327.3 | AB97: 38578.3 | AC97: 38964.3 | AD97: 38612 | AE97: 38578.3 | AF97: 38578.3 | AG97: 38662.6 | AH97: 38578.3 | AI97: 39082.4 | AK97: 485.78 | AL97: 21457.7 | AM97: 20746.1 | AN97: 20746.1 | AO97: 21433 | AP97: 20850.3 | AQ97: 20746.1 | AR97: 21537.2 | AS97: 485.78 | AT97: 17413.8 | AU97: 15166.8 | AV97: 16414.6 | AW97: 15166.8 | AX97: 15938 | AY97: 15166.8 | AZ97: 17185.8 | BB97: 22119.33 | BC97: 0.85912 | BD97: 0.93524 | BE97: 0.77408 | BF97: 0.5926 | BK97: -5 | BL97: 1.92414 | BM97: 0.00272 | BN97: -5 | BO97: 2.08209 | BP97: 0.00148 | BQ97: -5 | BR97: 1.9308 | BS97: 0.0011 | BT97: -5 | BU97: 1.9308 | BV97: 0.00401 | BX97: 2.88388 | BY97: 1.84457 | BZ97: 0.27809 | CA97: 0.24196 | CB97: 0.74783 | CD97: -47.90615 | CE97: 0 | CF97: 0 | CG97: -41.06258 | CH97: 0 | CI97: 0 | CJ97: -41.19623 | CK97: 0 | CL97: 0
P98: 650.68 | Q98: 39896.3 | R98: 37825 | S98: 38930.1 | T98: 37838.1 | U98: 37825 | V98: 37825.7 | W98: 37983.1 | X98: 37825 | Y98: 39102.1 | Z98: 650.68 | AA98: 40606 | AB98: 38561.4 | AC98: 38858.3 | AD98: 38604.2 | AE98: 38561.4 | AF98: 38561.4 | AG98: 38628.5 | AH98: 38561.4 | AI98: 38968.3 | AK98: 485.68 | AL98: 21385.7 | AM98: 20747.9 | AN98: 20747.9 | AO98: 21455.9 | AP98: 20843.4 | AQ98: 20747.9 | AR98: 21551.4 | AS98: 485.68 | AT98: 17183.5 | AU98: 15157.7 | AV98: 16536.5 | AW98: 15157.7 | AX98: 15890.7 | AY98: 15157.7 | AZ98: 17269.5 | BB98: 22119.814 | BC98: 0.88724 | BD98: 0.94837 | BE98: 0.80656 | BF98: 0.63032 | BK98: -5 | BL98: 1.94483 | BM98: 0.00249 | BN98: -5 | BO98: 2.10448 | BP98: 0.00134 | BQ98: -5 | BR98: 1.95156 | BS98: 9.22E-04 | BT98: -5 | BU98: 1.95156 | BV98: 0.00363 | BX98: 2.91456 | BY98: 1.86395 | BZ98: 0.29074 | CA98: 0.25927 | CB98: 0.81878 | CD98: -47.84415 | CE98: 0 | CF98: 0 | CG98: -41.00558 | CH98: 0 | CI98: 0 | CJ98: -41.14223 | CK98: 0 | CL98: 0
P99: 650.58 | Q99: 39564.9 | R99: 37803.4 | S99: 38703.3 | T99: 37820.2 | U99: 37803.4 | V99: 37804.1 | W99: 37931 | X99: 37803.4 | Y99: 38848.5 | Z99: 650.58 | AA99: 40299.9 | AB99: 38544.7 | AC99: 38771.2 | AD99: 38599 | AE99: 38544.7 | AF99: 38544.7 | AG99: 38597.9 | AH99: 38544.7 | AI99: 38878.7 | AK99: 485.58 | AL99: 21705.5 | AM99: 20749.6 | AN99: 20749.6 | AO99: 21477.2 | AP99: 20837.1 | AQ99: 20749.6 | AR99: 21564.7 | AS99: 485.58 | AT99: 17669.9 | AU99: 15147.9 | AV99: 16663.4 | AW99: 15147.9 | AX99: 15842.4 | AY99: 15147.9 | AZ99: 17358 | BB99: 22120.42 | BC99: 0.92321 | BD99: 0.96353 | BE99: 0.84149 | BF99: 0.67496 | BK99: -5 | BL99: 1.96552 | BM99: 0.00228 | BN99: -5 | BO99: 2.12687 | BP99: 0.00122 | BQ99: -5 | BR99: 1.97232 | BS99: 7.68E-04 | BT99: -5 | BU99: 1.97232 | BV99: 0.00329 | BX99: 2.94524 | BY99: 1.84395 | BZ99: 0.28657 | CA99: 0.27135 | CB99: 0.89443 | CD99: -47.78315 | CE99: 0 | CF99: 0 | CG99: -40.94858 | CH99: 0 | CI99: 0 | CJ99: -41.08923 | CK99: 0 | CL99: 0
P100: 650.48 | Q100: 39870.9 | R100: 37783.3 | S100: 38510.8 | T100: 37804.8 | U100: 37783.3 | V100: 37784 | W100: 37885.8 | X100: 37783.3 | Y100: 38635.6 | Z100: 650.48 | AA100: 40073.4 | AB100: 38528.5 | AC100: 38699.8 | AD100: 38596.9 | AE100: 38528.5 | AF100: 38528.5 | AG100: 38570.5 | AH100: 38528.5 | AI100: 38810.2 | AK100: 485.48 | AL100: 21867.3 | AM100: 20751.4 | AN100: 20751.4 | AO100: 21497 | AP100: 20831.4 | AQ100: 20751.4 | AR100: 21576.9 | AS100: 485.48 | AT100: 17913.6 | AU100: 15137.5 | AV100: 16794.4 | AW100: 15137.5 | AX100: 15793.5 | AY100: 15137.5 | AZ100: 17450.3 | BB100: 22120.905 | BC100: 0.94829 | BD100: 0.97403 | BE100: 0.86093 | BF100: 0.70489 | BK100: -5 | BL100: 1.98621 | BM100: 0.00209 | BN100: -5 | BO100: 2.14925 | BP100: 0.0011 | BQ100: -5 | BR100: 1.99308 | BS100: 6.39E-04 | BT100: -5 | BU100: 1.99308 | BV100: 0.00298 | BX100: 2.97592 | BY100: 1.78046 | BZ100: 0.26966 | CA100: 0.27803 | CB100: 0.97032 | CD100: -47.72115 | CE100: 0 | CF100: 0 | CG100: -40.89058 | CH100: 0 | CI100: 0 | CJ100: -41.03523 | CK100: 0 | CL100: 0
P101: 650.38 | Q101: 39676.1 | R101: 37764 | S101: 38347.8 | T101: 37791.4 | U101: 37764 | V101: 37764.7 | W101: 37845.9 | X101: 37764 | Y101: 38458 | Z101: 650.38 | AA101: 39925.1 | AB101: 38512.7 | AC101: 38641.2 | AD101: 38598.6 | AE101: 38512.7 | AF101: 38512.7 | AG101: 38545.7 | AH101: 38512.7 | AI101: 38760.1 | AK101: 485.38 | AL101: 21443.6 | AM101: 20753.2 | AN101: 20753.2 | AO101: 21514.8 | AP101: 20826.1 | AQ101: 20753.2 | AR101: 21587.7 | AS101: 485.38 | AT101: 18123.5 | AU101: 15126.6 | AV101: 16928 | AW101: 15126.6 | AX101: 15744.2 | AY101: 15126.6 | AZ101: 17545.7 | BB101: 22121.39 | BC101: 0.97655 | BD101: 0.98227 | BE101: 0.87784 | BF101: 0.73596 | BK101: -5 | BL101: 2.0069 | BM101: 0.0019 | BN101: -5 | BO101: 2.17164 | BP101: 0.001 | BQ101: -5 | BR101: 2.01384 | BS101: 5.30E-04 | BT101: -5 | BU101: 2.01384 | BV101: 0.0027 | BX101: 3.0066 | BY101: 1.67426 | BZ101: 0.24469 | CA101: 0.27977 | CB101: 1.0418 | CD101: -47.65915 | CE101: 0 | CF101: 0 | CG101: -40.83358 | CH101: 0 | CI101: 0 | CJ101: -40.98223 | CK101: 0 | CL101: 0
P102: 650.28 | Q102: 39216.3 | R102: 37745.8 | S102: 38211 | T102: 37780.6 | U102: 37745.8 | V102: 37746.5 | W102: 37811.1 | X102: 37745.8 | Y102: 38311.8 | Z102: 650.28 | AA102: 39778.8 | AB102: 38497.5 | AC102: 38593.1 | AD102: 38604.7 | AE102: 38497.5 | AF102: 38497.5 | AG102: 38523.3 | AH102: 38497.5 | AI102: 38726.2 | AK102: 485.28 | AL102: 21690.6 | AM102: 20755 | AN102: 20755 | AO102: 21530.7 | AP102: 20821.3 | AQ102: 20755 | AR102: 21597.1 | AS102: 485.28 | AT102: 17939.3 | AU102: 15114.9 | AV102: 17062.4 | AW102: 15114.9 | AX102: 15694.7 | AY102: 15114.9 | AZ102: 17642.2 | BB102: 22121.874 | BC102: 0.99937 | BD102: 0.99097 | BE102: 0.89365 | BF102: 0.76061 | BK102: -5 | BL102: 2.02759 | BM102: 0.00173 | BN102: -5 | BO102: 2.19403 | BP102: 9.10E-04 | BQ102: -5 | BR102: 2.0346 | BS102: 4.41E-04 | BT102: -5 | BU102: 2.0346 | BV102: 0.00244 | BX102: 3.03728 | BY102: 1.5307 | BZ102: 0.21671 | CA102: 0.27761 | CB102: 1.10447 | CD102: -47.59815 | CE102: 0 | CF102: 0 | CG102: -40.77658 | CH102: 0 | CI102: 0 | CJ102: -40.92923 | CK102: 0 | CL102: 0
P103: 650.18 | Q103: 38879.7 | R103: 37728.7 | S103: 38096.7 | T103: 37772.8 | U103: 37728.7 | V103: 37729.5 | W103: 37780.5 | X103: 37728.7 | Y103: 38193.3 | Z103: 650.18 | AA103: 40053.3 | AB103: 38482.9 | AC103: 38553.5 | AD103: 38616.2 | AE103: 38482.9 | AF103: 38482.9 | AG103: 38503 | AH103: 38482.9 | AI103: 38706.8 | AK103: 485.18 | AL103: 21615.6 | AM103: 20756.8 | AN103: 20756.8 | AO103: 21544.5 | AP103: 20817 | AQ103: 20756.8 | AR103: 21604.7 | AS103: 485.18 | AT103: 18080.8 | AU103: 15102.9 | AV103: 17196.2 | AW103: 15102.9 | AX103: 15645.5 | AY103: 15102.9 | AZ103: 17738.8 | BB103: 22122.359 | BC103: 1.02416 | BD103: 0.99755 | BE103: 0.90512 | BF103: 0.78702 | BK103: -5 | BL103: 2.04828 | BM103: 0.00157 | BN103: -5 | BO103: 2.21642 | BP103: 8.27E-04 | BQ103: -5 | BR103: 2.05536 | BS103: 3.67E-04 | BT103: -5 | BU103: 2.05536 | BV103: 0.00221 | BX103: 3.06796 | BY103: 1.35911 | BZ103: 0.19121 | CA103: 0.273 | CB103: 1.15459 | CD103: -47.53615 | CE103: 0 | CF103: 0 | CG103: -40.71958 | CH103: 0 | CI103: 0 | CJ103: -40.87523 | CK103: 0 | CL103: 0
P104: 650.08 | Q104: 38592.7 | R104: 37713 | S104: 38002.1 | T104: 37768.6 | U104: 37713 | V104: 37713.8 | W104: 37753.8 | X104: 37713 | Y104: 38099.3 | Z104: 650.08 | AA104: 39703.3 | AB104: 38468.7 | AC104: 38520.3 | AD104: 38633.6 | AE104: 38468.7 | AF104: 38468.7 | AG104: 38484.3 | AH104: 38468.7 | AI104: 38700.8 | AK104: 485.08 | AL104: 21543.7 | AM104: 20758.5 | AN104: 20758.5 | AO104: 21556 | AP104: 20813.2 | AQ104: 20758.5 | AR104: 21610.6 | AS104: 485.08 | AT104: 18099.1 | AU104: 15090.8 | AV104: 17327.4 | AW104: 15090.8 | AX104: 15597.1 | AY104: 15090.8 | AZ104: 17833.8 | BB104: 22122.844 | BC104: 1.0446 | BD104: 1.00405 | BE104: 0.91689 | BF104: 0.81672 | BK104: -5 | BL104: 2.06897 | BM104: 0.00142 | BN104: -5 | BO104: 2.23881 | BP104: 7.52E-04 | BQ104: -5 | BR104: 2.07613 | BS104: 3.08E-04 | BT104: -5 | BU104: 2.07613 | BV104: 0.002 | BX104: 3.09864 | BY104: 1.17216 | BZ104: 0.17416 | CA104: 0.26747 | CB104: 1.1894 | CD104: -47.47415 | CE104: 0 | CF104: 0 | CG104: -40.66158 | CH104: 0 | CI104: 0 | CJ104: -40.82223 | CK104: 0 | CL104: 0
P105: 649.98 | Q105: 38708.4 | R105: 37698.7 | S105: 37924.2 | T105: 37768.5 | U105: 37698.7 | V105: 37699.5 | W105: 37730.8 | X105: 37698.7 | Y105: 38026.8 | Z105: 649.98 | AA105: 39648.1 | AB105: 38454.8 | AC105: 38492.2 | AD105: 38657.8 | AE105: 38454.8 | AF105: 38454.8 | AG105: 38466.8 | AH105: 38454.8 | AI105: 38707.3 | AK105: 484.98 | AL105: 21788.4 | AM105: 20760.3 | AN105: 20760.3 | AO105: 21565.1 | AP105: 20809.7 | AQ105: 20760.3 | AR105: 21614.5 | AS105: 484.98 | AT105: 17937 | AU105: 15078.6 | AV105: 17454 | AW105: 15078.6 | AX105: 15549.8 | AY105: 15078.6 | AZ105: 17925.1 | BB105: 22123.329 | BC105: 1.06495 | BD105: 1.00915 | BE105: 0.92552 | BF105: 0.84025 | BK105: -5 | BL105: 2.08966 | BM105: 0.00128 | BN105: -5 | BO105: 2.26119 | BP105: 6.85E-04 | BQ105: -5 | BR105: 2.09689 | BS105: 2.61E-04 | BT105: -5 | BU105: 2.09689 | BV105: 0.00182 | BX105: 3.12932 | BY105: 0.98512 | BZ105: 0.17075 | CA105: 0.26225 | CB105: 1.20743 | CD105: -47.41315 | CE105: 0 | CF105: 0 | CG105: -40.60458 | CH105: 0 | CI105: 0 | CJ105: -40.76923 | CK105: 0 | CL105: 0
P106: 649.88 | Q106: 38513.5 | R106: 37684.9 | S106: 37859.6 | T106: 37772.1 | U106: 37684.9 | V106: 37685.7 | W106: 37710 | X106: 37684.9 | Y106: 37972.5 | Z106: 649.88 | AA106: 39571.6 | AB106: 38440.7 | AC106: 38467.6 | AD106: 38689.6 | AE106: 38440.7 | AF106: 38440.7 | AG106: 38449.9 | AH106: 38440.7 | AI106: 38725.9 | AK106: 484.88 | AL106: 21863.8 | AM106: 20762.1 | AN106: 20762.1 | AO106: 21571.8 | AP106: 20806.7 | AQ106: 20762.1 | AR106: 21616.4 | AS106: 484.88 | AT106: 18121.1 | AU106: 15066.3 | AV106: 17573.3 | AW106: 15066.3 | AX106: 15503.4 | AY106: 15066.3 | AZ106: 18010.5 | BB106: 22123.813 | BC106: 1.08243 | BD106: 1.01279 | BE106: 0.93365 | BF106: 0.86945 | BK106: -5 | BL106: 2.11035 | BM106: 0.00115 | BN106: -5 | BO106: 2.28358 | BP106: 6.23E-04 | BQ106: -5 | BR106: 2.11765 | BS106: 2.25E-04 | BT106: -5 | BU106: 2.11765 | BV106: 0.00165 | BX106: 3.16 | BY106: 0.81529 | BZ106: 0.18276 | CA106: 0.25803 | CB106: 1.20862 | CD106: -47.35115 | CE106: 0 | CF106: 0 | CG106: -40.54758 | CH106: 0 | CI106: 0 | CJ106: -40.71523 | CK106: 0 | CL106: 0
P107: 649.78 | Q107: 38719.7 | R107: 37670.9 | S107: 37805.2 | T107: 37779.2 | U107: 37670.9 | V107: 37671.6 | W107: 37690.4 | X107: 37670.9 | Y107: 37933.9 | Z107: 649.78 | AA107: 39809.8 | AB107: 38427 | AC107: 38446.3 | AD107: 38730.8 | AE107: 38427 | AF107: 38427 | AG107: 38434 | AH107: 38427 | AI107: 38757.2 | AK107: 484.78 | AL107: 21658.5 | AM107: 20763.9 | AN107: 20763.9 | AO107: 21576 | AP107: 20804.1 | AQ107: 20763.9 | AR107: 21616.2 | AS107: 484.78 | AT107: 18130.4 | AU107: 15053.6 | AV107: 17683 | AW107: 15053.6 | AX107: 15458 | AY107: 15053.6 | AZ107: 18087.5 | BB107: 22124.419 | BC107: 1.10394 | BD107: 1.01584 | BE107: 0.94387 | BF107: 0.89737 | BK107: -5 | BL107: 2.13103 | BM107: 0.00103 | BN107: -5 | BO107: 2.30597 | BP107: 5.68E-04 | BQ107: -5 | BR107: 2.13841 | BS107: 1.98E-04 | BT107: -5 | BU107: 2.13841 | BV107: 0.0015 | BX107: 3.19068 | BY107: 0.68069 | BZ107: 0.20758 | CA107: 0.25479 | CB107: 1.19441 | CD107: -47.28915 | CE107: 0 | CF107: 0 | CG107: -40.49058 | CH107: 0 | CI107: 0 | CJ107: -40.66223 | CK107: 0 | CL107: 0
P108: 649.68 | Q108: 38964.2 | R108: 37656.4 | S108: 37759.1 | T108: 37790.6 | U108: 37656.4 | V108: 37657.2 | W108: 37671.5 | X108: 37656.4 | Y108: 37909.2 | Z108: 649.68 | AA108: 39576.5 | AB108: 38412.8 | AC108: 38426.4 | AD108: 38781.8 | AE108: 38412.8 | AF108: 38412.8 | AG108: 38418.1 | AH108: 38412.8 | AI108: 38800.8 | AK108: 484.68 | AL108: 21735.8 | AM108: 20765.7 | AN108: 20765.7 | AO108: 21577.7 | AP108: 20801.9 | AQ108: 20765.7 | AR108: 21613.8 | AS108: 484.68 | AT108: 18427.3 | AU108: 15040.3 | AV108: 17780.3 | AW108: 15040.3 | AX108: 15413.5 | AY108: 15040.3 | AZ108: 18153.5 | BB108: 22124.904 | BC108: 1.11665 | BD108: 1.01597 | BE108: 0.95096 | BF108: 0.92697 | BK108: -5 | BL108: 2.15172 | BM108: 9.26E-04 | BN108: -5 | BO108: 2.32836 | BP108: 5.18E-04 | BQ108: -5 | BR108: 2.15917 | BS108: 1.78E-04 | BT108: -5 | BU108: 2.15917 | BV108: 0.00136 | BX108: 3.22136 | BY108: 0.5957 | BZ108: 0.24065 | CA108: 0.25199 | CB108: 1.16756 | CD108: -47.22815 | CE108: 0 | CF108: 0 | CG108: -40.43258 | CH108: 0 | CI108: 0 | CJ108: -40.60823 | CK108: 0 | CL108: 0
P109: 649.58 | Q109: 38762.4 | R109: 37641.9 | S109: 37719.8 | T109: 37807.4 | U109: 37641.9 | V109: 37642.7 | W109: 37653.5 | X109: 37641.9 | Y109: 37897.7 | Z109: 649.58 | AA109: 40061.2 | AB109: 38398.1 | AC109: 38407.7 | AD109: 38844.1 | AE109: 38398.1 | AF109: 38398.2 | AG109: 38402.2 | AH109: 38398.1 | AI109: 38857.9 | AK109: 484.58 | AL109: 21918.8 | AM109: 20767.4 | AN109: 20767.4 | AO109: 21576.8 | AP109: 20799.9 | AQ109: 20767.4 | AR109: 21609.3 | AS109: 484.58 | AT109: 18748.1 | AU109: 15026.7 | AV109: 17863.3 | AW109: 15026.7 | AX109: 15370.2 | AY109: 15026.7 | AZ109: 18206.8 | BB109: 22125.389 | BC109: 1.13085 | BD109: 1.0139 | BE109: 0.95696 | BF109: 0.95198 | BK109: -5 | BL109: 2.17241 | BM109: 8.28E-04 | BN109: -5 | BO109: 2.35075 | BP109: 4.72E-04 | BQ109: -5 | BR109: 2.17993 | BS109: 1.63E-04 | BT109: -5 | BU109: 2.17993 | BV109: 0.00124 | BX109: 3.25204 | BY109: 0.56239 | BZ109: 0.27775 | CA109: 0.24891 | CB109: 1.13189 | CD109: -47.16615 | CE109: 0 | CF109: 0 | CG109: -40.37558 | CH109: 0 | CI109: 0 | CJ109: -40.55523 | CK109: 0 | CL109: 0
P110: 649.48 | Q110: 38656.1 | R110: 37626.8 | S110: 37685.5 | T110: 37830 | U110: 37626.8 | V110: 37627.6 | W110: 37635.8 | X110: 37626.8 | Y110: 37898.4 | Z110: 649.48 | AA110: 39915.7 | AB110: 38382.6 | AC110: 38389.3 | AD110: 38919.3 | AE110: 38382.6 | AF110: 38382.7 | AG110: 38385.7 | AH110: 38382.6 | AI110: 38929.1 | AK110: 484.48 | AL110: 21533.3 | AM110: 20769.2 | AN110: 20769.2 | AO110: 21573.5 | AP110: 20798.4 | AQ110: 20769.2 | AR110: 21602.6 | AS110: 484.48 | AT110: 18263.9 | AU110: 15012.8 | AV110: 17929.9 | AW110: 15012.8 | AX110: 15328 | AY110: 15012.8 | AZ110: 18245.1 | BB110: 22125.874 | BC110: 1.14033 | BD110: 1.00898 | BE110: 0.96243 | BF110: 0.9801 | BK110: -5 | BL110: 2.1931 | BM110: 7.38E-04 | BN110: -5 | BO110: 2.37313 | BP110: 4.31E-04 | BQ110: -5 | BR110: 2.20069 | BS110: 1.52E-04 | BT110: -5 | BU110: 2.20069 | BV110: 0.00113 | BX110: 3.28272 | BY110: 0.56662 | BZ110: 0.31545 | CA110: 0.24503 | CB110: 1.09165 | CD110: -47.10415 | CE110: 0 | CF110: 0 | CG110: -40.31858 | CH110: 0 | CI110: 0 | CJ110: -40.50223 | CK110: 0 | CL110: 0
P111: 649.38 | Q111: 38791.8 | R111: 37611.9 | S111: 37655.8 | T111: 37860.1 | U111: 37611.9 | V111: 37612.7 | W111: 37618.7 | X111: 37611.9 | Y111: 37911.6 | Z111: 649.38 | AA111: 40136.2 | AB111: 38366.4 | AC111: 38371 | AD111: 39009 | AE111: 38366.4 | AF111: 38366.5 | AG111: 38368.7 | AH111: 38366.4 | AI111: 39016 | AK111: 484.38 | AL111: 21496.8 | AM111: 20771 | AN111: 20771 | AO111: 21567.8 | AP111: 20797.1 | AQ111: 20771 | AR111: 21593.8 | AS111: 484.38 | AT111: 18551.6 | AU111: 14998.6 | AV111: 17978.4 | AW111: 14998.6 | AX111: 15287.2 | AY111: 14998.6 | AZ111: 18267 | BB111: 22126.359 | BC111: 1.14775 | BD111: 1.00101 | BE111: 0.9683 | BF111: 1.00675 | BK111: -5 | BL111: 2.21379 | BM111: 6.57E-04 | BN111: -5 | BO111: 2.39552 | BP111: 3.94E-04 | BQ111: -5 | BR111: 2.22145 | BS111: 1.44E-04 | BT111: -5 | BU111: 2.22145 | BV111: 0.00104 | BX111: 3.3134 | BY111: 0.5878 | BZ111: 0.35088 | CA111: 0.24027 | CB111: 1.05083 | CD111: -47.04315 | CE111: 0 | CF111: 0 | CG111: -40.26158 | CH111: 0 | CI111: 0 | CJ111: -40.44823 | CK111: 0 | CL111: 0
P112: 649.28 | Q112: 38519.5 | R112: 37597.1 | S112: 37629.7 | T112: 37898.9 | U112: 37597.1 | V112: 37597.9 | W112: 37602.3 | X112: 37597.1 | Y112: 37937.6 | Z112: 649.28 | AA112: 40292.5 | AB112: 38349.1 | AC112: 38352.3 | AD112: 39114.8 | AE112: 38349.1 | AF112: 38349.3 | AG112: 38350.8 | AH112: 38349.1 | AI112: 39119.8 | AK112: 484.28 | AL112: 21670.7 | AM112: 20772.8 | AN112: 20772.8 | AO112: 21559.7 | AP112: 20796.1 | AQ112: 20772.8 | AR112: 21582.9 | AS112: 484.28 | AT112: 18265.9 | AU112: 14984.6 | AV112: 18007.9 | AW112: 14984.6 | AX112: 15248.1 | AY112: 14984.6 | AZ112: 18271.3 | BB112: 22126.844 | BC112: 1.15856 | BD112: 0.99174 | BE112: 0.97432 | BF112: 1.03597 | BK112: -5 | BL112: 2.23448 | BM112: 5.83E-04 | BN112: -5 | BO112: 2.41791 | BP112: 3.60E-04 | BQ112: -5 | BR112: 2.24221 | BS112: 1.37E-04 | BT112: -5 | BU112: 2.24221 | BV112: 9.50E-04 | BX112: 3.34408 | BY112: 0.61035 | BZ112: 0.38156 | CA112: 0.23499 | CB112: 1.01222 | CD112: -46.98115 | CE112: 0 | CF112: 0 | CG112: -40.20358 | CH112: 0 | CI112: 0 | CJ112: -40.39523 | CK112: 0 | CL112: 0
P113: 649.18 | Q113: 38732.7 | R113: 37581.6 | S113: 37605.7 | T113: 37947 | U113: 37581.6 | V113: 37582.4 | W113: 37585.5 | X113: 37581.6 | Y113: 37975.8 | Z113: 649.18 | AA113: 40385.8 | AB113: 38331.2 | AC113: 38333.4 | AD113: 39239.2 | AE113: 38331.2 | AF113: 38331.5 | AG113: 38332.5 | AH113: 38331.2 | AI113: 39242.8 | AK113: 484.18 | AL113: 21542 | AM113: 20774.6 | AN113: 20774.6 | AO113: 21549.3 | AP113: 20795.3 | AQ113: 20774.6 | AR113: 21570.1 | AS113: 484.18 | AT113: 18219.6 | AU113: 14971 | AV113: 18017.5 | AW113: 14971 | AX113: 15210.9 | AY113: 14971 | AZ113: 18257.4 | BB113: 22127.329 | BC113: 1.16454 | BD113: 0.98186 | BE113: 0.98109 | BF113: 1.06706 | BK113: -5 | BL113: 2.25517 | BM113: 5.17E-04 | BN113: -5 | BO113: 2.4403 | BP113: 3.29E-04 | BQ113: -5 | BR113: 2.26298 | BS113: 1.31E-04 | BT113: -5 | BU113: 2.26298 | BV113: 8.73E-04 | BX113: 3.37476 | BY113: 0.62625 | BZ113: 0.40534 | CA113: 0.22989 | CB113: 0.97674 | CD113: -46.91915 | CE113: 0 | CF113: 0 | CG113: -40.14658 | CH113: 0 | CI113: 0 | CJ113: -40.34223 | CK113: 0 | CL113: 0
P114: 649.08 | Q114: 39179.6 | R114: 37565.8 | S114: 37583.4 | T114: 38006 | U114: 37565.8 | V114: 37566.6 | W114: 37568.7 | X114: 37565.8 | Y114: 38027.5 | Z114: 649.08 | AA114: 40406.7 | AB114: 38311.9 | AC114: 38313.4 | AD114: 39383.3 | AE114: 38311.9 | AF114: 38312.3 | AG114: 38312.9 | AH114: 38311.9 | AI114: 39386 | AK114: 484.08 | AL114: 21921.2 | AM114: 20776.3 | AN114: 20776.3 | AO114: 21536.8 | AP114: 20794.8 | AQ114: 20776.3 | AR114: 21555.3 | AS114: 484.08 | AT114: 18148.9 | AU114: 14957.5 | AV114: 18006.4 | AW114: 14957.5 | AX114: 15175.5 | AY114: 14957.5 | AZ114: 18224.3 | BB114: 22127.814 | BC114: 1.17008 | BD114: 0.97164 | BE114: 0.98796 | BF114: 1.0964 | BK114: -5 | BL114: 2.27586 | BM114: 4.57E-04 | BN114: -5 | BO114: 2.46269 | BP114: 3.01E-04 | BQ114: -5 | BR114: 2.28374 | BS114: 1.26E-04 | BT114: -5 | BU114: 2.28374 | BV114: 8.05E-04 | BX114: 3.40544 | BY114: 0.63247 | BZ114: 0.42047 | CA114: 0.22562 | CB114: 0.94321 | CD114: -46.85715 | CE114: 0 | CF114: 0 | CG114: -40.08958 | CH114: 0 | CI114: 0 | CJ114: -40.28823 | CK114: 0 | CL114: 0
P115: 648.98 | Q115: 38767.5 | R115: 37549.5 | S115: 37562.4 | T115: 38077.4 | U115: 37549.5 | V115: 37550.4 | W115: 37551.7 | X115: 37549.5 | Y115: 38093.4 | Z115: 648.98 | AA115: 40942.8 | AB115: 38291.6 | AC115: 38292.6 | AD115: 39549.5 | AE115: 38291.6 | AF115: 38292.1 | AG115: 38292.3 | AH115: 38291.6 | AI115: 39551.6 | AK115: 483.98 | AL115: 21568.2 | AM115: 20778.1 | AN115: 20778.1 | AO115: 21522.4 | AP115: 20794.5 | AQ115: 20778.1 | AR115: 21538.8 | AS115: 483.98 | AT115: 18132.4 | AU115: 14944.2 | AV115: 17974.6 | AW115: 14944.2 | AX115: 15141.7 | AY115: 14944.2 | AZ115: 18172.1 | BB115: 22128.42 | BC115: 1.17414 | BD115: 0.95896 | BE115: 0.99887 | BF115: 1.12959 | BK115: -5 | BL115: 2.29655 | BM115: 4.03E-04 | BN115: -5 | BO115: 2.48508 | BP115: 2.75E-04 | BQ115: -5 | BR115: 2.3045 | BS115: 1.21E-04 | BT115: -5 | BU115: 2.3045 | BV115: 7.44E-04 | BX115: 3.43612 | BY115: 0.62795 | BZ115: 0.42572 | CA115: 0.22239 | CB115: 0.90863 | CD115: -46.79615 | CE115: 0 | CF115: 0 | CG115: -40.03258 | CH115: 0 | CI115: 0 | CJ115: -40.23523 | CK115: 0 | CL115: 0
P116: 648.88 | Q116: 38999.7 | R116: 37532 | S116: 37541.3 | T116: 38162 | U116: 37532 | V116: 37532.9 | W116: 37533.6 | X116: 37532 | Y116: 38173.9 | Z116: 648.88 | AA116: 40898 | AB116: 38270.1 | AC116: 38270.8 | AD116: 39739.6 | AE116: 38270.1 | AF116: 38270.8 | AG116: 38270.6 | AH116: 38270.1 | AI116: 39741.5 | AK116: 483.88 | AL116: 21876.6 | AM116: 20779.9 | AN116: 20779.9 | AO116: 21506.1 | AP116: 20794.4 | AQ116: 20779.9 | AR116: 21520.6 | AS116: 483.88 | AT116: 18228.2 | AU116: 14931 | AV116: 17922.6 | AW116: 14931 | AX116: 15109.6 | AY116: 14931 | AZ116: 18101.2 | BB116: 22128.905 | BC116: 1.17691 | BD116: 0.9505 | BE116: 1.00717 | BF116: 1.15175 | BK116: -5 | BL116: 2.31724 | BM116: 3.54E-04 | BN116: -5 | BO116: 2.50746 | BP116: 2.52E-04 | BQ116: -5 | BR116: 2.32526 | BS116: 1.17E-04 | BT116: -5 | BU116: 2.32526 | BV116: 6.89E-04 | BX116: 3.4668 | BY116: 0.61167 | BZ116: 0.42045 | CA116: 0.21976 | CB116: 0.86908 | CD116: -46.73415 | CE116: 0 | CF116: 0 | CG116: -39.97458 | CH116: 0 | CI116: 0 | CJ116: -40.18123 | CK116: 0 | CL116: 0
P117: 648.78 | Q117: 39367.3 | R117: 37513.3 | S117: 37520 | T117: 38261.6 | U117: 37513.3 | V117: 37514.3 | W117: 37514.5 | X117: 37513.3 | Y117: 38270.6 | Z117: 648.78 | AA117: 41069 | AB117: 38247 | AC117: 38247.5 | AD117: 39955 | AE117: 38247 | AF117: 38247.9 | AG117: 38247.4 | AH117: 38247 | AI117: 39956.7 | AK117: 483.78 | AL117: 21659.7 | AM117: 20781.7 | AN117: 20781.7 | AO117: 21488.1 | AP117: 20794.6 | AQ117: 20781.7 | AR117: 21501 | AS117: 483.78 | AT117: 17979 | AU117: 14918.1 | AV117: 17851.3 | AW117: 14918.1 | AX117: 15079.1 | AY117: 14918.1 | AZ117: 18012.3 | BB117: 22129.39 | BC117: 1.17912 | BD117: 0.9427 | BE117: 1.0169 | BF117: 1.1689 | BK117: -5 | BL117: 2.33793 | BM117: 3.11E-04 | BN117: -5 | BO117: 2.52985 | BP117: 2.31E-04 | BQ117: -5 | BR117: 2.34602 | BS117: 1.12E-04 | BT117: -5 | BU117: 2.34602 | BV117: 6.39E-04 | BX117: 3.49748 | BY117: 0.58188 | BZ117: 0.40464 | CA117: 0.21663 | CB117: 0.82059 | CD117: -46.67215 | CE117: 0 | CF117: 0 | CG117: -39.91758 | CH117: 0 | CI117: 0 | CJ117: -40.12823 | CK117: 0 | CL117: 0
P118: 648.68 | Q118: 39444 | R118: 37494.7 | S118: 37499.4 | T118: 38379.1 | U118: 37494.7 | V118: 37495.8 | W118: 37495.6 | X118: 37494.7 | Y118: 38385.9 | Z118: 648.68 | AA118: 41609.7 | AB118: 38221.7 | AC118: 38222 | AD118: 40196.4 | AE118: 38221.7 | AF118: 38223 | AG118: 38222 | AH118: 38221.7 | AI118: 40198.2 | AK118: 483.68 | AL118: 21210.5 | AM118: 20783.5 | AN118: 20783.5 | AO118: 21468.7 | AP118: 20794.8 | AQ118: 20783.5 | AR118: 21480.1 | AS118: 483.68 | AT118: 17987.3 | AU118: 14905.5 | AV118: 17762.1 | AW118: 14905.5 | AX118: 15050.3 | AY118: 14905.5 | AZ118: 17907 | BB118: 22129.875 | BC118: 1.18389 | BD118: 0.93702 | BE118: 1.02521 | BF118: 1.18136 | BK118: -5 | BL118: 2.35862 | BM118: 2.73E-04 | BN118: -5 | BO118: 2.55224 | BP118: 2.11E-04 | BQ118: -5 | BR118: 2.36678 | BS118: 1.07E-04 | BT118: -5 | BU118: 2.36678 | BV118: 5.94E-04 | BX118: 3.52816 | BY118: 0.53623 | BZ118: 0.3789 | CA118: 0.21155 | CB118: 0.76008 | CD118: -46.61115 | CE118: 0 | CF118: 0 | CG118: -39.86058 | CH118: 0 | CI118: 0 | CJ118: -40.07523 | CK118: 0 | CL118: 0
P119: 648.58 | Q119: 39023 | R119: 37474.7 | S119: 37478.1 | T119: 38514.8 | U119: 37474.7 | V119: 37476 | W119: 37475.4 | X119: 37474.7 | Y119: 38520.2 | Z119: 648.58 | AA119: 42078.6 | AB119: 38195.1 | AC119: 38195.3 | AD119: 40466.2 | AE119: 38195.1 | AF119: 38196.8 | AG119: 38195.3 | AH119: 38195.1 | AI119: 40468.2 | AK119: 483.58 | AL119: 21363.8 | AM119: 20785.2 | AN119: 20785.2 | AO119: 21448 | AP119: 20795.3 | AQ119: 20785.2 | AR119: 21458 | AS119: 483.58 | AT119: 17608.4 | AU119: 14893.2 | AV119: 17656.9 | AW119: 14893.2 | AX119: 15023.3 | AY119: 14893.2 | AZ119: 17786.9 | BB119: 22130.845 | BC119: 1.18496 | BD119: 0.93028 | BE119: 1.04269 | BF119: 1.19477 | BK119: -5 | BL119: 2.37931 | BM119: 2.38E-04 | BN119: -5 | BO119: 2.57463 | BP119: 1.93E-04 | BQ119: -5 | BR119: 2.38754 | BS119: 1.02E-04 | BT119: -5 | BU119: 2.38754 | BV119: 5.53E-04 | BX119: 3.55884 | BY119: 0.47261 | BZ119: 0.3444 | CA119: 0.20314 | CB119: 0.68584 | CD119: -46.54915 | CE119: 0 | CF119: 0 | CG119: -39.80358 | CH119: 0 | CI119: 0 | CJ119: -40.02123 | CK119: 0 | CL119: 0
P120: 648.48 | Q120: 39650.9 | R120: 37453.1 | S120: 37455.5 | T120: 38670.3 | U120: 37453.1 | V120: 37454.6 | W120: 37453.6 | X120: 37453.1 | Y120: 38674.7 | Z120: 648.48 | AA120: 41886.6 | AB120: 38165.9 | AC120: 38166.1 | AD120: 40763.8 | AE120: 38165.9 | AF120: 38168.2 | AG120: 38166.1 | AH120: 38165.9 | AI120: 40766.3 | AK120: 483.48 | AL120: 21248.9 | AM120: 20787 | AN120: 20787 | AO120: 21426.2 | AP120: 20795.8 | AQ120: 20787 | AR120: 21435 | AS120: 483.48 | AT120: 17619.1 | AU120: 14881.5 | AV120: 17537.6 | AW120: 14881.5 | AX120: 14998 | AY120: 14881.5 | AZ120: 17654 | BB120: 22131.816 | BC120: 1.18285 | BD120: 0.92782 | BE120: 1.0586 | BF120: 1.19689 | BK120: -5 | BL120: 2.4 | BM120: 2.08E-04 | BN120: -5 | BO120: 2.59701 | BP120: 1.77E-04 | BQ120: -5 | BR120: 2.4083 | BS120: 9.69E-05 | BT120: -5 | BU120: 2.4083 | BV120: 5.16E-04 | BX120: 3.58952 | BY120: 0.38992 | BZ120: 0.30287 | CA120: 0.19046 | CB120: 0.5978 | CD120: -46.48715 | CE120: 0 | CF120: 0 | CG120: -39.74558 | CH120: 0 | CI120: 0 | CJ120: -39.96823 | CK120: 0 | CL120: 0
P121: 648.38 | Q121: 40070.7 | R121: 37430.8 | S121: 37432.4 | T121: 38847.9 | U121: 37430.8 | V121: 37432.6 | W121: 37431.1 | X121: 37430.8 | Y121: 38851.7 | Z121: 648.38 | AA121: 42855.1 | AB121: 38134.1 | AC121: 38134.2 | AD121: 41089.3 | AE121: 38134.1 | AF121: 38137.2 | AG121: 38134.2 | AH121: 38134.1 | AI121: 41092.6 | AK121: 483.38 | AL121: 21321.8 | AM121: 20788.8 | AN121: 20788.8 | AO121: 21403.5 | AP121: 20796.6 | AQ121: 20788.8 | AR121: 21411.3 | AS121: 483.38 | AT121: 17523.7 | AU121: 14870.4 | AV121: 17406.6 | AW121: 14870.4 | AX121: 14974.4 | AY121: 14870.4 | AZ121: 17510.6 | BB121: 22132.907 | BC121: 1.17832 | BD121: 0.92858 | BE121: 1.07294 | BF121: 1.19212 | BK121: -5 | BL121: 2.42069 | BM121: 1.81E-04 | BN121: -5 | BO121: 2.6194 | BP121: 1.62E-04 | BQ121: -5 | BR121: 2.42907 | BS121: 9.19E-05 | BT121: -5 | BU121: 2.42907 | BV121: 4.82E-04 | BX121: 3.62019 | BY121: 0.28878 | BZ121: 0.2565 | CA121: 0.17337 | CB121: 0.49754 | CD121: -46.42615 | CE121: 0 | CF121: 0 | CG121: -39.68858 | CH121: 0 | CI121: 0 | CJ121: -39.91523 | CK121: 0 | CL121: 0
P122: 648.28 | Q122: 39783.8 | R122: 37406.7 | S122: 37407.9 | T122: 39048.1 | U122: 37406.7 | V122: 37408.9 | W122: 37407 | X122: 37406.7 | Y122: 39051.7 | Z122: 648.28 | AA122: 43116.9 | AB122: 38100.8 | AC122: 38100.9 | AD122: 41443.8 | AE122: 38100.8 | AF122: 38105 | AG122: 38100.9 | AH122: 38100.8 | AI122: 41448.1 | AK122: 483.28 | AL122: 21374.7 | AM122: 20790.6 | AN122: 20790.6 | AO122: 21380.1 | AP122: 20797.4 | AQ122: 20790.6 | AR122: 21386.9 | AS122: 483.28 | AT122: 17301.7 | AU122: 14859.9 | AV122: 17266.3 | AW122: 14859.9 | AX122: 14952.6 | AY122: 14859.9 | AZ122: 17359 | BB122: 22133.878 | BC122: 1.17265 | BD122: 0.93119 | BE122: 1.08271 | BF122: 1.18646 | BK122: -5 | BL122: 2.44138 | BM122: 1.57E-04 | BN122: -5 | BO122: 2.64179 | BP122: 1.48E-04 | BQ122: -5 | BR122: 2.44983 | BS122: 8.69E-05 | BT122: -5 | BU122: 2.44983 | BV122: 4.50E-04 | BX122: 3.65087 | BY122: 0.17189 | BZ122: 0.20804 | CA122: 0.15286 | CB122: 0.38823 | CD122: -46.36415 | CE122: 0 | CF122: 0 | CG122: -39.63158 | CH122: 0 | CI122: 0 | CJ122: -39.86123 | CK122: 0 | CL122: 0
P123: 648.18 | Q123: 40573.3 | R123: 37380.2 | S123: 37381 | T123: 39271.3 | U123: 37380.2 | V123: 37382.9 | W123: 37380.4 | X123: 37380.2 | Y123: 39275 | Z123: 648.18 | AA123: 42596 | AB123: 38065.5 | AC123: 38065.6 | AD123: 41825.3 | AE123: 38065.5 | AF123: 38071.1 | AG123: 38065.6 | AH123: 38065.5 | AI123: 41831 | AK123: 483.18 | AL123: 21707.8 | AM123: 20792.4 | AN123: 20792.4 | AO123: 21356.2 | AP123: 20798.3 | AQ123: 20792.4 | AR123: 21362.2 | AS123: 483.18 | AT123: 17076.1 | AU123: 14849.8 | AV123: 17119 | AW123: 14849.8 | AX123: 14932.3 | AY123: 14849.8 | AZ123: 17201.4 | BB123: 22134.848 | BC123: 1.16629 | BD123: 0.93504 | BE123: 1.0903 | BF123: 1.18146 | BK123: -5 | BL123: 2.46207 | BM123: 1.36E-04 | BN123: -5 | BO123: 2.66418 | BP123: 1.35E-04 | BQ123: -5 | BR123: 2.47059 | BS123: 8.20E-05 | BT123: -5 | BU123: 2.47059 | BV123: 4.20E-04 | BX123: 3.68155 | BY123: 0.04485 | BZ123: 0.1611 | CA123: 0.13147 | CB123: 0.27478 | CD123: -46.30215 | CE123: 0 | CF123: 0 | CG123: -39.57458 | CH123: 0 | CI123: 0 | CJ123: -39.80823 | CK123: 0 | CL123: 0
P124: 648.08 | Q124: 40729.8 | R124: 37351.3 | S124: 37351.8 | T124: 39518.4 | U124: 37351.3 | V124: 37354.7 | W124: 37351.4 | X124: 37351.3 | Y124: 39522.5 | Z124: 648.08 | AA124: 43550.1 | AB124: 38027.9 | AC124: 38027.9 | AD124: 42231.5 | AE124: 38027.9 | AF124: 38035.4 | AG124: 38028 | AH124: 38027.9 | AI124: 42239.1 | AK124: 483.08 | AL124: 21078.4 | AM124: 20794.1 | AN124: 20794.1 | AO124: 21332 | AP124: 20799.4 | AQ124: 20794.1 | AR124: 21337.2 | AS124: 483.08 | AT124: 17012.9 | AU124: 14840.4 | AV124: 16967 | AW124: 14840.4 | AX124: 14913.5 | AY124: 14840.4 | AZ124: 17040.2 | BB124: 22135.819 | BC124: 1.15963 | BD124: 0.94094 | BE124: 1.09715 | BF124: 1.17808 | BK124: -5 | BL124: 2.48276 | BM124: 1.17E-04 | BN124: -5 | BO124: 2.68657 | BP124: 1.24E-04 | BQ124: -5 | BR124: 2.49135 | BS124: 7.72E-05 | BT124: -5 | BU124: 2.49135 | BV124: 3.93E-04 | BX124: 3.71223 | BY124: 0.0916 | BZ124: 0.12123 | CA124: 0.11387 | CB124: 0.16571 | CD124: -46.24115 | CE124: 0 | CF124: 0 | CG124: -39.51658 | CH124: 0 | CI124: 0 | CJ124: -39.75423 | CK124: 0 | CL124: 0
P125: 647.98 | Q125: 41349 | R125: 37320.2 | S125: 37320.6 | T125: 39790.2 | U125: 37320.2 | V125: 37324.6 | W125: 37320.3 | X125: 37320.2 | Y125: 39795 | Z125: 647.98 | AA125: 43640.4 | AB125: 37988.5 | AC125: 37988.6 | AD125: 42660.1 | AE125: 37988.5 | AF125: 37998.5 | AG125: 37988.6 | AH125: 37988.5 | AI125: 42670 | AK125: 482.98 | AL125: 21214.2 | AM125: 20795.9 | AN125: 20795.9 | AO125: 21307.6 | AP125: 20800.5 | AQ125: 20795.9 | AR125: 21312.1 | AS125: 482.98 | AT125: 16877.5 | AU125: 14831.2 | AV125: 16812.5 | AW125: 14831.2 | AX125: 14896 | AY125: 14831.2 | AZ125: 16877.2 | BB125: 22136.911 | BC125: 1.14856 | BD125: 0.95137 | BE125: 1.10201 | BF125: 1.17753 | BK125: -5 | BL125: 2.50345 | BM125: 1.01E-04 | BN125: -5 | BO125: 2.70896 | BP125: 1.13E-04 | BQ125: -5 | BR125: 2.51211 | BS125: 7.25E-05 | BT125: -5 | BU125: 2.51211 | BV125: 3.67E-04 | BX125: 3.74291 | BY125: 0.22295 | BZ125: 0.09764 | CA125: 0.10643 | CB125: 0.08939 | CD125: -46.17915 | CE125: 0 | CF125: 0 | CG125: -39.45958 | CH125: 0 | CI125: 0 | CJ125: -39.70123 | CK125: 0 | CL125: 0
P126: 647.88 | Q126: 41444.9 | R126: 37285.9 | S126: 37286.1 | T126: 40085.3 | U126: 37285.9 | V126: 37291.4 | W126: 37285.9 | X126: 37285.9 | Y126: 40091.2 | Z126: 647.88 | AA126: 44088.7 | AB126: 37947.1 | AC126: 37947.1 | AD126: 43106.4 | AE126: 37947.1 | AF126: 37960.1 | AG126: 37947.1 | AH126: 37947.1 | AI126: 43119.5 | AK126: 482.88 | AL126: 20961.6 | AM126: 20797.7 | AN126: 20797.7 | AO126: 21283.2 | AP126: 20801.7 | AQ126: 20797.7 | AR126: 21287.2 | AS126: 482.88 | AT126: 17084.3 | AU126: 14822.5 | AV126: 16657.6 | AW126: 14822.5 | AX126: 14879.7 | AY126: 14822.5 | AZ126: 16714.8 | BB126: 22137.882 | BC126: 1.13845 | BD126: 0.96551 | BE126: 1.1049 | BF126: 1.1794 | BK126: -5 | BL126: 2.52414 | BM126: 8.65E-05 | BN126: -5 | BO126: 2.73134 | BP126: 1.03E-04 | BQ126: -5 | BR126: 2.53287 | BS126: 6.79E-05 | BT126: -5 | BU126: 2.53287 | BV126: 3.43E-04 | BX126: 3.77359 | BY126: 0.34553 | BZ126: 0.09879 | CA126: 0.11298 | CB126: 0.11889 | CD126: -46.11715 | CE126: 0 | CF126: 0 | CG126: -39.40258 | CH126: 0 | CI126: 0 | CJ126: -39.64823 | CK126: 0 | CL126: 0
P127: 647.78 | Q127: 42120.5 | R127: 37249.6 | S127: 37249.8 | T127: 40404.4 | U127: 37249.6 | V127: 37256.8 | W127: 37249.7 | X127: 37249.6 | Y127: 40411.7 | Z127: 647.78 | AA127: 44668.4 | AB127: 37902.5 | AC127: 37902.5 | AD127: 43564.4 | AE127: 37902.5 | AF127: 37919.7 | AG127: 37902.5 | AH127: 37902.5 | AI127: 43581.6 | AK127: 482.78 | AL127: 21204.1 | AM127: 20799.5 | AN127: 20799.5 | AO127: 21259 | AP127: 20802.9 | AQ127: 20799.5 | AR127: 21262.4 | AS127: 482.78 | AT127: 16700.4 | AU127: 14814.4 | AV127: 16504.4 | AW127: 14814.4 | AX127: 14864.8 | AY127: 14814.4 | AZ127: 16554.8 | BB127: 22138.853 | BC127: 1.12748 | BD127: 0.98441 | BE127: 1.10896 | BF127: 1.18336 | BK127: -5 | BL127: 2.54483 | BM127: 7.40E-05 | BN127: -5 | BO127: 2.75373 | BP127: 9.45E-05 | BQ127: -5 | BR127: 2.55363 | BS127: 6.35E-05 | BT127: -5 | BU127: 2.55363 | BV127: 3.20E-04 | BX127: 3.80427 | BY127: 0.45208 | BZ127: 0.11906 | CA127: 0.13047 | CB127: 0.19834 | CD127: -46.05615 | CE127: 0 | CF127: 0 | CG127: -39.34558 | CH127: 0 | CI127: 0 | CJ127: -39.59423 | CK127: 0 | CL127: 0
P128: 647.68 | Q128: 41784.3 | R128: 37211.3 | S128: 37211.5 | T128: 40745.7 | U128: 37211.3 | V128: 37220.6 | W128: 37211.4 | X128: 37211.3 | Y128: 40755.2 | Z128: 647.68 | AA128: 44889.4 | AB128: 37856.3 | AC128: 37856.3 | AD128: 44029 | AE128: 37856.3 | AF128: 37878.8 | AG128: 37856.3 | AH128: 37856.3 | AI128: 44051.6 | AK128: 482.68 | AL128: 21532.7 | AM128: 20801.3 | AN128: 20801.3 | AO128: 21235 | AP128: 20804.3 | AQ128: 20801.3 | AR128: 21238 | AS128: 482.68 | AT128: 16348.9 | AU128: 14806.8 | AV128: 16354.6 | AW128: 14806.8 | AX128: 14851.1 | AY128: 14806.8 | AZ128: 16398.9 | BB128: 22139.824 | BC128: 1.11359 | BD128: 1.00418 | BE128: 1.11095 | BF128: 1.18713 | BK128: -5 | BL128: 2.56552 | BM128: 6.31E-05 | BN128: -5 | BO128: 2.77612 | BP128: 8.63E-05 | BQ128: -5 | BR128: 2.57439 | BS128: 5.92E-05 | BT128: -5 | BU128: 2.57439 | BV128: 2.98E-04 | BX128: 3.83495 | BY128: 0.53673 | BZ128: 0.14613 | CA128: 0.15233 | CB128: 0.27368 | CD128: -45.99415 | CE128: 0 | CF128: 0 | CG128: -39.28758 | CH128: 0 | CI128: 0 | CJ128: -39.54123 | CK128: 0 | CL128: 0
P129: 647.58 | Q129: 42052.9 | R129: 37171.8 | S129: 37171.9 | T129: 41107.8 | U129: 37171.8 | V129: 37183.9 | W129: 37171.8 | X129: 37171.8 | Y129: 41119.9 | Z129: 647.58 | AA129: 44703.1 | AB129: 37807.4 | AC129: 37807.4 | AD129: 44492.1 | AE129: 37807.4 | AF129: 37836.8 | AG129: 37807.4 | AH129: 37807.4 | AI129: 44521.4 | AK129: 482.58 | AL129: 21131.4 | AM129: 20803 | AN129: 20803 | AO129: 21211.5 | AP129: 20805.6 | AQ129: 20803 | AR129: 21214.1 | AS129: 482.58 | AT129: 16267.1 | AU129: 14799.8 | AV129: 16209.7 | AW129: 14799.8 | AX129: 14838.7 | AY129: 14799.8 | AZ129: 16248.6 | BB129: 22140.916 | BC129: 1.09937 | BD129: 1.02327 | BE129: 1.10915 | BF129: 1.18479 | BK129: -5 | BL129: 2.58621 | BM129: 5.36E-05 | BN129: -5 | BO129: 2.79851 | BP129: 7.88E-05 | BQ129: -5 | BR129: 2.59516 | BS129: 5.52E-05 | BT129: -5 | BU129: 2.59516 | BV129: 2.78E-04 | BX129: 3.86563 | BY129: 0.5953 | BZ129: 0.17288 | CA129: 0.1731 | CB129: 0.33432 | CD129: -45.93215 | CE129: 0 | CF129: 0 | CG129: -39.23058 | CH129: 0 | CI129: 0 | CJ129: -39.48823 | CK129: 0 | CL129: 0
P130: 647.48 | Q130: 42088.8 | R130: 37130.3 | S130: 37130.3 | T130: 41486.6 | U130: 37130.3 | V130: 37145.9 | W130: 37130.3 | X130: 37130.3 | Y130: 41502.3 | Z130: 647.48 | AA130: 45619.9 | AB130: 37756.7 | AC130: 37756.7 | AD130: 44945.9 | AE130: 37756.7 | AF130: 37794.7 | AG130: 37756.7 | AH130: 37756.7 | AI130: 44984 | AK130: 482.48 | AL130: 21618.7 | AM130: 20804.8 | AN130: 20804.8 | AO130: 21188.6 | AP130: 20807.1 | AQ130: 20804.8 | AR130: 21190.8 | AS130: 482.48 | AT130: 16189.5 | AU130: 14793.4 | AV130: 16070.9 | AW130: 14793.4 | AX130: 14827.4 | AY130: 14793.4 | AZ130: 16104.9 | BB130: 22141.887 | BC130: 1.08199 | BD130: 1.03979 | BE130: 1.10695 | BF130: 1.17517 | BK130: -5 | BL130: 2.6069 | BM130: 4.54E-05 | BN130: -5 | BO130: 2.8209 | BP130: 7.19E-05 | BQ130: -5 | BR130: 2.61592 | BS130: 5.13E-05 | BT130: -5 | BU130: 2.61592 | BV130: 2.59E-04 | BX130: 3.89631 | BY130: 0.62569 | BZ130: 0.19651 | CA130: 0.18924 | CB130: 0.37711 | CD130: -45.87115 | CE130: 0 | CF130: 0 | CG130: -39.17358 | CH130: 0 | CI130: 0 | CJ130: -39.43423 | CK130: 0 | CL130: 0
P131: 647.38 | Q131: 42708.1 | R131: 37087.6 | S131: 37087.6 | T131: 41878.7 | U131: 37087.6 | V131: 37107.9 | W131: 37087.6 | X131: 37087.6 | Y131: 41899.1 | Z131: 647.38 | AA131: 45373.3 | AB131: 37703.9 | AC131: 37703.9 | AD131: 45381.4 | AE131: 37703.9 | AF131: 37753.1 | AG131: 37703.9 | AH131: 37703.9 | AI131: 45430.6 | AK131: 482.38 | AL131: 21800.3 | AM131: 20806.6 | AN131: 20806.6 | AO131: 21166.2 | AP131: 20808.5 | AQ131: 20806.6 | AR131: 21168.1 | AS131: 482.38 | AT131: 16302.2 | AU131: 14787.3 | AV131: 15938.9 | AW131: 14787.3 | AX131: 14817 | AY131: 14787.3 | AZ131: 15968.6 | BB131: 22142.858 | BC131: 1.06404 | BD131: 1.05487 | BE131: 1.1013 | BF131: 1.161 | BK131: -5 | BL131: 2.62759 | BM131: 3.83E-05 | BN131: -5 | BO131: 2.84328 | BP131: 6.55E-05 | BQ131: -5 | BR131: 2.63668 | BS131: 4.77E-05 | BT131: -5 | BU131: 2.63668 | BV131: 2.41E-04 | BX131: 3.92699 | BY131: 0.62809 | BZ131: 0.21622 | CA131: 0.19867 | CB131: 0.4013 | CD131: -45.80915 | CE131: 0 | CF131: 0 | CG131: -39.11658 | CH131: 0 | CI131: 0 | CJ131: -39.38123 | CK131: 0 | CL131: 0
P132: 647.28 | Q132: 42822.5 | R132: 37042.4 | S132: 37042.4 | T132: 42277.7 | U132: 37042.4 | V132: 37068.7 | W132: 37042.4 | X132: 37042.4 | Y132: 42304 | Z132: 647.28 | AA132: 46052.8 | AB132: 37649.7 | AC132: 37649.7 | AD132: 45789.5 | AE132: 37649.7 | AF132: 37712.8 | AG132: 37649.7 | AH132: 37649.7 | AI132: 45852.6 | AK132: 482.28 | AL132: 21149.7 | AM132: 20808.4 | AN132: 20808.4 | AO132: 21144.6 | AP132: 20810.1 | AQ132: 20808.4 | AR132: 21146.3 | AS132: 482.28 | AT132: 16255.3 | AU132: 14781.5 | AV132: 15814.4 | AW132: 14781.5 | AX132: 14807.5 | AY132: 14781.5 | AZ132: 15840.3 | BB132: 22143.83 | BC132: 1.04808 | BD132: 1.07001 | BE132: 1.09647 | BF132: 1.14597 | BK132: -5 | BL132: 2.64828 | BM132: 3.21E-05 | BN132: -5 | BO132: 2.86567 | BP132: 5.98E-05 | BQ132: -5 | BR132: 2.65744 | BS132: 4.42E-05 | BT132: -5 | BU132: 2.65744 | BV132: 2.24E-04 | BX132: 3.95767 | BY132: 0.60508 | BZ132: 0.23231 | CA132: 0.20035 | CB132: 0.4076 | CD132: -45.74715 | CE132: 0 | CF132: 0 | CG132: -39.05858 | CH132: 0 | CI132: 0 | CJ132: -39.32723 | CK132: 0 | CL132: 0
P133: 647.18 | Q133: 43386.4 | R133: 36994.9 | S133: 36994.9 | T133: 42677.6 | U133: 36994.9 | V133: 37028.9 | W133: 36994.9 | X133: 36994.9 | Y133: 42711.6 | Z133: 647.18 | AA133: 45875 | AB133: 37593.2 | AC133: 37593.2 | AD133: 46159.5 | AE133: 37593.2 | AF133: 37674 | AG133: 37593.2 | AH133: 37593.2 | AI133: 46240.3 | AK133: 482.18 | AL133: 21054.2 | AM133: 20810.2 | AN133: 20810.2 | AO133: 21123.8 | AP133: 20811.6 | AQ133: 20810.2 | AR133: 21125.2 | AS133: 482.18 | AT133: 15909.8 | AU133: 14776 | AV133: 15697.8 | AW133: 14776 | AX133: 14798.6 | AY133: 14776 | AZ133: 15720.4 | BB133: 22144.923 | BC133: 1.03056 | BD133: 1.08687 | BE133: 1.08999 | BF133: 1.1264 | BK133: -5 | BL133: 2.66897 | BM133: 2.68E-05 | BN133: -5 | BO133: 2.88806 | BP133: 5.45E-05 | BQ133: -5 | BR133: 2.6782 | BS133: 4.10E-05 | BT133: -5 | BU133: 2.6782 | BV133: 2.07E-04 | BX133: 3.98835 | BY133: 0.56158 | BZ133: 0.24575 | CA133: 0.19413 | CB133: 0.39789 | CD133: -45.68615 | CE133: 0 | CF133: 0 | CG133: -39.00158 | CH133: 0 | CI133: 0 | CJ133: -39.27423 | CK133: 0 | CL133: 0
P134: 647.08 | Q134: 43531.2 | R134: 36945.5 | S134: 36945.5 | T134: 43071.8 | U134: 36945.5 | V134: 36989.2 | W134: 36945.5 | X134: 36945.5 | Y134: 43115.5 | Z134: 647.08 | AA134: 46283.6 | AB134: 37535.9 | AC134: 37535.9 | AD134: 46483.3 | AE134: 37535.9 | AF134: 37638.7 | AG134: 37535.9 | AH134: 37535.9 | AI134: 46586.2 | AK134: 482.08 | AL134: 21352.8 | AM134: 20811.9 | AN134: 20811.9 | AO134: 21103.8 | AP134: 20813.2 | AQ134: 20811.9 | AR134: 21105 | AS134: 482.08 | AT134: 15941.4 | AU134: 14770.9 | AV134: 15589.5 | AW134: 14770.9 | AX134: 14790.4 | AY134: 14770.9 | AZ134: 15609.1 | BB134: 22145.894 | BC134: 1.01396 | BD134: 1.10096 | BE134: 1.08359 | BF134: 1.10703 | BK134: -5 | BL134: 2.68966 | BM134: 2.23E-05 | BN134: -5 | BO134: 2.91045 | BP134: 4.96E-05 | BQ134: -5 | BR134: 2.69896 | BS134: 3.80E-05 | BT134: -5 | BU134: 2.69896 | BV134: 1.92E-04 | BX134: 4.01903 | BY134: 0.50484 | BZ134: 0.25788 | CA134: 0.18061 | CB134: 0.37491 | CD134: -45.62415 | CE134: 0 | CF134: 0 | CG134: -38.94458 | CH134: 0 | CI134: 0 | CJ134: -39.22123 | CK134: 0 | CL134: 0
P135: 646.98 | Q135: 43324.9 | R135: 36894.4 | S135: 36894.4 | T135: 43452.7 | U135: 36894.4 | V135: 36950.4 | W135: 36894.4 | X135: 36894.4 | Y135: 43508.8 | Z135: 646.98 | AA135: 46034.1 | AB135: 37476.9 | AC135: 37476.9 | AD135: 46750.9 | AE135: 37476.9 | AF135: 37607.3 | AG135: 37476.9 | AH135: 37476.9 | AI135: 46881.4 | AK135: 481.98 | AL135: 21225.8 | AM135: 20813.7 | AN135: 20813.7 | AO135: 21084.7 | AP135: 20814.8 | AQ135: 20813.7 | AR135: 21085.7 | AS135: 481.98 | AT135: 15770.3 | AU135: 14766.1 | AV135: 15489.7 | AW135: 14766.1 | AX135: 14783 | AY135: 14766.1 | AZ135: 15506.7 | BB135: 22146.866 | BC135: 1.00125 | BD135: 1.11626 | BE135: 1.07523 | BF135: 1.08563 | BK135: -5 | BL135: 2.71034 | BM135: 1.84E-05 | BN135: -5 | BO135: 2.93284 | BP135: 4.52E-05 | BQ135: -5 | BR135: 2.71972 | BS135: 3.51E-05 | BT135: -5 | BU135: 2.71972 | BV135: 1.78E-04 | BX135: 4.04971 | BY135: 0.44443 | BZ135: 0.27021 | CA135: 0.16103 | CB135: 0.34208 | CD135: -45.56215 | CE135: 0 | CF135: 0 | CG135: -38.88758 | CH135: 0 | CI135: 0 | CJ135: -39.16723 | CK135: 0 | CL135: 0
P136: 646.88 | Q136: 43732.6 | R136: 36841.4 | S136: 36841.4 | T136: 43812.1 | U136: 36841.4 | V136: 36913.1 | W136: 36841.4 | X136: 36841.4 | Y136: 43883.8 | Z136: 646.88 | AA136: 46460.5 | AB136: 37417.5 | AC136: 37417.5 | AD136: 46955.5 | AE136: 37417.5 | AF136: 37582 | AG136: 37417.5 | AH136: 37417.5 | AI136: 47120.1 | AK136: 481.88 | AL136: 21169.6 | AM136: 20815.5 | AN136: 20815.5 | AO136: 21066.5 | AP136: 20816.4 | AQ136: 20815.5 | AR136: 21067.4 | AS136: 481.88 | AT136: 15825.3 | AU136: 14761.8 | AV136: 15398.5 | AW136: 14761.8 | AX136: 14776.4 | AY136: 14761.8 | AZ136: 15413.2 | BB136: 22147.837 | BC136: 0.99092 | BD136: 1.12976 | BE136: 1.06562 | BF136: 1.06333 | BK136: -5 | BL136: 2.73103 | BM136: 1.51E-05 | BN136: -5 | BO136: 2.95522 | BP136: 4.12E-05 | BQ136: -5 | BR136: 2.74048 | BS136: 3.25E-05 | BT136: -5 | BU136: 2.74048 | BV136: 1.65E-04 | BX136: 4.08039 | BY136: 0.39208 | BZ136: 0.284 | CA136: 0.13721 | CB136: 0.30323 | CD136: -45.50115 | CE136: 0 | CF136: 0 | CG136: -38.82958 | CH136: 0 | CI136: 0 | CJ136: -39.11423 | CK136: 0 | CL136: 0
P137: 646.78 | Q137: 43923.5 | R137: 36787.3 | S137: 36787.3 | T137: 44142 | U137: 36787.3 | V137: 36878.6 | W137: 36787.3 | X137: 36787.3 | Y137: 44233.3 | Z137: 646.78 | AA137: 46086 | AB137: 37357.4 | AC137: 37357.4 | AD137: 47089.8 | AE137: 37357.4 | AF137: 37564.1 | AG137: 37357.4 | AH137: 37357.4 | AI137: 47296.5 | AK137: 481.78 | AL137: 21074.6 | AM137: 20817.3 | AN137: 20817.3 | AO137: 21049.3 | AP137: 20818.1 | AQ137: 20817.3 | AR137: 21050.1 | AS137: 481.78 | AT137: 15579 | AU137: 14757.8 | AV137: 15315.5 | AW137: 14757.8 | AX137: 14770.4 | AY137: 14757.8 | AZ137: 15328.1 | BB137: 22148.809 | BC137: 0.97891 | BD137: 1.13678 | BE137: 1.05361 | BF137: 1.03482 | BK137: -5 | BL137: 2.75172 | BM137: 1.23E-05 | BN137: -5 | BO137: 2.97761 | BP137: 3.75E-05 | BQ137: -5 | BR137: 2.76125 | BS137: 3.00E-05 | BT137: -5 | BU137: 2.76125 | BV137: 1.52E-04 | BX137: 4.11107 | BY137: 0.36007 | BZ137: 0.30001 | CA137: 0.11154 | CB137: 0.26235 | CD137: -45.43915 | CE137: 0 | CF137: 0 | CG137: -38.77258 | CH137: 0 | CI137: 0 | CJ137: -39.06123 | CK137: 0 | CL137: 0
P138: 646.68 | Q138: 43993.5 | R138: 36731.3 | S138: 36731.3 | T138: 44433.3 | U138: 36731.3 | V138: 36847.1 | W138: 36731.3 | X138: 36731.3 | Y138: 44549.1 | Z138: 646.68 | AA138: 46179 | AB138: 37296.7 | AC138: 37296.6 | AD138: 47148.8 | AE138: 37296.6 | AF138: 37555.1 | AG138: 37296.6 | AH138: 37296.6 | AI138: 47407.3 | AK138: 481.68 | AL138: 21143 | AM138: 20819.1 | AN138: 20819.1 | AO138: 21033.1 | AP138: 20819.7 | AQ138: 20819.1 | AR138: 21033.8 | AS138: 481.68 | AT138: 15551.2 | AU138: 14754.2 | AV138: 15240.5 | AW138: 14754.2 | AX138: 14765.1 | AY138: 14754.2 | AZ138: 15251.3 | BB138: 22149.903 | BC138: 0.97152 | BD138: 1.13376 | BE138: 1.03635 | BF138: 1.00065 | BK138: -5 | BL138: 2.77241 | BM138: 9.86E-06 | BN138: -5 | BO138: 3 | BP138: 3.41E-05 | BQ138: -5 | BR138: 2.78201 | BS138: 2.77E-05 | BT138: -5 | BU138: 2.78201 | BV138: 1.40E-04 | BX138: 4.14175 | BY138: 0.35622 | BZ138: 0.31822 | CA138: 0.08705 | CB138: 0.22341 | CD138: -45.37715 | CE138: 0 | CF138: 0 | CG138: -38.71558 | CH138: 0 | CI138: 0 | CJ138: -39.00723 | CK138: 0 | CL138: 0
P139: 646.58 | Q139: 44645.7 | R139: 36673.1 | S139: 36673 | T139: 44677.4 | U139: 36673 | V139: 36819.2 | W139: 36673 | X139: 36673 | Y139: 44823.7 | Z139: 646.58 | AA139: 46485.3 | AB139: 37234.7 | AC139: 37234.7 | AD139: 47128.6 | AE139: 37234.7 | AF139: 37556.4 | AG139: 37234.7 | AH139: 37234.7 | AI139: 47450.3 | AK139: 481.58 | AL139: 21206.2 | AM139: 20820.9 | AN139: 20820.9 | AO139: 21017.9 | AP139: 20821.4 | AQ139: 20820.9 | AR139: 21018.4 | AS139: 481.58 | AT139: 15370.5 | AU139: 14750.9 | AV139: 15173 | AW139: 14750.9 | AX139: 14760.2 | AY139: 14750.9 | AZ139: 15182.3 | BB139: 22150.874 | BC139: 0.96487 | BD139: 1.12146 | BE139: 1.01692 | BF139: 0.96936 | BK139: -5 | BL139: 2.7931 | BM139: 7.84E-06 | BN139: -5 | BO139: 3.02239 | BP139: 3.10E-05 | BQ139: -5 | BR139: 2.80277 | BS139: 2.56E-05 | BT139: -5 | BU139: 2.80277 | BV139: 1.29E-04 | BX139: 4.17243 | BY139: 0.37873 | BZ139: 0.33785 | CA139: 0.06765 | CB139: 0.19011 | CD139: -45.31615 | CE139: 0 | CF139: 0 | CG139: -38.65858 | CH139: 0 | CI139: 0 | CJ139: -38.95423 | CK139: 0 | CL139: 0
P140: 646.48 | Q140: 44786 | R140: 36613.7 | S140: 36613.6 | T140: 44867.9 | U140: 36613.6 | V140: 36797.5 | W140: 36613.6 | X140: 36613.6 | Y140: 45051.9 | Z140: 646.48 | AA140: 46749 | AB140: 37172.2 | AC140: 37172.2 | AD140: 47028.7 | AE140: 37172.2 | AF140: 37570.8 | AG140: 37172.2 | AH140: 37172.2 | AI140: 47427.3 | AK140: 481.48 | AL140: 21350.1 | AM140: 20822.6 | AN140: 20822.6 | AO140: 21003.6 | AP140: 20823.1 | AQ140: 20822.6 | AR140: 21004.1 | AS140: 481.48 | AT140: 15496.2 | AU140: 14747.8 | AV140: 15112.6 | AW140: 14747.8 | AX140: 14755.8 | AY140: 14747.8 | AZ140: 15120.6 | BB140: 22151.846 | BC140: 0.95954 | BD140: 1.10266 | BE140: 0.99829 | BF140: 0.94436 | BK140: -5 | BL140: 2.81379 | BM140: 6.15E-06 | BN140: -5 | BO140: 3.04478 | BP140: 2.82E-05 | BQ140: -5 | BR140: 2.82353 | BS140: 2.37E-05 | BT140: -5 | BU140: 2.82353 | BV140: 1.19E-04 | BX140: 4.20311 | BY140: 0.41863 | BZ140: 0.35757 | CA140: 0.05759 | CB140: 0.16539 | CD140: -45.25415 | CE140: 0 | CF140: 0 | CG140: -38.60058 | CH140: 0 | CI140: 0 | CJ140: -38.90023 | CK140: 0 | CL140: 0
P141: 646.38 | Q141: 44291.1 | R141: 36552.6 | S141: 36552.5 | T141: 44998 | U141: 36552.5 | V141: 36782.8 | W141: 36552.5 | X141: 36552.5 | Y141: 45228.4 | Z141: 646.38 | AA141: 46657.9 | AB141: 37108 | AC141: 37107.9 | AD141: 46849.1 | AE141: 37107.9 | AF141: 37599.5 | AG141: 37107.9 | AH141: 37107.9 | AI141: 47340.7 | AK141: 481.38 | AL141: 21194 | AM141: 20824.4 | AN141: 20824.4 | AO141: 20990.3 | AP141: 20824.8 | AQ141: 20824.4 | AR141: 20990.7 | AS141: 481.38 | AT141: 15513.2 | AU141: 14744.7 | AV141: 15058.6 | AW141: 14744.7 | AX141: 14751.5 | AY141: 14744.7 | AZ141: 15065.5 | BB141: 22152.819 | BC141: 0.95691 | BD141: 1.08083 | BE141: 0.98051 | BF141: 0.92685 | BK141: -5 | BL141: 2.83448 | BM141: 4.74E-06 | BN141: -5 | BO141: 3.06716 | BP141: 2.56E-05 | BQ141: -5 | BR141: 2.84429 | BS141: 2.18E-05 | BT141: -5 | BU141: 2.84429 | BV141: 1.09E-04 | BX141: 4.23379 | BY141: 0.46681 | BZ141: 0.3757 | CA141: 0.05766 | CB141: 0.15074 | CD141: -45.19215 | CE141: 0 | CF141: 0 | CG141: -38.54358 | CH141: 0 | CI141: 0 | CJ141: -38.84723 | CK141: 0 | CL141: 0
P142: 646.28 | Q142: 44867 | R142: 36489.8 | S142: 36489.6 | T142: 45062.4 | U142: 36489.6 | V142: 36776.7 | W142: 36489.6 | X142: 36489.6 | Y142: 45349.7 | Z142: 646.28 | AA142: 47165.9 | AB142: 37043 | AC142: 37042.9 | AD142: 46593.7 | AE142: 37042.9 | AF142: 37646.3 | AG142: 37042.9 | AH142: 37042.9 | AI142: 47197.2 | AK142: 481.28 | AL142: 21192.2 | AM142: 20826.2 | AN142: 20826.2 | AO142: 20977.9 | AP142: 20826.5 | AQ142: 20826.2 | AR142: 20978.2 | AS142: 481.28 | AT142: 15570.8 | AU142: 14741.8 | AV142: 15010.8 | AW142: 14741.8 | AX142: 14747.6 | AY142: 14741.8 | AZ142: 15016.6 | BB142: 22153.912 | BC142: 0.95408 | BD142: 1.05605 | BE142: 0.96395 | BF142: 0.91477 | BK142: -5 | BL142: 2.85517 | BM142: 3.58E-06 | BN142: -5 | BO142: 3.08955 | BP142: 2.33E-05 | BQ142: -5 | BR142: 2.86505 | BS142: 2.02E-05 | BT142: -5 | BU142: 2.86505 | BV142: 1.00E-04 | BX142: 4.26447 | BY142: 0.51752 | BZ142: 0.39057 | CA142: 0.06299 | CB142: 0.14545 | CD142: -45.13115 | CE142: 0 | CF142: 0 | CG142: -38.48658 | CH142: 0 | CI142: 0 | CJ142: -38.79423 | CK142: 0 | CL142: 0
P143: 646.18 | Q143: 45066.9 | R143: 36426.1 | S143: 36425.8 | T143: 45058.7 | U143: 36425.8 | V143: 36782.2 | W143: 36425.8 | X143: 36425.8 | Y143: 45415.3 | Z143: 646.18 | AA143: 46530 | AB143: 36977.1 | AC143: 36977 | AD143: 46267.6 | AE143: 36977 | AF143: 37714.2 | AG143: 36977 | AH143: 36977 | AI143: 47005 | AK143: 481.18 | AL143: 20926.7 | AM143: 20828 | AN143: 20828 | AO143: 20966.5 | AP143: 20828.3 | AQ143: 20828 | AR143: 20966.7 | AS143: 481.18 | AT143: 15326.9 | AU143: 14738.7 | AV143: 14968.3 | AW143: 14738.7 | AX143: 14743.7 | AY143: 14738.7 | AZ143: 14973.3 | BB143: 22154.885 | BC143: 0.95152 | BD143: 1.03728 | BE143: 0.95265 | BF143: 0.90924 | BK143: -5 | BL143: 2.87586 | BM143: 2.62E-06 | BN143: -5 | BO143: 3.11194 | BP143: 2.12E-05 | BQ143: -5 | BR143: 2.88581 | BS143: 1.86E-05 | BT143: -5 | BU143: 2.88581 | BV143: 9.22E-05 | BX143: 4.29515 | BY143: 0.56799 | BZ143: 0.40064 | CA143: 0.06822 | CB143: 0.1471 | CD143: -45.06915 | CE143: 0 | CF143: 0 | CG143: -38.42958 | CH143: 0 | CI143: 0 | CJ143: -38.74023 | CK143: 0 | CL143: 0
P144: 646.08 | Q144: 44977.6 | R144: 36361.8 | S144: 36361.4 | T144: 44985.5 | U144: 36361.4 | V144: 36801.7 | W144: 36361.4 | X144: 36361.4 | Y144: 45426.1 | Z144: 646.08 | AA144: 46914.9 | AB144: 36910.7 | AC144: 36910.5 | AD144: 45877.7 | AE144: 36910.5 | AF144: 37807 | AG144: 36910.5 | AH144: 36910.5 | AI144: 46774.6 | AK144: 481.08 | AL144: 20897.1 | AM144: 20829.8 | AN144: 20829.8 | AO144: 20955.9 | AP144: 20830 | AQ144: 20829.8 | AR144: 20956.2 | AS144: 481.08 | AT144: 15465.2 | AU144: 14735.8 | AV144: 14930.9 | AW144: 14735.8 | AX144: 14740 | AY144: 14735.8 | AZ144: 14935.1 | BB144: 22155.857 | BC144: 0.9497 | BD144: 1.01879 | BE144: 0.94628 | BF144: 0.90617 | BK144: -5 | BL144: 2.89655 | BM144: 1.86E-06 | BN144: -5 | BO144: 3.13433 | BP144: 1.93E-05 | BQ144: -5 | BR144: 2.90657 | BS144: 1.72E-05 | BT144: -5 | BU144: 2.90657 | BV144: 8.45E-05 | BX144: 4.32583 | BY144: 0.61717 | BZ144: 0.40473 | CA144: 0.07063 | CB144: 0.1529 | CD144: -45.00715 | CE144: 0 | CF144: 0 | CG144: -38.37158 | CH144: 0 | CI144: 0 | CJ144: -38.68723 | CK144: 0 | CL144: 0
P145: 645.98 | Q145: 44924.1 | R145: 36297 | S145: 36296.4 | T145: 44842.9 | U145: 36296.4 | V145: 36838 | W145: 36296.4 | X145: 36296.4 | Y145: 45385 | Z145: 645.98 | AA145: 46905.4 | AB145: 36844.4 | AC145: 36844 | AD145: 45433 | AE145: 36844 | AF145: 37929.2 | AG145: 36844 | AH145: 36844 | AI145: 46518.5 | AK145: 480.98 | AL145: 21062.5 | AM145: 20831.5 | AN145: 20831.5 | AO145: 20946.2 | AP145: 20831.7 | AQ145: 20831.5 | AR145: 20946.4 | AS145: 480.98 | AT145: 15337.5 | AU145: 14733.2 | AV145: 14898.3 | AW145: 14733.2 | AX145: 14736.8 | AY145: 14733.2 | AZ145: 14901.9 | BB145: 22156.829 | BC145: 0.95028 | BD145: 1.00197 | BE145: 0.94025 | BF145: 0.90441 | BK145: -5 | BL145: 2.91724 | BM145: 1.26E-06 | BN145: -5 | BO145: 3.15672 | BP145: 1.75E-05 | BQ145: -5 | BR145: 2.92734 | BS145: 1.59E-05 | BT145: -5 | BU145: 2.92734 | BV145: 7.74E-05 | BX145: 4.35651 | BY145: 0.66454 | BZ145: 0.40205 | CA145: 0.06956 | CB145: 0.16068 | CD145: -44.94615 | CE145: 0 | CF145: 0 | CG145: -38.31458 | CH145: 0 | CI145: 0 | CJ145: -38.63423 | CK145: 0 | CL145: 0
P146: 645.88 | Q146: 44456.5 | R146: 36232 | S146: 36231.2 | T146: 44633.6 | U146: 36231.2 | V146: 36894.3 | W146: 36231.2 | X146: 36231.2 | Y146: 45297.5 | Z146: 645.88 | AA146: 46300 | AB146: 36778.5 | AC146: 36777.9 | AD146: 44942.6 | AE146: 36777.9 | AF146: 38085.1 | AG146: 36777.9 | AH146: 36777.9 | AI146: 46250.5 | AK146: 480.88 | AL146: 21196.7 | AM146: 20833.3 | AN146: 20833.3 | AO146: 20937.4 | AP146: 20833.5 | AQ146: 20833.3 | AR146: 20937.6 | AS146: 480.88 | AT146: 15175.6 | AU146: 14731 | AV146: 14870.2 | AW146: 14731 | AX146: 14734 | AY146: 14731 | AZ146: 14873.2 | BB146: 22157.924 | BC146: 0.94944 | BD146: 0.98385 | BE146: 0.93611 | BF146: 0.90285 | BK146: -5 | BL146: 2.93793 | BM146: 8.56E-07 | BN146: -5 | BO146: 3.1791 | BP146: 1.59E-05 | BQ146: -5 | BR146: 2.9481 | BS146: 1.47E-05 | BT146: -5 | BU146: 2.9481 | BV146: 7.09E-05 | BX146: 4.38719 | BY146: 0.70942 | BZ146: 0.3923 | CA146: 0.06571 | CB146: 0.16884 | CD146: -44.88415 | CE146: 0 | CF146: 0 | CG146: -38.25758 | CH146: 0 | CI146: 0 | CJ146: -38.58023 | CK146: 0 | CL146: 0
P147: 645.78 | Q147: 44672.6 | R147: 36167.6 | S147: 36166.4 | T147: 44362 | U147: 36166.4 | V147: 36974.4 | W147: 36166.4 | X147: 36166.4 | Y147: 45171.2 | Z147: 645.78 | AA147: 46571.9 | AB147: 36712 | AC147: 36711 | AD147: 44415.2 | AE147: 36711 | AF147: 38278.3 | AG147: 36711 | AH147: 36711 | AI147: 45983.5 | AK147: 480.78 | AL147: 21186.6 | AM147: 20835.1 | AN147: 20835.1 | AO147: 20929.3 | AP147: 20835.2 | AQ147: 20835.1 | AR147: 20929.5 | AS147: 480.78 | AT147: 14990 | AU147: 14728.9 | AV147: 14845.7 | AW147: 14728.9 | AX147: 14731.5 | AY147: 14728.9 | AZ147: 14848.3 | BB147: 22158.896 | BC147: 0.94912 | BD147: 0.97054 | BE147: 0.93349 | BF147: 0.90111 | BK147: -5 | BL147: 2.95862 | BM147: 6.65E-07 | BN147: -5 | BO147: 3.20149 | BP147: 1.44E-05 | BQ147: -5 | BR147: 2.96886 | BS147: 1.36E-05 | BT147: -5 | BU147: 2.96886 | BV147: 6.48E-05 | BX147: 4.41786 | BY147: 0.7507 | BZ147: 0.37559 | CA147: 0.06074 | CB147: 0.17608 | CD147: -44.82215 | CE147: 0 | CF147: 0 | CG147: -38.20058 | CH147: 0 | CI147: 0 | CJ147: -38.52723 | CK147: 0 | CL147: 0
P148: 645.68 | Q148: 44468.9 | R148: 36103.3 | S148: 36101.5 | T148: 44033.1 | U148: 36101.5 | V148: 37081.8 | W148: 36101.5 | X148: 36101.5 | Y148: 45015.1 | Z148: 645.68 | AA148: 46803 | AB148: 36646.2 | AC148: 36644.7 | AD148: 43861.8 | AE148: 36644.7 | AF148: 38514.8 | AG148: 36644.7 | AH148: 36644.7 | AI148: 45733.4 | AK148: 480.68 | AL148: 21120.9 | AM148: 20836.9 | AN148: 20836.9 | AO148: 20922.1 | AP148: 20837 | AQ148: 20836.9 | AR148: 20922.2 | AS148: 480.68 | AT148: 15218.3 | AU148: 14727 | AV148: 14824.7 | AW148: 14727 | AX148: 14729.2 | AY148: 14727 | AZ148: 14826.8 | BB148: 22159.869 | BC148: 0.94716 | BD148: 0.9618 | BE148: 0.93193 | BF148: 0.89927 | BK148: -5 | BL148: 2.97931 | BM148: 6.80E-07 | BN148: -5 | BO148: 3.22388 | BP148: 1.31E-05 | BQ148: -5 | BR148: 2.98962 | BS148: 1.26E-05 | BT148: -5 | BU148: 2.98962 | BV148: 5.92E-05 | BX148: 4.44854 | BY148: 0.78689 | BZ148: 0.35244 | CA148: 0.05692 | CB148: 0.18111 | CD148: -44.76115 | CE148: 0 | CF148: 0 | CG148: -38.14258 | CH148: 0 | CI148: 0 | CJ148: -38.47323 | CK148: 0 | CL148: 0
P149: 645.58 | Q149: 44646.1 | R149: 36039 | S149: 36036.4 | T149: 43653.3 | U149: 36036.4 | V149: 37219.9 | W149: 36036.4 | X149: 36036.4 | Y149: 44839.4 | Z149: 645.58 | AA149: 46137.7 | AB149: 36580.7 | AC149: 36578.5 | AD149: 43291.7 | AE149: 36578.5 | AF149: 38799.1 | AG149: 36578.5 | AH149: 36578.5 | AI149: 45514.5 | AK149: 480.58 | AL149: 21119.3 | AM149: 20838.7 | AN149: 20838.7 | AO149: 20915.5 | AP149: 20838.8 | AQ149: 20838.7 | AR149: 20915.6 | AS149: 480.58 | AT149: 15222.5 | AU149: 14725.2 | AV149: 14806.5 | AW149: 14725.2 | AX149: 14727 | AY149: 14725.2 | AZ149: 14808.3 | BB149: 22160.842 | BC149: 0.94731 | BD149: 0.95809 | BE149: 0.93086 | BF149: 0.89652 | BK149: -5 | BL149: 3 | BM149: 7.94E-07 | BN149: -5 | BO149: 3.24627 | BP149: 1.19E-05 | BQ149: -5 | BR149: 3.01038 | BS149: 1.16E-05 | BT149: -5 | BU149: 3.01038 | BV149: 5.41E-05 | BX149: 4.47922 | BY149: 0.8163 | BZ149: 0.32367 | CA149: 0.05623 | CB149: 0.18264 | CD149: -44.69915 | CE149: 0 | CF149: 0 | CG149: -38.08558 | CH149: 0 | CI149: 0 | CJ149: -38.42023 | CK149: 0 | CL149: 0
P150: 645.48 | Q150: 44803.1 | R150: 35973.9 | S150: 35970.2 | T150: 43229.6 | U150: 35970.2 | V150: 37392.4 | W150: 35970.2 | X150: 35970.2 | Y150: 44655.5 | Z150: 645.48 | AA150: 46502.2 | AB150: 36515.3 | AC150: 36511.9 | AD150: 42713.4 | AE150: 36511.9 | AF150: 39135.8 | AG150: 36511.9 | AH150: 36511.9 | AI150: 45340.5 | AK150: 480.48 | AL150: 21426 | AM150: 20840.4 | AN150: 20840.4 | AO150: 20909.6 | AP150: 20840.5 | AQ150: 20840.4 | AR150: 20909.7 | AS150: 480.48 | AT150: 15219.8 | AU150: 14723.2 | AV150: 14790.6 | AW150: 14723.2 | AX150: 14724.7 | AY150: 14723.2 | AZ150: 14792.2 | BB150: 22161.815 | BC150: 0.94741 | BD150: 0.95818 | BE150: 0.93012 | BF150: 0.89429 | BK150: -5 | BL150: 3.02069 | BM150: 9.19E-07 | BN150: -5 | BO150: 3.26866 | BP150: 1.08E-05 | BQ150: -5 | BR150: 3.03114 | BS150: 1.08E-05 | BT150: -5 | BU150: 3.03114 | BV150: 4.94E-05 | BX150: 4.5099 | BY150: 0.83732 | BZ150: 0.29031 | CA150: 0.05902 | CB150: 0.17951 | CD150: -44.63715 | CE150: 0 | CF150: 0 | CG150: -38.02858 | CH150: 0 | CI150: 0 | CJ150: -38.36723 | CK150: 0 | CL150: 0
P151: 645.38 | Q151: 44983.2 | R151: 35909.5 | S151: 35904.2 | T151: 42771.4 | U151: 35904.2 | V151: 37605.1 | W151: 35904.2 | X151: 35904.2 | Y151: 44477.6 | Z151: 645.38 | AA151: 46244.6 | AB151: 36449.3 | AC151: 36444.4 | AD151: 42134.7 | AE151: 36444.4 | AF151: 39529.3 | AG151: 36444.4 | AH151: 36444.4 | AI151: 45224.5 | AK151: 480.38 | AL151: 20840.1 | AM151: 20842.2 | AN151: 20842.2 | AO151: 20904.4 | AP151: 20842.3 | AQ151: 20842.2 | AR151: 20904.5 | AS151: 480.38 | AT151: 15377.1 | AU151: 14721.1 | AV151: 14776.8 | AW151: 14721.1 | AX151: 14722.3 | AY151: 14721.1 | AZ151: 14778 | BB151: 22162.909 | BC151: 0.9496 | BD151: 0.95988 | BE151: 0.93134 | BF151: 0.89317 | BK151: -5 | BL151: 3.04138 | BM151: 1.02E-06 | BN151: -5 | BO151: 3.29105 | BP151: 9.79E-06 | BQ151: -5 | BR151: 3.0519 | BS151: 9.95E-06 | BT151: -5 | BU151: 3.0519 | BV151: 4.50E-05 | BX151: 4.54058 | BY151: 0.8486 | BZ151: 0.25346 | CA151: 0.06378 | CB151: 0.17094 | CD151: -44.57615 | CE151: 0 | CF151: 0 | CG151: -37.97158 | CH151: 0 | CI151: 0 | CJ151: -38.31323 | CK151: 0 | CL151: 0
P152: 645.28 | Q152: 44196.4 | R152: 35845 | S152: 35837.4 | T152: 42286.4 | U152: 35837.4 | V152: 37861.8 | W152: 35837.4 | X152: 35837.4 | Y152: 44318.4 | Z152: 645.28 | AA152: 47082 | AB152: 36383.6 | AC152: 36376.4 | AD152: 41563.5 | AE152: 36376.4 | AF152: 39985.2 | AG152: 36376.4 | AH152: 36376.4 | AI152: 45179.6 | AK152: 480.28 | AL152: 21262.2 | AM152: 20844 | AN152: 20844 | AO152: 20899.8 | AP152: 20844.1 | AQ152: 20844 | AR152: 20899.8 | AS152: 480.28 | AT152: 15178.2 | AU152: 14719.1 | AV152: 14764.9 | AW152: 14719.1 | AX152: 14720.2 | AY152: 14719.1 | AZ152: 14766 | BB152: 22163.882 | BC152: 0.94927 | BD152: 0.96178 | BE152: 0.93284 | BF152: 0.89437 | BK152: -5 | BL152: 3.06207 | BM152: 1.10E-06 | BN152: -5 | BO152: 3.31343 | BP152: 8.88E-06 | BQ152: -5 | BR152: 3.07266 | BS152: 9.20E-06 | BT152: -5 | BU152: 3.07266 | BV152: 4.10E-05 | BX152: 4.57126 | BY152: 0.84919 | BZ152: 0.21418 | CA152: 0.06828 | CB152: 0.15682 | CD152: -44.51415 | CE152: 0 | CF152: 0 | CG152: -37.91358 | CH152: 0 | CI152: 0 | CJ152: -38.26023 | CK152: 0 | CL152: 0
P153: 645.18 | Q153: 44684.8 | R153: 35780.6 | S153: 35769.8 | T153: 41783 | U153: 35769.8 | V153: 38167.6 | W153: 35769.8 | X153: 35769.8 | Y153: 44191.5 | Z153: 645.18 | AA153: 46880.2 | AB153: 36317.5 | AC153: 36306.9 | AD153: 41005.2 | AE153: 36306.9 | AF153: 40507 | AG153: 36306.9 | AH153: 36306.9 | AI153: 45216 | AK153: 480.18 | AL153: 21492.4 | AM153: 20845.8 | AN153: 20845.8 | AO153: 20895.7 | AP153: 20845.8 | AQ153: 20845.8 | AR153: 20895.8 | AS153: 480.18 | AT153: 14961.2 | AU153: 14717.3 | AV153: 14754.9 | AW153: 14717.3 | AX153: 14718.2 | AY153: 14717.3 | AZ153: 14755.7 | BB153: 22164.856 | BC153: 0.95283 | BD153: 0.96391 | BE153: 0.93489 | BF153: 0.89708 | BK153: -5 | BL153: 3.08276 | BM153: 1.16E-06 | BN153: -5 | BO153: 3.33582 | BP153: 8.05E-06 | BQ153: -5 | BR153: 3.09343 | BS153: 8.51E-06 | BT153: -5 | BU153: 3.09343 | BV153: 3.74E-05 | BX153: 4.60194 | BY153: 0.83859 | BZ153: 0.17343 | CA153: 0.0707 | CB153: 0.13811 | CD153: -44.45215 | CE153: 0 | CF153: 0 | CG153: -37.85658 | CH153: 0 | CI153: 0 | CJ153: -38.20723 | CK153: 0 | CL153: 0
P154: 645.08 | Q154: 44961.1 | R154: 35716.3 | S154: 35701.2 | T154: 41269.1 | U154: 35701.2 | V154: 38527.2 | W154: 35701.2 | X154: 35701.2 | Y154: 44110.2 | Z154: 645.08 | AA154: 47049.4 | AB154: 36251.2 | AC154: 36235.8 | AD154: 40465 | AE154: 36235.8 | AF154: 41098.9 | AG154: 36235.8 | AH154: 36235.8 | AI154: 45343.5 | AK154: 480.08 | AL154: 20986.5 | AM154: 20847.6 | AN154: 20847.6 | AO154: 20892.2 | AP154: 20847.6 | AQ154: 20847.6 | AR154: 20892.2 | AS154: 480.08 | AT154: 15042.2 | AU154: 14715.7 | AV154: 14746.4 | AW154: 14715.7 | AX154: 14716.4 | AY154: 14715.7 | AZ154: 14747.1 | BB154: 22165.829 | BC154: 0.95544 | BD154: 0.96612 | BE154: 0.93613 | BF154: 0.89937 | BK154: -5 | BL154: 3.10345 | BM154: 1.18E-06 | BN154: -5 | BO154: 3.35821 | BP154: 7.30E-06 | BQ154: -5 | BR154: 3.11419 | BS154: 7.87E-06 | BT154: -5 | BU154: 3.11419 | BV154: 3.41E-05 | BX154: 4.63262 | BY154: 0.81688 | BZ154: 0.13197 | CA154: 0.06984 | CB154: 0.11774 | CD154: -44.39115 | CE154: 0 | CF154: 0 | CG154: -37.79958 | CH154: 0 | CI154: 0 | CJ154: -38.15323 | CK154: 0 | CL154: 0
P155: 644.98 | Q155: 45230.3 | R155: 35652.5 | S155: 35631.4 | T155: 40752.2 | U155: 35631.4 | V155: 38945.6 | W155: 35631.4 | X155: 35631.4 | Y155: 44087.4 | Z155: 644.98 | AA155: 47477.4 | AB155: 36185.3 | AC155: 36163.2 | AD155: 39947.1 | AE155: 36163.2 | AF155: 41764.3 | AG155: 36163.2 | AH155: 36163.2 | AI155: 45570.4 | AK155: 479.98 | AL155: 20821.6 | AM155: 20849.3 | AN155: 20849.3 | AO155: 20889.1 | AP155: 20849.4 | AQ155: 20849.3 | AR155: 20889.2 | AS155: 479.98 | AT155: 14942.6 | AU155: 14714.6 | AV155: 14739.5 | AW155: 14714.6 | AX155: 14715.2 | AY155: 14714.6 | AZ155: 14740.1 | BB155: 22166.924 | BC155: 0.95703 | BD155: 0.96882 | BE155: 0.93846 | BF155: 0.9027 | BK155: -5 | BL155: 3.12414 | BM155: 1.19E-06 | BN155: -5 | BO155: 3.3806 | BP155: 6.62E-06 | BQ155: -5 | BR155: 3.13495 | BS155: 7.27E-06 | BT155: -5 | BU155: 3.13495 | BV155: 3.10E-05 | BX155: 4.6633 | BY155: 0.78486 | BZ155: 0.09039 | CA155: 0.06517 | CB155: 0.10204 | CD155: -44.32915 | CE155: 0 | CF155: 0 | CG155: -37.74258 | CH155: 0 | CI155: 0 | CJ155: -38.10023 | CK155: 0 | CL155: 0
P156: 644.88 | Q156: 45503.7 | R156: 35588.9 | S156: 35559.8 | T156: 40238.1 | U156: 35559.8 | V156: 39426.8 | W156: 35559.8 | X156: 35559.8 | Y156: 44134.3 | Z156: 644.88 | AA156: 47121.4 | AB156: 36121 | AC156: 36089.4 | AD156: 39455 | AE156: 36089.4 | AF156: 42506 | AG156: 36089.4 | AH156: 36089.4 | AI156: 45903 | AK156: 479.88 | AL156: 21277.7 | AM156: 20851.1 | AN156: 20851.1 | AO156: 20886.6 | AP156: 20851.1 | AQ156: 20851.1 | AR156: 20886.6 | AS156: 479.88 | AT156: 14829.7 | AU156: 14713.3 | AV156: 14733.5 | AW156: 14713.3 | AX156: 14713.8 | AY156: 14713.3 | AZ156: 14734 | BB156: 22167.897 | BC156: 0.96285 | BD156: 0.97101 | BE156: 0.9401 | BF156: 0.90584 | BK156: -5 | BL156: 3.14483 | BM156: 1.19E-06 | BN156: -5 | BO156: 3.40299 | BP156: 6.00E-06 | BQ156: -5 | BR156: 3.15571 | BS156: 6.72E-06 | BT156: -5 | BU156: 3.15571 | BV156: 2.82E-05 | BX156: 4.69398 | BY156: 0.7444 | BZ156: 0.04927 | CA156: 0.05665 | CB156: 0.10096 | CD156: -44.26715 | CE156: 0 | CF156: 0 | CG156: -37.68458 | CH156: 0 | CI156: 0 | CJ156: -38.04623 | CK156: 0 | CL156: 0
P157: 644.78 | Q157: 45314.7 | R157: 35525.7 | S157: 35485.5 | T157: 39732.3 | U157: 35485.5 | V157: 39974.5 | W157: 35485.5 | X157: 35485.5 | Y157: 44261.5 | Z157: 644.78 | AA157: 47720.4 | AB157: 36057.9 | AC157: 36013.3 | AD157: 38989.5 | AE157: 36013.3 | AF157: 43323.7 | AG157: 36013.3 | AH157: 36013.3 | AI157: 46344.5 | AK157: 479.78 | AL157: 21243.6 | AM157: 20852.9 | AN157: 20852.9 | AO157: 20884.4 | AP157: 20852.9 | AQ157: 20852.9 | AR157: 20884.4 | AS157: 479.78 | AT157: 15326.2 | AU157: 14712 | AV157: 14728.3 | AW157: 14712 | AX157: 14712.4 | AY157: 14712 | AZ157: 14728.7 | BB157: 22168.871 | BC157: 0.96608 | BD157: 0.97357 | BE157: 0.94208 | BF157: 0.90896 | BK157: -5 | BL157: 3.16552 | BM157: 1.17E-06 | BN157: -5 | BO157: 3.42537 | BP157: 5.44E-06 | BQ157: -5 | BR157: 3.17647 | BS157: 6.21E-06 | BT157: -5 | BU157: 3.17647 | BV157: 2.57E-05 | BX157: 4.72466 | BY157: 0.69881 | BZ157: 0.01155 | CA157: 0.04472 | CB157: 0.11994 | CD157: -44.20615 | CE157: 0 | CF157: 0 | CG157: -37.62758 | CH157: 0 | CI157: 0 | CJ157: -37.99323 | CK157: 0 | CL157: 0
P158: 644.68 | Q158: 46250.5 | R158: 35464.1 | S158: 35409.2 | T158: 39240 | U158: 35409.2 | V158: 40593 | W158: 35409.2 | X158: 35409.2 | Y158: 44478.8 | Z158: 644.68 | AA158: 48494.1 | AB158: 35997.7 | AC158: 35935.1 | AD158: 38552.1 | AE158: 35935.1 | AF158: 44217.4 | AG158: 35935.1 | AH158: 35935.1 | AI158: 46897 | AK158: 479.68 | AL158: 21640.9 | AM158: 20854.7 | AN158: 20854.7 | AO158: 20882.6 | AP158: 20854.7 | AQ158: 20854.7 | AR158: 20882.6 | AS158: 479.68 | AT158: 14960.2 | AU158: 14710.5 | AV158: 14723.6 | AW158: 14710.5 | AX158: 14710.8 | AY158: 14710.5 | AZ158: 14723.9 | BB158: 22169.844 | BC158: 0.97088 | BD158: 0.97598 | BE158: 0.94365 | BF158: 0.91205 | BK158: -5 | BL158: 3.18621 | BM158: 1.14E-06 | BN158: -5 | BO158: 3.44776 | BP158: 4.92E-06 | BQ158: -5 | BR158: 3.19723 | BS158: 5.73E-06 | BT158: -5 | BU158: 3.19723 | BV158: 2.34E-05 | BX158: 4.75534 | BY158: 0.65339 | BZ158: 0.03341 | CA158: 0.03012 | CB158: 0.15374 | CD158: -44.14415 | CE158: 0 | CF158: 0 | CG158: -37.57058 | CH158: 0 | CI158: 0 | CJ158: -37.94023 | CK158: 0 | CL158: 0
P159: 644.58 | Q159: 46181 | R159: 35405.1 | S159: 35330.5 | T159: 38765.1 | U159: 35330.5 | V159: 41284.9 | W159: 35330.5 | X159: 35330.5 | Y159: 44794.1 | Z159: 644.58 | AA159: 48375.8 | AB159: 35941.5 | AC159: 35854.4 | AD159: 38142.9 | AE159: 35854.4 | AF159: 45184.1 | AG159: 35854.4 | AH159: 35854.4 | AI159: 47559.7 | AK159: 479.58 | AL159: 21412 | AM159: 20856.5 | AN159: 20856.5 | AO159: 20881.2 | AP159: 20856.5 | AQ159: 20856.5 | AR159: 20881.2 | AS159: 479.58 | AT159: 15349 | AU159: 14708.7 | AV159: 14719.2 | AW159: 14708.7 | AX159: 14709 | AY159: 14708.7 | AZ159: 14719.5 | BB159: 22170.818 | BC159: 0.97383 | BD159: 0.97821 | BE159: 0.94514 | BF159: 0.91535 | BK159: -5 | BL159: 3.2069 | BM159: 1.10E-06 | BN159: -5 | BO159: 3.47015 | BP159: 4.46E-06 | BQ159: -5 | BR159: 3.21799 | BS159: 5.29E-06 | BT159: -5 | BU159: 3.21799 | BV159: 2.12E-05 | BX159: 4.78602 | BY159: 0.61564 | BZ159: 0.07118 | CA159: 0.01384 | CB159: 0.19476 | CD159: -44.08215 | CE159: 5.00E-05 | CF159: 0 | CG159: -37.51358 | CH159: 0 | CI159: 0 | CJ159: -37.88623 | CK159: 0 | CL159: 0
P160: 644.48 | Q160: 46636.2 | R160: 35349.3 | S160: 35248.8 | T160: 38309.8 | U160: 35248.8 | V160: 42051.3 | W160: 35248.8 | X160: 35248.8 | Y160: 45212.9 | Z160: 644.48 | AA160: 49259.3 | AB160: 35889.9 | AC160: 35769.6 | AD160: 37760.1 | AE160: 35769.6 | AF160: 46217.7 | AG160: 35769.6 | AH160: 35769.6 | AI160: 48328.4 | AK160: 479.48 | AL160: 21098.6 | AM160: 20858.2 | AN160: 20858.2 | AO160: 20880.1 | AP160: 20858.3 | AQ160: 20858.2 | AR160: 20880.1 | AS160: 479.48 | AT160: 15212.7 | AU160: 14706.8 | AV160: 14715.2 | AW160: 14706.8 | AX160: 14707 | AY160: 14706.8 | AZ160: 14715.4 | BB160: 22171.914 | BC160: 0.9782 | BD160: 0.97983 | BE160: 0.94906 | BF160: 0.91921 | BK160: -5 | BL160: 3.22759 | BM160: 1.06E-06 | BN160: -5 | BO160: 3.49254 | BP160: 4.04E-06 | BQ160: -5 | BR160: 3.23875 | BS160: 4.88E-06 | BT160: -5 | BU160: 3.23875 | BV160: 1.93E-05 | BX160: 4.8167 | BY160: 0.59438 | BZ160: 0.10723 | CA160: 0.00334 | CB160: 0.2379 | CD160: -44.02115 | CE160: 0.01564 | CF160: 0 | CG160: -37.45558 | CH160: 0 | CI160: 0 | CJ160: -37.83323 | CK160: 0 | CL160: 0
P161: 644.38 | Q161: 47415.5 | R161: 35298.2 | S161: 35163.6 | T161: 37875.8 | U161: 35163.6 | V161: 42892.1 | W161: 35163.6 | X161: 35163.6 | Y161: 45738.9 | Z161: 644.38 | AA161: 50012.9 | AB161: 35844.9 | AC161: 35680.3 | AD161: 37402.4 | AE161: 35680.3 | AF161: 47310.7 | AG161: 35680.3 | AH161: 35680.3 | AI161: 49197.3 | AK161: 479.38 | AL161: 21270.1 | AM161: 20860 | AN161: 20860 | AO161: 20879.3 | AP161: 20860 | AQ161: 20860 | AR161: 20879.3 | AS161: 479.38 | AT161: 14992.6 | AU161: 14705.1 | AV161: 14711.7 | AW161: 14705.1 | AX161: 14705.3 | AY161: 14705.1 | AZ161: 14711.9 | BB161: 22172.887 | BC161: 0.98432 | BD161: 0.98064 | BE161: 0.95293 | BF161: 0.92257 | BK161: -5 | BL161: 3.24828 | BM161: 1.01E-06 | BN161: -5 | BO161: 3.51492 | BP161: 3.65E-06 | BQ161: -5 | BR161: 3.25952 | BS161: 4.50E-06 | BT161: -5 | BU161: 3.25952 | BV161: 1.75E-05 | BX161: 4.84738 | BY161: 0.59698 | BZ161: 0.14038 | CA161: 0.01951 | CB161: 0.28012 | CD161: -43.95915 | CE161: 0.34998 | CF161: 0 | CG161: -37.39858 | CH161: 0 | CI161: 0 | CJ161: -37.78023 | CK161: 0 | CL161: 0
P162: 644.28 | Q162: 47570 | R162: 35254 | S162: 35074.9 | T162: 37464.4 | U162: 35074.9 | V162: 43805.8 | W162: 35074.9 | X162: 35074.9 | Y162: 46374.4 | Z162: 644.28 | AA162: 51141.1 | AB162: 35810.4 | AC162: 35587 | AD162: 37069.1 | AE162: 35587 | AF162: 48453.7 | AG162: 35587 | AH162: 35587 | AI162: 50159.2 | AK162: 479.28 | AL162: 21172 | AM162: 20861.8 | AN162: 20861.8 | AO162: 20878.8 | AP162: 20861.8 | AQ162: 20861.8 | AR162: 20878.8 | AS162: 479.28 | AT162: 15059.5 | AU162: 14703.4 | AV162: 14708.7 | AW162: 14703.4 | AX162: 14703.6 | AY162: 14703.4 | AZ162: 14708.8 | BB162: 22173.861 | BC162: 0.98983 | BD162: 0.98111 | BE162: 0.95699 | BF162: 0.92509 | BK162: -5 | BL162: 3.26897 | BM162: 9.64E-07 | BN162: -5 | BO162: 3.53731 | BP162: 3.30E-06 | BQ162: -5 | BR162: 3.28028 | BS162: 4.15E-06 | BT162: -5 | BU162: 3.28028 | BV162: 1.59E-05 | BX162: 4.87806 | BY162: 0.62548 | BZ162: 0.16964 | CA162: 0.03426 | CB162: 0.31955 | CD162: -43.89715 | CE162: 1.78802 | CF162: 0 | CG162: -37.34158 | CH162: 0 | CI162: 0 | CJ162: -37.72623 | CK162: 0 | CL162: 0
P163: 644.18 | Q163: 48474.3 | R163: 35217.9 | S163: 34981.4 | T163: 37074.9 | U163: 34981.4 | V163: 44787.7 | W163: 34981.4 | X163: 34981.4 | Y163: 47117.7 | Z163: 644.18 | AA163: 51419.6 | AB163: 35789.2 | AC163: 35488.4 | AD163: 36757.4 | AE163: 35488.4 | AF163: 49633.1 | AG163: 35488.4 | AH163: 35488.4 | AI163: 51203 | AK163: 479.18 | AL163: 21236 | AM163: 20863.6 | AN163: 20863.6 | AO163: 20878.5 | AP163: 20863.6 | AQ163: 20863.6 | AR163: 20878.5 | AS163: 479.18 | AT163: 14937.1 | AU163: 14701.9 | AV163: 14706.1 | AW163: 14701.9 | AX163: 14702 | AY163: 14701.9 | AZ163: 14706.2 | BB163: 22174.835 | BC163: 0.99432 | BD163: 0.98183 | BE163: 0.96233 | BF163: 0.92785 | BK163: -5 | BL163: 3.28966 | BM163: 9.14E-07 | BN163: -5 | BO163: 3.5597 | BP163: 2.99E-06 | BQ163: -5 | BR163: 3.30104 | BS163: 3.82E-06 | BT163: -5 | BU163: 3.30104 | BV163: 1.45E-05 | BX163: 4.90874 | BY163: 0.67509 | BZ163: 0.19402 | CA163: 0.04653 | CB163: 0.35517 | CD163: -43.83515 | CE163: 2.76875 | CF163: 0 | CG163: -37.28458 | CH163: 0 | CI163: 0 | CJ163: -37.67323 | CK163: 0 | CL163: 0
P164: 644.08 | Q164: 49414.1 | R164: 35192.7 | S164: 34882.5 | T164: 36706.7 | U164: 34882.5 | V164: 45831.5 | W164: 34882.5 | X164: 34882.5 | Y164: 47966 | Z164: 644.08 | AA164: 52290.9 | AB164: 35786.5 | AC164: 35384.7 | AD164: 36465.9 | AE164: 35384.7 | AF164: 50833.5 | AG164: 35384.7 | AH164: 35384.7 | AI164: 52316.5 | AK164: 479.08 | AL164: 21098.7 | AM164: 20865.4 | AN164: 20865.4 | AO164: 20878.5 | AP164: 20865.4 | AQ164: 20865.4 | AR164: 20878.5 | AS164: 479.08 | AT164: 15145.8 | AU164: 14700.6 | AV164: 14703.8 | AW164: 14700.6 | AX164: 14700.7 | AY164: 14700.6 | AZ164: 14704 | BB164: 22175.81 | BC164: 0.99824 | BD164: 0.98295 | BE164: 0.96805 | BF164: 0.93124 | BK164: -5 | BL164: 3.31034 | BM164: 8.62E-07 | BN164: -5 | BO164: 3.58209 | BP164: 2.70E-06 | BQ164: -5 | BR164: 3.3218 | BS164: 3.51E-06 | BT164: -5 | BU164: 3.3218 | BV164: 1.32E-05 | BX164: 4.93942 | BY164: 0.73657 | BZ164: 0.21264 | CA164: 0.05564 | CB164: 0.38659 | CD164: -43.77415 | CE164: 0.51943 | CF164: -5.00E-05 | CG164: -37.22658 | CH164: 0 | CI164: 0 | CJ164: -37.61923 | CK164: 0 | CL164: 0
P165: 643.98 | Q165: 50227.8 | R165: 35182 | S165: 34777.9 | T165: 36359 | U165: 34777.9 | V165: 46928.5 | W165: 34777.9 | X165: 34777.9 | Y165: 48913.7 | Z165: 643.98 | AA165: 52968.8 | AB165: 35807 | AC165: 35274.8 | AD165: 36191.3 | AE165: 35274.8 | AF165: 52035.7 | AG165: 35274.8 | AH165: 35274.8 | AI165: 53484.4 | AK165: 478.98 | AL165: 21224.9 | AM165: 20867.1 | AN165: 20867.1 | AO165: 20878.6 | AP165: 20867.1 | AQ165: 20867.1 | AR165: 20878.6 | AS165: 478.98 | AT165: 14961.3 | AU165: 14699.3 | AV165: 14701.8 | AW165: 14699.3 | AX165: 14699.4 | AY165: 14699.3 | AZ165: 14701.9 | BB165: 22176.906 | BC165: 1.00152 | BD165: 0.98495 | BE165: 0.97457 | BF165: 0.93589 | BK165: -5 | BL165: 3.33103 | BM165: 8.11E-07 | BN165: -5 | BO165: 3.60448 | BP165: 2.44E-06 | BQ165: -5 | BR165: 3.34256 | BS165: 3.23E-06 | BT165: -5 | BU165: 3.34256 | BV165: 1.20E-05 | BX165: 4.9701 | BY165: 0.79965 | BZ165: 0.22483 | CA165: 0.06116 | CB165: 0.41395 | CD165: -43.71215 | CE165: 0.37355 | CF165: -0.01574 | CG165: -37.16958 | CH165: 0 | CI165: 0 | CJ165: -37.56623 | CK165: 0 | CL165: 0
P166: 643.88 | Q166: 51287 | R166: 35190.2 | S166: 34667.5 | T166: 36030.7 | U166: 34667.5 | V166: 48067.5 | W166: 34667.5 | X166: 34667.5 | Y166: 49953.4 | Z166: 643.88 | AA166: 54736.2 | AB166: 35857.8 | AC166: 35158.8 | AD166: 35931.9 | AE166: 35158.8 | AF166: 53219.1 | AG166: 35158.8 | AH166: 35158.8 | AI166: 54691.2 | AK166: 478.88 | AL166: 21074.1 | AM166: 20868.9 | AN166: 20868.9 | AO166: 20879 | AP166: 20868.9 | AQ166: 20868.9 | AR166: 20879 | AS166: 478.88 | AT166: 14974.8 | AU166: 14698.1 | AV166: 14700.1 | AW166: 14698.1 | AX166: 14698.2 | AY166: 14698.1 | AZ166: 14700.2 | BB166: 22177.88 | BC166: 1.00691 | BD166: 0.98766 | BE166: 0.98141 | BF166: 0.94071 | BK166: -5 | BL166: 3.35172 | BM166: 7.61E-07 | BN166: -5 | BO166: 3.62687 | BP166: 2.21E-06 | BQ166: -5 | BR166: 3.36332 | BS166: 2.97E-06 | BT166: -5 | BU166: 3.36332 | BV166: 1.09E-05 | BX166: 5.00078 | BY166: 0.85517 | BZ166: 0.2302 | CA166: 0.06296 | CB166: 0.43771 | CD166: -43.65015 | CE166: 2.1256 | CF166: -0.48914 | CG166: -37.11258 | CH166: 0 | CI166: 0 | CJ166: -37.51323 | CK166: 0 | CL166: 0
P167: 643.78 | Q167: 51468.5 | R167: 35221.8 | S167: 34550.3 | T167: 35719.6 | U167: 34550.3 | V167: 49233.6 | W167: 34550.3 | X167: 34550.3 | Y167: 51074.5 | Z167: 643.78 | AA167: 55698.8 | AB167: 35946.2 | AC167: 35035.6 | AD167: 35684.6 | AE167: 35035.6 | AF167: 54359.9 | AG167: 35035.6 | AH167: 35035.6 | AI167: 55919.4 | AK167: 478.78 | AL167: 20958.9 | AM167: 20870.7 | AN167: 20870.7 | AO167: 20879.5 | AP167: 20870.7 | AQ167: 20870.7 | AR167: 20879.5 | AS167: 478.78 | AT167: 14846.2 | AU167: 14697 | AV167: 14698.6 | AW167: 14697 | AX167: 14697.1 | AY167: 14697 | AZ167: 14698.6 | BB167: 22178.854 | BC167: 1.01144 | BD167: 0.99119 | BE167: 0.9878 | BF167: 0.94576 | BK167: -5 | BL167: 3.37241 | BM167: 7.11E-07 | BN167: -5 | BO167: 3.64925 | BP167: 1.99E-06 | BQ167: -5 | BR167: 3.38408 | BS167: 2.73E-06 | BT167: -5 | BU167: 3.38408 | BV167: 9.88E-06 | BX167: 5.03146 | BY167: 0.89595 | BZ167: 0.22877 | CA167: 0.06118 | CB167: 0.45852 | CD167: -43.58915 | CE167: 3.54537 | CF167: -2.65544 | CG167: -37.05558 | CH167: 0 | CI167: 0 | CJ167: -37.45923 | CK167: 0 | CL167: 0
P168: 643.68 | Q168: 53075.8 | R168: 35283.5 | S168: 34426.8 | T168: 35424.7 | U168: 34426.8 | V168: 50410.8 | W168: 34426.8 | X168: 34426.8 | Y168: 52265.3 | Z168: 643.68 | AA168: 56860.4 | AB168: 36080.5 | AC168: 34904.3 | AD168: 35446.4 | AE168: 34904.3 | AF168: 55432.9 | AG168: 34904.3 | AH168: 34904.3 | AI168: 57151.2 | AK168: 478.68 | AL168: 20836.3 | AM168: 20872.5 | AN168: 20872.5 | AO168: 20880.1 | AP168: 20872.5 | AQ168: 20872.5 | AR168: 20880.1 | AS168: 478.68 | AT168: 14891.2 | AU168: 14696.2 | AV168: 14697.4 | AW168: 14696.2 | AX168: 14696.3 | AY168: 14696.2 | AZ168: 14697.5 | BB168: 22179.829 | BC168: 1.01428 | BD168: 0.99626 | BE168: 0.99343 | BF168: 0.95153 | BK168: -5 | BL168: 3.3931 | BM168: 6.64E-07 | BN168: -5 | BO168: 3.67164 | BP168: 1.80E-06 | BQ168: -5 | BR168: 3.40484 | BS168: 2.50E-06 | BT168: -5 | BU168: 3.40484 | BV168: 8.97E-06 | BX168: 5.06214 | BY168: 0.91693 | BZ168: 0.22096 | CA168: 0.05621 | CB168: 0.47699 | CD168: -43.52715 | CE168: 2.5027 | CF168: -2.228 | CG168: -36.99758 | CH168: 0 | CI168: 0 | CJ168: -37.40623 | CK168: 0 | CL168: 0
P169: 643.58 | Q169: 53641.6 | R169: 35381.4 | S169: 34296.2 | T169: 35143.6 | U169: 34296.2 | V169: 51578.7 | W169: 34296.2 | X169: 34296.2 | Y169: 53511.2 | Z169: 643.58 | AA169: 58460.4 | AB169: 36270.4 | AC169: 34763.8 | AD169: 35214.6 | AE169: 34763.8 | AF169: 56412 | AG169: 34763.8 | AH169: 34763.8 | AI169: 58369.2 | AK169: 478.58 | AL169: 20964.7 | AM169: 20872 | AN169: 20872 | AO169: 20878.7 | AP169: 20872 | AQ169: 20872 | AR169: 20878.7 | AS169: 478.58 | AT169: 14788.2 | AU169: 14695.6 | AV169: 14696.5 | AW169: 14695.6 | AX169: 14695.6 | AY169: 14695.6 | AZ169: 14696.5 | BB169: 22180.803 | BC169: 1.01773 | BD169: 1.00369 | BE169: 1.00054 | BF169: 0.95801 | BK169: -5 | BL169: 3.41379 | BM169: 6.18E-07 | BN169: -5 | BO169: 3.69403 | BP169: 1.62E-06 | BQ169: -5 | BR169: 3.42561 | BS169: 2.29E-06 | BT169: -5 | BU169: 3.42561 | BV169: 8.15E-06 | BX169: 5.09282 | BY169: 0.91514 | BZ169: 0.20767 | CA169: 0.04866 | CB169: 0.49345 | CD169: -43.46515 | CE169: 0.20671 | CF169: -0.192 | CG169: -36.94058 | CH169: 0 | CI169: 0 | CJ169: -37.35323 | CK169: 0 | CL169: 0
P170: 643.48 | Q170: 55065.6 | R170: 35522.8 | S170: 34158 | T170: 34873.9 | U170: 34158 | V170: 52715.4 | W170: 34158 | X170: 34158 | Y170: 54796.2 | Z170: 643.48 | AA170: 59922.1 | AB170: 36529.3 | AC170: 34616.1 | AD170: 34989 | AE170: 34616.1 | AF170: 57274.1 | AG170: 34616.1 | AH170: 34616.1 | AI170: 59560.3 | AK170: 478.48 | AL170: 20528.3 | AM170: 20854.4 | AN170: 20854.4 | AO170: 20860.2 | AP170: 20854.4 | AQ170: 20854.4 | AR170: 20860.2 | AS170: 478.48 | AT170: 14727 | AU170: 14694.9 | AV170: 14695.6 | AW170: 14694.9 | AX170: 14695 | AY170: 14694.9 | AZ170: 14695.7 | BB170: 22181.9 | BC170: 1.0217 | BD170: 1.01478 | BE170: 1.00898 | BF170: 0.96606 | BK170: -5 | BL170: 3.43448 | BM170: 5.73E-07 | BN170: -5 | BO170: 3.71642 | BP170: 1.47E-06 | BQ170: -5 | BR170: 3.44637 | BS170: 2.10E-06 | BT170: -5 | BU170: 3.44637 | BV170: 7.41E-06 | BX170: 5.1235 | BY170: 0.8897 | BZ170: 0.19021 | CA170: 0.03929 | CB170: 0.50789 | CD170: -43.40415 | CE170: 0.00185 | CF170: -0.02552 | CG170: -36.88358 | CH170: 0 | CI170: 0 | CJ170: -37.29923 | CK170: 0 | CL170: 0
P171: 643.38 | Q171: 56437.8 | R171: 35715.2 | S171: 34010.9 | T171: 34612.9 | U171: 34010.9 | V171: 53796.2 | W171: 34010.9 | X171: 34010.9 | Y171: 56102.6 | Z171: 643.38 | AA171: 60181.8 | AB171: 36869.4 | AC171: 34460.7 | AD171: 34767.9 | AE171: 34460.7 | AF171: 57995.3 | AG171: 34460.7 | AH171: 34460.7 | AI171: 60711 | AK171: 478.38 | AL171: 21137.8 | AM171: 20856 | AN171: 20856 | AO171: 20861 | AP171: 20856 | AQ171: 20856 | AR171: 20861 | AS171: 478.38 | AT171: 14989.2 | AU171: 14694.2 | AV171: 14694.7 | AW171: 14694.2 | AX171: 14694.2 | AY171: 14694.2 | AZ171: 14694.8 | BB171: 22182.875 | BC171: 1.02598 | BD171: 1.02544 | BE171: 1.01709 | BF171: 0.97444 | BK171: -5 | BL171: 3.45517 | BM171: 5.31E-07 | BN171: -5 | BO171: 3.73881 | BP171: 1.32E-06 | BQ171: -5 | BR171: 3.46713 | BS171: 1.93E-06 | BT171: -5 | BU171: 3.46713 | BV171: 6.73E-06 | BX171: 5.15418 | BY171: 0.84158 | BZ171: 0.17029 | CA171: 0.02898 | CB171: 0.51987 | CD171: -43.34215 | CE171: 0.00204 | CF171: -0.10634 | CG171: -36.82658 | CH171: 0 | CI171: 0 | CJ171: -37.24623 | CK171: 0 | CL171: 0
P172: 643.28 | Q172: 57539 | R172: 35969 | S172: 33856 | T172: 34359.7 | U172: 33856 | V172: 54797.5 | W172: 33856 | X172: 33856 | Y172: 57414.3 | Z172: 643.28 | AA172: 61321.9 | AB172: 37303.7 | AC172: 34297.9 | AD172: 34549.7 | AE172: 34297.9 | AF172: 58553.8 | AG172: 34297.9 | AH172: 34297.9 | AI172: 61811.4 | AK172: 478.28 | AL172: 20805 | AM172: 20857.6 | AN172: 20857.6 | AO172: 20861.9 | AP172: 20857.6 | AQ172: 20857.6 | AR172: 20861.9 | AS172: 478.28 | AT172: 14957.5 | AU172: 14693.4 | AV172: 14693.8 | AW172: 14693.4 | AX172: 14693.4 | AY172: 14693.4 | AZ172: 14693.8 | BB172: 22183.849 | BC172: 1.02594 | BD172: 1.03625 | BE172: 1.02598 | BF172: 0.98356 | BK172: -5 | BL172: 3.47586 | BM172: 4.91E-07 | BN172: -5 | BO172: 3.76119 | BP172: 1.19E-06 | BQ172: -5 | BR172: 3.48789 | BS172: 1.76E-06 | BT172: -5 | BU172: 3.48789 | BV172: 6.11E-06 | BX172: 5.18486 | BY172: 0.77351 | BZ172: 0.14991 | CA172: 0.01882 | CB172: 0.52861 | CD172: -43.28015 | CE172: 0.05941 | CF172: -0.81388 | CG172: -36.76858 | CH172: 0 | CI172: 0 | CJ172: -37.19223 | CK172: 0 | CL172: 0
P173: 643.18 | Q173: 58291.6 | R173: 36292.5 | S173: 33692.1 | T173: 34111.6 | U173: 33692.1 | V173: 55693.3 | W173: 33692.1 | X173: 33692.1 | Y173: 58713.3 | Z173: 643.18 | AA173: 62383.1 | AB173: 37845 | AC173: 34127.4 | AD173: 34332.8 | AE173: 34127.4 | AF173: 58931 | AG173: 34127.4 | AH173: 34127.4 | AI173: 62854.1 | AK173: 478.18 | AL173: 21057.5 | AM173: 20859.2 | AN173: 20859.2 | AO173: 20862.9 | AP173: 20859.2 | AQ173: 20859.2 | AR173: 20862.9 | AS173: 478.18 | AT173: 14964.2 | AU173: 14692.4 | AV173: 14692.7 | AW173: 14692.4 | AX173: 14692.4 | AY173: 14692.4 | AZ173: 14692.7 | BB173: 22184.824 | BC173: 1.03009 | BD173: 1.04379 | BE173: 1.03498 | BF173: 0.99264 | BK173: -5 | BL173: 3.49655 | BM173: 4.54E-07 | BN173: -5 | BO173: 3.78358 | BP173: 1.07E-06 | BQ173: -5 | BR173: 3.50865 | BS173: 1.61E-06 | BT173: -5 | BU173: 3.50865 | BV173: 5.55E-06 | BX173: 5.21553 | BY173: 0.68961 | BZ173: 0.13118 | CA173: 0.01068 | CB173: 0.53313 | CD173: -43.21915 | CE173: 1.74792 | CF173: -2.11298 | CG173: -36.71158 | CH173: 0 | CI173: 0 | CJ173: -37.13923 | CK173: 0 | CL173: 0
P174: 643.08 | Q174: 59782.8 | R174: 36696 | S174: 33519.4 | T174: 33867.1 | U174: 33519.4 | V174: 56459.5 | W174: 33519.4 | X174: 33519.4 | Y174: 59983.9 | Z174: 643.08 | AA174: 64128.3 | AB174: 38506 | AC174: 33949.5 | AD174: 34116.4 | AE174: 33949.5 | AF174: 59112.7 | AG174: 33949.5 | AH174: 33949.5 | AI174: 63836 | AK174: 478.08 | AL174: 21336.3 | AM174: 20860.7 | AN174: 20860.7 | AO174: 20864 | AP174: 20860.7 | AQ174: 20860.7 | AR174: 20864 | AS174: 478.08 | AT174: 15068.9 | AU174: 14691 | AV174: 14691.3 | AW174: 14691 | AX174: 14691 | AY174: 14691 | AZ174: 14691.3 | BB174: 22185.921 | BC174: 1.03209 | BD174: 1.0505 | BE174: 1.04275 | BF174: 1.00231 | BK174: -5 | BL174: 3.51724 | BM174: 4.18E-07 | BN174: -5 | BO174: 3.80597 | BP174: 9.69E-07 | BQ174: -5 | BR174: 3.52941 | BS174: 1.48E-06 | BT174: -5 | BU174: 3.52941 | BV174: 5.05E-06 | BX174: 5.24621 | BY174: 0.59518 | BZ174: 0.11591 | CA174: 0.00925 | CB174: 0.53243 | CD174: -43.15715 | CE174: 5.01819 | CF174: -1.34 | CG174: -36.65458 | CH174: 0 | CI174: 0 | CJ174: -37.08623 | CK174: 0 | CL174: 0
P175: 642.98 | Q175: 60957.5 | R175: 37190 | S175: 33338.6 | T175: 33625.5 | U175: 33338.6 | V175: 57074.2 | W175: 33338.6 | X175: 33338.6 | Y175: 61212.4 | Z175: 642.98 | AA175: 65219.7 | AB175: 39297.3 | AC175: 33764.4 | AD175: 33899.3 | AE175: 33764.4 | AF175: 59089.3 | AG175: 33764.4 | AH175: 33764.4 | AI175: 64757.1 | AK175: 477.98 | AL175: 21150.2 | AM175: 20862.3 | AN175: 20862.3 | AO175: 20865.1 | AP175: 20862.3 | AQ175: 20862.3 | AR175: 20865.1 | AS175: 477.98 | AT175: 15078.1 | AU175: 14689.7 | AV175: 14689.9 | AW175: 14689.7 | AX175: 14689.7 | AY175: 14689.7 | AZ175: 14689.9 | BB175: 22186.896 | BC175: 1.03311 | BD175: 1.05534 | BE175: 1.04701 | BF175: 1.00981 | BK175: -5 | BL175: 3.53793 | BM175: 3.84E-07 | BN175: -5 | BO175: 3.82836 | BP175: 8.72E-07 | BQ175: -5 | BR175: 3.55017 | BS175: 1.35E-06 | BT175: -5 | BU175: 3.55017 | BV175: 4.58E-06 | BX175: 5.27689 | BY175: 0.49636 | BZ175: 0.10501 | CA175: 0.01394 | CB175: 0.52564 | CD175: -43.09515 | CE175: 2.71705 | CF175: -4.4108 | CG175: -36.59758 | CH175: 0 | CI175: 0 | CJ175: -37.03223 | CK175: 0 | CL175: 0
P176: 642.88 | Q176: 61752.2 | R176: 37783 | S176: 33149.4 | T176: 33384.9 | U176: 33149.4 | V176: 57516.8 | W176: 33149.4 | X176: 33149.4 | Y176: 62385.9 | Z176: 642.88 | AA176: 65407.2 | AB176: 40226.2 | AC176: 33571.3 | AD176: 33679.8 | AE176: 33571.3 | AF176: 58855.6 | AG176: 33571.3 | AH176: 33571.3 | AI176: 65619 | AK176: 477.88 | AL176: 21266.6 | AM176: 20863.9 | AN176: 20863.9 | AO176: 20866.3 | AP176: 20863.9 | AQ176: 20863.9 | AR176: 20866.3 | AS176: 477.88 | AT176: 14997.9 | AU176: 14688.1 | AV176: 14688.3 | AW176: 14688.1 | AX176: 14688.1 | AY176: 14688.1 | AZ176: 14688.3 | BB176: 22187.872 | BC176: 1.03746 | BD176: 1.05958 | BE176: 1.04996 | BF176: 1.01631 | BK176: -5 | BL176: 3.55862 | BM176: 3.53E-07 | BN176: -5 | BO176: 3.85075 | BP176: 7.85E-07 | BQ176: -5 | BR176: 3.57093 | BS176: 1.23E-06 | BT176: -5 | BU176: 3.57093 | BV176: 4.16E-06 | BX176: 5.30757 | BY176: 0.40005 | BZ176: 0.098 | CA176: 0.01882 | CB176: 0.5122 | CD176: -43.03415 | CE176: 3.32983 | CF176: -2.2674 | CG176: -36.53958 | CH176: 0 | CI176: 0 | CJ176: -36.97923 | CK176: 0 | CL176: 0
P177: 642.78 | Q177: 63169.3 | R177: 38482.8 | S177: 32951.5 | T177: 33144 | U177: 32951.5 | V177: 57770.6 | W177: 32951.5 | X177: 32951.5 | Y177: 63494.4 | Z177: 642.78 | AA177: 67198.6 | AB177: 41297.4 | AC177: 33370.8 | AD177: 33457.8 | AE177: 33370.8 | AF177: 58413.5 | AG177: 33370.8 | AH177: 33370.8 | AI177: 66427 | AK177: 477.78 | AL177: 21331.9 | AM177: 20865.5 | AN177: 20865.5 | AO177: 20867.5 | AP177: 20865.5 | AQ177: 20865.5 | AR177: 20867.5 | AS177: 477.78 | AT177: 15224.2 | AU177: 14686.6 | AV177: 14686.7 | AW177: 14686.6 | AX177: 14686.6 | AY177: 14686.6 | AZ177: 14686.7 | BB177: 22188.847 | BC177: 1.03741 | BD177: 1.0628 | BE177: 1.05223 | BF177: 1.02172 | BK177: -5 | BL177: 3.57931 | BM177: 3.24E-07 | BN177: -5 | BO177: 3.87313 | BP177: 7.07E-07 | BQ177: -5 | BR177: 3.5917 | BS177: 1.12E-06 | BT177: -5 | BU177: 3.5917 | BV177: 3.78E-06 | BX177: 5.33825 | BY177: 0.31407 | BZ177: 0.09307 | CA177: 0.02218 | CB177: 0.49196 | CD177: -42.97215 | CE177: 4.9535 | CF177: -2.73053 | CG177: -36.48258 | CH177: 0 | CI177: 0 | CJ177: -36.92623 | CK177: 0 | CL177: 0
P178: 642.68 | Q178: 63974.8 | R178: 39295.7 | S178: 32745.5 | T178: 32902.1 | U178: 32745.5 | V178: 57824.2 | W178: 32745.5 | X178: 32745.5 | Y178: 64530.8 | Z178: 642.68 | AA178: 67573.5 | AB178: 42511.9 | AC178: 33165 | AD178: 33234.3 | AE178: 33165 | AF178: 57771.3 | AG178: 33165 | AH178: 33165 | AI178: 67187.5 | AK178: 477.68 | AL178: 21129 | AM178: 20867 | AN178: 20867 | AO178: 20868.8 | AP178: 20867 | AQ178: 20867 | AR178: 20868.8 | AS178: 477.68 | AT178: 14887.4 | AU178: 14685.1 | AV178: 14685.2 | AW178: 14685.1 | AX178: 14685.2 | AY178: 14685.1 | AZ178: 14685.2 | BB178: 22189.822 | BC178: 1.04192 | BD178: 1.06563 | BE178: 1.05367 | BF178: 1.02702 | BK178: -5 | BL178: 3.6 | BM178: 2.96E-07 | BN178: -5 | BO178: 3.89552 | BP178: 6.36E-07 | BQ178: -5 | BR178: 3.61246 | BS178: 1.02E-06 | BT178: -5 | BU178: 3.61246 | BV178: 3.44E-06 | BX178: 5.36893 | BY178: 0.24766 | BZ178: 0.08804 | CA178: 0.0237 | CB178: 0.46516 | CD178: -42.91015 | CE178: 3.35572 | CF178: -4.63703 | CG178: -36.42558 | CH178: 0 | CI178: 0 | CJ178: -36.87223 | CK178: 0 | CL178: 0
P179: 642.58 | Q179: 65088.7 | R179: 40225 | S179: 32531.8 | T179: 32658.5 | U179: 32531.8 | V179: 57670.8 | W179: 32531.8 | X179: 32531.8 | Y179: 65490.8 | Z179: 642.58 | AA179: 67759.1 | AB179: 43862.4 | AC179: 32954.3 | AD179: 33009.3 | AE179: 32954.3 | AF179: 56941.5 | AG179: 32954.3 | AH179: 32954.3 | AI179: 67904.6 | AK179: 477.58 | AL179: 20783.5 | AM179: 20868.6 | AN179: 20868.6 | AO179: 20870.1 | AP179: 20868.6 | AQ179: 20868.6 | AR179: 20870.1 | AS179: 477.58 | AT179: 15050.5 | AU179: 14683.7 | AV179: 14683.8 | AW179: 14683.7 | AX179: 14683.7 | AY179: 14683.7 | AZ179: 14683.8 | BB179: 22190.92 | BC179: 1.04297 | BD179: 1.06788 | BE179: 1.05477 | BF179: 1.0336 | BK179: -5 | BL179: 3.62069 | BM179: 2.71E-07 | BN179: -5 | BO179: 3.91791 | BP179: 5.72E-07 | BQ179: -5 | BR179: 3.63322 | BS179: 9.34E-07 | BT179: -5 | BU179: 3.63322 | BV179: 3.12E-06 | BX179: 5.39961 | BY179: 0.21025 | BZ179: 0.08117 | CA179: 0.02347 | CB179: 0.43252 | CD179: -42.84915 | CE179: 8.0758 | CF179: -0.7386 | CG179: -36.36858 | CH179: 0 | CI179: 0 | CJ179: -36.81923 | CK179: 0 | CL179: 0
P180: 642.48 | Q180: 65903.2 | R180: 41270 | S180: 32309.8 | T180: 32411.9 | U180: 32309.8 | V180: 57308.2 | W180: 32309.8 | X180: 32309.8 | Y180: 66370.6 | Z180: 642.48 | AA180: 68303.5 | AB180: 45332.8 | AC180: 32738.3 | AD180: 32781.8 | AE180: 32738.3 | AF180: 55939.7 | AG180: 32738.3 | AH180: 32738.3 | AI180: 68577.6 | AK180: 477.48 | AL180: 21250.4 | AM180: 20870.2 | AN180: 20870.2 | AO180: 20871.5 | AP180: 20870.2 | AQ180: 20870.2 | AR180: 20871.5 | AS180: 477.48 | AT180: 14979 | AU180: 14682.5 | AV180: 14682.5 | AW180: 14682.5 | AX180: 14682.5 | AY180: 14682.5 | AZ180: 14682.5 | BB180: 22191.895 | BC180: 1.04547 | BD180: 1.06845 | BE180: 1.05511 | BF180: 1.03886 | BK180: -5 | BL180: 3.64138 | BM180: 2.47E-07 | BN180: -5 | BO180: 3.9403 | BP180: 5.14E-07 | BQ180: -5 | BR180: 3.65398 | BS180: 8.51E-07 | BT180: -5 | BU180: 3.65398 | BV180: 2.83E-06 | BX180: 5.43029 | BY180: 0.20464 | BZ180: 0.07155 | CA180: 0.02176 | CB180: 0.39511 | CD180: -42.78715 | CE180: 3.00068 | CF180: -0.02251 | CG180: -36.31058 | CH180: 0 | CI180: 0 | CJ180: -36.76523 | CK180: 0 | CL180: 0
P181: 642.38 | Q181: 67044.9 | R181: 42427.2 | S181: 32081.3 | T181: 32163.3 | U181: 32081.3 | V181: 56742.2 | W181: 32081.3 | X181: 32081.3 | Y181: 67170 | Z181: 642.38 | AA181: 68874.4 | AB181: 46899.9 | AC181: 32518.6 | AD181: 32552.8 | AE181: 32518.6 | AF181: 54787.4 | AG181: 32518.6 | AH181: 32518.6 | AI181: 69202.9 | AK181: 477.38 | AL181: 21400.1 | AM181: 20871.8 | AN181: 20871.8 | AO181: 20872.8 | AP181: 20871.8 | AQ181: 20871.8 | AR181: 20872.8 | AS181: 477.38 | AT181: 14805 | AU181: 14681.6 | AV181: 14681.6 | AW181: 14681.6 | AX181: 14681.6 | AY181: 14681.6 | AZ181: 14681.6 | BB181: 22192.871 | BC181: 1.04534 | BD181: 1.0668 | BE181: 1.05521 | BF181: 1.04473 | BK181: -5 | BL181: 3.66207 | BM181: 2.26E-07 | BN181: -5 | BO181: 3.96269 | BP181: 4.62E-07 | BQ181: -5 | BR181: 3.67474 | BS181: 7.75E-07 | BT181: -5 | BU181: 3.67474 | BV181: 2.57E-06 | BX181: 5.46097 | BY181: 0.22126 | BZ181: 0.05928 | CA181: 0.01897 | CB181: 0.35432 | CD181: -42.72515 | CE181: 0.09031 | CF181: -0.02981 | CG181: -36.25358 | CH181: 0 | CI181: 0 | CJ181: -36.71223 | CK181: 0 | CL181: 0
P182: 642.28 | Q182: 67056 | R182: 43685.8 | S182: 31846.2 | T182: 31911.6 | U182: 31846.2 | V182: 55981.6 | W182: 31846.2 | X182: 31846.2 | Y182: 67886.7 | Z182: 642.28 | AA182: 69417.6 | AB182: 48530.5 | AC182: 32296 | AD182: 32322.8 | AE182: 32296 | AF182: 53508.1 | AG182: 32296 | AH182: 32296 | AI182: 69769.3 | AK182: 477.28 | AL182: 21168 | AM182: 20873.3 | AN182: 20873.3 | AO182: 20874.2 | AP182: 20873.3 | AQ182: 20873.3 | AR182: 20874.2 | AS182: 477.28 | AT182: 14707 | AU182: 14680.7 | AV182: 14680.8 | AW182: 14680.7 | AX182: 14680.7 | AY182: 14680.7 | AZ182: 14680.8 | BB182: 22193.846 | BC182: 1.04693 | BD182: 1.06291 | BE182: 1.05405 | BF182: 1.05139 | BK182: -5 | BL182: 3.68276 | BM182: 2.05E-07 | BN182: -5 | BO182: 3.98508 | BP182: 4.15E-07 | BQ182: -5 | BR182: 3.6955 | BS182: 7.06E-07 | BT182: -5 | BU182: 3.6955 | BV182: 2.34E-06 | BX182: 5.49165 | BY182: 0.24694 | BZ182: 0.04567 | CA182: 0.01557 | CB182: 0.31175 | CD182: -42.66415 | CE182: 0.0021 | CF182: -0.01503 | CG182: -36.19658 | CH182: 0 | CI182: 0 | CJ182: -36.65923 | CK182: 0 | CL182: 0
P183: 642.18 | Q183: 68085.3 | R183: 45031.2 | S183: 31606 | T183: 31658 | U183: 31606 | V183: 55041.9 | W183: 31606 | X183: 31606 | Y183: 68519.2 | Z183: 642.18 | AA183: 68947.7 | AB183: 50179.8 | AC183: 32069.8 | AD183: 32090.7 | AE183: 32069.8 | AF183: 52125.4 | AG183: 32069.8 | AH183: 32069.8 | AI183: 70256.3 | AK183: 477.18 | AL183: 21046.2 | AM183: 20874.9 | AN183: 20874.9 | AO183: 20875.7 | AP183: 20874.9 | AQ183: 20874.9 | AR183: 20875.7 | AS183: 477.18 | AT183: 14922.6 | AU183: 14680 | AV183: 14680 | AW183: 14680 | AX183: 14680 | AY183: 14680 | AZ183: 14680 | BB183: 22194.822 | BC183: 1.04742 | BD183: 1.05687 | BE183: 1.05245 | BF183: 1.05854 | BK183: -5 | BL183: 3.70345 | BM183: 1.87E-07 | BN183: -5 | BO183: 4.00746 | BP183: 3.73E-07 | BQ183: -5 | BR183: 3.71626 | BS183: 6.42E-07 | BT183: -5 | BU183: 3.71626 | BV183: 2.12E-06 | BX183: 5.52233 | BY183: 0.27348 | BZ183: 0.03447 | CA183: 0.01214 | CB183: 0.26911 | CD183: -42.60215 | CE183: 0.0222 | CF183: -0.85952 | CG183: -36.13958 | CH183: 0 | CI183: 0 | CJ183: -36.60523 | CK183: 0 | CL183: 0
P184: 642.08 | Q184: 67855.4 | R184: 46439.9 | S184: 31360.6 | T184: 31401.8 | U184: 31360.6 | V184: 53941.1 | W184: 31360.6 | X184: 31360.6 | Y184: 69061.6 | Z184: 642.08 | AA184: 69846.3 | AB184: 51795.5 | AC184: 31840.2 | AD184: 31856.3 | AE184: 31840.2 | AF184: 50664.6 | AG184: 31840.2 | AH184: 31840.2 | AI184: 70636.2 | AK184: 477.08 | AL184: 20784.4 | AM184: 20876.5 | AN184: 20876.5 | AO184: 20877.1 | AP184: 20876.5 | AQ184: 20876.5 | AR184: 20877.1 | AS184: 477.08 | AT184: 14868.9 | AU184: 14679.4 | AV184: 14679.4 | AW184: 14679.4 | AX184: 14679.4 | AY184: 14679.4 | AZ184: 14679.4 | BB184: 22195.92 | BC184: 1.04637 | BD184: 1.04884 | BE184: 1.04956 | BF184: 1.06629 | BK184: -5 | BL184: 3.72414 | BM184: 1.70E-07 | BN184: -5 | BO184: 4.02985 | BP184: 3.35E-07 | BQ184: -5 | BR184: 3.73702 | BS184: 5.84E-07 | BT184: -5 | BU184: 3.73702 | BV184: 1.93E-06 | BX184: 5.55301 | BY184: 0.29723 | BZ184: 0.03323 | CA184: 0.00945 | CB184: 0.22812 | CD184: -42.54015 | CE184: 0.02262 | CF184: -6.7767 | CG184: -36.08158 | CH184: 0 | CI184: 0 | CJ184: -36.55223 | CK184: 0 | CL184: 0
P185: 641.98 | Q185: 68837.2 | R185: 47884.1 | S185: 31112.1 | T185: 31144.5 | U185: 31112.1 | V185: 52702.5 | W185: 31112.1 | X185: 31112.1 | Y185: 69506.9 | Z185: 641.98 | AA185: 70167.8 | AB185: 53318.5 | AC185: 31607.3 | AD185: 31619.8 | AE185: 31607.3 | AF185: 49150.8 | AG185: 31607.3 | AH185: 31607.3 | AI185: 70874.4 | AK185: 476.98 | AL185: 21244.1 | AM185: 20878.1 | AN185: 20878.1 | AO185: 20878.6 | AP185: 20878.1 | AQ185: 20878.1 | AR185: 20878.6 | AS185: 476.98 | AT185: 14806.4 | AU185: 14678.8 | AV185: 14678.9 | AW185: 14678.8 | AX185: 14678.8 | AY185: 14678.8 | AZ185: 14678.9 | BB185: 22196.896 | BC185: 1.04784 | BD185: 1.04134 | BE185: 1.04517 | BF185: 1.07121 | BK185: -5 | BL185: 3.74483 | BM185: 1.54E-07 | BN185: -5 | BO185: 4.05224 | BP185: 3.00E-07 | BQ185: -5 | BR185: 3.75779 | BS185: 5.31E-07 | BT185: -5 | BU185: 3.75779 | BV185: 1.75E-06 | BX185: 5.58369 | BY185: 0.31655 | BZ185: 0.04436 | CA185: 0.00842 | CB185: 0.19044 | CD185: -42.47915 | CE185: 0.0183 | CF185: -8.81728 | CG185: -36.02458 | CH185: 0 | CI185: 0 | CJ185: -36.49923 | CK185: 0 | CL185: 0
P186: 641.88 | Q186: 68338.9 | R186: 49326.4 | S186: 30859.4 | T186: 30884.8 | U186: 30859.4 | V186: 51348.5 | W186: 30859.4 | X186: 30859.4 | Y186: 69840.9 | Z186: 641.88 | AA186: 70552.7 | AB186: 54686.5 | AC186: 31372.4 | AD186: 31382 | AE186: 31372.4 | AF186: 47608.8 | AG186: 31372.4 | AH186: 31372.4 | AI186: 70932.4 | AK186: 476.88 | AL186: 21219.5 | AM186: 20879.6 | AN186: 20879.6 | AO186: 20880.1 | AP186: 20879.6 | AQ186: 20879.6 | AR186: 20880.1 | AS186: 476.88 | AT186: 14743.8 | AU186: 14678.4 | AV186: 14678.4 | AW186: 14678.4 | AX186: 14678.4 | AY186: 14678.4 | AZ186: 14678.4 | BB186: 22197.872 | BC186: 1.04671 | BD186: 1.03448 | BE186: 1.04145 | BF186: 1.07429 | BK186: -5 | BL186: 3.76552 | BM186: 1.40E-07 | BN186: -5 | BO186: 4.07463 | BP186: 2.69E-07 | BQ186: -5 | BR186: 3.77855 | BS186: 4.82E-07 | BT186: -5 | BU186: 3.77855 | BV186: 1.59E-06 | BX186: 5.61437 | BY186: 0.33024 | BZ186: 0.06106 | CA186: 0.00933 | CB186: 0.15759 | CD186: -42.41715 | CE186: 0.08647 | CF186: -2.72924 | CG186: -35.96758 | CH186: 0 | CI186: 0 | CJ186: -36.44523 | CK186: 0 | CL186: 0
P187: 641.78 | Q187: 69110.5 | R187: 50725.5 | S187: 30603.5 | T187: 30623.3 | U187: 30603.5 | V187: 49904.7 | W187: 30603.5 | X187: 30603.5 | Y187: 70046.5 | Z187: 641.78 | AA187: 70101.3 | AB187: 55835.4 | AC187: 31134.9 | AD187: 31142.2 | AE187: 31134.9 | AF187: 46060 | AG187: 31134.9 | AH187: 31134.9 | AI187: 70767.8 | AK187: 476.78 | AL187: 20923.9 | AM187: 20881.2 | AN187: 20881.2 | AO187: 20881.6 | AP187: 20881.2 | AQ187: 20881.2 | AR187: 20881.6 | AS187: 476.78 | AT187: 14618.3 | AU187: 14678 | AV187: 14678 | AW187: 14678 | AX187: 14678 | AY187: 14678 | AZ187: 14678 | BB187: 22198.848 | BC187: 1.04604 | BD187: 1.02802 | BE187: 1.03781 | BF187: 1.0759 | BK187: -5 | BL187: 3.78621 | BM187: 1.26E-07 | BN187: -5 | BO187: 4.09701 | BP187: 2.42E-07 | BQ187: -5 | BR187: 3.79931 | BS187: 4.38E-07 | BT187: -5 | BU187: 3.79931 | BV187: 1.44E-06 | BX187: 5.64505 | BY187: 0.3369 | BZ187: 0.07858 | CA187: 0.0113 | CB187: 0.13092 | CD187: -42.35515 | CE187: 0.04205 | CF187: -0.37661 | CG187: -35.91058 | CH187: 0 | CI187: 0 | CJ187: -36.39223 | CK187: 0 | CL187: 0
P188: 641.68 | Q188: 69497.7 | R188: 52034.5 | S188: 30343.7 | T188: 30359.1 | U188: 30343.7 | V188: 48395.2 | W188: 30343.7 | X188: 30343.7 | Y188: 70101.5 | Z188: 641.68 | AA188: 70121.3 | AB188: 56707.1 | AC188: 30895.9 | AD188: 30901.5 | AE188: 30895.9 | AF188: 44525.3 | AG188: 30895.9 | AH188: 30895.9 | AI188: 70342.2 | AK188: 476.68 | AL188: 20895.9 | AM188: 20882.8 | AN188: 20882.8 | AO188: 20883.1 | AP188: 20882.8 | AQ188: 20882.8 | AR188: 20883.1 | AS188: 476.68 | AT188: 14744.1 | AU188: 14677.6 | AV188: 14677.6 | AW188: 14677.6 | AX188: 14677.6 | AY188: 14677.6 | AZ188: 14677.6 | BB188: 22199.824 | BC188: 1.04491 | BD188: 1.02207 | BE188: 1.03372 | BF188: 1.07626 | BK188: -5 | BL188: 3.8069 | BM188: 1.14E-07 | BN188: -5 | BO188: 4.1194 | BP188: 2.17E-07 | BQ188: -5 | BR188: 3.82007 | BS188: 3.98E-07 | BT188: -5 | BU188: 3.82007 | BV188: 1.31E-06 | BX188: 5.67573 | BY188: 0.3349 | BZ188: 0.0948 | CA188: 0.01348 | CB188: 0.11137 | CD188: -42.29415 | CE188: 0.00229 | CF188: -0.67537 | CG188: -35.85258 | CH188: 0 | CI188: 0 | CJ188: -36.33823 | CK188: 0 | CL188: 0
P189: 641.58 | Q189: 69690.2 | R189: 53206.4 | S189: 30081.5 | T189: 30093.4 | U189: 30081.5 | V189: 46845.9 | W189: 30081.5 | X189: 30081.5 | Y189: 69982.8 | Z189: 641.58 | AA189: 70078.2 | AB189: 57252.1 | AC189: 30656 | AD189: 30660.3 | AE189: 30656 | AF189: 43022.4 | AG189: 30656 | AH189: 30656 | AI189: 69622.8 | AK189: 476.58 | AL189: 21113.9 | AM189: 20884.3 | AN189: 20884.3 | AO189: 20884.6 | AP189: 20884.3 | AQ189: 20884.3 | AR189: 20884.6 | AS189: 476.58 | AT189: 15003.7 | AU189: 14676.9 | AV189: 14676.9 | AW189: 14676.9 | AX189: 14676.9 | AY189: 14676.9 | AZ189: 14676.9 | BB189: 22200.923 | BC189: 1.04523 | BD189: 1.01662 | BE189: 1.02958 | BF189: 1.07527 | BK189: -5 | BL189: 3.82759 | BM189: 1.03E-07 | BN189: -5 | BO189: 4.14179 | BP189: 1.94E-07 | BQ189: -5 | BR189: 3.84083 | BS189: 3.61E-07 | BT189: -5 | BU189: 3.84083 | BV189: 1.19E-06 | BX189: 5.70641 | BY189: 0.32259 | BZ189: 0.10869 | CA189: 0.01546 | CB189: 0.09918 | CD189: -42.23215 | CE189: 0.0524 | CF189: -0.22461 | CG189: -35.79558 | CH189: 0 | CI189: 0 | CJ189: -36.28523 | CK189: 0 | CL189: 0
P190: 641.48 | Q190: 69529.5 | R190: 54192.8 | S190: 29816.6 | T190: 29825.8 | U190: 29816.6 | V190: 45279.1 | W190: 29816.6 | X190: 29816.6 | Y190: 69664.5 | Z190: 641.48 | AA190: 69857.6 | AB190: 57435 | AC190: 30416.8 | AD190: 30420 | AE190: 30416.8 | AF190: 41567.2 | AG190: 30416.8 | AH190: 30416.8 | AI190: 68588.5 | AK190: 476.48 | AL190: 20966.1 | AM190: 20885.9 | AN190: 20885.9 | AO190: 20886.2 | AP190: 20885.9 | AQ190: 20885.9 | AR190: 20886.2 | AS190: 476.48 | AT190: 15049.5 | AU190: 14676.1 | AV190: 14676.1 | AW190: 14676.1 | AX190: 14676.1 | AY190: 14676.1 | AZ190: 14676.1 | BB190: 22201.899 | BC190: 1.04361 | BD190: 1.01178 | BE190: 1.02667 | BF190: 1.07398 | BK190: -5 | BL190: 3.84828 | BM190: 9.31E-08 | BN190: -5 | BO190: 4.16418 | BP190: 1.74E-07 | BQ190: -5 | BR190: 3.86159 | BS190: 3.27E-07 | BT190: -5 | BU190: 3.86159 | BV190: 1.08E-06 | BX190: 5.73709 | BY190: 0.29875 | BZ190: 0.11973 | CA190: 0.01703 | CB190: 0.0934 | CD190: -42.17015 | CE190: 0.36979 | CF190: -0.40661 | CG190: -35.73858 | CH190: 0 | CI190: 0 | CJ190: -36.23223 | CK190: 0 | CL190: 0
P191: 641.38 | Q191: 69205.9 | R191: 54949.9 | S191: 29550.5 | T191: 29557.5 | U191: 29550.5 | V191: 43717.1 | W191: 29550.5 | X191: 29550.5 | Y191: 69123.5 | Z191: 641.38 | AA191: 68969.6 | AB191: 57236.4 | AC191: 30179.6 | AD191: 30182 | AE191: 30179.6 | AF191: 40172.2 | AG191: 30179.6 | AH191: 30179.6 | AI191: 67231.4 | AK191: 476.38 | AL191: 21486.5 | AM191: 20887.5 | AN191: 20887.5 | AO191: 20887.7 | AP191: 20887.5 | AQ191: 20887.5 | AR191: 20887.7 | AS191: 476.38 | AT191: 14940 | AU191: 14675.1 | AV191: 14675.1 | AW191: 14675.1 | AX191: 14675.1 | AY191: 14675.1 | AZ191: 14675.1 | BB191: 22202.876 | BC191: 1.04151 | BD191: 1.00764 | BE191: 1.02344 | BF191: 1.07217 | BK191: -5 | BL191: 3.86897 | BM191: 8.40E-08 | BN191: -5 | BO191: 4.18657 | BP191: 1.56E-07 | BQ191: -5 | BR191: 3.88235 | BS191: 2.97E-07 | BT191: -5 | BU191: 3.88235 | BV191: 9.76E-07 | BX191: 5.76777 | BY191: 0.2629 | BZ191: 0.12774 | CA191: 0.01806 | CB191: 0.09211 | CD191: -42.10915 | CE191: 0.43921 | CF191: -1.09713 | CG191: -35.68158 | CH191: 0 | CI191: 0 | CJ191: -36.17823 | CK191: 0 | CL191: 0
P192: 641.28 | Q192: 68996.1 | R192: 55440 | S192: 29284.1 | T192: 29289.5 | U192: 29284.1 | V192: 42179.1 | W192: 29284.1 | X192: 29284.1 | Y192: 68340.3 | Z192: 641.28 | AA192: 67500.6 | AB192: 56657.1 | AC192: 29946.6 | AD192: 29948.4 | AE192: 29946.6 | AF192: 38848.5 | AG192: 29946.6 | AH192: 29946.6 | AI192: 65560.8 | AK192: 476.28 | AL192: 21352.6 | AM192: 20889.1 | AN192: 20889.1 | AO192: 20889.2 | AP192: 20889.1 | AQ192: 20889.1 | AR192: 20889.2 | AS192: 476.28 | AT192: 14864.3 | AU192: 14673.8 | AV192: 14673.8 | AW192: 14673.8 | AX192: 14673.8 | AY192: 14673.8 | AZ192: 14673.8 | BB192: 22203.852 | BC192: 1.03999 | BD192: 1.00435 | BE192: 1.01978 | BF192: 1.0699 | BK192: -5 | BL192: 3.88965 | BM192: 7.57E-08 | BN192: -5 | BO192: 4.20895 | BP192: 1.39E-07 | BQ192: -5 | BR192: 3.90311 | BS192: 2.69E-07 | BT192: -5 | BU192: 3.90311 | BV192: 8.85E-07 | BX192: 5.79845 | BY192: 0.21571 | BZ192: 0.13274 | CA192: 0.01847 | CB192: 0.09311 | CD192: -42.04715 | CE192: 0.18684 | CF192: -0.39429 | CG192: -35.62358 | CH192: 0 | CI192: 0 | CJ192: -36.12523 | CK192: 0 | CL192: 0
P193: 641.18 | Q193: 68531 | R193: 55636 | S193: 29020.2 | T193: 29024.3 | U193: 29020.2 | V193: 40683.4 | W193: 29020.2 | X193: 29020.2 | Y193: 67303.2 | Z193: 641.18 | AA193: 65536.6 | AB193: 55716.1 | AC193: 29720.4 | AD193: 29721.7 | AE193: 29720.4 | AF193: 37604.7 | AG193: 29720.4 | AH193: 29720.4 | AI193: 63601.7 | AK193: 476.18 | AL193: 21129.1 | AM193: 20890.6 | AN193: 20890.6 | AO193: 20890.8 | AP193: 20890.6 | AQ193: 20890.6 | AR193: 20890.8 | AS193: 476.18 | AT193: 15126.5 | AU193: 14672.5 | AV193: 14672.5 | AW193: 14672.5 | AX193: 14672.5 | AY193: 14672.5 | AZ193: 14672.5 | BB193: 22204.829 | BC193: 1.03852 | BD193: 1.00238 | BE193: 1.01633 | BF193: 1.06717 | BK193: -5 | BL193: 3.91035 | BM193: 6.81E-08 | BN193: -5 | BO193: 4.23134 | BP193: 1.24E-07 | BQ193: -5 | BR193: 3.92387 | BS193: 2.44E-07 | BT193: -5 | BU193: 3.92387 | BV193: 8.02E-07 | BX193: 5.82913 | BY193: 0.15983 | BZ193: 0.13487 | CA193: 0.01817 | CB193: 0.09459 | CD193: -41.98515 | CE193: 0.01524 | CF193: -0.30969 | CG193: -35.56658 | CH193: 0 | CI193: 0 | CJ193: -36.07223 | CK193: 0 | CL193: 0
P194: 641.08 | Q194: 66688 | R194: 55520.3 | S194: 28759.9 | T194: 28763 | U194: 28759.9 | V194: 39243.8 | W194: 28759.9 | X194: 28759.9 | Y194: 66007.3 | Z194: 641.08 | AA194: 63517.9 | AB194: 54450.8 | AC194: 29504.4 | AD194: 29505.4 | AE194: 29504.4 | AF194: 36447.8 | AG194: 29504.4 | AH194: 29504.4 | AI194: 61395.2 | AK194: 476.08 | AL194: 21467.2 | AM194: 20892.2 | AN194: 20892.2 | AO194: 20892.3 | AP194: 20892.2 | AQ194: 20892.2 | AR194: 20892.3 | AS194: 476.08 | AT194: 14919.9 | AU194: 14671.6 | AV194: 14671.6 | AW194: 14671.6 | AX194: 14671.6 | AY194: 14671.6 | AZ194: 14671.6 | BB194: 22205.806 | BC194: 1.03813 | BD194: 1.00177 | BE194: 1.01218 | BF194: 1.06333 | BK194: -5 | BL194: 3.93103 | BM194: 6.13E-08 | BN194: -5 | BO194: 4.25373 | BP194: 1.11E-07 | BQ194: -5 | BR194: 3.94464 | BS194: 2.21E-07 | BT194: -5 | BU194: 3.94464 | BV194: 7.27E-07 | BX194: 5.85981 | BY194: 0.10357 | BZ194: 0.1343 | CA194: 0.01713 | CB194: 0.09527 | CD194: -41.92415 | CE194: 0.01001 | CF194: -0.47215 | CG194: -35.50958 | CH194: 0 | CI194: 0 | CJ194: -36.01823 | CK194: 0 | CL194: 0
P195: 640.98 | Q195: 65728.9 | R195: 55089.3 | S195: 28505.4 | T195: 28507.8 | U195: 28505.4 | V195: 37872.7 | W195: 28505.4 | X195: 28505.4 | Y195: 64458.9 | Z195: 640.98 | AA195: 60448.8 | AB195: 52912.2 | AC195: 29301.6 | AD195: 29302.3 | AE195: 29301.6 | AF195: 35382.6 | AG195: 29301.6 | AH195: 29301.6 | AI195: 58993.9 | AK195: 475.98 | AL195: 21300.3 | AM195: 20893.8 | AN195: 20893.8 | AO195: 20893.9 | AP195: 20893.8 | AQ195: 20893.8 | AR195: 20893.9 | AS195: 475.98 | AT195: 14573.4 | AU195: 14670.7 | AV195: 14670.7 | AW195: 14670.7 | AX195: 14670.7 | AY195: 14670.7 | AZ195: 14670.7 | BB195: 22206.905 | BC195: 1.03696 | BD195: 1.00183 | BE195: 1.00718 | BF195: 1.05827 | BK195: -5 | BL195: 3.95172 | BM195: 5.51E-08 | BN195: -5 | BO195: 4.27612 | BP195: 9.95E-08 | BQ195: -5 | BR195: 3.9654 | BS195: 2.00E-07 | BT195: -5 | BU195: 3.9654 | BV195: 6.58E-07 | BX195: 5.89049 | BY195: 0.07944 | BZ195: 0.13121 | CA195: 0.01538 | CB195: 0.09437 | CD195: -41.86215 | CE195: 0.18118 | CF195: -0.24231 | CG195: -35.45258 | CH195: 0 | CI195: 0 | CJ195: -35.96523 | CK195: 0 | CL195: 0
P196: 640.88 | Q196: 63680.9 | R196: 54351.8 | S196: 28258.4 | T196: 28260.2 | U196: 28258.4 | V196: 36578.9 | W196: 28258.4 | X196: 28258.4 | Y196: 62674 | Z196: 640.88 | AA196: 57132.8 | AB196: 51159.6 | AC196: 29113.5 | AD196: 29114.1 | AE196: 29113.5 | AF196: 34410.3 | AG196: 29113.5 | AH196: 29113.5 | AI196: 56456.9 | AK196: 475.88 | AL196: 20872.6 | AM196: 20895.4 | AN196: 20895.4 | AO196: 20895.4 | AP196: 20895.4 | AQ196: 20895.4 | AR196: 20895.5 | AS196: 475.88 | AT196: 15008.9 | AU196: 14669.8 | AV196: 14669.8 | AW196: 14669.8 | AX196: 14669.8 | AY196: 14669.8 | AZ196: 14669.8 | BB196: 22207.882 | BC196: 1.03484 | BD196: 1.00209 | BE196: 1.00338 | BF196: 1.05359 | BK196: -5 | BL196: 3.97241 | BM196: 4.95E-08 | BN196: -5 | BO196: 4.29851 | BP196: 8.89E-08 | BQ196: -5 | BR196: 3.98616 | BS196: 1.81E-07 | BT196: -5 | BU196: 3.98616 | BV196: 5.96E-07 | BX196: 5.92117 | BY196: 0.1241 | BZ196: 0.12569 | CA196: 0.01305 | CB196: 0.09145 | CD196: -41.80015 | CE196: 0.28367 | CF196: -0.09285 | CG196: -35.39458 | CH196: 0 | CI196: 0 | CJ196: -35.91123 | CK196: 0 | CL196: 0
P197: 640.78 | Q197: 62298.8 | R197: 53330.5 | S197: 28021.7 | T197: 28023 | U197: 28021.7 | V197: 35370 | W197: 28021.7 | X197: 28021.7 | Y197: 60680 | Z197: 640.78 | AA197: 54404.5 | AB197: 49256.8 | AC197: 28941.1 | AD197: 28941.5 | AE197: 28941.1 | AF197: 33530.2 | AG197: 28941.1 | AH197: 28941.1 | AI197: 53846.3 | AK197: 475.78 | AL197: 21119.9 | AM197: 20896.9 | AN197: 20896.9 | AO197: 20897 | AP197: 20896.9 | AQ197: 20896.9 | AR197: 20897 | AS197: 475.78 | AT197: 14820 | AU197: 14669.1 | AV197: 14669.1 | AW197: 14669.1 | AX197: 14669.1 | AY197: 14669.1 | AZ197: 14669.1 | BB197: 22208.859 | BC197: 1.0342 | BD197: 1.00218 | BE197: 1.00002 | BF197: 1.04965 | BK197: -5 | BL197: 3.9931 | BM197: 4.44E-08 | BN197: -5 | BO197: 4.3209 | BP197: 7.94E-08 | BQ197: -5 | BR197: 4.00692 | BS197: 1.64E-07 | BT197: -5 | BU197: 4.00692 | BV197: 5.40E-07 | BX197: 5.95185 | BY197: 0.19848 | BZ197: 0.11786 | CA197: 0.01044 | CB197: 0.08647 | CD197: -41.73915 | CE197: 0.04021 | CF197: -0.00474 | CG197: -35.33758 | CH197: 0 | CI197: 0 | CJ197: -35.85823 | CK197: 0 | CL197: 0
P198: 640.68 | Q198: 59718.8 | R198: 52057.2 | S198: 27796.3 | T198: 27797.2 | U198: 27796.3 | V198: 34249.6 | W198: 27796.3 | X198: 27796.3 | Y198: 58511.5 | Z198: 640.68 | AA198: 51845.7 | AB198: 47269 | AC198: 28785.7 | AD198: 28786 | AE198: 28785.7 | AF198: 32740.9 | AG198: 28785.7 | AH198: 28785.7 | AI198: 51224.5 | AK198: 475.68 | AL198: 21452.7 | AM198: 20898.5 | AN198: 20898.5 | AO198: 20898.6 | AP198: 20898.5 | AQ198: 20898.5 | AR198: 20898.6 | AS198: 475.68 | AT198: 14858.4 | AU198: 14668.3 | AV198: 14668.3 | AW198: 14668.3 | AX198: 14668.3 | AY198: 14668.3 | AZ198: 14668.3 | BB198: 22209.836 | BC198: 1.0343 | BD198: 1.00223 | BE198: 0.99694 | BF198: 1.04664 | BK198: -5 | BL198: 4.01379 | BM198: 3.98E-08 | BN198: -5 | BO198: 4.34328 | BP198: 7.09E-08 | BQ198: -5 | BR198: 4.02768 | BS198: 1.48E-07 | BT198: -5 | BU198: 4.02768 | BV198: 4.89E-07 | BX198: 5.98253 | BY198: 0.27883 | BZ198: 0.1079 | CA198: 0.00819 | CB198: 0.07983 | CD198: -41.67715 | CE198: 4.10E-04 | CF198: -2.00E-05 | CG198: -35.28058 | CH198: 0 | CI198: 0 | CJ198: -35.80523 | CK198: 0 | CL198: 0
P199: 640.58 | Q199: 57162.8 | R199: 50573.4 | S199: 27584 | T199: 27584.8 | U199: 27584 | V199: 33220.4 | W199: 27584 | X199: 27584 | Y199: 56210.4 | Z199: 640.58 | AA199: 48653.4 | AB199: 45256.2 | AC199: 28646.9 | AD199: 28647.1 | AE199: 28646.9 | AF199: 32038.2 | AG199: 28646.9 | AH199: 28646.9 | AI199: 48647.8 | AK199: 475.58 | AL199: 21325.1 | AM199: 20900.1 | AN199: 20900.1 | AO199: 20900.1 | AP199: 20900.1 | AQ199: 20900.1 | AR199: 20900.1 | AS199: 475.58 | AT199: 15060.8 | AU199: 14667.3 | AV199: 14667.3 | AW199: 14667.3 | AX199: 14667.3 | AY199: 14667.3 | AZ199: 14667.3 | BB199: 22210.813 | BC199: 1.03303 | BD199: 1.00218 | BE199: 0.99451 | BF199: 1.04418 | BK199: -5 | BL199: 4.03448 | BM199: 3.57E-08 | BN199: -5 | BO199: 4.36567 | BP199: 6.32E-08 | BQ199: -5 | BR199: 4.04844 | BS199: 1.34E-07 | BT199: -5 | BU199: 4.04844 | BV199: 4.43E-07 | BX199: 6.0132 | BY199: 0.35791 | BZ199: 0.0962 | CA199: 0.00742 | CB199: 0.07239 | CD199: -41.61515 | CE199: 0 | CF199: 0 | CG199: -35.22358 | CH199: 0 | CI199: 0 | CJ199: -35.75123 | CK199: 0 | CL199: 0
P200: 640.48 | Q200: 54826.9 | R200: 48926 | S200: 27386.4 | T200: 27386.9 | U200: 27386.4 | V200: 32282.7 | W200: 27386.4 | X200: 27386.4 | Y200: 53822.8 | Z200: 640.48 | AA200: 46078 | AB200: 43271.6 | AC200: 28523.7 | AD200: 28523.8 | AE200: 28523.7 | AF200: 31416.9 | AG200: 28523.7 | AH200: 28523.7 | AI200: 46164.9 | AK200: 475.48 | AL200: 21404.7 | AM200: 20901.7 | AN200: 20901.7 | AO200: 20901.7 | AP200: 20901.7 | AQ200: 20901.7 | AR200: 20901.7 | AS200: 475.48 | AT200: 14779.4 | AU200: 14666.3 | AV200: 14666.3 | AW200: 14666.3 | AX200: 14666.3 | AY200: 14666.3 | AZ200: 14666.3 | BB200: 22211.912 | BC200: 1.03166 | BD200: 1.00195 | BE200: 0.99275 | BF200: 1.04167 | BK200: -5 | BL200: 4.05517 | BM200: 3.20E-08 | BN200: -5 | BO200: 4.38806 | BP200: 5.64E-08 | BQ200: -5 | BR200: 4.0692 | BS200: 1.21E-07 | BT200: -5 | BU200: 4.0692 | BV200: 4.00E-07 | BX200: 6.04388 | BY200: 0.43205 | BZ200: 0.08356 | CA200: 0.00874 | CB200: 0.06559 | CD200: -41.55415 | CE200: 0 | CF200: 0 | CG200: -35.16558 | CH200: 0 | CI200: 0 | CJ200: -35.69823 | CK200: 0 | CL200: 0
... 4300 more rows

Sheet Figure 3
A1: Figure 3b | F1: Figure 3c | K1: Figure 3d | P1: Figure 3e | T1: Figure 3f | Y1: Figure 3g | AD1: Figure 3h | AI1: Figure 3i | AP1: Figure 3j | AW1: Figure 3k | CP1: Figure 3l | EI1: Figure 3n | EM1: Figure 3o
A2: Time (s) | B2: MnBTC-Ru | C2: C-Ru | D2: MnBTC | G2: Peroxidase-like activity (a.u.) | H2: Average | I2: SD | L2: Peroxidase-like activity (a.u.) | M2: Average | N2: SD | Q2: MnBTC-Ru | R2: C-Ru | T2: Artificial enzymes | U2: 1/Km (mM-1) | V2: Vmax (μM s-1) | W2: TON (10-3 s-1) | Y2: Wavelength (nm) | Z2: HE | AA2: HE+H2O2 | AB2: HE+H2O2+MnBTC-Ru | AD2: Wavelength (nm) | AE2: DPA | AF2: DPA+H2O2 | AG2: DPA+H2O2+MnBTC-Ru | AI2: Magnetic Field (Gauss) | AJ2: DMPO+H2O2+MnBTC-Ru | AK2: Magnetic Field (Gauss) | AL2: DMPO+H2O2+MnBTC-Ru+X-Ray | AM2: Magnetic Field (Gauss) | AN2: DMPO+H2O2 | AP2: Magnetic Field (Gauss) | AQ2: TEMP+H2O2+MnBTC-Ru | AR2: Magnetic Field (Gauss) | AS2: TEMP+H2O2+MnBTC-Ru+X-Ray | AT2: Magnetic Field (Gauss) | AU2: TEMP+H2O2 | AW2: Wavenumber (cm-1) | AX2: 14 | AY2: 28 | AZ2: 42 | BA2: 56 | BB2: 70 | BC2: 84 | BD2: 98 | BE2: 112 | BF2: 126 | BG2: 140 | BH2: 154 | BI2: 168 | BJ2: 182 | BK2: 196 | BL2: 210 | BM2: 224 | BN2: 238 | BO2: 252 | BP2: 266 | BQ2: 280 | BR2: 294 | BS2: 308 | BT2: 322 | BU2: 336 | BV2: 350 | BW2: 364 | BX2: 378 | BY2: 392 | BZ2: 406 | CA2: 420 | CB2: 434 | CC2: 448 | CD2: 462 | CE2: 476 | CF2: 490 | CG2: 504 | CH2: 518 | CI2: 532 | CJ2: 546 | CK2: 560 | CL2: 574 | CM2: 588 | CN2: 602 | CP2: Wavenumber (cm-1) | CQ2: 14 | CR2: 28 | CS2: 42 | CT2: 56 | CU2: 70 | CV2: 84 | CW2: 98 | CX2: 112 | CY2: 126 | CZ2: 140 | DA2: 154 | DB2: 168 | DC2: 182 | DD2: 196 | DE2: 210 | DF2: 224 | DG2: 238 | DH2: 252 | DI2: 266 | DJ2: 280 | DK2: 294 | DL2: 308 | DM2: 322 | DN2: 336 | DO2: 350 | DP2: 364 | DQ2: 378 | DR2: 392 | DS2: 406 | DT2: 420 | DU2: 434 | DV2: 448 | DW2: 462 | DX2: 476 | DY2: 490 | DZ2: 504 | EA2: 518 | EB2: 532 | EC2: 546 | ED2: 560 | EE2: 574 | EF2: 588 | EG2: 602 | EJ2: MnBTC-Ru | EK2: C-Ru | EM2: E-Ef | EN2: MnBTC-Ru | ER2: E-Ef | ES2: C-Ru
A3: 0 | B3: 6.42 | C3: 5.31 | D3: 6.16 | F3: MnBTC-Ru | G3: 2.5878 | H3: =AVERAGE(G3:G5) -> 2.523366667 | I3: =_xlfn.STDEV.S(G3:G5) -> 0.06610932864 | K3: Without KSCN | L3: 2.5878 | M3: =AVERAGE(L3:L5) -> 2.523366667 | N3: =_xlfn.STDEV.S(L3:L5) -> 0.06610932864 | P3: Relative activity (a.u.) | Q3: 2.52 | R3: 0.97 | T3: MnBTC-Ru | U3: 0.68 | V3: 2.25 | W3: 71.6 | Y3: 510 | Z3: 217926 | AA3: 260955 | AB3: 124103 | AD3: 200 | AE3: 1.7225 | AF3: 1.7348 | AG3: 1.7186 | AI3: 3000 | AJ3: 0.23823 | AK3: 3000 | AL3: 0.22795 | AM3: 3000 | AN3: 0.28121 | AP3: 3000 | AQ3: 0.21607 | AR3: 3000 | AS3: 0.22225 | AT3: 2997 | AU3: 0.24603 | AW3: 399.1992 | AX3: 0 | AY3: 0 | AZ3: 0 | BA3: 0 | BB3: 0 | BC3: 0 | BD3: 0 | BE3: 0 | BF3: 0 | BG3: 0 | BH3: 0 | BI3: 0 | BJ3: 0 | BK3: 0 | BL3: 0 | BM3: 0 | BN3: 0 | BO3: 0 | BP3: 0 | BQ3: 0 | BR3: 0 | BS3: 0 | BT3: 0 | BU3: 0 | BV3: 0 | BW3: 0 | BX3: 0 | BY3: 0 | BZ3: 0 | CA3: 0 | CB3: 0 | CC3: 0 | CD3: 0 | CE3: 0 | CF3: 0 | CG3: 0 | CH3: 0 | CI3: 0 | CJ3: 0 | CK3: 0 | CL3: 0 | CM3: 0 | CN3: 0 | CP3: 399.1992 | CQ3: 0 | CR3: 0 | CS3: 0 | CT3: 0 | CU3: 0 | CV3: 0 | CW3: 0 | CX3: 0 | CY3: 0 | CZ3: 0 | DA3: 0 | DB3: 0 | DC3: 0 | DD3: 0 | DE3: 0 | DF3: 0 | DG3: 0 | DH3: 0 | DI3: 0 | DJ3: 0 | DK3: 0 | DL3: 0 | DM3: 0 | DN3: 0 | DO3: 0 | DP3: 0 | DQ3: 0 | DR3: 0 | DS3: 0 | DT3: 0 | DU3: 0 | DV3: 0 | DW3: 0 | DX3: 0 | DY3: 0 | DZ3: 0 | EA3: 0 | EB3: 0 | EC3: 0 | ED3: 0 | EE3: 0 | EF3: 0 | EG3: 0 | EI3: Bader charge |e| | EJ3: 0.449 | EK3: 0.552 | EM3: -51.68562 | EN3: 0 | EO3: 0 | EP3: 0 | EQ3: 0 | ER3: -46.42544 | ES3: 0 | ET3: 0 | EU3: 0 | EV3: 0
A4: 5 | B4: 7.35 | C4: 6.44 | D4: 6.15 | G4: 2.5266 | L4: 2.5266 | P4: Km (mM) | Q4: 1.46484 | R4: 0.30461 | T4: CoO | U4: 1.09 × 10-2 | V4: 1.14 | W4: 8.55 | Y4: 520 | Z4: 307562 | AA4: 333521 | AB4: 138027 | AD4: 201 | AE4: 1.7281 | AF4: 1.7409 | AG4: 1.7245 | AI4: 3000.1 | AJ4: 0.23832 | AK4: 3000.1 | AL4: 0.22804 | AM4: 3000.1 | AN4: 0.28114 | AP4: 3000.1 | AQ4: 0.21607 | AR4: 3000.1 | AS4: 0.22196 | AT4: 2997.1 | AU4: 0.24597 | AW4: 400.1634 | AX4: 0 | AY4: 0 | AZ4: 0 | BA4: 0 | BB4: 0 | BC4: 0 | BD4: 0 | BE4: 0 | BF4: 0 | BG4: 0 | BH4: 0 | BI4: 0 | BJ4: 0 | BK4: 0 | BL4: 0 | BM4: 0 | BN4: 0 | BO4: 0 | BP4: 0 | BQ4: 0 | BR4: 0 | BS4: 0 | BT4: 0 | BU4: 0 | BV4: 0 | BW4: 0 | BX4: 0 | BY4: 0 | BZ4: 0 | CA4: 0 | CB4: 0 | CC4: 0 | CD4: 0 | CE4: 0 | CF4: 0 | CG4: 0 | CH4: 0 | CI4: 0 | CJ4: 0 | CK4: 0 | CL4: 0 | CM4: 0 | CN4: 0 | CP4: 400.1634 | CQ4: 0 | CR4: 0 | CS4: 0 | CT4: 0 | CU4: 0 | CV4: 0 | CW4: 0 | CX4: 0 | CY4: 0 | CZ4: 0 | DA4: 0 | DB4: 0 | DC4: 0 | DD4: 0 | DE4: 0 | DF4: 0 | DG4: 0 | DH4: 0 | DI4: 0 | DJ4: 0 | DK4: 0 | DL4: 0 | DM4: 0 | DN4: 0 | DO4: 0 | DP4: 0 | DQ4: 0 | DR4: 0 | DS4: 0 | DT4: 0 | DU4: 0 | DV4: 0 | DW4: 0 | DX4: 0 | DY4: 0 | DZ4: 0 | EA4: 0 | EB4: 0 | EC4: 0 | ED4: 0 | EE4: 0 | EF4: 0 | EG4: 0 | EM4: -51.62662 | EN4: 0 | EO4: 0 | EP4: 0 | EQ4: 0 | ER4: -46.36844 | ES4: 0 | ET4: 0 | EU4: 0 | EV4: 0
A5: 10 | B5: 8.44 | C5: 7.45 | D5: 6.12 | G5: 2.4557 | L5: 2.4557 | P5: TON (×10-3 s-1) | Q5: 71.60441 | R5: 28.91126 | T5: CeO2 | U5: 0.23 | V5: 0.18 | W5: 3.1 | Y5: 530 | Z5: 422490 | AA5: 456293 | AB5: 173548 | AD5: 202 | AE5: 1.7408 | AF5: 1.7546 | AG5: 1.7378 | AI5: 3000.2 | AJ5: 0.23842 | AK5: 3000.2 | AL5: 0.22805 | AM5: 3000.2 | AN5: 0.2811 | AP5: 3000.2 | AQ5: 0.21617 | AR5: 3000.2 | AS5: 0.22168 | AT5: 2997.2 | AU5: 0.2459 | AW5: 401.1277 | AX5: 0 | AY5: 0 | AZ5: 0 | BA5: 0 | BB5: 0 | BC5: 0 | BD5: 0 | BE5: 0 | BF5: 0 | BG5: 0 | BH5: 0 | BI5: 0 | BJ5: 0 | BK5: 0 | BL5: 0 | BM5: 0 | BN5: 0 | BO5: 0 | BP5: 0 | BQ5: 0 | BR5: 0 | BS5: 0 | BT5: 0 | BU5: 0 | BV5: 0 | BW5: 0 | BX5: 0 | BY5: 0 | BZ5: 0 | CA5: 0 | CB5: 0 | CC5: 0 | CD5: 0 | CE5: 0 | CF5: 0 | CG5: 0 | CH5: 0 | CI5: 0 | CJ5: 0 | CK5: 0 | CL5: 0 | CM5: 0 | CN5: 0 | CP5: 401.1277 | CQ5: 0 | CR5: 0 | CS5: 0 | CT5: 0 | CU5: 0 | CV5: 0 | CW5: 0 | CX5: 0 | CY5: 0 | CZ5: 0 | DA5: 0 | DB5: 0 | DC5: 0 | DD5: 0 | DE5: 0 | DF5: 0 | DG5: 0 | DH5: 0 | DI5: 0 | DJ5: 0 | DK5: 0 | DL5: 0 | DM5: 0 | DN5: 0 | DO5: 0 | DP5: 0 | DQ5: 0 | DR5: 0 | DS5: 0 | DT5: 0 | DU5: 0 | DV5: 0 | DW5: 0 | DX5: 0 | DY5: 0 | DZ5: 0 | EA5: 0 | EB5: 0 | EC5: 0 | ED5: 0 | EE5: 0 | EF5: 0 | EG5: 0 | EM5: -51.56762 | EN5: 0 | EO5: 0 | EP5: 0 | EQ5: 0 | ER5: -46.31044 | ES5: 0 | ET5: 0 | EU5: 0 | EV5: 0
A6: 15 | B6: 9.49 | C6: 8.3 | D6: 6.21 | F6: C-Ru | G6: 0.9719 | H6: =AVERAGE(G6:G8) -> 0.9707333333 | I6: =_xlfn.STDEV.S(G6:G8) -> 0.06955733846 | K6: With KSCN | L6: 0.3021 | M6: =AVERAGE(L6:L8) -> 0.3073333333 | N6: =_xlfn.STDEV.S(L6:L8) -> 0.04567541279 | P6: Vmax (µM s-1) | Q6: 2.24669 | R6: 0.44482 | T6: Mn2O3 | U6: 7.98 × 10-2 | V6: 1.01 | W6: 7.98 | Y6: 540 | Z6: 741417 | AA6: 665661 | AB6: 257482 | AD6: 203 | AE6: 1.7582 | AF6: 1.7733 | AG6: 1.7557 | AI6: 3000.3 | AJ6: 0.23847 | AK6: 3000.3 | AL6: 0.22795 | AM6: 3000.3 | AN6: 0.28112 | AP6: 3000.3 | AQ6: 0.2164 | AR6: 3000.3 | AS6: 0.22146 | AT6: 2997.3 | AU6: 0.24582 | AW6: 402.0919 | AX6: 0 | AY6: 0 | AZ6: 0 | BA6: 0 | BB6: 0 | BC6: 0 | BD6: 0 | BE6: 0 | BF6: 0 | BG6: 0 | BH6: 0 | BI6: 0 | BJ6: 0 | BK6: 0 | BL6: 0 | BM6: 0 | BN6: 0 | BO6: 0 | BP6: 0 | BQ6: 0 | BR6: 0 | BS6: 0 | BT6: 0 | BU6: 0 | BV6: 0 | BW6: 0 | BX6: 0 | BY6: 0 | BZ6: 0 | CA6: 0 | CB6: 0 | CC6: 0 | CD6: 0 | CE6: 0 | CF6: 0 | CG6: 0 | CH6: 0 | CI6: 0 | CJ6: 0 | CK6: 0 | CL6: 0 | CM6: 0 | CN6: 0 | CP6: 402.0919 | CQ6: 0 | CR6: 0 | CS6: 0 | CT6: 0 | CU6: 0 | CV6: 0 | CW6: 0 | CX6: 0 | CY6: 0 | CZ6: 0 | DA6: 0 | DB6: 0 | DC6: 0 | DD6: 0 | DE6: 0 | DF6: 0 | DG6: 0 | DH6: 0 | DI6: 0 | DJ6: 0 | DK6: 0 | DL6: 0 | DM6: 0 | DN6: 0 | DO6: 0 | DP6: 0 | DQ6: 0 | DR6: 0 | DS6: 0 | DT6: 0 | DU6: 0 | DV6: 0 | DW6: 0 | DX6: 0 | DY6: 0 | DZ6: 0 | EA6: 0 | EB6: 0 | EC6: 0 | ED6: 0 | EE6: 0 | EF6: 0 | EG6: 0 | EM6: -51.50862 | EN6: 0 | EO6: 0 | EP6: 0 | EQ6: 0 | ER6: -46.25344 | ES6: 0 | ET6: 0 | EU6: 0 | EV6: 0
A7: 20 | B7: 10.7 | C7: 8.98 | D7: 6.21 | G7: 0.9006 | L7: 0.3554 | T7: Fe3O4 | U7: 2.40 × 10-2 | V7: 0.16 | W7: 1.24 | Y7: 550 | Z7: 1.30E+06 | AA7: 1.08E+06 | AB7: 496097 | AD7: 204 | AE7: 1.7777 | AF7: 1.7942 | AG7: 1.7751 | AI7: 3000.4 | AJ7: 0.23844 | AK7: 3000.4 | AL7: 0.22775 | AM7: 3000.4 | AN7: 0.28124 | AP7: 3000.4 | AQ7: 0.21681 | AR7: 3000.4 | AS7: 0.22134 | AT7: 2997.4 | AU7: 0.24574 | AW7: 403.0562 | AX7: 0 | AY7: 0 | AZ7: 0 | BA7: 0 | BB7: 0 | BC7: 0 | BD7: 0 | BE7: 0 | BF7: 0 | BG7: 0 | BH7: 0 | BI7: 0 | BJ7: 0 | BK7: 0 | BL7: 0 | BM7: 0 | BN7: 0 | BO7: 0 | BP7: 0 | BQ7: 0 | BR7: 0 | BS7: 0 | BT7: 0 | BU7: 0 | BV7: 0 | BW7: 0 | BX7: 0 | BY7: 0 | BZ7: 0 | CA7: 0 | CB7: 0 | CC7: 0 | CD7: 0 | CE7: 0 | CF7: 0 | CG7: 0 | CH7: 0 | CI7: 0 | CJ7: 0 | CK7: 0 | CL7: 0 | CM7: 0 | CN7: 0 | CP7: 403.0562 | CQ7: 0 | CR7: 0 | CS7: 0 | CT7: 0 | CU7: 0 | CV7: 0 | CW7: 0 | CX7: 0 | CY7: 0 | CZ7: 0 | DA7: 0 | DB7: 0 | DC7: 0 | DD7: 0 | DE7: 0 | DF7: 0 | DG7: 0 | DH7: 0 | DI7: 0 | DJ7: 0 | DK7: 0 | DL7: 0 | DM7: 0 | DN7: 0 | DO7: 0 | DP7: 0 | DQ7: 0 | DR7: 0 | DS7: 0 | DT7: 0 | DU7: 0 | DV7: 0 | DW7: 0 | DX7: 0 | DY7: 0 | DZ7: 0 | EA7: 0 | EB7: 0 | EC7: 0 | ED7: 0 | EE7: 0 | EF7: 0 | EG7: 0 | EM7: -51.44962 | EN7: 0 | EO7: 0 | EP7: 0 | EQ7: 0 | ER7: -46.19644 | ES7: 0 | ET7: 0 | EU7: 0 | EV7: 0
A8: 25 | B8: 11.78 | C8: 9.53 | D8: 6.32 | G8: 1.0397 | L8: 0.2645 | T8: CuO | U8: 3.21 × 10-2 | V8: 0.28 | W8: 2.24 | Y8: 560 | Z8: 2.60E+06 | AA8: 1.94E+06 | AB8: 1.28E+06 | AD8: 205 | AE8: 1.7975 | AF8: 1.8151 | AG8: 1.794 | AI8: 3000.5 | AJ8: 0.23826 | AK8: 3000.5 | AL8: 0.22751 | AM8: 3000.5 | AN8: 0.28146 | AP8: 3000.5 | AQ8: 0.21743 | AR8: 3000.5 | AS8: 0.22133 | AT8: 2997.5 | AU8: 0.24564 | AW8: 404.0204 | AX8: 0 | AY8: 0 | AZ8: 0 | BA8: 0 | BB8: 0 | BC8: 0 | BD8: 0 | BE8: 0 | BF8: 0 | BG8: 0 | BH8: 0 | BI8: 0 | BJ8: 0 | BK8: 0 | BL8: 0 | BM8: 0 | BN8: 0 | BO8: 0 | BP8: 0 | BQ8: 0 | BR8: 0 | BS8: 0 | BT8: 0 | BU8: 0 | BV8: 0 | BW8: 0 | BX8: 0 | BY8: 0 | BZ8: 0 | CA8: 0 | CB8: 0 | CC8: 0 | CD8: 0 | CE8: 0 | CF8: 0 | CG8: 0 | CH8: 0 | CI8: 0 | CJ8: 0 | CK8: 0 | CL8: 0 | CM8: 0 | CN8: 0 | CP8: 404.0204 | CQ8: 0 | CR8: 0 | CS8: 0 | CT8: 0 | CU8: 0 | CV8: 0 | CW8: 0 | CX8: 0 | CY8: 0 | CZ8: 0 | DA8: 0 | DB8: 0 | DC8: 0 | DD8: 0 | DE8: 0 | DF8: 0 | DG8: 0 | DH8: 0 | DI8: 0 | DJ8: 0 | DK8: 0 | DL8: 0 | DM8: 0 | DN8: 0 | DO8: 0 | DP8: 0 | DQ8: 0 | DR8: 0 | DS8: 0 | DT8: 0 | DU8: 0 | DV8: 0 | DW8: 0 | DX8: 0 | DY8: 0 | DZ8: 0 | EA8: 0 | EB8: 0 | EC8: 0 | ED8: 0 | EE8: 0 | EF8: 0 | EG8: 0 | EM8: -51.39062 | EN8: 0 | EO8: 0 | EP8: 0 | EQ8: 0 | ER8: -46.13944 | ES8: 0 | ET8: 0 | EU8: 0 | EV8: 0
A9: 30 | B9: 12.98 | C9: 9.99 | D9: 6.39 | F9: MnBTC | G9: 0.2258 | H9: =AVERAGE(G9:G11) -> 0.2221 | I9: =_xlfn.STDEV.S(G9:G11) -> 0.01685734261 | T9: Ru NPs | U9: 0.45 | V9: 0.58 | W9: 5.86 | Y9: 570 | Z9: 4.63E+06 | AA9: 3.31E+06 | AB9: 3.41E+06 | AD9: 206 | AE9: 1.8166 | AF9: 1.835 | AG9: 1.8118 | AI9: 3000.6 | AJ9: 0.23793 | AK9: 3000.6 | AL9: 0.2273 | AM9: 3000.6 | AN9: 0.28169 | AP9: 3000.6 | AQ9: 0.21824 | AR9: 3000.6 | AS9: 0.2214 | AT9: 2997.6 | AU9: 0.24552 | AW9: 404.9846 | AX9: 0 | AY9: 0 | AZ9: 0 | BA9: 0 | BB9: 0 | BC9: 0 | BD9: 0 | BE9: 0 | BF9: 0 | BG9: 0 | BH9: 0 | BI9: 0 | BJ9: 0 | BK9: 0 | BL9: 0 | BM9: 0 | BN9: 0 | BO9: 0 | BP9: 0 | BQ9: 0 | BR9: 0 | BS9: 0 | BT9: 0 | BU9: 0 | BV9: 0 | BW9: 0 | BX9: 0 | BY9: 0 | BZ9: 0 | CA9: 0 | CB9: 0 | CC9: 0 | CD9: 0 | CE9: 0 | CF9: 0 | CG9: 0 | CH9: 0 | CI9: 0 | CJ9: 0 | CK9: 0 | CL9: 0 | CM9: 0 | CN9: 0 | CP9: 404.9846 | CQ9: 0 | CR9: 0 | CS9: 0 | CT9: 0 | CU9: 0 | CV9: 0 | CW9: 0 | CX9: 0 | CY9: 0 | CZ9: 0 | DA9: 0 | DB9: 0 | DC9: 0 | DD9: 0 | DE9: 0 | DF9: 0 | DG9: 0 | DH9: 0 | DI9: 0 | DJ9: 0 | DK9: 0 | DL9: 0 | DM9: 0 | DN9: 0 | DO9: 0 | DP9: 0 | DQ9: 0 | DR9: 0 | DS9: 0 | DT9: 0 | DU9: 0 | DV9: 0 | DW9: 0 | DX9: 0 | DY9: 0 | DZ9: 0 | EA9: 0 | EB9: 0 | EC9: 0 | ED9: 0 | EE9: 0 | EF9: 0 | EG9: 0 | EM9: -51.33162 | EN9: 0 | EO9: 0 | EP9: 0 | EQ9: 0 | ER9: -46.08244 | ES9: 0 | ET9: 0 | EU9: 0 | EV9: 0
A10: 35 | B10: 14.06 | C10: 10.41 | D10: 6.42 | G10: 0.2037 | T10: Pt nano-dendrites | U10: 0.14 | V10: 9.9 × 10-2 | W10: 14.14 | Y10: 580 | Z10: 6.56E+06 | AA10: 4.59E+06 | AB10: 6.38E+06 | AD10: 207 | AE10: 1.835 | AF10: 1.8538 | AG10: 1.8288 | AI10: 3000.7 | AJ10: 0.2375 | AK10: 3000.7 | AL10: 0.22718 | AM10: 3000.7 | AN10: 0.28185 | AP10: 3000.7 | AQ10: 0.21921 | AR10: 3000.7 | AS10: 0.22152 | AT10: 2997.7 | AU10: 0.24531 | AW10: 405.9489 | AX10: 0 | AY10: 0 | AZ10: 0 | BA10: 0 | BB10: 0 | BC10: 0 | BD10: 0 | BE10: 0 | BF10: 0 | BG10: 0 | BH10: 0 | BI10: 0 | BJ10: 0 | BK10: 0 | BL10: 0 | BM10: 0 | BN10: 0 | BO10: 0 | BP10: 0 | BQ10: 0 | BR10: 0 | BS10: 0 | BT10: 0 | BU10: 0 | BV10: 0 | BW10: 0 | BX10: 0 | BY10: 0 | BZ10: 0 | CA10: 0 | CB10: 0 | CC10: 0 | CD10: 0 | CE10: 0 | CF10: 0 | CG10: 0 | CH10: 0 | CI10: 0 | CJ10: 0 | CK10: 0 | CL10: 0 | CM10: 0 | CN10: 0 | CP10: 405.9489 | CQ10: 0 | CR10: 0 | CS10: 0 | CT10: 0 | CU10: 0 | CV10: 0 | CW10: 0 | CX10: 0 | CY10: 0 | CZ10: 0 | DA10: 0 | DB10: 0 | DC10: 0 | DD10: 0 | DE10: 0 | DF10: 0 | DG10: 0 | DH10: 0 | DI10: 0 | DJ10: 0 | DK10: 0 | DL10: 0 | DM10: 0 | DN10: 0 | DO10: 0 | DP10: 0 | DQ10: 0 | DR10: 0 | DS10: 0 | DT10: 0 | DU10: 0 | DV10: 0 | DW10: 0 | DX10: 0 | DY10: 0 | DZ10: 0 | EA10: 0 | EB10: 0 | EC10: 0 | ED10: 0 | EE10: 0 | EF10: 0 | EG10: 0 | EM10: -51.27262 | EN10: 0 | EO10: 0 | EP10: 0 | EQ10: 0 | ER10: -46.02444 | ES10: 0 | ET10: 0 | EU10: 0 | EV10: 0
A11: 40 | B11: 15.08 | C11: 10.83 | D11: 6.48 | G11: 0.2368 | T11: PtFe | U11: 4.56 × 10-3 | V11: 8.2 × 10-2 | W11: 2.2 | Y11: 590 | Z11: 9.04E+06 | AA11: 6.35E+06 | AB11: 1.23E+07 | AD11: 208 | AE11: 1.8527 | AF11: 1.8718 | AG11: 1.8459 | AI11: 3000.8 | AJ11: 0.23709 | AK11: 3000.8 | AL11: 0.22714 | AM11: 3000.8 | AN11: 0.28189 | AP11: 3000.8 | AQ11: 0.22028 | AR11: 3000.8 | AS11: 0.22166 | AT11: 2997.8 | AU11: 0.24498 | AW11: 406.9131 | AX11: 0 | AY11: 0 | AZ11: 0 | BA11: 0 | BB11: 0 | BC11: 0 | BD11: 0 | BE11: 0 | BF11: 0 | BG11: 0 | BH11: 0 | BI11: 0 | BJ11: 0 | BK11: 0 | BL11: 0 | BM11: 0 | BN11: 0 | BO11: 0 | BP11: 0 | BQ11: 0 | BR11: 0 | BS11: 0 | BT11: 0 | BU11: 0 | BV11: 0 | BW11: 0 | BX11: 0 | BY11: 0 | BZ11: 0 | CA11: 0 | CB11: 0 | CC11: 0 | CD11: 0 | CE11: 0 | CF11: 0 | CG11: 0 | CH11: 0 | CI11: 0 | CJ11: 0 | CK11: 0 | CL11: 0 | CM11: 0 | CN11: 0 | CP11: 406.9131 | CQ11: 0 | CR11: 0 | CS11: 0 | CT11: 0 | CU11: 0 | CV11: 0 | CW11: 0 | CX11: 0 | CY11: 0 | CZ11: 0 | DA11: 0 | DB11: 0 | DC11: 0 | DD11: 0 | DE11: 0 | DF11: 0 | DG11: 0 | DH11: 0 | DI11: 0 | DJ11: 0 | DK11: 0 | DL11: 0 | DM11: 0 | DN11: 0 | DO11: 0 | DP11: 0 | DQ11: 0 | DR11: 0 | DS11: 0 | DT11: 0 | DU11: 0 | DV11: 0 | DW11: 0 | DX11: 0 | DY11: 0 | DZ11: 0 | EA11: 0 | EB11: 0 | EC11: 0 | ED11: 0 | EE11: 0 | EF11: 0 | EG11: 0 | EM11: -51.21362 | EN11: 0 | EO11: 0 | EP11: 0 | EQ11: 0 | ER11: -45.96744 | ES11: 0 | ET11: 0 | EU11: 0 | EV11: 0
A12: 45 | B12: 16.44 | C12: 11.21 | D12: 6.5 | T12: Fe-MOF | U12: 769.23 | V12: 2.5 × 10-2 | W12: 0.51 | Y12: 600 | Z12: 1.18E+07 | AA12: 8.42E+06 | AB12: 2.27E+07 | AD12: 209 | AE12: 1.8699 | AF12: 1.8895 | AG12: 1.8632 | AI12: 3000.9 | AJ12: 0.23677 | AK12: 3000.9 | AL12: 0.22715 | AM12: 3000.9 | AN12: 0.28186 | AP12: 3000.9 | AQ12: 0.22141 | AR12: 3000.9 | AS12: 0.22181 | AT12: 2997.9 | AU12: 0.24453 | AW12: 407.8774 | AX12: 0 | AY12: 0 | AZ12: 0 | BA12: 0 | BB12: 0 | BC12: 0 | BD12: 0 | BE12: 0 | BF12: 0 | BG12: 0 | BH12: 0 | BI12: 0 | BJ12: 0 | BK12: 0 | BL12: 0 | BM12: 0 | BN12: 0 | BO12: 0 | BP12: 0 | BQ12: 0 | BR12: 0 | BS12: 0 | BT12: 0 | BU12: 0 | BV12: 0 | BW12: 0 | BX12: 0 | BY12: 0 | BZ12: 0 | CA12: 0 | CB12: 0 | CC12: 0 | CD12: 0 | CE12: 0 | CF12: 0 | CG12: 0 | CH12: 0 | CI12: 0 | CJ12: 0 | CK12: 0 | CL12: 0 | CM12: 0 | CN12: 0 | CP12: 407.8774 | CQ12: 0 | CR12: 0 | CS12: 0 | CT12: 0 | CU12: 0 | CV12: 0 | CW12: 0 | CX12: 0 | CY12: 0 | CZ12: 0 | DA12: 0 | DB12: 0 | DC12: 0 | DD12: 0 | DE12: 0 | DF12: 0 | DG12: 0 | DH12: 0 | DI12: 0 | DJ12: 0 | DK12: 0 | DL12: 0 | DM12: 0 | DN12: 0 | DO12: 0 | DP12: 0 | DQ12: 0 | DR12: 0 | DS12: 0 | DT12: 0 | DU12: 0 | DV12: 0 | DW12: 0 | DX12: 0 | DY12: 0 | DZ12: 0 | EA12: 0 | EB12: 0 | EC12: 0 | ED12: 0 | EE12: 0 | EF12: 0 | EG12: 0 | EM12: -51.15462 | EN12: 0 | EO12: 0 | EP12: 0 | EQ12: 0 | ER12: -45.91044 | ES12: 0 | ET12: 0 | EU12: 0 | EV12: 0
A13: 50 | B13: 17.2 | C13: 11.59 | D13: 6.53 | T13: Fe-N-C | U13: 83.33 | V13: 0.22 | W13: 36.74 | Y13: 610 | Z13: 1.38E+07 | AA13: 1.00E+07 | AB13: 3.25E+07 | AD13: 210 | AE13: 1.887 | AF13: 1.9073 | AG13: 1.881 | AI13: 3001 | AJ13: 0.23661 | AK13: 3001 | AL13: 0.22712 | AM13: 3001 | AN13: 0.28185 | AP13: 3001 | AQ13: 0.22259 | AR13: 3001 | AS13: 0.22193 | AT13: 2998 | AU13: 0.24403 | AW13: 408.8416 | AX13: 0 | AY13: 0 | AZ13: 0 | BA13: 0 | BB13: 0 | BC13: 0 | BD13: 0 | BE13: 0 | BF13: 0 | BG13: 0 | BH13: 0 | BI13: 0 | BJ13: 0 | BK13: 0 | BL13: 0 | BM13: 0 | BN13: 0 | BO13: 0 | BP13: 0 | BQ13: 0 | BR13: 0 | BS13: 0 | BT13: 0 | BU13: 0 | BV13: 0 | BW13: 0 | BX13: 0 | BY13: 0 | BZ13: 0 | CA13: 0 | CB13: 0 | CC13: 0 | CD13: 0 | CE13: 0 | CF13: 0 | CG13: 0 | CH13: 0 | CI13: 0 | CJ13: 0 | CK13: 0 | CL13: 0 | CM13: 0 | CN13: 0 | CP13: 408.8416 | CQ13: 0 | CR13: 0 | CS13: 0 | CT13: 0 | CU13: 0 | CV13: 0 | CW13: 0 | CX13: 0 | CY13: 0 | CZ13: 0 | DA13: 0 | DB13: 0 | DC13: 0 | DD13: 0 | DE13: 0 | DF13: 0 | DG13: 0 | DH13: 0 | DI13: 0 | DJ13: 0 | DK13: 0 | DL13: 0 | DM13: 0 | DN13: 0 | DO13: 0 | DP13: 0 | DQ13: 0 | DR13: 0 | DS13: 0 | DT13: 0 | DU13: 0 | DV13: 0 | DW13: 0 | DX13: 0 | DY13: 0 | DZ13: 0 | EA13: 0 | EB13: 0 | EC13: 0 | ED13: 0 | EE13: 0 | EF13: 0 | EG13: 0 | EM13: -51.09562 | EN13: 0 | EO13: 0 | EP13: 0 | EQ13: 0 | ER13: -45.85344 | ES13: 0 | ET13: 0 | EU13: 0 | EV13: 0
A14: 55 | B14: 18.27 | C14: 11.94 | D14: 6.46 | T14: Zn-N-C single-atom enzyme | U14: 2.49 × 10-2 | V14: 0.12 | W14: 2.53 | Y14: 620 | Z14: 1.54E+07 | AA14: 1.14E+07 | AB14: 4.19E+07 | AD14: 211 | AE14: 1.9043 | AF14: 1.9255 | AG14: 1.8993 | AI14: 3001.1 | AJ14: 0.23662 | AK14: 3001.1 | AL14: 0.22695 | AM14: 3001.1 | AN14: 0.28192 | AP14: 3001.1 | AQ14: 0.22379 | AR14: 3001.1 | AS14: 0.22199 | AT14: 2998.1 | AU14: 0.2436 | AW14: 409.8059 | AX14: 0 | AY14: 0 | AZ14: 0 | BA14: 0 | BB14: 0 | BC14: 0 | BD14: 0 | BE14: 0 | BF14: 0 | BG14: 0 | BH14: 0 | BI14: 0 | BJ14: 0 | BK14: 0 | BL14: 0 | BM14: 0 | BN14: 0 | BO14: 0 | BP14: 0 | BQ14: 0 | BR14: 0 | BS14: 0 | BT14: 0 | BU14: 0 | BV14: 0 | BW14: 0 | BX14: 0 | BY14: 0 | BZ14: 0 | CA14: 0 | CB14: 0 | CC14: 0 | CD14: 0 | CE14: 0 | CF14: 0 | CG14: 0 | CH14: 0 | CI14: 0 | CJ14: 0 | CK14: 0 | CL14: 0 | CM14: 0 | CN14: 0 | CP14: 409.8059 | CQ14: 0 | CR14: 0 | CS14: 0 | CT14: 0 | CU14: 0 | CV14: 0 | CW14: 0 | CX14: 0 | CY14: 0 | CZ14: 0 | DA14: 0 | DB14: 0 | DC14: 0 | DD14: 0 | DE14: 0 | DF14: 0 | DG14: 0 | DH14: 0 | DI14: 0 | DJ14: 0 | DK14: 0 | DL14: 0 | DM14: 0 | DN14: 0 | DO14: 0 | DP14: 0 | DQ14: 0 | DR14: 0 | DS14: 0 | DT14: 0 | DU14: 0 | DV14: 0 | DW14: 0 | DX14: 0 | DY14: 0 | DZ14: 0 | EA14: 0 | EB14: 0 | EC14: 0 | ED14: 0 | EE14: 0 | EF14: 0 | EG14: 0 | EM14: -51.03662 | EN14: 0 | EO14: 0 | EP14: 0 | EQ14: 0 | ER14: -45.79644 | ES14: 0 | ET14: 0 | EU14: 0 | EV14: 0
A15: 60 | B15: 18.93 | C15: 12.23 | D15: 6.42 | T15: Fe2O3 | U15: 1.32 × 10-2 | V15: 6.8 × 10-2 | W15: 0.54 | Y15: 630 | Z15: 1.61E+07 | AA15: 1.21E+07 | AB15: 4.83E+07 | AD15: 212 | AE15: 1.9228 | AF15: 1.945 | AG15: 1.9185 | AI15: 3001.2 | AJ15: 0.23678 | AK15: 3001.2 | AL15: 0.22654 | AM15: 3001.2 | AN15: 0.28201 | AP15: 3001.2 | AQ15: 0.22498 | AR15: 3001.2 | AS15: 0.22197 | AT15: 2998.2 | AU15: 0.24336 | AW15: 410.7701 | AX15: 0 | AY15: 0 | AZ15: 0 | BA15: 0 | BB15: 0 | BC15: 0 | BD15: 0 | BE15: 0 | BF15: 0 | BG15: 0 | BH15: 0 | BI15: 0 | BJ15: 0 | BK15: 0 | BL15: 0 | BM15: 0 | BN15: 0 | BO15: 0 | BP15: 0 | BQ15: 0 | BR15: 0 | BS15: 0 | BT15: 0 | BU15: 0 | BV15: 0 | BW15: 0 | BX15: 0 | BY15: 0 | BZ15: 0 | CA15: 0 | CB15: 0 | CC15: 0 | CD15: 0 | CE15: 0 | CF15: 0 | CG15: 0 | CH15: 0 | CI15: 0 | CJ15: 0 | CK15: 0 | CL15: 0 | CM15: 0 | CN15: 0 | CP15: 410.7701 | CQ15: 0 | CR15: 0 | CS15: 0 | CT15: 0 | CU15: 0 | CV15: 0 | CW15: 0 | CX15: 0 | CY15: 0 | CZ15: 0 | DA15: 0 | DB15: 0 | DC15: 0 | DD15: 0 | DE15: 0 | DF15: 0 | DG15: 0 | DH15: 0 | DI15: 0 | DJ15: 0 | DK15: 0 | DL15: 0 | DM15: 0 | DN15: 0 | DO15: 0 | DP15: 0 | DQ15: 0 | DR15: 0 | DS15: 0 | DT15: 0 | DU15: 0 | DV15: 0 | DW15: 0 | DX15: 0 | DY15: 0 | DZ15: 0 | EA15: 0 | EB15: 0 | EC15: 0 | ED15: 0 | EE15: 0 | EF15: 0 | EG15: 0 | EM15: -50.97762 | EN15: 0 | EO15: 0 | EP15: 0 | EQ15: 0 | ER15: -45.73844 | ES15: 0 | ET15: 0 | EU15: 0 | EV15: 0
A16: 65 | B16: 19.71 | C16: 12.61 | D16: 6.4 | T16: Co-N-C single-atom enzyme | U16: 6.15 × 10-2 | V16: 0.17 | W16: 1.06 | Y16: 640 | Z16: 1.57E+07 | AA16: 1.22E+07 | AB16: 5.04E+07 | AD16: 213 | AE16: 1.9433 | AF16: 1.9664 | AG16: 1.9395 | AI16: 3001.3 | AJ16: 0.23705 | AK16: 3001.3 | AL16: 0.22583 | AM16: 3001.3 | AN16: 0.28196 | AP16: 3001.3 | AQ16: 0.22606 | AR16: 3001.3 | AS16: 0.22189 | AT16: 2998.3 | AU16: 0.24336 | AW16: 411.7344 | AX16: 0 | AY16: 0 | AZ16: 0 | BA16: 0 | BB16: 0 | BC16: 0 | BD16: 0 | BE16: 0 | BF16: 0 | BG16: 0 | BH16: 0 | BI16: 0 | BJ16: 0 | BK16: 0 | BL16: 0 | BM16: 0 | BN16: 0 | BO16: 0 | BP16: 0 | BQ16: 0 | BR16: 0 | BS16: 0 | BT16: 0 | BU16: 0 | BV16: 0 | BW16: 0 | BX16: 0 | BY16: 0 | BZ16: 0 | CA16: 0 | CB16: 0 | CC16: 0 | CD16: 0 | CE16: 0 | CF16: 0 | CG16: 0 | CH16: 0 | CI16: 0 | CJ16: 0 | CK16: 0 | CL16: 0 | CM16: 0 | CN16: 0 | CP16: 411.7344 | CQ16: 0 | CR16: 0 | CS16: 0 | CT16: 0 | CU16: 0 | CV16: 0 | CW16: 0 | CX16: 0 | CY16: 0 | CZ16: 0 | DA16: 0 | DB16: 0 | DC16: 0 | DD16: 0 | DE16: 0 | DF16: 0 | DG16: 0 | DH16: 0 | DI16: 0 | DJ16: 0 | DK16: 0 | DL16: 0 | DM16: 0 | DN16: 0 | DO16: 0 | DP16: 0 | DQ16: 0 | DR16: 0 | DS16: 0 | DT16: 0 | DU16: 0 | DV16: 0 | DW16: 0 | DX16: 0 | DY16: 0 | DZ16: 0 | EA16: 0 | EB16: 0 | EC16: 0 | ED16: 0 | EE16: 0 | EF16: 0 | EG16: 0 | EM16: -50.91862 | EN16: 0 | EO16: 0 | EP16: 0 | EQ16: 0 | ER16: -45.68144 | ES16: 0 | ET16: 0 | EU16: 0 | EV16: 0
A17: 70 | B17: 20.41 | C17: 12.93 | D17: 6.38 | T17: Co3O4 | U17: 2.40 × 10-2 | V17: 0.26 | W17: 2.09 | Y17: 650 | Z17: 1.44E+07 | AA17: 1.16E+07 | AB17: 4.85E+07 | AD17: 214 | AE17: 1.9671 | AF17: 1.9908 | AG17: 1.9634 | AI17: 3001.4 | AJ17: 0.23739 | AK17: 3001.4 | AL17: 0.22484 | AM17: 3001.4 | AN17: 0.28167 | AP17: 3001.4 | AQ17: 0.22698 | AR17: 3001.4 | AS17: 0.22183 | AT17: 2998.4 | AU17: 0.24357 | AW17: 412.6986 | AX17: 0 | AY17: 0 | AZ17: 0 | BA17: 0 | BB17: 0 | BC17: 0 | BD17: 0 | BE17: 0 | BF17: 0 | BG17: 0 | BH17: 0 | BI17: 0 | BJ17: 0 | BK17: 0 | BL17: 0 | BM17: 0 | BN17: 0 | BO17: 0 | BP17: 0 | BQ17: 0 | BR17: 0 | BS17: 0 | BT17: 0 | BU17: 0 | BV17: 0 | BW17: 0 | BX17: 0 | BY17: 0 | BZ17: 0 | CA17: 0 | CB17: 0 | CC17: 0 | CD17: 0 | CE17: 0 | CF17: 0 | CG17: 0 | CH17: 0 | CI17: 0 | CJ17: 0 | CK17: 0 | CL17: 0 | CM17: 0 | CN17: 0 | CP17: 412.6986 | CQ17: 0 | CR17: 0 | CS17: 0 | CT17: 0 | CU17: 0 | CV17: 0 | CW17: 0 | CX17: 0 | CY17: 0 | CZ17: 0 | DA17: 0 | DB17: 0 | DC17: 0 | DD17: 0 | DE17: 0 | DF17: 0 | DG17: 0 | DH17: 0 | DI17: 0 | DJ17: 0 | DK17: 0 | DL17: 0 | DM17: 0 | DN17: 0 | DO17: 0 | DP17: 0 | DQ17: 0 | DR17: 0 | DS17: 0 | DT17: 0 | DU17: 0 | DV17: 0 | DW17: 0 | DX17: 0 | DY17: 0 | DZ17: 0 | EA17: 0 | EB17: 0 | EC17: 0 | ED17: 0 | EE17: 0 | EF17: 0 | EG17: 0 | EM17: -50.85962 | EN17: 0 | EO17: 0 | EP17: 0 | EQ17: 0 | ER17: -45.62444 | ES17: 0 | ET17: 0 | EU17: 0 | EV17: 0
A18: 75 | B18: 21.21 | C18: 13.19 | D18: 6.37 | T18: Cu nanoparticle/N-C | U18: 5.56 × 10-2 | V18: 8.57 × 10-2 | W18: 3.32 | Y18: 660 | Z18: 1.33E+07 | AA18: 1.06E+07 | AB18: 4.48E+07 | AD18: 215 | AE18: 1.9951 | AF18: 2.0191 | AG18: 1.9913 | AI18: 3001.5 | AJ18: 0.2377 | AK18: 3001.5 | AL18: 0.22367 | AM18: 3001.5 | AN18: 0.28115 | AP18: 3001.5 | AQ18: 0.2277 | AR18: 3001.5 | AS18: 0.22185 | AT18: 2998.5 | AU18: 0.24393 | AW18: 413.6629 | AX18: 0 | AY18: 0 | AZ18: 0 | BA18: 0 | BB18: 0 | BC18: 0 | BD18: 0 | BE18: 0 | BF18: 0 | BG18: 0 | BH18: 0 | BI18: 0 | BJ18: 0 | BK18: 0 | BL18: 0 | BM18: 0 | BN18: 0 | BO18: 0 | BP18: 0 | BQ18: 0 | BR18: 0 | BS18: 0 | BT18: 0 | BU18: 0 | BV18: 0 | BW18: 0 | BX18: 0 | BY18: 0 | BZ18: 0 | CA18: 0 | CB18: 0 | CC18: 0 | CD18: 0 | CE18: 0 | CF18: 0 | CG18: 0 | CH18: 0 | CI18: 0 | CJ18: 0 | CK18: 0 | CL18: 0 | CM18: 0 | CN18: 0 | CP18: 413.6629 | CQ18: 0 | CR18: 0 | CS18: 0 | CT18: 0 | CU18: 0 | CV18: 0 | CW18: 0 | CX18: 0 | CY18: 0 | CZ18: 0 | DA18: 0 | DB18: 0 | DC18: 0 | DD18: 0 | DE18: 0 | DF18: 0 | DG18: 0 | DH18: 0 | DI18: 0 | DJ18: 0 | DK18: 0 | DL18: 0 | DM18: 0 | DN18: 0 | DO18: 0 | DP18: 0 | DQ18: 0 | DR18: 0 | DS18: 0 | DT18: 0 | DU18: 0 | DV18: 0 | DW18: 0 | DX18: 0 | DY18: 0 | DZ18: 0 | EA18: 0 | EB18: 0 | EC18: 0 | ED18: 0 | EE18: 0 | EF18: 0 | EG18: 0 | EM18: -50.80062 | EN18: 0 | EO18: 0 | EP18: 0 | EQ18: 0 | ER18: -45.56744 | ES18: 0 | ET18: 0 | EU18: 0 | EV18: 0
A19: 80 | B19: 21.85 | C19: 13.68 | D19: 6.33 | T19: Cu(OH)2 | U19: 3.46 × 10-2 | V19: 0.34 | W19: 3.33 | Y19: 670 | Z19: 1.16E+07 | AA19: 9.44E+06 | AB19: 3.97E+07 | AD19: 216 | AE19: 2.028 | AF19: 2.0522 | AG19: 2.024 | AI19: 3001.6 | AJ19: 0.2379 | AK19: 3001.6 | AL19: 0.22246 | AM19: 3001.6 | AN19: 0.28052 | AP19: 3001.6 | AQ19: 0.22827 | AR19: 3001.6 | AS19: 0.222 | AT19: 2998.6 | AU19: 0.24436 | AW19: 414.6271 | AX19: 0 | AY19: 0 | AZ19: 0 | BA19: 0 | BB19: 0 | BC19: 0 | BD19: 0 | BE19: 0 | BF19: 0 | BG19: 0 | BH19: 0 | BI19: 0 | BJ19: 0 | BK19: 0 | BL19: 0 | BM19: 0 | BN19: 0 | BO19: 0 | BP19: 0 | BQ19: 0 | BR19: 0 | BS19: 0 | BT19: 0 | BU19: 0 | BV19: 0 | BW19: 0 | BX19: 0 | BY19: 0 | BZ19: 0 | CA19: 0 | CB19: 0 | CC19: 0 | CD19: 0 | CE19: 0 | CF19: 0 | CG19: 0 | CH19: 0 | CI19: 0 | CJ19: 0 | CK19: 0 | CL19: 0 | CM19: 0 | CN19: 0 | CP19: 414.6271 | CQ19: 0 | CR19: 0 | CS19: 0 | CT19: 0 | CU19: 0 | CV19: 0 | CW19: 0 | CX19: 0 | CY19: 0 | CZ19: 0 | DA19: 0 | DB19: 0 | DC19: 0 | DD19: 0 | DE19: 0 | DF19: 0 | DG19: 0 | DH19: 0 | DI19: 0 | DJ19: 0 | DK19: 0 | DL19: 0 | DM19: 0 | DN19: 0 | DO19: 0 | DP19: 0 | DQ19: 0 | DR19: 0 | DS19: 0 | DT19: 0 | DU19: 0 | DV19: 0 | DW19: 0 | DX19: 0 | DY19: 0 | DZ19: 0 | EA19: 0 | EB19: 0 | EC19: 0 | ED19: 0 | EE19: 0 | EF19: 0 | EG19: 0 | EM19: -50.74162 | EN19: 0 | EO19: 0 | EP19: 0 | EQ19: 0 | ER19: -45.51044 | ES19: 0 | ET19: 0 | EU19: 0 | EV19: 0
A20: 85 | B20: 22.44 | C20: 13.8 | D20: 6.32 | T20: Fe-N-C single-atom enzyme | U20: 0.23 | V20: 0.62 | W20: 3.98 | Y20: 680 | Z20: 1.00E+07 | AA20: 8.21E+06 | AB20: 3.42E+07 | AD20: 217 | AE20: 2.0661 | AF20: 2.0903 | AG20: 2.0616 | AI20: 3001.7 | AJ20: 0.2379 | AK20: 3001.7 | AL20: 0.22141 | AM20: 3001.7 | AN20: 0.27991 | AP20: 3001.7 | AQ20: 0.22877 | AR20: 3001.7 | AS20: 0.22223 | AT20: 2998.7 | AU20: 0.24483 | AW20: 415.5914 | AX20: 0 | AY20: 0 | AZ20: 0 | BA20: 0 | BB20: 0 | BC20: 0 | BD20: 0 | BE20: 0 | BF20: 0 | BG20: 0 | BH20: 0 | BI20: 0 | BJ20: 0 | BK20: 0 | BL20: 0 | BM20: 0 | BN20: 0 | BO20: 0 | BP20: 0 | BQ20: 0 | BR20: 0 | BS20: 0 | BT20: 0 | BU20: 0 | BV20: 0 | BW20: 0 | BX20: 0 | BY20: 0 | BZ20: 0 | CA20: 0 | CB20: 0 | CC20: 0 | CD20: 0 | CE20: 0 | CF20: 0 | CG20: 0 | CH20: 0 | CI20: 0 | CJ20: 0 | CK20: 0 | CL20: 0 | CM20: 0 | CN20: 0 | CP20: 415.5914 | CQ20: 0 | CR20: 0 | CS20: 0 | CT20: 0 | CU20: 0 | CV20: 0 | CW20: 0 | CX20: 0 | CY20: 0 | CZ20: 0 | DA20: 0 | DB20: 0 | DC20: 0 | DD20: 0 | DE20: 0 | DF20: 0 | DG20: 0 | DH20: 0 | DI20: 0 | DJ20: 0 | DK20: 0 | DL20: 0 | DM20: 0 | DN20: 0 | DO20: 0 | DP20: 0 | DQ20: 0 | DR20: 0 | DS20: 0 | DT20: 0 | DU20: 0 | DV20: 0 | DW20: 0 | DX20: 0 | DY20: 0 | DZ20: 0 | EA20: 0 | EB20: 0 | EC20: 0 | ED20: 0 | EE20: 0 | EF20: 0 | EG20: 0 | EM20: -50.68262 | EN20: 0 | EO20: 0 | EP20: 0 | EQ20: 0 | ER20: -45.45244 | ES20: 0 | ET20: 0 | EU20: 0 | EV20: 0
A21: 90 | B21: 22.96 | C21: 14.01 | D21: 6.32 | T21: PtFe@Fe3O4 | U21: 1.86 × 10-2 | V21: 0.11 | W21: 8.62 | Y21: 690 | Z21: 8.26E+06 | AA21: 6.90E+06 | AB21: 2.85E+07 | AD21: 218 | AE21: 2.1092 | AF21: 2.1335 | AG21: 2.1044 | AI21: 3001.8 | AJ21: 0.23775 | AK21: 3001.8 | AL21: 0.22066 | AM21: 3001.8 | AN21: 0.27935 | AP21: 3001.8 | AQ21: 0.22928 | AR21: 3001.8 | AS21: 0.22245 | AT21: 2998.8 | AU21: 0.24531 | AW21: 416.5556 | AX21: 0 | AY21: 0 | AZ21: 0 | BA21: 0 | BB21: 0 | BC21: 0 | BD21: 0 | BE21: 0 | BF21: 0 | BG21: 0 | BH21: 0 | BI21: 0 | BJ21: 0 | BK21: 0 | BL21: 0 | BM21: 0 | BN21: 0 | BO21: 0 | BP21: 0 | BQ21: 0 | BR21: 0 | BS21: 0 | BT21: 0 | BU21: 0 | BV21: 0 | BW21: 0 | BX21: 0 | BY21: 0 | BZ21: 0 | CA21: 0 | CB21: 0 | CC21: 0 | CD21: 0 | CE21: 0 | CF21: 0 | CG21: 0 | CH21: 0 | CI21: 0 | CJ21: 0 | CK21: 0 | CL21: 0 | CM21: 0 | CN21: 0 | CP21: 416.5556 | CQ21: 0 | CR21: 0 | CS21: 0 | CT21: 0 | CU21: 0 | CV21: 0 | CW21: 0 | CX21: 0 | CY21: 0 | CZ21: 0 | DA21: 0 | DB21: 0 | DC21: 0 | DD21: 0 | DE21: 0 | DF21: 0 | DG21: 0 | DH21: 0 | DI21: 0 | DJ21: 0 | DK21: 0 | DL21: 0 | DM21: 0 | DN21: 0 | DO21: 0 | DP21: 0 | DQ21: 0 | DR21: 0 | DS21: 0 | DT21: 0 | DU21: 0 | DV21: 0 | DW21: 0 | DX21: 0 | DY21: 0 | DZ21: 0 | EA21: 0 | EB21: 0 | EC21: 0 | ED21: 0 | EE21: 0 | EF21: 0 | EG21: 0 | EM21: -50.62362 | EN21: 0 | EO21: 0 | EP21: 0 | EQ21: 0 | ER21: -45.39544 | ES21: 0 | ET21: 0 | EU21: 0 | EV21: 0
A22: 95 | B22: 23.39 | C22: 14.34 | D22: 6.32 | T22: Pd@Pt nano-dendrites | U22: 7.14 × 10-2 | V22: 0.09 | W22: 12.86 | Y22: 700 | Z22: 6.79E+06 | AA22: 5.65E+06 | AB22: 2.21E+07 | AD22: 219 | AE22: 2.1577 | AF22: 2.1823 | AG22: 2.1528 | AI22: 3001.9 | AJ22: 0.2376 | AK22: 3001.9 | AL22: 0.22025 | AM22: 3001.9 | AN22: 0.27878 | AP22: 3001.9 | AQ22: 0.22984 | AR22: 3001.9 | AS22: 0.22259 | AT22: 2998.9 | AU22: 0.24577 | AW22: 417.5199 | AX22: 0 | AY22: 0 | AZ22: 0 | BA22: 0 | BB22: 0 | BC22: 0 | BD22: 0 | BE22: 0 | BF22: 0 | BG22: 0 | BH22: 0 | BI22: 0 | BJ22: 0 | BK22: 0 | BL22: 0 | BM22: 0 | BN22: 0 | BO22: 0 | BP22: 0 | BQ22: 0 | BR22: 0 | BS22: 0 | BT22: 0 | BU22: 0 | BV22: 0 | BW22: 0 | BX22: 0 | BY22: 0 | BZ22: 0 | CA22: 0 | CB22: 0 | CC22: 0 | CD22: 0 | CE22: 0 | CF22: 0 | CG22: 0 | CH22: 0 | CI22: 0 | CJ22: 0 | CK22: 0 | CL22: 0 | CM22: 0 | CN22: 0 | CP22: 417.5199 | CQ22: 0 | CR22: 0 | CS22: 0 | CT22: 0 | CU22: 0 | CV22: 0 | CW22: 0 | CX22: 0 | CY22: 0 | CZ22: 0 | DA22: 0 | DB22: 0 | DC22: 0 | DD22: 0 | DE22: 0 | DF22: 0 | DG22: 0 | DH22: 0 | DI22: 0 | DJ22: 0 | DK22: 0 | DL22: 0 | DM22: 0 | DN22: 0 | DO22: 0 | DP22: 0 | DQ22: 0 | DR22: 0 | DS22: 0 | DT22: 0 | DU22: 0 | DV22: 0 | DW22: 0 | DX22: 0 | DY22: 0 | DZ22: 0 | EA22: 0 | EB22: 0 | EC22: 0 | ED22: 0 | EE22: 0 | EF22: 0 | EG22: 0 | EM22: -50.56462 | EN22: 0 | EO22: 0 | EP22: 0 | EQ22: 0 | ER22: -45.33844 | ES22: 0 | ET22: 0 | EU22: 0 | EV22: 0
A23: 100 | B23: 23.88 | C23: 14.52 | D23: 6.32 | Y23: 710 | Z23: 6.06E+06 | AA23: 5.06E+06 | AB23: 1.96E+07 | AD23: 220 | AE23: 2.2124 | AF23: 2.2375 | AG23: 2.2079 | AI23: 3002 | AJ23: 0.2376 | AK23: 3002 | AL23: 0.22015 | AM23: 3002 | AN23: 0.27809 | AP23: 3002 | AQ23: 0.23045 | AR23: 3002 | AS23: 0.22264 | AT23: 2999 | AU23: 0.24617 | AW23: 418.4841 | AX23: 0 | AY23: 0 | AZ23: 0 | BA23: 0 | BB23: 0 | BC23: 0 | BD23: 0 | BE23: 0 | BF23: 0 | BG23: 0 | BH23: 0 | BI23: 0 | BJ23: 0 | BK23: 0 | BL23: 0 | BM23: 0 | BN23: 0 | BO23: 0 | BP23: 0 | BQ23: 0 | BR23: 0 | BS23: 0 | BT23: 0 | BU23: 0 | BV23: 0 | BW23: 0 | BX23: 0 | BY23: 0 | BZ23: 0 | CA23: 0 | CB23: 0 | CC23: 0 | CD23: 0 | CE23: 0 | CF23: 0 | CG23: 0 | CH23: 0 | CI23: 0 | CJ23: 0 | CK23: 0 | CL23: 0 | CM23: 0 | CN23: 0 | CP23: 418.4841 | CQ23: 0 | CR23: 0 | CS23: 0 | CT23: 0 | CU23: 0 | CV23: 0 | CW23: 0 | CX23: 0 | CY23: 0 | CZ23: 0 | DA23: 0 | DB23: 0 | DC23: 0 | DD23: 0 | DE23: 0 | DF23: 0 | DG23: 0 | DH23: 0 | DI23: 0 | DJ23: 0 | DK23: 0 | DL23: 0 | DM23: 0 | DN23: 0 | DO23: 0 | DP23: 0 | DQ23: 0 | DR23: 0 | DS23: 0 | DT23: 0 | DU23: 0 | DV23: 0 | DW23: 0 | DX23: 0 | DY23: 0 | DZ23: 0 | EA23: 0 | EB23: 0 | EC23: 0 | ED23: 0 | EE23: 0 | EF23: 0 | EG23: 0 | EM23: -50.50562 | EN23: 0 | EO23: 0 | EP23: 0 | EQ23: 0 | ER23: -45.28144 | ES23: 0 | ET23: 0 | EU23: 0 | EV23: 0
A24: 105 | B24: 24.3 | C24: 14.8 | D24: 6.32 | Y24: 720 | Z24: 5.42E+06 | AA24: 4.71E+06 | AB24: 1.76E+07 | AD24: 221 | AE24: 2.2748 | AF24: 2.3005 | AG24: 2.2711 | AI24: 3002.1 | AJ24: 0.23779 | AK24: 3002.1 | AL24: 0.22026 | AM24: 3002.1 | AN24: 0.27726 | AP24: 3002.1 | AQ24: 0.23112 | AR24: 3002.1 | AS24: 0.22271 | AT24: 2999.1 | AU24: 0.24652 | AW24: 419.4484 | AX24: 0 | AY24: 0 | AZ24: 0 | BA24: 0 | BB24: 0 | BC24: 0 | BD24: 0 | BE24: 0 | BF24: 0 | BG24: 0 | BH24: 0 | BI24: 0 | BJ24: 0 | BK24: 0 | BL24: 0 | BM24: 0 | BN24: 0 | BO24: 0 | BP24: 0 | BQ24: 0 | BR24: 0 | BS24: 0 | BT24: 0 | BU24: 0 | BV24: 0 | BW24: 0 | BX24: 0 | BY24: 0 | BZ24: 0 | CA24: 0 | CB24: 0 | CC24: 0 | CD24: 0 | CE24: 0 | CF24: 0 | CG24: 0 | CH24: 0 | CI24: 0 | CJ24: 0 | CK24: 0 | CL24: 0 | CM24: 0 | CN24: 0 | CP24: 419.4484 | CQ24: 0 | CR24: 0 | CS24: 0 | CT24: 0 | CU24: 0 | CV24: 0 | CW24: 0 | CX24: 0 | CY24: 0 | CZ24: 0 | DA24: 0 | DB24: 0 | DC24: 0 | DD24: 0 | DE24: 0 | DF24: 0 | DG24: 0 | DH24: 0 | DI24: 0 | DJ24: 0 | DK24: 0 | DL24: 0 | DM24: 0 | DN24: 0 | DO24: 0 | DP24: 0 | DQ24: 0 | DR24: 0 | DS24: 0 | DT24: 0 | DU24: 0 | DV24: 0 | DW24: 0 | DX24: 0 | DY24: 0 | DZ24: 0 | EA24: 0 | EB24: 0 | EC24: 0 | ED24: 0 | EE24: 0 | EF24: 0 | EG24: 0 | EM24: -50.44662 | EN24: 0 | EO24: 0 | EP24: 0 | EQ24: 0 | ER24: -45.22444 | ES24: 0 | ET24: 0 | EU24: 0 | EV24: 0
A25: 110 | B25: 24.7 | C25: 15.02 | D25: 6.32 | Y25: 730 | Z25: 4.86E+06 | AA25: 4.18E+06 | AB25: 1.53E+07 | AD25: 222 | AE25: 2.346 | AF25: 2.3723 | AG25: 2.3436 | AI25: 3002.2 | AJ25: 0.23802 | AK25: 3002.2 | AL25: 0.22051 | AM25: 3002.2 | AN25: 0.27632 | AP25: 3002.2 | AQ25: 0.23188 | AR25: 3002.2 | AS25: 0.22293 | AT25: 2999.2 | AU25: 0.2469 | AW25: 420.4127 | AX25: 0 | AY25: 0 | AZ25: 0 | BA25: 0 | BB25: 0 | BC25: 0 | BD25: 0 | BE25: 0 | BF25: 0 | BG25: 0 | BH25: 0 | BI25: 0 | BJ25: 0 | BK25: 0 | BL25: 0 | BM25: 0 | BN25: 0 | BO25: 0 | BP25: 0 | BQ25: 0 | BR25: 0 | BS25: 0 | BT25: 0 | BU25: 0 | BV25: 0 | BW25: 0 | BX25: 0 | BY25: 0 | BZ25: 0 | CA25: 0 | CB25: 0 | CC25: 0 | CD25: 0 | CE25: 0 | CF25: 0 | CG25: 0 | CH25: 0 | CI25: 0 | CJ25: 0 | CK25: 0 | CL25: 0 | CM25: 0 | CN25: 0 | CP25: 420.4127 | CQ25: 0 | CR25: 0 | CS25: 0 | CT25: 0 | CU25: 0 | CV25: 0 | CW25: 0 | CX25: 0 | CY25: 0 | CZ25: 0 | DA25: 0 | DB25: 0 | DC25: 0 | DD25: 0 | DE25: 0 | DF25: 0 | DG25: 0 | DH25: 0 | DI25: 0 | DJ25: 0 | DK25: 0 | DL25: 0 | DM25: 0 | DN25: 0 | DO25: 0 | DP25: 0 | DQ25: 0 | DR25: 0 | DS25: 0 | DT25: 0 | DU25: 0 | DV25: 0 | DW25: 0 | DX25: 0 | DY25: 0 | DZ25: 0 | EA25: 0 | EB25: 0 | EC25: 0 | ED25: 0 | EE25: 0 | EF25: 0 | EG25: 0 | EM25: -50.38762 | EN25: 0 | EO25: 0 | EP25: 0 | EQ25: 0 | ER25: -45.16744 | ES25: 0 | ET25: 0 | EU25: 0 | EV25: 0
A26: 115 | B26: 25.05 | C26: 15.24 | D26: 6.32 | Y26: 740 | Z26: 4.32E+06 | AA26: 3.89E+06 | AB26: 1.43E+07 | AD26: 223 | AE26: 2.4252 | AF26: 2.4518 | AG26: 2.4242 | AI26: 3002.3 | AJ26: 0.23812 | AK26: 3002.3 | AL26: 0.22089 | AM26: 3002.3 | AN26: 0.27533 | AP26: 3002.3 | AQ26: 0.23281 | AR26: 3002.3 | AS26: 0.22335 | AT26: 2999.3 | AU26: 0.24743 | AW26: 421.3769 | AX26: 0 | AY26: 0 | AZ26: 0 | BA26: 0 | BB26: 0 | BC26: 0 | BD26: 0 | BE26: 0 | BF26: 0 | BG26: 0 | BH26: 0 | BI26: 0 | BJ26: 0 | BK26: 0 | BL26: 0 | BM26: 0 | BN26: 0 | BO26: 0 | BP26: 0 | BQ26: 0 | BR26: 0 | BS26: 0 | BT26: 0 | BU26: 0 | BV26: 0 | BW26: 0 | BX26: 0 | BY26: 0 | BZ26: 0 | CA26: 0 | CB26: 0 | CC26: 0 | CD26: 0 | CE26: 0 | CF26: 0 | CG26: 0 | CH26: 0 | CI26: 0 | CJ26: 0 | CK26: 0 | CL26: 0 | CM26: 0 | CN26: 0 | CP26: 421.3769 | CQ26: 0 | CR26: 0 | CS26: 0 | CT26: 0 | CU26: 0 | CV26: 0 | CW26: 0 | CX26: 0 | CY26: 0 | CZ26: 0 | DA26: 0 | DB26: 0 | DC26: 0 | DD26: 0 | DE26: 0 | DF26: 0 | DG26: 0 | DH26: 0 | DI26: 0 | DJ26: 0 | DK26: 0 | DL26: 0 | DM26: 0 | DN26: 0 | DO26: 0 | DP26: 0 | DQ26: 0 | DR26: 0 | DS26: 0 | DT26: 0 | DU26: 0 | DV26: 0 | DW26: 0 | DX26: 0 | DY26: 0 | DZ26: 0 | EA26: 0 | EB26: 0 | EC26: 0 | ED26: 0 | EE26: 0 | EF26: 0 | EG26: 0 | EM26: -50.32862 | EN26: 0 | EO26: 0 | EP26: 0 | EQ26: 0 | ER26: -45.10944 | ES26: 0 | ET26: 0 | EU26: 0 | EV26: 0
A27: 120 | B27: 25.37 | C27: 15.44 | D27: 6.33 | Y27: 750 | Z27: 3.69E+06 | AA27: 3.07E+06 | AB27: 1.08E+07 | AD27: 224 | AE27: 2.5084 | AF27: 2.535 | AG27: 2.5086 | AI27: 3002.4 | AJ27: 0.23796 | AK27: 3002.4 | AL27: 0.2214 | AM27: 3002.4 | AN27: 0.27435 | AP27: 3002.4 | AQ27: 0.23397 | AR27: 3002.4 | AS27: 0.22392 | AT27: 2999.4 | AU27: 0.24817 | AW27: 422.3411 | AX27: 0 | AY27: 0 | AZ27: 0 | BA27: 0 | BB27: 0 | BC27: 0 | BD27: 0 | BE27: 0 | BF27: 0 | BG27: 0 | BH27: 0 | BI27: 0 | BJ27: 0 | BK27: 0 | BL27: 0 | BM27: 0 | BN27: 0 | BO27: 0 | BP27: 0 | BQ27: 0 | BR27: 0 | BS27: 0 | BT27: 0 | BU27: 0 | BV27: 0 | BW27: 0 | BX27: 0 | BY27: 0 | BZ27: 0 | CA27: 0 | CB27: 0 | CC27: 0 | CD27: 0 | CE27: 0 | CF27: 0 | CG27: 0 | CH27: 0 | CI27: 0 | CJ27: 0 | CK27: 0 | CL27: 0 | CM27: 0 | CN27: 0 | CP27: 422.3411 | CQ27: 0 | CR27: 0 | CS27: 0 | CT27: 0 | CU27: 0 | CV27: 0 | CW27: 0 | CX27: 0 | CY27: 0 | CZ27: 0 | DA27: 0 | DB27: 0 | DC27: 0 | DD27: 0 | DE27: 0 | DF27: 0 | DG27: 0 | DH27: 0 | DI27: 0 | DJ27: 0 | DK27: 0 | DL27: 0 | DM27: 0 | DN27: 0 | DO27: 0 | DP27: 0 | DQ27: 0 | DR27: 0 | DS27: 0 | DT27: 0 | DU27: 0 | DV27: 0 | DW27: 0 | DX27: 0 | DY27: 0 | DZ27: 0 | EA27: 0 | EB27: 0 | EC27: 0 | ED27: 0 | EE27: 0 | EF27: 0 | EG27: 0 | EM27: -50.26962 | EN27: 0 | EO27: 0 | EP27: 0 | EQ27: 0 | ER27: -45.05244 | ES27: 0 | ET27: 0 | EU27: 0 | EV27: 0
A28: 125 | B28: 25.68 | C28: 15.65 | D28: 6.33 | Y28: 760 | Z28: 3.04E+06 | AA28: 2.70E+06 | AB28: 9.01E+06 | AD28: 225 | AE28: 2.5881 | AF28: 2.6142 | AG28: 2.5889 | AI28: 3002.5 | AJ28: 0.23761 | AK28: 3002.5 | AL28: 0.222 | AM28: 3002.5 | AN28: 0.27339 | AP28: 3002.5 | AQ28: 0.23534 | AR28: 3002.5 | AS28: 0.22449 | AT28: 2999.5 | AU28: 0.24906 | AW28: 423.3054 | AX28: 0 | AY28: 0 | AZ28: 0 | BA28: 0 | BB28: 0 | BC28: 0 | BD28: 0 | BE28: 0 | BF28: 0 | BG28: 0 | BH28: 0 | BI28: 0 | BJ28: 0 | BK28: 0 | BL28: 0 | BM28: 0 | BN28: 0 | BO28: 0 | BP28: 0 | BQ28: 0 | BR28: 0 | BS28: 0 | BT28: 0 | BU28: 0 | BV28: 0 | BW28: 0 | BX28: 0 | BY28: 0 | BZ28: 0 | CA28: 0 | CB28: 0 | CC28: 0 | CD28: 0 | CE28: 0 | CF28: 0 | CG28: 0 | CH28: 0 | CI28: 0 | CJ28: 0 | CK28: 0 | CL28: 0 | CM28: 0 | CN28: 0 | CP28: 423.3054 | CQ28: 0 | CR28: 0 | CS28: 0 | CT28: 0 | CU28: 0 | CV28: 0 | CW28: 0 | CX28: 0 | CY28: 0 | CZ28: 0 | DA28: 0 | DB28: 0 | DC28: 0 | DD28: 0 | DE28: 0 | DF28: 0 | DG28: 0 | DH28: 0 | DI28: 0 | DJ28: 0 | DK28: 0 | DL28: 0 | DM28: 0 | DN28: 0 | DO28: 0 | DP28: 0 | DQ28: 0 | DR28: 0 | DS28: 0 | DT28: 0 | DU28: 0 | DV28: 0 | DW28: 0 | DX28: 0 | DY28: 0 | DZ28: 0 | EA28: 0 | EB28: 0 | EC28: 0 | ED28: 0 | EE28: 0 | EF28: 0 | EG28: 0 | EM28: -50.21062 | EN28: 0 | EO28: 0 | EP28: 0 | EQ28: 0 | ER28: -44.99544 | ES28: 0 | ET28: 0 | EU28: 0 | EV28: 0
A29: 130 | B29: 25.96 | C29: 15.84 | D29: 6.34 | Y29: 770 | Z29: 2.64E+06 | AA29: 2.42E+06 | AB29: 7.66E+06 | AD29: 226 | AE29: 2.655 | AF29: 2.6806 | AG29: 2.6559 | AI29: 3002.6 | AJ29: 0.2372 | AK29: 3002.6 | AL29: 0.22255 | AM29: 3002.6 | AN29: 0.27243 | AP29: 3002.6 | AQ29: 0.2368 | AR29: 3002.6 | AS29: 0.22495 | AT29: 2999.6 | AU29: 0.24991 | AW29: 424.2697 | AX29: 0 | AY29: 0 | AZ29: 0 | BA29: 0 | BB29: 0 | BC29: 0 | BD29: 0 | BE29: 0 | BF29: 0 | BG29: 0 | BH29: 0 | BI29: 0 | BJ29: 0 | BK29: 0 | BL29: 0 | BM29: 0 | BN29: 0 | BO29: 0 | BP29: 0 | BQ29: 0 | BR29: 0 | BS29: 0 | BT29: 0 | BU29: 0 | BV29: 0 | BW29: 0 | BX29: 0 | BY29: 0 | BZ29: 0 | CA29: 0 | CB29: 0 | CC29: 0 | CD29: 0 | CE29: 0 | CF29: 0 | CG29: 0 | CH29: 0 | CI29: 0 | CJ29: 0 | CK29: 0 | CL29: 0 | CM29: 0 | CN29: 0 | CP29: 424.2697 | CQ29: 0 | CR29: 0 | CS29: 0 | CT29: 0 | CU29: 0 | CV29: 0 | CW29: 0 | CX29: 0 | CY29: 0 | CZ29: 0 | DA29: 0 | DB29: 0 | DC29: 0 | DD29: 0 | DE29: 0 | DF29: 0 | DG29: 0 | DH29: 0 | DI29: 0 | DJ29: 0 | DK29: 0 | DL29: 0 | DM29: 0 | DN29: 0 | DO29: 0 | DP29: 0 | DQ29: 0 | DR29: 0 | DS29: 0 | DT29: 0 | DU29: 0 | DV29: 0 | DW29: 0 | DX29: 0 | DY29: 0 | DZ29: 0 | EA29: 0 | EB29: 0 | EC29: 0 | ED29: 0 | EE29: 0 | EF29: 0 | EG29: 0 | EM29: -50.15162 | EN29: 0 | EO29: 0 | EP29: 0 | EQ29: 0 | ER29: -44.93844 | ES29: 0 | ET29: 0 | EU29: 0 | EV29: 0
A30: 135 | B30: 26.22 | C30: 16.02 | D30: 6.35 | Y30: 780 | Z30: 1.87E+06 | AA30: 1.83E+06 | AB30: 5.57E+06 | AD30: 227 | AE30: 2.701 | AF30: 2.7262 | AG30: 2.7017 | AI30: 3002.7 | AJ30: 0.23691 | AK30: 3002.7 | AL30: 0.22292 | AM30: 3002.7 | AN30: 0.27143 | AP30: 3002.7 | AQ30: 0.23818 | AR30: 3002.7 | AS30: 0.22526 | AT30: 2999.7 | AU30: 0.25054 | AW30: 425.2339 | AX30: 0 | AY30: 0 | AZ30: 0 | BA30: 0 | BB30: 0 | BC30: 0 | BD30: 0 | BE30: 0 | BF30: 0 | BG30: 0 | BH30: 0 | BI30: 0 | BJ30: 0 | BK30: 0 | BL30: 0 | BM30: 0 | BN30: 0 | BO30: 0 | BP30: 0 | BQ30: 0 | BR30: 0 | BS30: 0 | BT30: 0 | BU30: 0 | BV30: 0 | BW30: 0 | BX30: 0 | BY30: 0 | BZ30: 0 | CA30: 0 | CB30: 0 | CC30: 0 | CD30: 0 | CE30: 0 | CF30: 0 | CG30: 0 | CH30: 0 | CI30: 0 | CJ30: 0 | CK30: 0 | CL30: 0 | CM30: 0 | CN30: 0 | CP30: 425.2339 | CQ30: 0 | CR30: 0 | CS30: 0 | CT30: 0 | CU30: 0 | CV30: 0 | CW30: 0 | CX30: 0 | CY30: 0 | CZ30: 0 | DA30: 0 | DB30: 0 | DC30: 0 | DD30: 0 | DE30: 0 | DF30: 0 | DG30: 0 | DH30: 0 | DI30: 0 | DJ30: 0 | DK30: 0 | DL30: 0 | DM30: 0 | DN30: 0 | DO30: 0 | DP30: 0 | DQ30: 0 | DR30: 0 | DS30: 0 | DT30: 0 | DU30: 0 | DV30: 0 | DW30: 0 | DX30: 0 | DY30: 0 | DZ30: 0 | EA30: 0 | EB30: 0 | EC30: 0 | ED30: 0 | EE30: 0 | EF30: 0 | EG30: 0 | EM30: -50.09262 | EN30: 0 | EO30: 0 | EP30: 0 | EQ30: 0 | ER30: -44.88144 | ES30: 0 | ET30: 0 | EU30: 0 | EV30: 0
A31: 140 | B31: 26.45 | C31: 16.19 | D31: 6.36 | Y31: 790 | Z31: 1.73E+06 | AA31: 1.56E+06 | AB31: 4.44E+06 | AD31: 228 | AE31: 2.7222 | AF31: 2.7474 | AG31: 2.7226 | AI31: 3002.8 | AJ31: 0.23682 | AK31: 3002.8 | AL31: 0.22305 | AM31: 3002.8 | AN31: 0.27037 | AP31: 3002.8 | AQ31: 0.23934 | AR31: 3002.8 | AS31: 0.22549 | AT31: 2999.8 | AU31: 0.25083 | AW31: 426.1982 | AX31: 0 | AY31: 0 | AZ31: 0 | BA31: 0 | BB31: 0 | BC31: 0 | BD31: 0 | BE31: 0 | BF31: 0 | BG31: 0 | BH31: 0 | BI31: 0 | BJ31: 0 | BK31: 0 | BL31: 0 | BM31: 0 | BN31: 0 | BO31: 0 | BP31: 0 | BQ31: 0 | BR31: 0 | BS31: 0 | BT31: 0 | BU31: 0 | BV31: 0 | BW31: 0 | BX31: 0 | BY31: 0 | BZ31: 0 | CA31: 0 | CB31: 0 | CC31: 0 | CD31: 0 | CE31: 0 | CF31: 0 | CG31: 0 | CH31: 0 | CI31: 0 | CJ31: 0 | CK31: 0 | CL31: 0 | CM31: 0 | CN31: 0 | CP31: 426.1982 | CQ31: 0 | CR31: 0 | CS31: 0 | CT31: 0 | CU31: 0 | CV31: 0 | CW31: 0 | CX31: 0 | CY31: 0 | CZ31: 0 | DA31: 0 | DB31: 0 | DC31: 0 | DD31: 0 | DE31: 0 | DF31: 0 | DG31: 0 | DH31: 0 | DI31: 0 | DJ31: 0 | DK31: 0 | DL31: 0 | DM31: 0 | DN31: 0 | DO31: 0 | DP31: 0 | DQ31: 0 | DR31: 0 | DS31: 0 | DT31: 0 | DU31: 0 | DV31: 0 | DW31: 0 | DX31: 0 | DY31: 0 | DZ31: 0 | EA31: 0 | EB31: 0 | EC31: 0 | ED31: 0 | EE31: 0 | EF31: 0 | EG31: 0 | EM31: -50.03362 | EN31: 0 | EO31: 0 | EP31: 0 | EQ31: 0 | ER31: -44.82344 | ES31: 0 | ET31: 0 | EU31: 0 | EV31: 0
A32: 145 | B32: 26.66 | C32: 16.35 | D32: 6.36 | Y32: 800 | Z32: 1.39E+06 | AA32: 1.28E+06 | AB32: 3.57E+06 | AD32: 229 | AE32: 2.7201 | AF32: 2.746 | AG32: 2.7203 | AI32: 3002.9 | AJ32: 0.2369 | AK32: 3002.9 | AL32: 0.223 | AM32: 3002.9 | AN32: 0.2693 | AP32: 3002.9 | AQ32: 0.24029 | AR32: 3002.9 | AS32: 0.22571 | AT32: 2999.9 | AU32: 0.25081 | AW32: 427.1624 | AX32: 0 | AY32: 0 | AZ32: 0 | BA32: 0 | BB32: 0 | BC32: 0 | BD32: 0 | BE32: 0 | BF32: 0 | BG32: 0 | BH32: 0 | BI32: 0 | BJ32: 0 | BK32: 0 | BL32: 0 | BM32: 0 | BN32: 0 | BO32: 0 | BP32: 0 | BQ32: 0 | BR32: 0 | BS32: 0 | BT32: 0 | BU32: 0 | BV32: 0 | BW32: 0 | BX32: 0 | BY32: 0 | BZ32: 0 | CA32: 0 | CB32: 0 | CC32: 0 | CD32: 0 | CE32: 0 | CF32: 0 | CG32: 0 | CH32: 0 | CI32: 0 | CJ32: 0 | CK32: 0 | CL32: 0 | CM32: 0 | CN32: 0 | CP32: 427.1624 | CQ32: 0 | CR32: 0 | CS32: 0 | CT32: 0 | CU32: 0 | CV32: 0 | CW32: 0 | CX32: 0 | CY32: 0 | CZ32: 0 | DA32: 0 | DB32: 0 | DC32: 0 | DD32: 0 | DE32: 0 | DF32: 0 | DG32: 0 | DH32: 0 | DI32: 0 | DJ32: 0 | DK32: 0 | DL32: 0 | DM32: 0 | DN32: 0 | DO32: 0 | DP32: 0 | DQ32: 0 | DR32: 0 | DS32: 0 | DT32: 0 | DU32: 0 | DV32: 0 | DW32: 0 | DX32: 0 | DY32: 0 | DZ32: 0 | EA32: 0 | EB32: 0 | EC32: 0 | ED32: 0 | EE32: 0 | EF32: 0 | EG32: 0 | EM32: -49.97462 | EN32: 0 | EO32: 0 | EP32: 0 | EQ32: 0 | ER32: -44.76644 | ES32: 0 | ET32: 0 | EU32: 0 | EV32: 0
A33: 150 | B33: 26.85 | C33: 16.53 | D33: 6.37 | Y33: 810 | Z33: 1.01E+06 | AA33: 1.01E+06 | AB33: 2.68E+06 | AD33: 230 | AE33: 2.7012 | AF33: 2.7279 | AG33: 2.7011 | AI33: 3003 | AJ33: 0.23706 | AK33: 3003 | AL33: 0.22291 | AM33: 3003 | AN33: 0.26829 | AP33: 3003 | AQ33: 0.24117 | AR33: 3003 | AS33: 0.22597 | AT33: 3000 | AU33: 0.25061 | AW33: 428.1266 | AX33: 0 | AY33: 0 | AZ33: 0 | BA33: 0 | BB33: 0 | BC33: 0 | BD33: 0 | BE33: 0 | BF33: 0 | BG33: 0 | BH33: 0 | BI33: 0 | BJ33: 0 | BK33: 0 | BL33: 0 | BM33: 0 | BN33: 0 | BO33: 0 | BP33: 0 | BQ33: 0 | BR33: 0 | BS33: 0 | BT33: 0 | BU33: 0 | BV33: 0 | BW33: 0 | BX33: 0 | BY33: 0 | BZ33: 0 | CA33: 0 | CB33: 0 | CC33: 0 | CD33: 0 | CE33: 0 | CF33: 0 | CG33: 0 | CH33: 0 | CI33: 0 | CJ33: 0 | CK33: 0 | CL33: 0 | CM33: 0 | CN33: 0 | CP33: 428.1266 | CQ33: 0 | CR33: 0 | CS33: 0 | CT33: 0 | CU33: 0 | CV33: 0 | CW33: 0 | CX33: 0 | CY33: 0 | CZ33: 0 | DA33: 0 | DB33: 0 | DC33: 0 | DD33: 0 | DE33: 0 | DF33: 0 | DG33: 0 | DH33: 0 | DI33: 0 | DJ33: 0 | DK33: 0 | DL33: 0 | DM33: 0 | DN33: 0 | DO33: 0 | DP33: 0 | DQ33: 0 | DR33: 0 | DS33: 0 | DT33: 0 | DU33: 0 | DV33: 0 | DW33: 0 | DX33: 0 | DY33: 0 | DZ33: 0 | EA33: 0 | EB33: 0 | EC33: 0 | ED33: 0 | EE33: 0 | EF33: 0 | EG33: 0 | EM33: -49.91562 | EN33: 0 | EO33: 0 | EP33: 0 | EQ33: 0 | ER33: -44.70944 | ES33: 0 | ET33: 0 | EU33: 0 | EV33: 0
